Workbook

Sheet Guidance
C1: THE CONTENTS OF THE WORKBOOK INCLUDE ESTIMATES
C2: BASED ON SMALL SAMPLE SIZES WHICH MAY BE UNRELIABLE
C3: THEY ARE PROVIDED ON A CAVEAT EMPTOR BASIS
G5: Users should follow the guidelines set out in general terms below
G6: and in more detail in the Working Futures technical documentation available on line at:
G7: https://www.gov.uk/government/publications/uk-labour-market-projections-2014-to-2024
G9: If in doubt about what to do please contact:
G11: UKCES: email: working.futures@ukces.org.uk
G12: All other enquiries: Rob Wilson, IER, University of Warwick, email: r.a.wilson@warwick.ac.uk, tel: 024 7652 3530
G14: Copyright: Warwick Institute for Employment Research / Cambridge Econometrics, 2015
G17: REPORTING
G18: The projections presented in this Workbook are calculated from a number of different data sources, using
G19: a variety of econometric and statistical techniques. As a result, precise margins of error cannot be assigned
G20: to the estimates. For further details, see the Working Futures Technical Report.
G22: However, as a general rule of thumb, it is not advisable to use any statistics or analyses in published reports etc which are not
G23: based on data for at least 10,000 individuals. This should provide a reasonable degree of statistical robustness to
G24: the estimates whether historic or forecast.
G26: For unpublished analyses, a more lenient criterion can be used. However, the uncertainties associated with
G27: projections involving fewer than 1,000 individuals are probably too great to make such estimates useful.
G28: However, there is inevitably some degree of judgement required on the part of the researcher.
G30: For cases in between 1,000 and 10,000 individuals, it is difficult to prescribe general rules, and an element of
G31: judgement by on behalf of the user is needed.
G33: Thus, in summary, CE/IER advise:
G35: PUBLISHED ANALYSIS: Ideally, a minimum of 10,000 individuals per cell
G36: UNPUBLISHED ANALYSIS: A minimum of 1,000 individuals per cell

Sheet Info
A1: Wales
A2: c152 | B2: <-MDM forecast identifier
A3: Occupational forecast: Saturday, 23 January 2016 at 03:23

Sheet Table 3.5
A1: Table 3.5 | B1: Employment Status
E2: 000s
A3: =All!Z7 -> 2014
A4: Employment by Gender | B4: FT | C4: PT | D4: SE | E4: Total
A5: Male employment | B5: =MalesFT!Z8/1000 -> 474.518 | C5: =MalesPT!Z8/1000 -> 112.229 | D5: =MalesSE!Z8/1000 -> 142.863 | E5: =Males!Z8/1000 -> 729.61
A6: Female employment | B6: =FemalesFT!Z8/1000 -> 299.141 | C6: =FemalesPT!Z8/1000 -> 320.579 | D6: =FemalesSE!Z8/1000 -> 62.936 | E6: =Females!Z8/1000 -> 682.656
A7: Total employment | B7: =FT!Z8/1000 -> 773.659 | C7: =PT!Z8/1000 -> 432.808 | D7: =SE!Z8/1000 -> 205.799 | E7: =SUM(E5:E6) -> 1412.266
A9: =All!AE7 -> 2019
A10: Employment by Gender | B10: FT | C10: PT | D10: SE | E10: Total
A11: Male employment | B11: =MalesFT!AE8/1000 -> 480.295 | C11: =MalesPT!AE8/1000 -> 121.484 | D11: =MalesSE!AE8/1000 -> 140.849 | E11: =Males!AE8/1000 -> 742.628
A12: Female employment | B12: =FemalesFT!AE8/1000 -> 307.113 | C12: =FemalesPT!AE8/1000 -> 328.793 | D12: =FemalesSE!AE8/1000 -> 62.364 | E12: =Females!AE8/1000 -> 698.27
A13: Total employment | B13: =FT!AE8/1000 -> 787.408 | C13: =PT!AE8/1000 -> 450.277 | D13: =SE!AE8/1000 -> 203.213 | E13: =SUM(E11:E12) -> 1440.898
A15: =All!AJ7 -> 2024
A16: Employment by Gender | B16: FT | C16: PT | D16: SE | E16: Total
A17: Male employment | B17: =MalesFT!AJ8/1000 -> 476.854 | C17: =MalesPT!AJ8/1000 -> 132.819 | D17: =MalesSE!AJ8/1000 -> 136.462 | E17: =Males!AJ8/1000 -> 746.135
A18: Female employment | B18: =FemalesFT!AJ8/1000 -> 318.067 | C18: =FemalesPT!AJ8/1000 -> 340.1 | D18: =FemalesSE!AJ8/1000 -> 61.586 | E18: =Females!AJ8/1000 -> 719.753
A19: Total employment | B19: =FT!AJ8/1000 -> 794.921 | C19: =PT!AJ8/1000 -> 472.919 | D19: =SE!AJ8/1000 -> 198.048 | E19: =SUM(E17:E18) -> 1465.888
A20: =CELL("filename",$A$1)&", "&Info!A1 -> R:\Research Info\Individual research project info\Working Futures_ Data to be uploaded on the 16th May 16\Wales main workbook_needs cover updating\[AllWA.xlsm]Table 3.5, Wales

Sheet Table 3.6
A1: Table 3.6 | B1: Shares by Employment Status
E2: %
A3: ='Table 3.5'!A3 -> 2014
A4: Employment by Gender | B4: FT | C4: PT | D4: SE | E4: Total
A5: Male employment | B5: =MalesFT!Z8/All!Z8*100 -> 33.59976095 | C5: =MalesPT!Z8/All!Z8*100 -> 7.946732414 | D5: =MalesSE!Z8/All!Z8*100 -> 10.11587052 | E5: =Males!Z8/All!Z8*100 -> 51.66236389
A6: Female employment | B6: =FemalesFT!Z8/All!Z8*100 -> 21.18163292 | C6: =FemalesPT!Z8/All!Z8*100 -> 22.69961891 | D6: =FemalesSE!Z8/All!Z8*100 -> 4.456384279 | E6: =Females!Z8/All!Z8*100 -> 48.33763611
A7: Total employment | B7: =FT!Z8/All!Z8*100 -> 54.78139387 | C7: =PT!Z8/All!Z8*100 -> 30.64635132 | D7: =SE!Z8/All!Z8*100 -> 14.5722548 | E7: =All!Z8/All!Z8*100 -> 100
A9: ='Table 3.5'!A9 -> 2019
A10: Employment by Gender | B10: FT | C10: PT | D10: SE | E10: Total
A11: Male employment | B11: =MalesFT!AE8/All!AE8*100 -> 33.33303259 | C11: =MalesPT!AE8/All!AE8*100 -> 8.431131142 | D11: =MalesSE!AE8/All!AE8*100 -> 9.775084704 | E11: =Males!AE8/All!AE8*100 -> 51.53924844
A12: Female employment | B12: =FemalesFT!AE8/All!AE8*100 -> 21.31400002 | C12: =FemalesPT!AE8/All!AE8*100 -> 22.81861728 | D12: =FemalesSE!AE8/All!AE8*100 -> 4.328134261 | E12: =Females!AE8/All!AE8*100 -> 48.46075156
A13: Total employment | B13: =FT!AE8/All!AE8*100 -> 54.64703261 | C13: =PT!AE8/All!AE8*100 -> 31.24974842 | D13: =SE!AE8/All!AE8*100 -> 14.10321896 | E13: =All!AE8/All!AE8*100 -> 100
A15: ='Table 3.5'!A15 -> 2024
A16: Employment by Gender | B16: FT | C16: PT | D16: SE | E16: Total
A17: Male employment | B17: =MalesFT!AJ8/All!AJ8*100 -> 32.53004322 | C17: =MalesPT!AJ8/All!AJ8*100 -> 9.060651291 | D17: =MalesSE!AJ8/All!AJ8*100 -> 9.309169595 | E17: =Males!AJ8/All!AJ8*100 -> 50.89986411
A18: Female employment | B18: =FemalesFT!AJ8/All!AJ8*100 -> 21.69790598 | C18: =FemalesPT!AJ8/All!AJ8*100 -> 23.20095396 | D18: =FemalesSE!AJ8/All!AJ8*100 -> 4.20127595 | E18: =Females!AJ8/All!AJ8*100 -> 49.10013589
A19: Total employment | B19: =FT!AJ8/All!AJ8*100 -> 54.2279492 | C19: =PT!AJ8/All!AJ8*100 -> 32.26160525 | D19: =SE!AJ8/All!AJ8*100 -> 13.51044555 | E19: =All!AJ8/All!AJ8*100 -> 100
A20: =CELL("filename",$A$1)&", "&Info!A1 -> R:\Research Info\Individual research project info\Working Futures_ Data to be uploaded on the 16th May 16\Wales main workbook_needs cover updating\[AllWA.xlsm]Table 3.6, Wales

Sheet Table 3.7
A1: Table 3.7 | B1: Changes in Employment Status
E2: 000's
A3: =CONCATENATE('Table 3.5'!A3,"-",'Table 3.5'!A9) -> 2014-2019
A4: Employment by Gender | B4: FT | C4: PT | D4: SE | E4: Total
A5: Male employment | B5: =(MalesFT!AE8-MalesFT!Z8)/1000 -> 5.777 | C5: =(MalesPT!AE8-MalesPT!Z8)/1000 -> 9.255 | D5: =(MalesSE!AE8-MalesSE!Z8)/1000 -> -2.014 | E5: =(Males!AE8-Males!Z8)/1000 -> 13.018
A6: Female employment | B6: =(FemalesFT!AE8-FemalesFT!Z8)/1000 -> 7.972 | C6: =(FemalesPT!AE8-FemalesPT!Z8)/1000 -> 8.214 | D6: =(FemalesSE!AE8-FemalesSE!Z8)/1000 -> -0.572 | E6: =(Females!AE8-Females!Z8)/1000 -> 15.614
A7: Total employment | B7: =(FT!AE8-FT!Z8)/1000 -> 13.749 | C7: =(PT!AE8-PT!Z8)/1000 -> 17.469 | D7: =(SE!AE8-SE!Z8)/1000 -> -2.586 | E7: =(All!AE8-All!Z8)/1000 -> 28.632
A9: =CONCATENATE('Table 3.5'!A9,"-",'Table 3.5'!A15) -> 2019-2024
A10: Employment by Gender | B10: FT | C10: PT | D10: SE | E10: Total
A11: Male employment | B11: =(MalesFT!AJ8-MalesFT!AE8)/1000 -> -3.441 | C11: =(MalesPT!AJ8-MalesPT!AE8)/1000 -> 11.335 | D11: =(MalesSE!AJ8-MalesSE!AE8)/1000 -> -4.387 | E11: =(Males!AJ8-Males!AE8)/1000 -> 3.507
A12: Female employment | B12: =(FemalesFT!AJ8-FemalesFT!AE8)/1000 -> 10.954 | C12: =(FemalesPT!AJ8-FemalesPT!AE8)/1000 -> 11.307 | D12: =(FemalesSE!AJ8-FemalesSE!AE8)/1000 -> -0.778 | E12: =(Females!AJ8-Females!AE8)/1000 -> 21.483
A13: Total employment | B13: =(FT!AJ8-FT!AE8)/1000 -> 7.513 | C13: =(PT!AJ8-PT!AE8)/1000 -> 22.642 | D13: =(SE!AJ8-SE!AE8)/1000 -> -5.165 | E13: =(All!AJ8-All!AE8)/1000 -> 24.99
A15: =CONCATENATE('Table 3.5'!A3,"-",'Table 3.5'!A15) -> 2014-2024
A16: Employment by Gender | B16: FT | C16: PT | D16: SE | E16: Total
A17: Male employment | B17: =(MalesFT!AJ8-MalesFT!Z8)/1000 -> 2.336 | C17: =(MalesPT!AJ8-MalesPT!Z8)/1000 -> 20.59 | D17: =(MalesSE!AJ8-MalesSE!Z8)/1000 -> -6.401 | E17: =(Males!AJ8-Males!Z8)/1000 -> 16.525
A18: Female employment | B18: =(FemalesFT!AJ8-FemalesFT!Z8)/1000 -> 18.926 | C18: =(FemalesPT!AJ8-FemalesPT!Z8)/1000 -> 19.521 | D18: =(FemalesSE!AJ8-FemalesSE!Z8)/1000 -> -1.35 | E18: =(Females!AJ8-Females!Z8)/1000 -> 37.097
A19: Total employment | B19: =(FT!AJ8-FT!Z8)/1000 -> 21.262 | C19: =(PT!AJ8-PT!Z8)/1000 -> 40.111 | D19: =(SE!AJ8-SE!Z8)/1000 -> -7.751 | E19: =(All!AJ8-All!Z8)/1000 -> 53.622
A20: =CELL("filename",$A$1)&", "&Info!A1 -> R:\Research Info\Individual research project info\Working Futures_ Data to be uploaded on the 16th May 16\Wales main workbook_needs cover updating\[AllWA.xlsm]Table 3.7, Wales

Sheet Table 4.1 T
H1: Net changes for Figure 4.1 to 4
A2: Table 4.1 | B2: Occupational Categories SOC2010 - Major Groups
A3: All Industry Sectors
A5: Employment Levels (000s) | J5: (Order reversed for chart)
B6: =All!F7 -> 1994 | C6: =All!P7 -> 2004 | D6: =All!Z7 -> 2014 | E6: =All!AE7 -> 2019 | F6: =All!AJ7 -> 2024 | H6: =CONCATENATE(B6,"-",C6) -> 1994-2004 | I6: =CONCATENATE(C6,"-",D6) -> 2004-2014 | J6: =CONCATENATE(D6,"-",F6) -> 2014-2024
A7: ="1. "&names!B4 -> 1. Managers, directors and senior officials | B7: =(All!F9+All!F10)/1000 -> 78.303567 | C7: =(All!P9+All!P10)/1000 -> 88.332231 | D7: =(All!Z9+All!Z10)/1000 -> 106.363101 | E7: =(All!AE9+All!AE10)/1000 -> 116.488289 | F7: =(All!AJ9+All!AJ10)/1000 -> 122.535073 | J7: =F16-D16 -> 53.622
A8: ="2. "&names!B5 -> 2. Professional occupations | B8: =(All!F11+All!F12+All!F13+All!F14)/1000 -> 166.418508 | C8: =(All!P11+All!P12+All!P13+All!P14)/1000 -> 210.913393 | D8: =(All!Z11+All!Z12+All!Z13+All!Z14)/1000 -> 261.341371 | E8: =(All!AE11+All!AE12+All!AE13+All!AE14)/1000 -> 278.23268 | F8: =(All!AJ11+All!AJ12+All!AJ13+All!AJ14)/1000 -> 295.497229 | H8: =A15 -> 9. Elementary occupations | J8: =F15-D15 -> 1.465385
A9: ="3. "&names!B6 -> 3. Associate professional and technical | B9: =(All!F15+All!F16+All!F17+All!F18+All!F19)/1000 -> 118.010036 | C9: =(All!P15+All!P16+All!P17+All!P18+All!P19)/1000 -> 140.088867 | D9: =(All!Z15+All!Z16+All!Z17+All!Z18+All!Z19)/1000 -> 158.987867 | E9: =(All!AE15+All!AE16+All!AE17+All!AE18+All!AE19)/1000 -> 168.119312 | F9: =(All!AJ15+All!AJ16+All!AJ17+All!AJ18+All!AJ19)/1000 -> 175.616107 | H9: =A14 -> 8. Process, plant and machine operatives | J9: =F14-D14 -> -7.166064
A10: ="4. "&names!B7 -> 4. Administrative and secretarial | B10: =(All!F20+All!F21)/1000 -> 155.02419 | C10: =(All!P20+All!P21)/1000 -> 158.285542 | D10: =(All!Z20+All!Z21)/1000 -> 154.240034 | E10: =(All!AE20+All!AE21)/1000 -> 144.286404 | F10: =(All!AJ20+All!AJ21)/1000 -> 141.13322 | H10: =A13 -> 7. Sales and customer service | J10: =F13-D13 -> -0.002622
A11: ="5. "&names!B8 -> 5. Skilled trades occupations | B11: =(All!F22+All!F23+All!F24+All!F25)/1000 -> 203.593857 | C11: =(All!P22+All!P23+All!P24+All!P25)/1000 -> 176.18006 | D11: =(All!Z22+All!Z23+All!Z24+All!Z25)/1000 -> 191.659141 | E11: =(All!AE22+All!AE23+All!AE24+All!AE25)/1000 -> 187.715735 | F11: =(All!AJ22+All!AJ23+All!AJ24+All!AJ25)/1000 -> 182.592817 | H11: =A12 -> 6. Caring, leisure and other service | J11: =F12-D12 -> 14.542368
A12: ="6. "&names!B9 -> 6. Caring, leisure and other service | B12: =(All!F26+All!F27)/1000 -> 84.802307 | C12: =(All!P26+All!P27)/1000 -> 123.10106 | D12: =(All!Z26+All!Z27)/1000 -> 152.526244 | E12: =(All!AE26+All!AE27)/1000 -> 160.20505 | F12: =(All!AJ26+All!AJ27)/1000 -> 167.068612 | H12: =A11 -> 5. Skilled trades occupations | J12: =F11-D11 -> -9.066324
A13: ="7. "&names!B10 -> 7. Sales and customer service | B13: =(All!F28+All!F29)/1000 -> 94.759277 | C13: =(All!P28+All!P29)/1000 -> 116.50755 | D13: =(All!Z28+All!Z29)/1000 -> 114.732442 | E13: =(All!AE28+All!AE29)/1000 -> 115.510803 | F13: =(All!AJ28+All!AJ29)/1000 -> 114.72982 | H13: =A10 -> 4. Administrative and secretarial | J13: =F10-D10 -> -13.106814
A14: ="8. "&names!B11 -> 8. Process, plant and machine operatives | B14: =(All!F30+All!F31)/1000 -> 136.100231 | C14: =(All!P30+All!P31)/1000 -> 122.876918 | D14: =(All!Z30+All!Z31)/1000 -> 120.719725 | E14: =(All!AE30+All!AE31)/1000 -> 116.15222 | F14: =(All!AJ30+All!AJ31)/1000 -> 113.553661 | H14: =A9 -> 3. Associate professional and technical | J14: =F9-D9 -> 16.62824
A15: ="9. "&names!B12 -> 9. Elementary occupations | B15: =(All!F32+All!F33)/1000 -> 169.653027 | C15: =(All!P32+All!P33)/1000 -> 179.771377 | D15: =(All!Z32+All!Z33)/1000 -> 151.696076 | E15: =(All!AE32+All!AE33)/1000 -> 154.187507 | F15: =(All!AJ32+All!AJ33)/1000 -> 153.161461 | H15: =A8 -> 2. Professional occupations | J15: =F8-D8 -> 34.155858
A16: Total | B16: =All!F8/1000 -> 1206.665 | C16: =All!P8/1000 -> 1316.057 | D16: =All!Z8/1000 -> 1412.266 | E16: =All!AE8/1000 -> 1440.898 | F16: =All!AJ8/1000 -> 1465.888 | H16: =A7 -> 1. Managers, directors and senior officials | J16: =F7-D7 -> 16.171972
A19: Percentage Shares
B20: =B6 -> 1994 | C20: =C6 -> 2004 | D20: =D6 -> 2014 | E20: =E6 -> 2019 | F20: =F6 -> 2024
A21: =A7 -> 1. Managers, directors and senior officials | B21: =B7/B$16*100 -> 6.489254847 | C21: =C7/C$16*100 -> 6.711884896 | D21: 7.53137872 | E21: 8.084422978 | F21: 8.359101991
A22: =A8 -> 2. Professional occupations | B22: 13.79160811 | C22: 16.02615943 | D22: 18.50510959 | E22: 19.30967216 | F22: 20.15824053
A23: 3. Associate professional and technical | B23: 9.779850746 | C23: 10.64458963 | D23: 11.25764318 | E23: 11.66767613 | F23: 11.98018587
A24: 4. Administrative and secretarial | B24: 12.84732631 | C24: 12.02725581 | D24: 10.92145771 | E24: 10.01364455 | F24: 9.627831048
A25: 5. Skilled trades occupations | B25: 16.87244239 | C25: 13.38696272 | D25: 13.57103697 | E25: 13.02769072 | F25: 12.45612332
A26: 6. Caring, leisure and other service | B26: 7.027825204 | C26: 9.35377875 | D26: 10.80010735 | E26: 11.11841713 | F26: 11.39709255
A27: 7. Sales and customer service | B27: 7.852989604 | C27: 8.852773854 | D27: 8.123996613 | E27: 8.016584311 | F27: 7.826642963
A28: 8. Process, plant and machine operatives | B28: 11.27904025 | C28: 9.336747421 | D28: 8.547945288 | E28: 8.061099398 | F28: 7.746407706
A29: 9. Elementary occupations | B29: 14.05966254 | C29: 13.65984733 | D29: 10.74132465 | E29: 10.70079263 | F29: 10.44837402
A30: Total | B30: 100 | C30: 100 | D30: 100 | E30: 100 | F30: 100
A32: Net Changes | B32: =CONCATENATE(B20,"-",C20) -> 1994-2004 | C32: =CONCATENATE(C20,"-",D20) -> 2004-2014 | D32: =CONCATENATE(D20,"-",E20) -> 2014-2019 | E32: =CONCATENATE(E20,"-",F20) -> 2019-2024 | F32: =CONCATENATE(D20,"-",F20) -> 2014-2024
A34: =A21 -> 1. Managers, directors and senior officials | B34: =C7-B7 -> 10.028664 | C34: =D7-C7 -> 18.03087 | D34: =E7-D7 -> 10.125188 | E34: =F7-E7 -> 6.046784 | F34: =F7-D7 -> 16.171972
A35: =A22 -> 2. Professional occupations | B35: =C8-B8 -> 44.494885 | C35: 50.427978 | D35: =E8-D8 -> 16.891309 | E35: 17.264549 | F35: =F8-D8 -> 34.155858
A36: 3. Associate professional and technical | B36: 22.078831 | C36: 18.899 | D36: 9.131445 | E36: 7.496795 | F36: 16.62824
A37: 4. Administrative and secretarial | B37: 3.261352 | C37: -4.045508 | D37: -9.95363 | E37: -3.153184 | F37: -13.106814
A38: 5. Skilled trades occupations | B38: -27.413797 | C38: 15.479081 | D38: -3.943406 | E38: -5.122918 | F38: -9.066324
A39: 6. Caring, leisure and other service | B39: 38.298753 | C39: 29.425184 | D39: 7.678806 | E39: 6.863562 | F39: 14.542368
A40: 7. Sales and customer service | B40: 21.748273 | C40: -1.775108 | D40: 0.778361 | E40: -0.780983 | F40: -0.002622
A41: 8. Process, plant and machine operatives | B41: -13.223313 | C41: -2.157193 | D41: -4.567505 | E41: -2.598559 | F41: -7.166064
A42: 9. Elementary occupations | B42: 10.11835 | C42: -28.075301 | D42: 2.491431 | E42: -1.026046 | F42: 1.465385
A43: Total | B43: 109.392 | C43: 96.209 | D43: 28.632 | E43: 24.99 | F43: 53.622
A44: =CELL("filename",$A$2)&", "&Info!A1 -> R:\Research Info\Individual research project info\Working Futures_ Data to be uploaded on the 16th May 16\Wales main workbook_needs cover updating\[AllWA.xlsm]Table 4.1 T, Wales

Sheet Table 4.1 F
H1: Net changes for Figure 4.1 to 4
A2: Table 4.1 Females | B2: Occupational Categories SOC2010 - Major Groups
A3: All Industry Sectors
A5: Employment Levels (000s) | J5: (Order reversed for chart)
B6: =Females!F7 -> 1994 | C6: =Females!P7 -> 2004 | D6: =Females!Z7 -> 2014 | E6: =Females!AE7 -> 2019 | F6: =Females!AJ7 -> 2024 | H6: =CONCATENATE(B6,"-",C6) -> 1994-2004 | I6: =CONCATENATE(C6,"-",D6) -> 2004-2014 | J6: =CONCATENATE(D6,"-",F6) -> 2014-2024
A7: ="1. "&names!B4 -> 1. Managers, directors and senior officials | B7: =(Females!F9+Females!F10)/1000 -> 19.717539 | C7: =(Females!P9+Females!P10)/1000 -> 26.076153 | D7: =(Females!Z9+Females!Z10)/1000 -> 33.598981 | E7: =(Females!AE9+Females!AE10)/1000 -> 39.130211 | F7: =(Females!AJ9+Females!AJ10)/1000 -> 43.321608 | J7: =F16-D16 -> 37.097
A8: ="2. "&names!B5 -> 2. Professional occupations | B8: =(Females!F11+Females!F12+Females!F13+Females!F14)/1000 -> 85.12362 | C8: =(Females!P11+Females!P12+Females!P13+Females!P14)/1000 -> 115.436661 | D8: =(Females!Z11+Females!Z12+Females!Z13+Females!Z14)/1000 -> 154.36296 | E8: =(Females!AE11+Females!AE12+Females!AE13+Females!AE14)/1000 -> 167.339582 | F8: =(Females!AJ11+Females!AJ12+Females!AJ13+Females!AJ14)/1000 -> 181.693036 | J8: =F15-D15 -> -4.010331
A9: ="3. "&names!B6 -> 3. Associate professional and technical | B9: =(Females!F15+Females!F16+Females!F17+Females!F18+Females!F19)/1000 -> 40.464817 | C9: =(Females!P15+Females!P16+Females!P17+Females!P18+Females!P19)/1000 -> 54.672508 | D9: =(Females!Z15+Females!Z16+Females!Z17+Females!Z18+Females!Z19)/1000 -> 70.689365 | E9: =(Females!AE15+Females!AE16+Females!AE17+Females!AE18+Females!AE19)/1000 -> 77.593628 | F9: =(Females!AJ15+Females!AJ16+Females!AJ17+Females!AJ18+Females!AJ19)/1000 -> 83.830149 | J9: =F14-D14 -> -3.360808
A10: ="4. "&names!B7 -> 4. Administrative and secretarial | B10: =(Females!F20+Females!F21)/1000 -> 124.816145 | C10: =(Females!P20+Females!P21)/1000 -> 124.565961 | D10: =(Females!Z20+Females!Z21)/1000 -> 115.746815 | E10: =(Females!AE20+Females!AE21)/1000 -> 105.069524 | F10: =(Females!AJ20+Females!AJ21)/1000 -> 100.577824 | J10: =F13-D13 -> -1.769538
A11: ="5. "&names!B8 -> 5. Skilled trades occupations | B11: =(Females!F22+Females!F23+Females!F24+Females!F25)/1000 -> 28.348155 | C11: =(Females!P22+Females!P23+Females!P24+Females!P25)/1000 -> 19.816231 | D11: =(Females!Z22+Females!Z23+Females!Z24+Females!Z25)/1000 -> 16.802162 | E11: =(Females!AE22+Females!AE23+Females!AE24+Females!AE25)/1000 -> 16.752797 | F11: =(Females!AJ22+Females!AJ23+Females!AJ24+Females!AJ25)/1000 -> 16.730166 | J11: =F12-D12 -> 11.28518
A12: ="6. "&names!B9 -> 6. Caring, leisure and other service | B12: =(Females!F26+Females!F27)/1000 -> 72.949059 | C12: =(Females!P26+Females!P27)/1000 -> 104.462434 | D12: =(Females!Z26+Females!Z27)/1000 -> 129.394039 | E12: =(Females!AE26+Females!AE27)/1000 -> 134.933503 | F12: =(Females!AJ26+Females!AJ27)/1000 -> 140.679219 | J12: =F11-D11 -> -0.071996
A13: ="7. "&names!B10 -> 7. Sales and customer service | B13: =(Females!F28+Females!F29)/1000 -> 72.87099 | C13: =(Females!P28+Females!P29)/1000 -> 85.630208 | D13: =(Females!Z28+Females!Z29)/1000 -> 80.726768 | E13: =(Females!AE28+Females!AE29)/1000 -> 79.803004 | F13: =(Females!AJ28+Females!AJ29)/1000 -> 78.95723 | J13: =F10-D10 -> -15.168991
A14: ="8. "&names!B11 -> 8. Process, plant and machine operatives | B14: =(Females!F30+Females!F31)/1000 -> 34.09023 | C14: =(Females!P30+Females!P31)/1000 -> 24.037503 | D14: =(Females!Z30+Females!Z31)/1000 -> 17.293108 | E14: =(Females!AE30+Females!AE31)/1000 -> 14.966174 | F14: =(Females!AJ30+Females!AJ31)/1000 -> 13.9323 | J14: =F9-D9 -> 13.140784
A15: ="9. "&names!B12 -> 9. Elementary occupations | B15: =(Females!F32+Females!F33)/1000 -> 99.869444 | C15: =(Females!P32+Females!P33)/1000 -> 91.374342 | D15: =(Females!Z32+Females!Z33)/1000 -> 64.0418 | E15: =(Females!AE32+Females!AE33)/1000 -> 62.681575 | F15: =(Females!AJ32+Females!AJ33)/1000 -> 60.031469 | J15: =F8-D8 -> 27.330076
A16: Total | B16: =Females!F8/1000 -> 578.25 | C16: =Females!P8/1000 -> 646.072 | D16: =Females!Z8/1000 -> 682.656 | E16: =Females!AE8/1000 -> 698.27 | F16: =Females!AJ8/1000 -> 719.753 | J16: =F7-D7 -> 9.722627
A19: Percentage Shares
B20: =B6 -> 1994 | C20: =C6 -> 2004 | D20: =D6 -> 2014 | E20: =E6 -> 2019 | F20: =F6 -> 2024
A21: =A7 -> 1. Managers, directors and senior officials | B21: =B7/B$16*100 -> 3.409864073 | C21: 4.036106347 | D21: 4.921802636 | E21: 5.603879731 | F21: 6.018954836
A22: =A8 -> 2. Professional occupations | B22: 14.72090272 | C22: 17.86746075 | D22: 22.61211503 | E22: 23.96488207 | F22: 25.24380392
A23: 3. Associate professional and technical | B23: 6.997806658 | C23: 8.462293367 | D23: 10.35504925 | E23: 11.11226717 | F23: 11.64707184
A24: 4. Administrative and secretarial | B24: 21.58515262 | C24: 19.28050759 | D24: 16.95536478 | E24: 15.04711988 | F24: 13.97393606
A25: 5. Skilled trades occupations | B25: 4.902404669 | C25: 3.067186165 | D25: 2.461292657 | E25: 2.399186131 | F25: 2.324431576
A26: 6. Caring, leisure and other service | B26: 12.61548794 | C26: 16.16885332 | D26: 18.9545011 | E26: 19.32397253 | F26: 19.5454856
A27: 7. Sales and customer service | B27: 12.60198703 | C27: 13.25397293 | D27: 11.82539493 | E27: 11.4286743 | F27: 10.97004528
A28: 8. Process, plant and machine operatives | B28: 5.895413748 | C28: 3.720561021 | D28: 2.533209699 | E28: 2.143321924 | F28: 1.935705721
A29: 9. Elementary occupations | B29: 17.27098037 | C29: 14.14305867 | D29: 9.381269629 | E29: 8.976695977 | F29: 8.340565305
A30: Total | B30: 100 | C30: 100 | D30: 100 | E30: 100 | F30: 100
A32: Net Changes | B32: =CONCATENATE(B20,"-",C20) -> 1994-2004 | C32: =CONCATENATE(C20,"-",D20) -> 2004-2014 | D32: =CONCATENATE(D20,"-",E20) -> 2014-2019 | E32: =CONCATENATE(E20,"-",F20) -> 2019-2024 | F32: =CONCATENATE(D20,"-",F20) -> 2014-2024
A34: =A21 -> 1. Managers, directors and senior officials | B34: =C7-B7 -> 6.358614 | C34: =D7-C7 -> 7.522828 | D34: =E7-D7 -> 5.53123 | E34: =F7-E7 -> 4.191397 | F34: =F7-D7 -> 9.722627
A35: =A22 -> 2. Professional occupations | B35: =C8-B8 -> 30.313041 | C35: 38.926299 | D35: 12.976622 | E35: 14.353454 | F35: =F8-D8 -> 27.330076
A36: 3. Associate professional and technical | B36: 14.207691 | C36: 16.016857 | D36: 6.904263 | E36: 6.236521 | F36: 13.140784
A37: 4. Administrative and secretarial | B37: -0.250184 | C37: -8.819146 | D37: -10.677291 | E37: -4.4917 | F37: -15.168991
A38: 5. Skilled trades occupations | B38: -8.531924 | C38: -3.014069 | D38: -0.049365 | E38: -0.022631 | F38: -0.071996
A39: 6. Caring, leisure and other service | B39: 31.513375 | C39: 24.931605 | D39: 5.539464 | E39: 5.745716 | F39: 11.28518
A40: 7. Sales and customer service | B40: 12.759218 | C40: -4.90344 | D40: -0.923764 | E40: -0.845774 | F40: -1.769538
A41: 8. Process, plant and machine operatives | B41: -10.052727 | C41: -6.744395 | D41: -2.326934 | E41: -1.033874 | F41: -3.360808
A42: 9. Elementary occupations | B42: -8.495102 | C42: -27.332542 | D42: -1.360225 | E42: -2.650106 | F42: -4.010331
A43: Total | B43: 67.822 | C43: 36.584 | D43: 15.614 | E43: 21.483 | F43: 37.097
A44: =CELL("filename",$A$2)&", "&Info!A1 -> R:\Research Info\Individual research project info\Working Futures_ Data to be uploaded on the 16th May 16\Wales main workbook_needs cover updating\[AllWA.xlsm]Table 4.1 F, Wales

Sheet Table 4.1 M
H1: Net changes for Figure 4.1 to 4
A2: Table 4.1 Males | B2: Occupational Categories SOC2010 - Major Groups
A3: All Industry Sectors
A5: Employment Levels (000s) | J5: (Order reversed for chart)
B6: =Males!F7 -> 1994 | C6: =Males!P7 -> 2004 | D6: =Males!Z7 -> 2014 | E6: =Males!AE7 -> 2019 | F6: =Males!AJ7 -> 2024 | H6: =CONCATENATE(B6,"-",C6) -> 1994-2004 | I6: =CONCATENATE(C6,"-",D6) -> 2004-2014 | J6: =CONCATENATE(D6,"-",F6) -> 2014-2024
A7: ="1. "&names!B4 -> 1. Managers, directors and senior officials | B7: =(Males!F9+Males!F10)/1000 -> 58.586028 | C7: =(Males!P9+Males!P10)/1000 -> 62.256078 | D7: =(Males!Z9+Males!Z10)/1000 -> 72.76412 | E7: =(Males!AE9+Males!AE10)/1000 -> 77.358078 | F7: =(Males!AJ9+Males!AJ10)/1000 -> 79.213465 | J7: =F16-D16 -> 16.525
A8: ="2. "&names!B5 -> 2. Professional occupations | B8: =(Males!F11+Males!F12+Males!F13+Males!F14)/1000 -> 81.294887 | C8: =(Males!P11+Males!P12+Males!P13+Males!P14)/1000 -> 95.476732 | D8: =(Males!Z11+Males!Z12+Males!Z13+Males!Z14)/1000 -> 106.978411 | E8: =(Males!AE11+Males!AE12+Males!AE13+Males!AE14)/1000 -> 110.893098 | F8: =(Males!AJ11+Males!AJ12+Males!AJ13+Males!AJ14)/1000 -> 113.804194 | J8: =F15-D15 -> 5.475715
A9: ="3. "&names!B6 -> 3. Associate professional and technical | B9: =(Males!F15+Males!F16+Males!F17+Males!F18+Males!F19)/1000 -> 77.545219 | C9: =(Males!P15+Males!P16+Males!P17+Males!P18+Males!P19)/1000 -> 85.416357 | D9: =(Males!Z15+Males!Z16+Males!Z17+Males!Z18+Males!Z19)/1000 -> 88.2985 | E9: =(Males!AE15+Males!AE16+Males!AE17+Males!AE18+Males!AE19)/1000 -> 90.525684 | F9: =(Males!AJ15+Males!AJ16+Males!AJ17+Males!AJ18+Males!AJ19)/1000 -> 91.785958 | J9: =F14-D14 -> -3.805256
A10: ="4. "&names!B7 -> 4. Administrative and secretarial | B10: =(Males!F20+Males!F21)/1000 -> 30.208044 | C10: =(Males!P20+Males!P21)/1000 -> 33.719581 | D10: =(Males!Z20+Males!Z21)/1000 -> 38.493219 | E10: =(Males!AE20+Males!AE21)/1000 -> 39.21688 | F10: =(Males!AJ20+Males!AJ21)/1000 -> 40.555396 | J10: =F13-D13 -> 1.766918
A11: ="5. "&names!B8 -> 5. Skilled trades occupations | B11: =(Males!F22+Males!F23+Males!F24+Males!F25)/1000 -> 175.245701 | C11: =(Males!P22+Males!P23+Males!P24+Males!P25)/1000 -> 156.363831 | D11: =(Males!Z22+Males!Z23+Males!Z24+Males!Z25)/1000 -> 174.856979 | E11: =(Males!AE22+Males!AE23+Males!AE24+Males!AE25)/1000 -> 170.962938 | F11: =(Males!AJ22+Males!AJ23+Males!AJ24+Males!AJ25)/1000 -> 165.86265 | J11: =F12-D12 -> 3.257187
A12: ="6. "&names!B9 -> 6. Caring, leisure and other service | B12: =(Males!F26+Males!F27)/1000 -> 11.853249 | C12: =(Males!P26+Males!P27)/1000 -> 18.638627 | D12: =(Males!Z26+Males!Z27)/1000 -> 23.132205 | E12: =(Males!AE26+Males!AE27)/1000 -> 25.271547 | F12: =(Males!AJ26+Males!AJ27)/1000 -> 26.389392 | J12: =F11-D11 -> -8.994329
A13: ="7. "&names!B10 -> 7. Sales and customer service | B13: =(Males!F28+Males!F29)/1000 -> 21.888286 | C13: =(Males!P28+Males!P29)/1000 -> 30.877343 | D13: =(Males!Z28+Males!Z29)/1000 -> 34.005672 | E13: =(Males!AE28+Males!AE29)/1000 -> 35.707799 | F13: =(Males!AJ28+Males!AJ29)/1000 -> 35.77259 | J13: =F10-D10 -> 2.062177
A14: ="8. "&names!B11 -> 8. Process, plant and machine operatives | B14: =(Males!F30+Males!F31)/1000 -> 102.010001 | C14: =(Males!P30+Males!P31)/1000 -> 98.839415 | D14: =(Males!Z30+Males!Z31)/1000 -> 103.426616 | E14: =(Males!AE30+Males!AE31)/1000 -> 101.186046 | F14: =(Males!AJ30+Males!AJ31)/1000 -> 99.62136 | J14: =F9-D9 -> 3.487458
A15: ="9. "&names!B12 -> 9. Elementary occupations | B15: =(Males!F32+Males!F33)/1000 -> 69.783583 | C15: =(Males!P32+Males!P33)/1000 -> 88.397035 | D15: =(Males!Z32+Males!Z33)/1000 -> 87.654277 | E15: =(Males!AE32+Males!AE33)/1000 -> 91.505931 | F15: =(Males!AJ32+Males!AJ33)/1000 -> 93.129992 | J15: =F8-D8 -> 6.825783
A16: Total | B16: =Males!F8/1000 -> 628.415 | C16: =Males!P8/1000 -> 669.985 | D16: =Males!Z8/1000 -> 729.61 | E16: =Males!AE8/1000 -> 742.628 | F16: =Males!AJ8/1000 -> 746.135 | J16: =F7-D7 -> 6.449345
A19: Percentage Shares
B20: =B6 -> 1994 | C20: =C6 -> 2004 | D20: =D6 -> 2014 | E20: =E6 -> 2019 | F20: =F6 -> 2024
A21: =A7 -> 1. Managers, directors and senior officials | B21: =B7/B$16*100 -> 9.322824567 | C21: 9.292159974 | D21: 9.973015721 | E21: 10.41680061 | F21: 10.61650573
A22: =A8 -> 2. Professional occupations | B22: 12.9364969 | C22: 14.25057755 | D22: 14.66241019 | E22: 14.93252315 | F22: 15.25249372
A23: 3. Associate professional and technical | B23: 12.33981032 | C23: 12.74899543 | D23: 12.10215046 | E23: 12.18990989 | F23: 12.30152157
A24: 4. Administrative and secretarial | B24: 4.807021475 | C24: 5.03288596 | D24: 5.27586231 | E24: 5.280824316 | F24: 5.435396544
A25: 5. Skilled trades occupations | B25: 27.88693793 | C25: 23.33840773 | D25: 23.96581448 | E25: 23.02134285 | F25: 22.22957642
A26: 6. Caring, leisure and other service | B26: 1.886213569 | C26: 2.781946909 | D26: 3.170489028 | E26: 3.40298871 | F26: 3.536811971
A27: 7. Sales and customer service | B27: 3.483094134 | C27: 4.608661836 | D27: 4.66080125 | E27: 4.808302272 | F27: 4.794385734
A28: 8. Process, plant and machine operatives | B28: 16.23290357 | C28: 14.75248177 | D28: 14.17560286 | E28: 13.62540141 | F28: 13.35165352
A29: 9. Elementary occupations | B29: 11.10469721 | C29: 13.1938827 | D29: 12.01385357 | E29: 12.32190693 | F29: 12.48165439
A30: Total | B30: 100 | C30: 100 | D30: 100 | E30: 100 | F30: 100
A32: Net Changes | B32: =CONCATENATE(B20,"-",C20) -> 1994-2004 | C32: =CONCATENATE(C20,"-",D20) -> 2004-2014 | D32: =CONCATENATE(D20,"-",E20) -> 2014-2019 | E32: =CONCATENATE(E20,"-",F20) -> 2019-2024 | F32: =CONCATENATE(D20,"-",F20) -> 2014-2024
A34: =A21 -> 1. Managers, directors and senior officials | B34: =C7-B7 -> 3.67005 | C34: =D7-C7 -> 10.508042 | D34: =E7-D7 -> 4.593958 | E34: =F7-E7 -> 1.855387 | F34: =F7-D7 -> 6.449345
A35: =A22 -> 2. Professional occupations | B35: =C8-B8 -> 14.181845 | C35: 11.501679 | D35: 3.914687 | E35: 2.911096 | F35: =F8-D8 -> 6.825783
A36: 3. Associate professional and technical | B36: 7.871138 | C36: 2.882143 | D36: 2.227184 | E36: 1.260274 | F36: 3.487458
A37: 4. Administrative and secretarial | B37: 3.511537 | C37: 4.773638 | D37: 0.723661 | E37: 1.338516 | F37: 2.062177
A38: 5. Skilled trades occupations | B38: -18.88187 | C38: 18.493148 | D38: -3.894041 | E38: -5.100288 | F38: -8.994329
A39: 6. Caring, leisure and other service | B39: 6.785378 | C39: 4.493578 | D39: 2.139342 | E39: 1.117845 | F39: 3.257187
A40: 7. Sales and customer service | B40: 8.989057 | C40: 3.128329 | D40: 1.702127 | E40: 0.064791 | F40: 1.766918
A41: 8. Process, plant and machine operatives | B41: -3.170586 | C41: 4.587201 | D41: -2.24057 | E41: -1.564686 | F41: -3.805256
A42: 9. Elementary occupations | B42: 18.613452 | C42: -0.742758 | D42: 3.851654 | E42: 1.624061 | F42: 5.475715
A43: Total | B43: 41.57 | C43: 59.625 | D43: 13.018 | E43: 3.507 | F43: 16.525
A44: =CELL("filename",$A$2)&", "&Info!A1 -> R:\Research Info\Individual research project info\Working Futures_ Data to be uploaded on the 16th May 16\Wales main workbook_needs cover updating\[AllWA.xlsm]Table 4.1 M, Wales

Sheet Table 4.1 FT
A1: Table 4.1 Total FT | B1: Occupational Categories SOC2010 - Major Groups | H1: Net changes for Figure 4.1 to 4
A3: All Industry Sectors
A5: Employment Levels (000s) | J5: (Order reversed for chart)
B6: =FT!F7 -> 1994 | C6: =FT!P7 -> 2004 | D6: =FT!Z7 -> 2014 | E6: =FT!AE7 -> 2019 | F6: =FT!AJ7 -> 2024 | H6: =CONCATENATE(B6,"-",C6) -> 1994-2004 | I6: =CONCATENATE(C6,"-",D6) -> 2004-2014 | J6: =CONCATENATE(D6,"-",F6) -> 2014-2024
A7: ="1. "&names!B4 -> 1. Managers, directors and senior officials | B7: =(FT!F9+FT!F10)/1000 -> 47.35115 | C7: =(FT!P9+FT!P10)/1000 -> 58.849652 | D7: =(FT!Z9+FT!Z10)/1000 -> 70.907589 | E7: =(FT!AE9+FT!AE10)/1000 -> 78.977889 | F7: =(FT!AJ9+FT!AJ10)/1000 -> 84.248244 | J7: =F16-D16 -> 21.262
A8: ="2. "&names!B5 -> 2. Professional occupations | B8: =(FT!F11+FT!F12+FT!F13+FT!F14)/1000 -> 103.536743 | C8: =(FT!P11+FT!P12+FT!P13+FT!P14)/1000 -> 138.806211 | D8: =(FT!Z11+FT!Z12+FT!Z13+FT!Z14)/1000 -> 154.102643 | E8: =(FT!AE11+FT!AE12+FT!AE13+FT!AE14)/1000 -> 162.62948 | F8: =(FT!AJ11+FT!AJ12+FT!AJ13+FT!AJ14)/1000 -> 169.746518 | J8: =F15-D15 -> 1.511267
A9: ="3. "&names!B6 -> 3. Associate professional and technical | B9: =(FT!F15+FT!F16+FT!F17+FT!F18+FT!F19)/1000 -> 85.524532 | C9: =(FT!P15+FT!P16+FT!P17+FT!P18+FT!P19)/1000 -> 97.513751 | D9: =(FT!Z15+FT!Z16+FT!Z17+FT!Z18+FT!Z19)/1000 -> 101.209491 | E9: =(FT!AE15+FT!AE16+FT!AE17+FT!AE18+FT!AE19)/1000 -> 106.211001 | F9: =(FT!AJ15+FT!AJ16+FT!AJ17+FT!AJ18+FT!AJ19)/1000 -> 110.231488 | J9: =F14-D14 -> -9.192093
A10: ="4. "&names!B7 -> 4. Administrative and secretarial | B10: =(FT!F20+FT!F21)/1000 -> 101.809278 | C10: =(FT!P20+FT!P21)/1000 -> 91.661122 | D10: =(FT!Z20+FT!Z21)/1000 -> 84.906004 | E10: =(FT!AE20+FT!AE21)/1000 -> 80.482141 | F10: =(FT!AJ20+FT!AJ21)/1000 -> 79.454851 | J10: =F13-D13 -> -0.541112
A11: ="5. "&names!B8 -> 5. Skilled trades occupations | B11: =(FT!F22+FT!F23+FT!F24+FT!F25)/1000 -> 122.986292 | C11: =(FT!P22+FT!P23+FT!P24+FT!P25)/1000 -> 107.216361 | D11: =(FT!Z22+FT!Z23+FT!Z24+FT!Z25)/1000 -> 101.362817 | E11: =(FT!AE22+FT!AE23+FT!AE24+FT!AE25)/1000 -> 99.395531 | F11: =(FT!AJ22+FT!AJ23+FT!AJ24+FT!AJ25)/1000 -> 96.341226 | J11: =F12-D12 -> 1.950155
A12: ="6. "&names!B9 -> 6. Caring, leisure and other service | B12: =(FT!F26+FT!F27)/1000 -> 32.451752 | C12: =(FT!P26+FT!P27)/1000 -> 52.31358 | D12: =(FT!Z26+FT!Z27)/1000 -> 55.229236 | E12: =(FT!AE26+FT!AE27)/1000 -> 57.122921 | F12: =(FT!AJ26+FT!AJ27)/1000 -> 57.179391 | J12: =F11-D11 -> -5.021591
A13: ="7. "&names!B10 -> 7. Sales and customer service | B13: =(FT!F28+FT!F29)/1000 -> 34.95551 | C13: =(FT!P28+FT!P29)/1000 -> 37.267437 | D13: =(FT!Z28+FT!Z29)/1000 -> 41.026491 | E13: =(FT!AE28+FT!AE29)/1000 -> 41.041779 | F13: =(FT!AJ28+FT!AJ29)/1000 -> 40.485379 | J13: =F10-D10 -> -5.451153
A14: ="8. "&names!B11 -> 8. Process, plant and machine operatives | B14: =(FT!F30+FT!F31)/1000 -> 114.421135 | C14: =(FT!P30+FT!P31)/1000 -> 100.738483 | D14: =(FT!Z30+FT!Z31)/1000 -> 90.683584 | E14: =(FT!AE30+FT!AE31)/1000 -> 85.886503 | F14: =(FT!AJ30+FT!AJ31)/1000 -> 81.491491 | J14: =F9-D9 -> 9.021997
A15: ="9. "&names!B12 -> 9. Elementary occupations | B15: =(FT!F32+FT!F33)/1000 -> 71.31561 | C15: =(FT!P32+FT!P33)/1000 -> 72.634403 | D15: =(FT!Z32+FT!Z33)/1000 -> 74.231145 | E15: =(FT!AE32+FT!AE33)/1000 -> 75.660754 | F15: =(FT!AJ32+FT!AJ33)/1000 -> 75.742412 | J15: =F8-D8 -> 15.643875
A16: Total | B16: =FT!F8/1000 -> 714.352 | C16: =FT!P8/1000 -> 757.001 | D16: =FT!Z8/1000 -> 773.659 | E16: =FT!AE8/1000 -> 787.408 | F16: =FT!AJ8/1000 -> 794.921 | J16: =F7-D7 -> 13.340655
A19: Percentage Shares
B20: =B6 -> 1994 | C20: =C6 -> 2004 | D20: =D6 -> 2014 | E20: =E6 -> 2019 | F20: =F6 -> 2024
A21: =A7 -> 1. Managers, directors and senior officials | B21: =B7/B$16*100 -> 6.628545871 | C21: 7.774052082 | D21: 9.165225119 | E21: 10.03011006 | F21: 10.59831656
A22: =A8 -> 2. Professional occupations | B22: 14.493799 | C22: 18.33633126 | D22: 19.91867774 | E22: 20.65377543 | F22: 21.35388523
A23: 3. Associate professional and technical | B23: 11.97232345 | C23: 12.88158814 | D23: 13.08192511 | E23: 13.48868706 | F23: 13.86697395
A24: 4. Administrative and secretarial | B24: 14.25197634 | C24: 12.10845455 | D24: 10.97460302 | E24: 10.2211485 | F24: 9.995314126
A25: 5. Skilled trades occupations | B25: 17.21648319 | C25: 14.16330507 | D25: 13.1017434 | E25: 12.62312943 | F25: 12.11959754
A26: 6. Caring, leisure and other service | B26: 4.542823706 | C26: 6.910635521 | D26: 7.138705295 | E26: 7.25455177 | F26: 7.193091012
A27: 7. Sales and customer service | B27: 4.8933173 | C27: 4.923036693 | D27: 5.30291653 | E27: 5.212263401 | F27: 5.093006601
A28: 8. Process, plant and machine operatives | B28: 16.01747248 | C28: 13.30757595 | D28: 11.7213894 | E28: 10.90749688 | F28: 10.25152072
A29: 9. Elementary occupations | B29: 9.983258954 | C29: 9.595020746 | D29: 9.594814382 | E29: 9.60883735 | F29: 9.528294258
A30: Total | B30: 100 | C30: 100 | D30: 100 | E30: 100 | F30: 100
A32: Net Changes | B32: =CONCATENATE(B20,"-",C20) -> 1994-2004 | C32: =CONCATENATE(C20,"-",D20) -> 2004-2014 | D32: =CONCATENATE(D20,"-",E20) -> 2014-2019 | E32: =CONCATENATE(E20,"-",F20) -> 2019-2024 | F32: =CONCATENATE(D20,"-",F20) -> 2014-2024
A34: =A21 -> 1. Managers, directors and senior officials | B34: =C7-B7 -> 11.498502 | C34: =D7-C7 -> 12.057937 | D34: =E7-D7 -> 8.0703 | E34: =F7-E7 -> 5.270355 | F34: =F7-D7 -> 13.340655
A35: =A22 -> 2. Professional occupations | B35: =C8-B8 -> 35.269468 | C35: 15.296432 | D35: 8.526837 | E35: 7.117038 | F35: =F8-D8 -> 15.643875
A36: 3. Associate professional and technical | B36: 11.989219 | C36: 3.69574 | D36: 5.00151 | E36: 4.020487 | F36: 9.021997
A37: 4. Administrative and secretarial | B37: -10.148156 | C37: -6.755118 | D37: -4.423863 | E37: -1.02729 | F37: -5.451153
A38: 5. Skilled trades occupations | B38: -15.769931 | C38: -5.853544 | D38: -1.967286 | E38: -3.054305 | F38: -5.021591
A39: 6. Caring, leisure and other service | B39: 19.861828 | C39: 2.915656 | D39: 1.893685 | E39: 0.05647 | F39: 1.950155
A40: 7. Sales and customer service | B40: 2.311927 | C40: 3.759054 | D40: 0.015288 | E40: -0.5564 | F40: -0.541112
A41: 8. Process, plant and machine operatives | B41: -13.682652 | C41: -10.054899 | D41: -4.797081 | E41: -4.395012 | F41: -9.192093
A42: 9. Elementary occupations | B42: 1.318793 | C42: 1.596742 | D42: 1.429609 | E42: 0.081658 | F42: 1.511267
A43: Total | B43: 42.649 | C43: 16.658 | D43: 13.749 | E43: 7.513 | F43: 21.262
A44: N:\Projects\SSDA Projections\workbooks\Allyy.xls, sheet Table4.1

Sheet Table 4.1 MFT
A1: Table 4.1 Males FT | B1: Occupational Categories SOC2010 - Major Groups | H1: Net changes for Figure 4.1 to 4
A3: All Industry Sectors
A5: Employment Levels (000s) | J5: (Order reversed for chart)
B6: =All!F7 -> 1994 | C6: =All!P7 -> 2004 | D6: =All!Z7 -> 2014 | E6: =All!AE7 -> 2019 | F6: =All!AJ7 -> 2024 | H6: =CONCATENATE(B6,"-",C6) -> 1994-2004 | I6: =CONCATENATE(C6,"-",D6) -> 2004-2014 | J6: =CONCATENATE(D6,"-",F6) -> 2014-2024
A7: ="1. "&names!B4 -> 1. Managers, directors and senior officials | B7: =(MalesFT!F9+MalesFT!F10)/1000 -> 38.087485 | C7: =(MalesFT!P9+MalesFT!P10)/1000 -> 42.937513 | D7: =(MalesFT!Z9+MalesFT!Z10)/1000 -> 50.41469 | E7: =(MalesFT!AE9+MalesFT!AE10)/1000 -> 54.82685 | F7: =(MalesFT!AJ9+MalesFT!AJ10)/1000 -> 57.078945 | J7: =F16-D16 -> 2.336
A8: ="2. "&names!B5 -> 2. Professional occupations | B8: =(MalesFT!F11+MalesFT!F12+MalesFT!F13+MalesFT!F14)/1000 -> 58.264681 | C8: =(MalesFT!P11+MalesFT!P12+MalesFT!P13+MalesFT!P14)/1000 -> 68.614198 | D8: =(MalesFT!Z11+MalesFT!Z12+MalesFT!Z13+MalesFT!Z14)/1000 -> 76.414366 | E8: =(MalesFT!AE11+MalesFT!AE12+MalesFT!AE13+MalesFT!AE14)/1000 -> 78.610194 | F8: =(MalesFT!AJ11+MalesFT!AJ12+MalesFT!AJ13+MalesFT!AJ14)/1000 -> 79.232843 | J8: =F15-D15 -> 0.690948
A9: ="3. "&names!B6 -> 3. Associate professional and technical | B9: =(MalesFT!F15+MalesFT!F16+MalesFT!F17+MalesFT!F18+MalesFT!F19)/1000 -> 62.453552 | C9: =(MalesFT!P15+MalesFT!P16+MalesFT!P17+MalesFT!P18+MalesFT!P19)/1000 -> 63.472603 | D9: =(MalesFT!Z15+MalesFT!Z16+MalesFT!Z17+MalesFT!Z18+MalesFT!Z19)/1000 -> 62.414711 | E9: =(MalesFT!AE15+MalesFT!AE16+MalesFT!AE17+MalesFT!AE18+MalesFT!AE19)/1000 -> 63.364759 | F9: =(MalesFT!AJ15+MalesFT!AJ16+MalesFT!AJ17+MalesFT!AJ18+MalesFT!AJ19)/1000 -> 63.610027 | J9: =F14-D14 -> -6.470168
A10: ="4. "&names!B7 -> 4. Administrative and secretarial | B10: =(MalesFT!F20+MalesFT!F21)/1000 -> 25.20995 | C10: =(MalesFT!P20+MalesFT!P21)/1000 -> 24.32072 | D10: =(MalesFT!Z20+MalesFT!Z21)/1000 -> 28.51678 | E10: =(MalesFT!AE20+MalesFT!AE21)/1000 -> 29.009566 | F10: =(MalesFT!AJ20+MalesFT!AJ21)/1000 -> 29.660945 | J10: =F13-D13 -> 0.44573
A11: ="5. "&names!B8 -> 5. Skilled trades occupations | B11: =(MalesFT!F22+MalesFT!F23+MalesFT!F24+MalesFT!F25)/1000 -> 111.806261 | C11: =(MalesFT!P22+MalesFT!P23+MalesFT!P24+MalesFT!P25)/1000 -> 99.069421 | D11: =(MalesFT!Z22+MalesFT!Z23+MalesFT!Z24+MalesFT!Z25)/1000 -> 94.538318 | E11: =(MalesFT!AE22+MalesFT!AE23+MalesFT!AE24+MalesFT!AE25)/1000 -> 92.432008 | F11: =(MalesFT!AJ22+MalesFT!AJ23+MalesFT!AJ24+MalesFT!AJ25)/1000 -> 89.133342 | J11: =F12-D12 -> 1.252253
A12: ="6. "&names!B9 -> 6. Caring, leisure and other service | B12: =(MalesFT!F26+MalesFT!F27)/1000 -> 6.991398 | C12: =(MalesFT!P26+MalesFT!P27)/1000 -> 9.875199 | D12: =(MalesFT!Z26+MalesFT!Z27)/1000 -> 12.222001 | E12: =(MalesFT!AE26+MalesFT!AE27)/1000 -> 13.18862 | F12: =(MalesFT!AJ26+MalesFT!AJ27)/1000 -> 13.474254 | J12: =F11-D11 -> -5.404976
A13: ="7. "&names!B10 -> 7. Sales and customer service | B13: =(MalesFT!F28+MalesFT!F29)/1000 -> 12.303846 | C13: =(MalesFT!P28+MalesFT!P29)/1000 -> 12.569494 | D13: =(MalesFT!Z28+MalesFT!Z29)/1000 -> 18.464251 | E13: =(MalesFT!AE28+MalesFT!AE29)/1000 -> 19.102601 | F13: =(MalesFT!AJ28+MalesFT!AJ29)/1000 -> 18.909981 | J13: =F10-D10 -> 1.144165
A14: ="8. "&names!B11 -> 8. Process, plant and machine operatives | B14: =(MalesFT!F30+MalesFT!F31)/1000 -> 88.921602 | C14: =(MalesFT!P30+MalesFT!P31)/1000 -> 82.565309 | D14: =(MalesFT!Z30+MalesFT!Z31)/1000 -> 79.07199 | E14: =(MalesFT!AE30+MalesFT!AE31)/1000 -> 76.110379 | F14: =(MalesFT!AJ30+MalesFT!AJ31)/1000 -> 72.601822 | J14: =F9-D9 -> 1.195316
A15: ="9. "&names!B12 -> 9. Elementary occupations | B15: =(MalesFT!F32+MalesFT!F33)/1000 -> 44.902224 | C15: =(MalesFT!P32+MalesFT!P33)/1000 -> 51.456542 | D15: =(MalesFT!Z32+MalesFT!Z33)/1000 -> 52.460894 | E15: =(MalesFT!AE32+MalesFT!AE33)/1000 -> 53.650023 | F15: =(MalesFT!AJ32+MalesFT!AJ33)/1000 -> 53.151842 | J15: =F8-D8 -> 2.818477
A16: Total | B16: =MalesFT!F8/1000 -> 448.941 | C16: =MalesFT!P8/1000 -> 454.881 | D16: =MalesFT!Z8/1000 -> 474.518 | E16: =MalesFT!AE8/1000 -> 480.295 | F16: =MalesFT!AJ8/1000 -> 476.854 | J16: =F7-D7 -> 6.664255
A19: Percentage Shares
B20: =B6 -> 1994 | C20: =C6 -> 2004 | D20: =D6 -> 2014 | E20: =E6 -> 2019 | F20: =F6 -> 2024
A21: =A7 -> 1. Managers, directors and senior officials | B21: =B7/B$16*100 -> 8.483850885 | C21: 9.43928478 | D21: 10.62439992 | E21: 11.4152448 | F21: 11.96989959
A22: =A8 -> 2. Professional occupations | B22: 12.97824903 | C22: 15.08398856 | D22: 16.10357584 | E22: 16.36706482 | F22: 16.61574465
A23: 3. Associate professional and technical | B23: 13.91130505 | C23: 13.95367206 | D23: 13.15328628 | E23: 13.19288333 | F23: 13.33951839
A24: 4. Administrative and secretarial | B24: 5.61542608 | C24: 5.346611531 | D24: 6.009630825 | E24: 6.039947532 | F24: 6.220131319
A25: 5. Skilled trades occupations | B25: 24.90444424 | C25: 21.77919522 | D25: 19.92302041 | E25: 19.24484077 | F25: 18.69195645
A26: 6. Caring, leisure and other service | B26: 1.557308867 | C26: 2.170941191 | D26: 2.575666466 | E26: 2.745941557 | F26: 2.825656071
A27: 7. Sales and customer service | B27: 2.740637634 | C27: 2.76324885 | D27: 3.891159239 | E27: 3.977264181 | F27: 3.965570384
A28: 8. Process, plant and machine operatives | B28: 19.8069684 | C28: 18.15096893 | D28: 16.66364395 | E28: 15.84658991 | F28: 15.22516787
A29: 9. Elementary occupations | B29: 10.00180959 | C29: 11.31208866 | D29: 11.05561728 | E29: 11.17022309 | F29: 11.14635549
A30: Total | B30: 100 | C30: 100 | D30: 100 | E30: 100 | F30: 100
A32: Net Changes | B32: =CONCATENATE(B20,"-",C20) -> 1994-2004 | C32: =CONCATENATE(C20,"-",D20) -> 2004-2014 | D32: =CONCATENATE(D20,"-",E20) -> 2014-2019 | E32: =CONCATENATE(E20,"-",F20) -> 2019-2024 | F32: =CONCATENATE(D20,"-",F20) -> 2014-2024
A34: =A21 -> 1. Managers, directors and senior officials | B34: =C7-B7 -> 4.850028 | C34: =D7-C7 -> 7.477177 | D34: =E7-D7 -> 4.41216 | E34: =F7-E7 -> 2.252095 | F34: =F7-D7 -> 6.664255
A35: =A22 -> 2. Professional occupations | B35: =C8-B8 -> 10.349517 | C35: 7.800168 | D35: 2.195828 | E35: 0.622649 | F35: =F8-D8 -> 2.818477
A36: 3. Associate professional and technical | B36: 1.019051 | C36: -1.057892 | D36: 0.950048 | E36: 0.245268 | F36: 1.195316
A37: 4. Administrative and secretarial | B37: -0.88923 | C37: 4.19606 | D37: 0.492786 | E37: 0.651379 | F37: 1.144165
A38: 5. Skilled trades occupations | B38: -12.73684 | C38: -4.531103 | D38: -2.10631 | E38: -3.298666 | F38: -5.404976
A39: 6. Caring, leisure and other service | B39: 2.883801 | C39: 2.346802 | D39: 0.966619 | E39: 0.285634 | F39: 1.252253
A40: 7. Sales and customer service | B40: 0.265648 | C40: 5.894757 | D40: 0.63835 | E40: -0.19262 | F40: 0.44573
A41: 8. Process, plant and machine operatives | B41: -6.356293 | C41: -3.493319 | D41: -2.961611 | E41: -3.508557 | F41: -6.470168
A42: 9. Elementary occupations | B42: 6.554318 | C42: 1.004352 | D42: 1.189129 | E42: -0.498181 | F42: 0.690948
A43: Total | B43: 5.94 | C43: 19.637 | D43: 5.777 | E43: -3.441 | F43: 2.336
A44: N:\Projects\SSDA Projections\workbooks\Allyy.xls, sheet Table4.1

Sheet Table 4.1 FFT
A1: Table 4.1 Females FT | B1: Occupational Categories SOC2010 - Major Groups | H1: Net changes for Figure 4.1 to 4
A3: All Industry Sectors
A5: Employment Levels (000s) | J5: (Order reversed for chart)
B6: =FemalesFT!F7 -> 1994 | C6: =FemalesFT!P7 -> 2004 | D6: =FemalesFT!Z7 -> 2014 | E6: =FemalesFT!AE7 -> 2019 | F6: =FemalesFT!AJ7 -> 2024 | H6: =CONCATENATE(B6,"-",C6) -> 1994-2004 | I6: =CONCATENATE(C6,"-",D6) -> 2004-2014 | J6: =CONCATENATE(D6,"-",F6) -> 2014-2024
A7: ="1. "&names!B4 -> 1. Managers, directors and senior officials | B7: =(FemalesFT!F9+FemalesFT!F10)/1000 -> 9.263665 | C7: =(FemalesFT!P9+FemalesFT!P10)/1000 -> 15.91214 | D7: =(FemalesFT!Z9+FemalesFT!Z10)/1000 -> 20.492899 | E7: =(FemalesFT!AE9+FemalesFT!AE10)/1000 -> 24.151039 | F7: =(FemalesFT!AJ9+FemalesFT!AJ10)/1000 -> 27.169299 | J7: =F16-D16 -> 18.926
A8: ="2. "&names!B5 -> 2. Professional occupations | B8: =(FemalesFT!F11+FemalesFT!F12+FemalesFT!F13+FemalesFT!F14)/1000 -> 45.272062 | C8: =(FemalesFT!P11+FemalesFT!P12+FemalesFT!P13+FemalesFT!P14)/1000 -> 70.192013 | D8: =(FemalesFT!Z11+FemalesFT!Z12+FemalesFT!Z13+FemalesFT!Z14)/1000 -> 77.688278 | E8: =(FemalesFT!AE11+FemalesFT!AE12+FemalesFT!AE13+FemalesFT!AE14)/1000 -> 84.019286 | F8: =(FemalesFT!AJ11+FemalesFT!AJ12+FemalesFT!AJ13+FemalesFT!AJ14)/1000 -> 90.513674 | J8: =F15-D15 -> 0.82032
A9: ="3. "&names!B6 -> 3. Associate professional and technical | B9: =(FemalesFT!F15+FemalesFT!F16+FemalesFT!F17+FemalesFT!F18+FemalesFT!F19)/1000 -> 23.070981 | C9: =(FemalesFT!P15+FemalesFT!P16+FemalesFT!P17+FemalesFT!P18+FemalesFT!P19)/1000 -> 34.041148 | D9: =(FemalesFT!Z15+FemalesFT!Z16+FemalesFT!Z17+FemalesFT!Z18+FemalesFT!Z19)/1000 -> 38.79478 | E9: =(FemalesFT!AE15+FemalesFT!AE16+FemalesFT!AE17+FemalesFT!AE18+FemalesFT!AE19)/1000 -> 42.846243 | F9: =(FemalesFT!AJ15+FemalesFT!AJ16+FemalesFT!AJ17+FemalesFT!AJ18+FemalesFT!AJ19)/1000 -> 46.621461 | J9: =F14-D14 -> -2.721924
A10: ="4. "&names!B7 -> 4. Administrative and secretarial | B10: =(FemalesFT!F20+FemalesFT!F21)/1000 -> 76.599328 | C10: =(FemalesFT!P20+FemalesFT!P21)/1000 -> 67.340402 | D10: =(FemalesFT!Z20+FemalesFT!Z21)/1000 -> 56.389225 | E10: =(FemalesFT!AE20+FemalesFT!AE21)/1000 -> 51.472574 | F10: =(FemalesFT!AJ20+FemalesFT!AJ21)/1000 -> 49.793907 | J10: =F13-D13 -> -0.986841
A11: ="5. "&names!B8 -> 5. Skilled trades occupations | B11: =(FemalesFT!F22+FemalesFT!F23+FemalesFT!F24+FemalesFT!F25)/1000 -> 11.18003 | C11: =(FemalesFT!P22+FemalesFT!P23+FemalesFT!P24+FemalesFT!P25)/1000 -> 8.146938 | D11: =(FemalesFT!Z22+FemalesFT!Z23+FemalesFT!Z24+FemalesFT!Z25)/1000 -> 6.824498 | E11: =(FemalesFT!AE22+FemalesFT!AE23+FemalesFT!AE24+FemalesFT!AE25)/1000 -> 6.963525 | F11: =(FemalesFT!AJ22+FemalesFT!AJ23+FemalesFT!AJ24+FemalesFT!AJ25)/1000 -> 7.207883 | J11: =F12-D12 -> 0.697902
A12: ="6. "&names!B9 -> 6. Caring, leisure and other service | B12: =(FemalesFT!F26+FemalesFT!F27)/1000 -> 25.460353 | C12: =(FemalesFT!P26+FemalesFT!P27)/1000 -> 42.438381 | D12: =(FemalesFT!Z26+FemalesFT!Z27)/1000 -> 43.007235 | E12: =(FemalesFT!AE26+FemalesFT!AE27)/1000 -> 43.934301 | F12: =(FemalesFT!AJ26+FemalesFT!AJ27)/1000 -> 43.705137 | J12: =F11-D11 -> 0.383385
A13: ="7. "&names!B10 -> 7. Sales and customer service | B13: =(FemalesFT!F28+FemalesFT!F29)/1000 -> 22.651662 | C13: =(FemalesFT!P28+FemalesFT!P29)/1000 -> 24.697943 | D13: =(FemalesFT!Z28+FemalesFT!Z29)/1000 -> 22.56224 | E13: =(FemalesFT!AE28+FemalesFT!AE29)/1000 -> 21.939179 | F13: =(FemalesFT!AJ28+FemalesFT!AJ29)/1000 -> 21.575399 | J13: =F10-D10 -> -6.595318
A14: ="8. "&names!B11 -> 8. Process, plant and machine operatives | B14: =(FemalesFT!F30+FemalesFT!F31)/1000 -> 25.499533 | C14: =(FemalesFT!P30+FemalesFT!P31)/1000 -> 18.173173 | D14: =(FemalesFT!Z30+FemalesFT!Z31)/1000 -> 11.611594 | E14: =(FemalesFT!AE30+FemalesFT!AE31)/1000 -> 9.776124 | F14: =(FemalesFT!AJ30+FemalesFT!AJ31)/1000 -> 8.88967 | J14: =F9-D9 -> 7.826681
A15: ="9. "&names!B12 -> 9. Elementary occupations | B15: =(FemalesFT!F32+FemalesFT!F33)/1000 -> 26.413385 | C15: =(FemalesFT!P32+FemalesFT!P33)/1000 -> 21.177861 | D15: =(FemalesFT!Z32+FemalesFT!Z33)/1000 -> 21.770251 | E15: =(FemalesFT!AE32+FemalesFT!AE33)/1000 -> 22.01073 | F15: =(FemalesFT!AJ32+FemalesFT!AJ33)/1000 -> 22.590571 | J15: =F8-D8 -> 12.825396
A16: Total | B16: =FemalesFT!F8/1000 -> 265.411 | C16: =FemalesFT!P8/1000 -> 302.12 | D16: =FemalesFT!Z8/1000 -> 299.141 | E16: =FemalesFT!AE8/1000 -> 307.113 | F16: =FemalesFT!AJ8/1000 -> 318.067 | J16: =F7-D7 -> 6.6764
A19: Percentage Shares
B20: =B6 -> 1994 | C20: =C6 -> 2004 | D20: =D6 -> 2014 | E20: =E6 -> 2019 | F20: =F6 -> 2024
A21: =A7 -> 1. Managers, directors and senior officials | B21: =B7/B$16*100 -> 3.490309369 | C21: 5.266827751 | D21: 6.850581833 | E21: 7.86389342 | F21: 8.542004986
A22: =A8 -> 2. Professional occupations | B22: 17.05734201 | C22: 23.23315669 | D22: 25.97045474 | E22: 27.3577758 | F22: 28.45742375
A23: 3. Associate professional and technical | B23: 8.692548915 | C23: 11.26742619 | D23: 12.96872712 | E23: 13.95129578 | F23: 14.65774852
A24: 4. Administrative and secretarial | B24: 28.86064556 | C24: 22.28928969 | D24: 18.85038326 | E24: 16.76014171 | F24: 15.65516291
A25: 5. Skilled trades occupations | B25: 4.212346135 | C25: 2.696590097 | D25: 2.281364975 | E25: 2.2674146 | F25: 2.266152414
A26: 6. Caring, leisure and other service | B26: 9.592802484 | C26: 14.0468625 | D26: 14.37691089 | E26: 14.30558166 | F26: 13.74085869
A27: 7. Sales and customer service | B27: 8.534560361 | C27: 8.174878525 | D27: 7.542342909 | E27: 7.143682944 | F27: 6.783287483
A28: 8. Process, plant and machine operatives | B28: 9.607564494 | C28: 6.015216801 | D28: 3.881645779 | E28: 3.183233533 | F28: 2.794904847
A29: 9. Elementary occupations | B29: 9.951880291 | C29: 7.009751423 | D29: 7.277588495 | E29: 7.166980883 | F29: 7.102456715
A30: Total | B30: 100 | C30: 100 | D30: 100 | E30: 100 | F30: 100
A32: Net Changes | B32: =CONCATENATE(B20,"-",C20) -> 1994-2004 | C32: =CONCATENATE(C20,"-",D20) -> 2004-2014 | D32: =CONCATENATE(D20,"-",E20) -> 2014-2019 | E32: =CONCATENATE(E20,"-",F20) -> 2019-2024 | F32: =CONCATENATE(D20,"-",F20) -> 2014-2024
A34: =A21 -> 1. Managers, directors and senior officials | B34: =C7-B7 -> 6.648475 | C34: =D7-C7 -> 4.580759 | D34: =E7-D7 -> 3.65814 | E34: =F7-E7 -> 3.01826 | F34: =F7-D7 -> 6.6764
A35: =A22 -> 2. Professional occupations | B35: =C8-B8 -> 24.919951 | C35: 7.496265 | D35: 6.331008 | E35: 6.494388 | F35: =F8-D8 -> 12.825396
A36: 3. Associate professional and technical | B36: 10.970167 | C36: 4.753632 | D36: 4.051463 | E36: 3.775218 | F36: 7.826681
A37: 4. Administrative and secretarial | B37: -9.258926 | C37: -10.951177 | D37: -4.916651 | E37: -1.678667 | F37: -6.595318
A38: 5. Skilled trades occupations | B38: -3.033092 | C38: -1.32244 | D38: 0.139027 | E38: 0.244358 | F38: 0.383385
A39: 6. Caring, leisure and other service | B39: 16.978028 | C39: 0.568854 | D39: 0.927066 | E39: -0.229164 | F39: 0.697902
A40: 7. Sales and customer service | B40: 2.046281 | C40: -2.135703 | D40: -0.623061 | E40: -0.36378 | F40: -0.986841
A41: 8. Process, plant and machine operatives | B41: -7.32636 | C41: -6.561579 | D41: -1.83547 | E41: -0.886454 | F41: -2.721924
A42: 9. Elementary occupations | B42: -5.235524 | C42: 0.59239 | D42: 0.240479 | E42: 0.579841 | F42: 0.82032
A43: Total | B43: 36.709 | C43: -2.979 | D43: 7.972 | E43: 10.954 | F43: 18.926
A44: N:\Projects\SSDA Projections\workbooks\Allyy.xls, sheet Table4.1

Sheet Table 4.1 PT
A1: Table 4.1 Total PT | B1: Occupational Categories SOC2010 - Major Groups | H1: Net changes for Figure 4.1 to 4
A3: All Industry Sectors
A5: Employment Levels (000s) | J5: (Order reversed for chart)
B6: =PT!F7 -> 1994 | C6: =PT!P7 -> 2004 | D6: =PT!Z7 -> 2014 | E6: =PT!AE7 -> 2019 | F6: =PT!AJ7 -> 2024 | H6: =CONCATENATE(B6,"-",C6) -> 1994-2004 | I6: =CONCATENATE(C6,"-",D6) -> 2004-2014 | J6: =CONCATENATE(D6,"-",F6) -> 2014-2024
A7: ="1. "&names!B4 -> 1. Managers, directors and senior officials | B7: =(PT!F9+PT!F10)/1000 -> 3.722621 | C7: =(PT!P9+PT!P10)/1000 -> 7.623687 | D7: =(PT!Z9+PT!Z10)/1000 -> 11.540991 | E7: =(PT!AE9+PT!AE10)/1000 -> 13.461162 | F7: =(PT!AJ9+PT!AJ10)/1000 -> 15.1866 | J7: =F16-D16 -> 40.111
A8: ="2. "&names!B5 -> 2. Professional occupations | B8: =(PT!F11+PT!F12+PT!F13+PT!F14)/1000 -> 35.192219 | C8: =(PT!P11+PT!P12+PT!P13+PT!P14)/1000 -> 47.153031 | D8: =(PT!Z11+PT!Z12+PT!Z13+PT!Z14)/1000 -> 72.442923 | E8: =(PT!AE11+PT!AE12+PT!AE13+PT!AE14)/1000 -> 79.876412 | F8: =(PT!AJ11+PT!AJ12+PT!AJ13+PT!AJ14)/1000 -> 90.07462 | J8: =F15-D15 -> 1.207123
A9: ="3. "&names!B6 -> 3. Associate professional and technical | B9: =(PT!F15+PT!F16+PT!F17+PT!F18+PT!F19)/1000 -> 17.193846 | C9: =(PT!P15+PT!P16+PT!P17+PT!P18+PT!P19)/1000 -> 23.65817 | D9: =(PT!Z15+PT!Z16+PT!Z17+PT!Z18+PT!Z19)/1000 -> 30.478211 | E9: =(PT!AE15+PT!AE16+PT!AE17+PT!AE18+PT!AE19)/1000 -> 33.591227 | F9: =(PT!AJ15+PT!AJ16+PT!AJ17+PT!AJ18+PT!AJ19)/1000 -> 36.782956 | J9: =F14-D14 -> 3.107062
A10: ="4. "&names!B7 -> 4. Administrative and secretarial | B10: =(PT!F20+PT!F21)/1000 -> 46.293449 | C10: =(PT!P20+PT!P21)/1000 -> 62.029617 | D10: =(PT!Z20+PT!Z21)/1000 -> 62.913382 | E10: =(PT!AE20+PT!AE21)/1000 -> 58.076992 | F10: =(PT!AJ20+PT!AJ21)/1000 -> 56.249726 | J10: =F13-D13 -> 1.363886
A11: ="5. "&names!B8 -> 5. Skilled trades occupations | B11: =(PT!F22+PT!F23+PT!F24+PT!F25)/1000 -> 14.257908 | C11: =(PT!P22+PT!P23+PT!P24+PT!P25)/1000 -> 17.252311 | D11: =(PT!Z22+PT!Z23+PT!Z24+PT!Z25)/1000 -> 18.097025 | E11: =(PT!AE22+PT!AE23+PT!AE24+PT!AE25)/1000 -> 17.930671 | F11: =(PT!AJ22+PT!AJ23+PT!AJ24+PT!AJ25)/1000 -> 18.144522 | J11: =F12-D12 -> 13.467036
A12: ="6. "&names!B9 -> 6. Caring, leisure and other service | B12: =(PT!F26+PT!F27)/1000 -> 43.333629 | C12: =(PT!P26+PT!P27)/1000 -> 63.274704 | D12: =(PT!Z26+PT!Z27)/1000 -> 83.708083 | E12: =(PT!AE26+PT!AE27)/1000 -> 89.84283 | F12: =(PT!AJ26+PT!AJ27)/1000 -> 97.175119 | J12: =F11-D11 -> 0.047497
A13: ="7. "&names!B10 -> 7. Sales and customer service | B13: =(PT!F28+PT!F29)/1000 -> 52.321336 | C13: =(PT!P28+PT!P29)/1000 -> 75.129061 | D13: =(PT!Z28+PT!Z29)/1000 -> 69.253503 | E13: =(PT!AE28+PT!AE29)/1000 -> 70.494821 | F13: =(PT!AJ28+PT!AJ29)/1000 -> 70.617389 | J13: =F10-D10 -> -6.663656
A14: ="8. "&names!B11 -> 8. Process, plant and machine operatives | B14: =(PT!F30+PT!F31)/1000 -> 9.702177 | C14: =(PT!P30+PT!P31)/1000 -> 13.651393 | D14: =(PT!Z30+PT!Z31)/1000 -> 15.80022 | E14: =(PT!AE30+PT!AE31)/1000 -> 16.662453 | F14: =(PT!AJ30+PT!AJ31)/1000 -> 18.907282 | J14: =F9-D9 -> 6.304745
A15: ="9. "&names!B12 -> 9. Elementary occupations | B15: =(PT!F32+PT!F33)/1000 -> 89.667817 | C15: =(PT!P32+PT!P33)/1000 -> 99.99103 | D15: =(PT!Z32+PT!Z33)/1000 -> 68.573662 | E15: =(PT!AE32+PT!AE33)/1000 -> 70.340431 | F15: =(PT!AJ32+PT!AJ33)/1000 -> 69.780785 | J15: =F8-D8 -> 17.631697
A16: Total | B16: =PT!F8/1000 -> 311.685 | C16: =PT!P8/1000 -> 409.763 | D16: =PT!Z8/1000 -> 432.808 | E16: =PT!AE8/1000 -> 450.277 | F16: =PT!AJ8/1000 -> 472.919 | J16: =F7-D7 -> 3.645609
A19: Percentage Shares
B20: =B6 -> 1994 | C20: =C6 -> 2004 | D20: =D6 -> 2014 | E20: =E6 -> 2019 | F20: =F6 -> 2024
A21: =A7 -> 1. Managers, directors and senior officials | B21: =B7/B$16*100 -> 1.194353594 | C21: 1.86051132 | D21: 2.66653828 | E21: 2.989529112 | F21: 3.211247592
A22: =A8 -> 2. Professional occupations | B22: 11.2909569 | C22: 11.5073911 | D22: 16.73788909 | E22: 17.7393942 | F22: 19.04652171
A23: 3. Associate professional and technical | B23: 5.516417537 | C23: 5.773622801 | D23: 7.041970343 | E23: 7.46012499 | F23: 7.777855404
A24: 4. Administrative and secretarial | B24: 14.85263936 | C24: 15.13792534 | D24: 14.53609499 | E24: 12.89805875 | F24: 11.8941565
A25: 5. Skilled trades occupations | B25: 4.574460754 | C25: 4.210314499 | D25: 4.181305567 | E25: 3.982142326 | F25: 3.836708189
A26: 6. Caring, leisure and other service | B26: 13.90302036 | C26: 15.44178074 | D26: 19.3406968 | E26: 19.95279128 | F26: 20.5479414
A27: 7. Sales and customer service | B27: 16.78660699 | C27: 18.3347596 | D27: 16.00097572 | E27: 15.65587871 | F27: 14.93223766
A28: 8. Process, plant and machine operatives | B28: 3.112814861 | C28: 3.331533838 | D28: 3.650630303 | E28: 3.700489476 | F28: 3.997995851
A29: 9. Elementary occupations | B29: 28.76873029 | C29: 24.40216174 | D29: 15.84389891 | E29: 15.62159093 | F29: 14.75533548
A30: Total | B30: 100 | C30: 100 | D30: 100 | E30: 100 | F30: 100
A32: Net Changes | B32: =CONCATENATE(B20,"-",C20) -> 1994-2004 | C32: =CONCATENATE(C20,"-",D20) -> 2004-2014 | D32: =CONCATENATE(D20,"-",E20) -> 2014-2019 | E32: =CONCATENATE(E20,"-",F20) -> 2019-2024 | F32: =CONCATENATE(D20,"-",F20) -> 2014-2024
A34: =A21 -> 1. Managers, directors and senior officials | B34: =C7-B7 -> 3.901066 | C34: =D7-C7 -> 3.917304 | D34: =E7-D7 -> 1.920171 | E34: =F7-E7 -> 1.725438 | F34: =F7-D7 -> 3.645609
A35: =A22 -> 2. Professional occupations | B35: =C8-B8 -> 11.960812 | C35: 25.289892 | D35: 7.433489 | E35: 10.198208 | F35: =F8-D8 -> 17.631697
A36: 3. Associate professional and technical | B36: 6.464324 | C36: 6.820041 | D36: 3.113016 | E36: 3.191729 | F36: 6.304745
A37: 4. Administrative and secretarial | B37: 15.736168 | C37: 0.883765 | D37: -4.83639 | E37: -1.827266 | F37: -6.663656
A38: 5. Skilled trades occupations | B38: 2.994403 | C38: 0.844714 | D38: -0.166354 | E38: 0.213851 | F38: 0.047497
A39: 6. Caring, leisure and other service | B39: 19.941075 | C39: 20.433379 | D39: 6.134747 | E39: 7.332289 | F39: 13.467036
A40: 7. Sales and customer service | B40: 22.807725 | C40: -5.875558 | D40: 1.241318 | E40: 0.122568 | F40: 1.363886
A41: 8. Process, plant and machine operatives | B41: 3.949216 | C41: 2.148827 | D41: 0.862233 | E41: 2.244829 | F41: 3.107062
A42: 9. Elementary occupations | B42: 10.323213 | C42: -31.417368 | D42: 1.766769 | E42: -0.559646 | F42: 1.207123
A43: Total | B43: 98.078 | C43: 23.045 | D43: 17.469 | E43: 22.642 | F43: 40.111
A44: N:\Projects\SSDA Projections\workbooks\Allyy.xls, sheet Table4.1

Sheet Table 4.1 MPT
A1: Table 4.1 Males PT | B1: Occupational Categories SOC2010 - Major Groups | H1: Net changes for Figure 4.1 to 4
A3: All Industry Sectors
A5: Employment Levels (000s) | J5: (Order reversed for chart)
B6: =MalesPT!F7 -> 1994 | C6: =MalesPT!P7 -> 2004 | D6: =MalesPT!Z7 -> 2014 | E6: =MalesPT!AE7 -> 2019 | F6: =MalesPT!AJ7 -> 2024 | H6: =CONCATENATE(B6,"-",C6) -> 1994-2004 | I6: =CONCATENATE(C6,"-",D6) -> 2004-2014 | J6: =CONCATENATE(D6,"-",F6) -> 2014-2024
A7: ="1. "&names!B4 -> 1. Managers, directors and senior officials | B7: =(MalesPT!F9+MalesPT!F10)/1000 -> 1.438474 | C7: =(MalesPT!P9+MalesPT!P10)/1000 -> 3.459114 | D7: =(MalesPT!Z9+MalesPT!Z10)/1000 -> 3.957411 | E7: =(MalesPT!AE9+MalesPT!AE10)/1000 -> 4.293337 | F7: =(MalesPT!AJ9+MalesPT!AJ10)/1000 -> 4.737008 | J7: =F16-D16 -> 20.59
A8: ="2. "&names!B5 -> 2. Professional occupations | B8: =(MalesPT!F11+MalesPT!F12+MalesPT!F13+MalesPT!F14)/1000 -> 5.331052 | C8: =(MalesPT!P11+MalesPT!P12+MalesPT!P13+MalesPT!P14)/1000 -> 11.433861 | D8: =(MalesPT!Z11+MalesPT!Z12+MalesPT!Z13+MalesPT!Z14)/1000 -> 13.544766 | E8: =(MalesPT!AE11+MalesPT!AE12+MalesPT!AE13+MalesPT!AE14)/1000 -> 15.060056 | F8: =(MalesPT!AJ11+MalesPT!AJ12+MalesPT!AJ13+MalesPT!AJ14)/1000 -> 17.516269 | J8: =F15-D15 -> 5.425376
A9: ="3. "&names!B6 -> 3. Associate professional and technical | B9: =(MalesPT!F15+MalesPT!F16+MalesPT!F17+MalesPT!F18+MalesPT!F19)/1000 -> 4.62081 | C9: =(MalesPT!P15+MalesPT!P16+MalesPT!P17+MalesPT!P18+MalesPT!P19)/1000 -> 7.620613 | D9: =(MalesPT!Z15+MalesPT!Z16+MalesPT!Z17+MalesPT!Z18+MalesPT!Z19)/1000 -> 7.899911 | E9: =(MalesPT!AE15+MalesPT!AE16+MalesPT!AE17+MalesPT!AE18+MalesPT!AE19)/1000 -> 8.651088 | F9: =(MalesPT!AJ15+MalesPT!AJ16+MalesPT!AJ17+MalesPT!AJ18+MalesPT!AJ19)/1000 -> 9.715098 | J9: =F14-D14 -> 3.408115
A10: ="4. "&names!B7 -> 4. Administrative and secretarial | B10: =(MalesPT!F20+MalesPT!F21)/1000 -> 4.016058 | C10: =(MalesPT!P20+MalesPT!P21)/1000 -> 8.146004 | D10: =(MalesPT!Z20+MalesPT!Z21)/1000 -> 8.476354 | E10: =(MalesPT!AE20+MalesPT!AE21)/1000 -> 8.802861 | F10: =(MalesPT!AJ20+MalesPT!AJ21)/1000 -> 9.505557 | J10: =F13-D13 -> 1.800606
A11: ="5. "&names!B8 -> 5. Skilled trades occupations | B11: =(MalesPT!F22+MalesPT!F23+MalesPT!F24+MalesPT!F25)/1000 -> 5.233589 | C11: =(MalesPT!P22+MalesPT!P23+MalesPT!P24+MalesPT!P25)/1000 -> 9.811631 | D11: =(MalesPT!Z22+MalesPT!Z23+MalesPT!Z24+MalesPT!Z25)/1000 -> 12.898554 | E11: =(MalesPT!AE22+MalesPT!AE23+MalesPT!AE24+MalesPT!AE25)/1000 -> 12.742583 | F11: =(MalesPT!AJ22+MalesPT!AJ23+MalesPT!AJ24+MalesPT!AJ25)/1000 -> 13.100502 | J11: =F12-D12 -> 2.158467
A12: ="6. "&names!B9 -> 6. Caring, leisure and other service | B12: =(MalesPT!F26+MalesPT!F27)/1000 -> 2.856343 | C12: =(MalesPT!P26+MalesPT!P27)/1000 -> 6.671002 | D12: =(MalesPT!Z26+MalesPT!Z27)/1000 -> 8.013039 | E12: =(MalesPT!AE26+MalesPT!AE27)/1000 -> 9.180658 | F12: =(MalesPT!AJ26+MalesPT!AJ27)/1000 -> 10.171506 | J12: =F11-D11 -> 0.201948
A13: ="7. "&names!B10 -> 7. Sales and customer service | B13: =(MalesPT!F28+MalesPT!F29)/1000 -> 5.688918 | C13: =(MalesPT!P28+MalesPT!P29)/1000 -> 16.680445 | D13: =(MalesPT!Z28+MalesPT!Z29)/1000 -> 13.727642 | E13: =(MalesPT!AE28+MalesPT!AE29)/1000 -> 14.998472 | F13: =(MalesPT!AJ28+MalesPT!AJ29)/1000 -> 15.528248 | J13: =F10-D10 -> 1.029203
A14: ="8. "&names!B11 -> 8. Process, plant and machine operatives | B14: =(MalesPT!F30+MalesPT!F31)/1000 -> 3.170915 | C14: =(MalesPT!P30+MalesPT!P31)/1000 -> 8.506757 | D14: =(MalesPT!Z30+MalesPT!Z31)/1000 -> 11.665475 | E14: =(MalesPT!AE30+MalesPT!AE31)/1000 -> 12.819351 | F14: =(MalesPT!AJ30+MalesPT!AJ31)/1000 -> 15.07359 | J14: =F9-D9 -> 1.815187
A15: ="9. "&names!B12 -> 9. Elementary occupations | B15: =(MalesPT!F32+MalesPT!F33)/1000 -> 18.93084 | C15: =(MalesPT!P32+MalesPT!P33)/1000 -> 32.312574 | D15: =(MalesPT!Z32+MalesPT!Z33)/1000 -> 32.045847 | E15: =(MalesPT!AE32+MalesPT!AE33)/1000 -> 34.935596 | F15: =(MalesPT!AJ32+MalesPT!AJ33)/1000 -> 37.471223 | J15: =F8-D8 -> 3.971503
A16: Total | B16: =MalesPT!F8/1000 -> 51.287 | C16: =MalesPT!P8/1000 -> 104.642 | D16: =MalesPT!Z8/1000 -> 112.229 | E16: =MalesPT!AE8/1000 -> 121.484 | F16: =MalesPT!AJ8/1000 -> 132.819 | J16: =F7-D7 -> 0.779597
A19: Percentage Shares
B20: =B6 -> 1994 | C20: =C6 -> 2004 | D20: =D6 -> 2014 | E20: =E6 -> 2019 | F20: =F6 -> 2024
A21: =A7 -> 1. Managers, directors and senior officials | B21: =B7/B$16*100 -> 2.804753641 | C21: 3.305665029 | D21: 3.526192873 | E21: 3.534076092 | F21: 3.566513827
A22: =A8 -> 2. Professional occupations | B22: 10.39454833 | C22: 10.92664609 | D22: 12.06886455 | E22: 12.39674031 | F22: 13.18807475
A23: 3. Associate professional and technical | B23: 9.009710063 | C23: 7.282556717 | D23: 7.03909952 | E23: 7.121174805 | F23: 7.314539335
A24: 4. Administrative and secretarial | B24: 7.830557451 | C24: 7.784640966 | D24: 7.552730578 | E24: 7.246107306 | F24: 7.15677501
A25: 5. Skilled trades occupations | B25: 10.20451381 | C25: 9.376379465 | D25: 11.49306685 | E25: 10.48910391 | F25: 9.863424661
A26: 6. Caring, leisure and other service | B26: 5.56933141 | C26: 6.375071195 | D26: 7.13990056 | E26: 7.557092292 | F26: 7.658170894
A27: 7. Sales and customer service | B27: 11.09231969 | C27: 15.94048757 | D27: 12.23181352 | E27: 12.34604722 | F27: 11.69128513
A28: 8. Process, plant and machine operatives | B28: 6.182687621 | C28: 8.129390684 | D28: 10.39434995 | E28: 10.55229578 | F28: 11.34897116
A29: 9. Elementary occupations | B29: 36.91157603 | C29: 30.87916324 | D29: 28.5539807 | E29: 28.75736393 | F29: 28.21224599
A30: Total | B30: 100 | C30: 100 | D30: 100 | E30: 100 | F30: 100
A32: Net Changes | B32: =CONCATENATE(B20,"-",C20) -> 1994-2004 | C32: =CONCATENATE(C20,"-",D20) -> 2004-2014 | D32: =CONCATENATE(D20,"-",E20) -> 2014-2019 | E32: =CONCATENATE(E20,"-",F20) -> 2019-2024 | F32: =CONCATENATE(D20,"-",F20) -> 2014-2024
A34: =A21 -> 1. Managers, directors and senior officials | B34: =C7-B7 -> 2.02064 | C34: =D7-C7 -> 0.498297 | D34: =E7-D7 -> 0.335926 | E34: =F7-E7 -> 0.443671 | F34: =F7-D7 -> 0.779597
A35: =A22 -> 2. Professional occupations | B35: =C8-B8 -> 6.102809 | C35: 2.110905 | D35: 1.51529 | E35: 2.456213 | F35: =F8-D8 -> 3.971503
A36: 3. Associate professional and technical | B36: 2.999803 | C36: 0.279298 | D36: 0.751177 | E36: 1.06401 | F36: 1.815187
A37: 4. Administrative and secretarial | B37: 4.129946 | C37: 0.33035 | D37: 0.326507 | E37: 0.702696 | F37: 1.029203
A38: 5. Skilled trades occupations | B38: 4.578042 | C38: 3.086923 | D38: -0.155971 | E38: 0.357919 | F38: 0.201948
A39: 6. Caring, leisure and other service | B39: 3.814659 | C39: 1.342037 | D39: 1.167619 | E39: 0.990848 | F39: 2.158467
A40: 7. Sales and customer service | B40: 10.991527 | C40: -2.952803 | D40: 1.27083 | E40: 0.529776 | F40: 1.800606
A41: 8. Process, plant and machine operatives | B41: 5.335842 | C41: 3.158718 | D41: 1.153876 | E41: 2.254239 | F41: 3.408115
A42: 9. Elementary occupations | B42: 13.381734 | C42: -0.266727 | D42: 2.889749 | E42: 2.535627 | F42: 5.425376
A43: Total | B43: 53.355 | C43: 7.587 | D43: 9.255 | E43: 11.335 | F43: 20.59
A44: N:\Projects\SSDA Projections\workbooks\Allyy.xls, sheet Table4.1

Sheet Table 4.1 FPT
A1: Table 4.1 Females PT | B1: Occupational Categories SOC2010 - Major Groups | H1: Net changes for Figure 4.1 to 4
A3: All Industry Sectors
A5: Employment Levels (000s) | J5: (Order reversed for chart)
B6: =FemalesPT!F7 -> 1994 | C6: =FemalesPT!P7 -> 2004 | D6: =FemalesPT!Z7 -> 2014 | E6: =FemalesPT!AE7 -> 2019 | F6: =FemalesPT!AJ7 -> 2024 | H6: =CONCATENATE(B6,"-",C6) -> 1994-2004 | I6: =CONCATENATE(C6,"-",D6) -> 2004-2014 | J6: =CONCATENATE(D6,"-",F6) -> 2014-2024
A7: ="1. "&names!B4 -> 1. Managers, directors and senior officials | B7: =(FemalesPT!F9+FemalesPT!F10)/1000 -> 2.284148 | C7: =(FemalesPT!P9+FemalesPT!P10)/1000 -> 4.164572 | D7: =(FemalesPT!Z9+FemalesPT!Z10)/1000 -> 7.583579 | E7: =(FemalesPT!AE9+FemalesPT!AE10)/1000 -> 9.167825 | F7: =(FemalesPT!AJ9+FemalesPT!AJ10)/1000 -> 10.449593 | J7: =F16-D16 -> 19.521
A8: ="2. "&names!B5 -> 2. Professional occupations | B8: =(FemalesPT!F11+FemalesPT!F12+FemalesPT!F13+FemalesPT!F14)/1000 -> 29.861167 | C8: =(FemalesPT!P11+FemalesPT!P12+FemalesPT!P13+FemalesPT!P14)/1000 -> 35.719171 | D8: =(FemalesPT!Z11+FemalesPT!Z12+FemalesPT!Z13+FemalesPT!Z14)/1000 -> 58.898158 | E8: =(FemalesPT!AE11+FemalesPT!AE12+FemalesPT!AE13+FemalesPT!AE14)/1000 -> 64.816357 | F8: =(FemalesPT!AJ11+FemalesPT!AJ12+FemalesPT!AJ13+FemalesPT!AJ14)/1000 -> 72.55835 | J8: =F15-D15 -> -4.218252
A9: ="3. "&names!B6 -> 3. Associate professional and technical | B9: =(FemalesPT!F15+FemalesPT!F16+FemalesPT!F17+FemalesPT!F18+FemalesPT!F19)/1000 -> 12.573035 | C9: =(FemalesPT!P15+FemalesPT!P16+FemalesPT!P17+FemalesPT!P18+FemalesPT!P19)/1000 -> 16.037556 | D9: =(FemalesPT!Z15+FemalesPT!Z16+FemalesPT!Z17+FemalesPT!Z18+FemalesPT!Z19)/1000 -> 22.5783 | E9: =(FemalesPT!AE15+FemalesPT!AE16+FemalesPT!AE17+FemalesPT!AE18+FemalesPT!AE19)/1000 -> 24.94014 | F9: =(FemalesPT!AJ15+FemalesPT!AJ16+FemalesPT!AJ17+FemalesPT!AJ18+FemalesPT!AJ19)/1000 -> 27.067859 | J9: =F14-D14 -> -0.301053
A10: ="4. "&names!B7 -> 4. Administrative and secretarial | B10: =(FemalesPT!F20+FemalesPT!F21)/1000 -> 42.27739 | C10: =(FemalesPT!P20+FemalesPT!P21)/1000 -> 53.883613 | D10: =(FemalesPT!Z20+FemalesPT!Z21)/1000 -> 54.437029 | E10: =(FemalesPT!AE20+FemalesPT!AE21)/1000 -> 49.274131 | F10: =(FemalesPT!AJ20+FemalesPT!AJ21)/1000 -> 46.744168 | J10: =F13-D13 -> -0.436721
A11: ="5. "&names!B8 -> 5. Skilled trades occupations | B11: =(FemalesPT!F22+FemalesPT!F23+FemalesPT!F24+FemalesPT!F25)/1000 -> 9.024318 | C11: =(FemalesPT!P22+FemalesPT!P23+FemalesPT!P24+FemalesPT!P25)/1000 -> 7.440678 | D11: =(FemalesPT!Z22+FemalesPT!Z23+FemalesPT!Z24+FemalesPT!Z25)/1000 -> 5.198469 | E11: =(FemalesPT!AE22+FemalesPT!AE23+FemalesPT!AE24+FemalesPT!AE25)/1000 -> 5.188088 | F11: =(FemalesPT!AJ22+FemalesPT!AJ23+FemalesPT!AJ24+FemalesPT!AJ25)/1000 -> 5.04402 | J11: =F12-D12 -> 11.308568
A12: ="6. "&names!B9 -> 6. Caring, leisure and other service | B12: =(FemalesPT!F26+FemalesPT!F27)/1000 -> 40.477286 | C12: =(FemalesPT!P26+FemalesPT!P27)/1000 -> 56.603702 | D12: =(FemalesPT!Z26+FemalesPT!Z27)/1000 -> 75.695045 | E12: =(FemalesPT!AE26+FemalesPT!AE27)/1000 -> 80.662172 | F12: =(FemalesPT!AJ26+FemalesPT!AJ27)/1000 -> 87.003613 | J12: =F11-D11 -> -0.154449
A13: ="7. "&names!B10 -> 7. Sales and customer service | B13: =(FemalesPT!F28+FemalesPT!F29)/1000 -> 46.632417 | C13: =(FemalesPT!P28+FemalesPT!P29)/1000 -> 58.448616 | D13: =(FemalesPT!Z28+FemalesPT!Z29)/1000 -> 55.525861 | E13: =(FemalesPT!AE28+FemalesPT!AE29)/1000 -> 55.496349 | F13: =(FemalesPT!AJ28+FemalesPT!AJ29)/1000 -> 55.08914 | J13: =F10-D10 -> -7.692861
A14: ="8. "&names!B11 -> 8. Process, plant and machine operatives | B14: =(FemalesPT!F30+FemalesPT!F31)/1000 -> 6.531261 | C14: =(FemalesPT!P30+FemalesPT!P31)/1000 -> 5.144635 | D14: =(FemalesPT!Z30+FemalesPT!Z31)/1000 -> 4.134745 | E14: =(FemalesPT!AE30+FemalesPT!AE31)/1000 -> 3.843103 | F14: =(FemalesPT!AJ30+FemalesPT!AJ31)/1000 -> 3.833692 | J14: =F9-D9 -> 4.489559
A15: ="9. "&names!B12 -> 9. Elementary occupations | B15: =(FemalesPT!F32+FemalesPT!F33)/1000 -> 70.736975 | C15: =(FemalesPT!P32+FemalesPT!P33)/1000 -> 67.678456 | D15: =(FemalesPT!Z32+FemalesPT!Z33)/1000 -> 36.527814 | E15: =(FemalesPT!AE32+FemalesPT!AE33)/1000 -> 35.404835 | F15: =(FemalesPT!AJ32+FemalesPT!AJ33)/1000 -> 32.309562 | J15: =F8-D8 -> 13.660192
A16: Total | B16: =FemalesPT!F8/1000 -> 260.398 | C16: =FemalesPT!P8/1000 -> 305.121 | D16: =FemalesPT!Z8/1000 -> 320.579 | E16: =FemalesPT!AE8/1000 -> 328.793 | F16: =FemalesPT!AJ8/1000 -> 340.1 | J16: =F7-D7 -> 2.866014
A19: Percentage Shares
B20: =B6 -> 1994 | C20: =C6 -> 2004 | D20: =D6 -> 2014 | E20: =E6 -> 2019 | F20: =F6 -> 2024
A21: =A7 -> 1. Managers, directors and senior officials | B21: =B7/B$16*100 -> 0.877175708 | C21: 1.364891961 | D21: 2.365588201 | E21: 2.788327306 | F21: 3.072506028
A22: =A8 -> 2. Professional occupations | B22: 11.46751012 | C22: 11.70655936 | D22: 18.37243176 | E22: 19.71342364 | F22: 21.33441635
A23: 3. Associate professional and technical | B23: 4.828391539 | C23: 5.256129863 | D23: 7.042975366 | E23: 7.585362219 | F23: 7.958794178
A24: 4. Administrative and secretarial | B24: 16.23568153 | C24: 17.65975236 | D24: 16.98084684 | E24: 14.98636863 | F24: 13.74424228
A25: 5. Skilled trades occupations | B25: 3.465586525 | C25: 2.438599113 | D25: 1.621587503 | E25: 1.577919238 | F25: 1.483099089
A26: 6. Caring, leisure and other service | B26: 15.54439205 | C26: 18.55123115 | D26: 23.61197864 | E26: 24.53281305 | F26: 25.58177389
A27: 7. Sales and customer service | B27: 17.90813178 | C27: 19.15588111 | D27: 17.3204923 | E27: 16.87881098 | F27: 16.19792414
A28: 8. Process, plant and machine operatives | B28: 2.508184011 | C28: 1.686096663 | D28: 1.289774127 | E28: 1.168851831 | F28: 1.127224934
A29: 9. Elementary occupations | B29: 27.16494558 | C29: 22.18085809 | D29: 11.39432527 | E29: 10.7681231 | F29: 9.50001823
A30: Total | B30: 100 | C30: 100 | D30: 100 | E30: 100 | F30: 100
A32: Net Changes | B32: =CONCATENATE(B20,"-",C20) -> 1994-2004 | C32: =CONCATENATE(C20,"-",D20) -> 2004-2014 | D32: =CONCATENATE(D20,"-",E20) -> 2014-2019 | E32: =CONCATENATE(E20,"-",F20) -> 2019-2024 | F32: =CONCATENATE(D20,"-",F20) -> 2014-2024
A34: =A21 -> 1. Managers, directors and senior officials | B34: =C7-B7 -> 1.880424 | C34: =D7-C7 -> 3.419007 | D34: =E7-D7 -> 1.584246 | E34: =F7-E7 -> 1.281768 | F34: =F7-D7 -> 2.866014
A35: =A22 -> 2. Professional occupations | B35: =C8-B8 -> 5.858004 | C35: 23.178987 | D35: 5.918199 | E35: 7.741993 | F35: =F8-D8 -> 13.660192
A36: 3. Associate professional and technical | B36: 3.464521 | C36: 6.540744 | D36: 2.36184 | E36: 2.127719 | F36: 4.489559
A37: 4. Administrative and secretarial | B37: 11.606223 | C37: 0.553416 | D37: -5.162898 | E37: -2.529963 | F37: -7.692861
A38: 5. Skilled trades occupations | B38: -1.58364 | C38: -2.242209 | D38: -0.010381 | E38: -0.144068 | F38: -0.154449
A39: 6. Caring, leisure and other service | B39: 16.126416 | C39: 19.091343 | D39: 4.967127 | E39: 6.341441 | F39: 11.308568
A40: 7. Sales and customer service | B40: 11.816199 | C40: -2.922755 | D40: -0.029512 | E40: -0.407209 | F40: -0.436721
A41: 8. Process, plant and machine operatives | B41: -1.386626 | C41: -1.00989 | D41: -0.291642 | E41: -0.009411 | F41: -0.301053
A42: 9. Elementary occupations | B42: -3.058519 | C42: -31.150642 | D42: -1.122979 | E42: -3.095273 | F42: -4.218252
A43: Total | B43: 44.723 | C43: 15.458 | D43: 8.214 | E43: 11.307 | F43: 19.521
A44: N:\Projects\SSDA Projections\workbooks\Allyy.xls, sheet Table4.1

Sheet Table 4.1 SE
A1: Table 4.1 Total SE | B1: Occupational Categories SOC2010 - Major Groups | H1: Net changes for Figure 4.1 to 4
A3: All Industry Sectors
A5: Employment Levels (000s) | J5: (Order reversed for chart)
B6: =SE!F7 -> 1994 | C6: =SE!P7 -> 2004 | D6: =SE!Z7 -> 2014 | E6: =SE!AE7 -> 2019 | F6: =SE!AJ7 -> 2024 | H6: =CONCATENATE(B6,"-",C6) -> 1994-2004 | I6: =CONCATENATE(C6,"-",D6) -> 2004-2014 | J6: =CONCATENATE(D6,"-",F6) -> 2014-2024
A7: ="1. "&names!B4 -> 1. Managers, directors and senior officials | B7: =(SE!F9+SE!F10)/1000 -> 27.229796 | C7: =(SE!P9+SE!P10)/1000 -> 21.85889 | D7: =(SE!Z9+SE!Z10)/1000 -> 23.914521 | E7: =(SE!AE9+SE!AE10)/1000 -> 24.049238 | F7: =(SE!AJ9+SE!AJ10)/1000 -> 23.100229 | J7: =F16-D16 -> -7.751
A8: ="2. "&names!B5 -> 2. Professional occupations | B8: =(SE!F11+SE!F12+SE!F13+SE!F14)/1000 -> 27.689545 | C8: =(SE!P11+SE!P12+SE!P13+SE!P14)/1000 -> 24.95415 | D8: =(SE!Z11+SE!Z12+SE!Z13+SE!Z14)/1000 -> 34.795804 | E8: =(SE!AE11+SE!AE12+SE!AE13+SE!AE14)/1000 -> 35.726786 | F8: =(SE!AJ11+SE!AJ12+SE!AJ13+SE!AJ14)/1000 -> 35.676093 | J8: =F15-D15 -> -1.253006
A9: ="3. "&names!B6 -> 3. Associate professional and technical | B9: =(SE!F15+SE!F16+SE!F17+SE!F18+SE!F19)/1000 -> 15.291659 | C9: =(SE!P15+SE!P16+SE!P17+SE!P18+SE!P19)/1000 -> 18.916944 | D9: =(SE!Z15+SE!Z16+SE!Z17+SE!Z18+SE!Z19)/1000 -> 27.300164 | E9: =(SE!AE15+SE!AE16+SE!AE17+SE!AE18+SE!AE19)/1000 -> 28.317082 | F9: =(SE!AJ15+SE!AJ16+SE!AJ17+SE!AJ18+SE!AJ19)/1000 -> 28.601663 | J9: =F14-D14 -> -1.081034
A10: ="4. "&names!B7 -> 4. Administrative and secretarial | B10: =(SE!F20+SE!F21)/1000 -> 6.921463 | C10: =(SE!P20+SE!P21)/1000 -> 4.594803 | D10: =(SE!Z20+SE!Z21)/1000 -> 6.420647 | E10: =(SE!AE20+SE!AE21)/1000 -> 5.727272 | F10: =(SE!AJ20+SE!AJ21)/1000 -> 5.428643 | J10: =F13-D13 -> -0.825395
A11: ="5. "&names!B8 -> 5. Skilled trades occupations | B11: =(SE!F22+SE!F23+SE!F24+SE!F25)/1000 -> 66.349657 | C11: =(SE!P22+SE!P23+SE!P24+SE!P25)/1000 -> 51.711392 | D11: =(SE!Z22+SE!Z23+SE!Z24+SE!Z25)/1000 -> 72.199299 | E11: =(SE!AE22+SE!AE23+SE!AE24+SE!AE25)/1000 -> 70.389532 | F11: =(SE!AJ22+SE!AJ23+SE!AJ24+SE!AJ25)/1000 -> 68.107069 | J11: =F12-D12 -> -0.874825
A12: ="6. "&names!B9 -> 6. Caring, leisure and other service | B12: =(SE!F26+SE!F27)/1000 -> 9.016928 | C12: =(SE!P26+SE!P27)/1000 -> 7.512777 | D12: =(SE!Z26+SE!Z27)/1000 -> 13.588925 | E12: =(SE!AE26+SE!AE27)/1000 -> 13.239299 | F12: =(SE!AJ26+SE!AJ27)/1000 -> 12.7141 | J12: =F11-D11 -> -4.09223
A13: ="7. "&names!B10 -> 7. Sales and customer service | B13: =(SE!F28+SE!F29)/1000 -> 7.482431 | C13: =(SE!P28+SE!P29)/1000 -> 4.111053 | D13: =(SE!Z28+SE!Z29)/1000 -> 4.452448 | E13: =(SE!AE28+SE!AE29)/1000 -> 3.974202 | F13: =(SE!AJ28+SE!AJ29)/1000 -> 3.627053 | J13: =F10-D10 -> -0.992004
A14: ="8. "&names!B11 -> 8. Process, plant and machine operatives | B14: =(SE!F30+SE!F31)/1000 -> 11.97692 | C14: =(SE!P30+SE!P31)/1000 -> 8.487043 | D14: =(SE!Z30+SE!Z31)/1000 -> 14.235921 | E14: =(SE!AE30+SE!AE31)/1000 -> 13.603263 | F14: =(SE!AJ30+SE!AJ31)/1000 -> 13.154887 | J14: =F9-D9 -> 1.301499
A15: ="9. "&names!B12 -> 9. Elementary occupations | B15: =(SE!F32+SE!F33)/1000 -> 8.669601 | C15: =(SE!P32+SE!P33)/1000 -> 7.145945 | D15: =(SE!Z32+SE!Z33)/1000 -> 8.89127 | E15: =(SE!AE32+SE!AE33)/1000 -> 8.186323 | F15: =(SE!AJ32+SE!AJ33)/1000 -> 7.638264 | J15: =F8-D8 -> 0.880289
A16: Total | B16: =SE!F8/1000 -> 180.628 | C16: =SE!P8/1000 -> 149.293 | D16: =SE!Z8/1000 -> 205.799 | E16: =SE!AE8/1000 -> 203.213 | F16: =SE!AJ8/1000 -> 198.048 | J16: =F7-D7 -> -0.814292
A19: Percentage Shares
B20: =B6 -> 1994 | C20: =C6 -> 2004 | D20: =D6 -> 2014 | E20: =E6 -> 2019 | F20: =F6 -> 2024
A21: =A7 -> 1. Managers, directors and senior officials | B21: =B7/B$16*100 -> 15.0750692 | C21: 14.64160409 | D21: 11.62032906 | E21: 11.83449779 | F21: 11.6639547
A22: =A8 -> 2. Professional occupations | B22: 15.32959729 | C22: 16.71488281 | D22: 16.90766427 | E22: 17.58095496 | F22: 18.01386179
A23: 3. Associate professional and technical | B23: 8.465829772 | C23: 12.67101873 | D23: 13.26545027 | E23: 13.93468036 | F23: 14.44178331
A24: 4. Administrative and secretarial | B24: 3.83188819 | C24: 3.077708265 | D24: 3.11986307 | E24: 2.818359062 | F24: 2.741074386
A25: 5. Skilled trades occupations | B25: 36.73276402 | C25: 34.63751951 | D25: 35.08243432 | E25: 34.63830168 | F25: 34.38917283
A26: 6. Caring, leisure and other service | B26: 4.991987953 | C26: 5.032236609 | D26: 6.603008275 | E26: 6.514986246 | F26: 6.419706334
A27: 7. Sales and customer service | B27: 4.142453551 | C27: 2.753681017 | D27: 2.163493506 | E27: 1.955682953 | F27: 1.831400974
A28: 8. Process, plant and machine operatives | B28: 6.630710632 | C28: 5.684823133 | D28: 6.917390755 | E28: 6.694090929 | F28: 6.642272075
A29: 9. Elementary occupations | B29: 4.799699382 | C29: 4.786523816 | D29: 4.320365988 | E29: 4.028444538 | F29: 3.856774115
A30: Total | B30: 100 | C30: 100 | D30: 100 | E30: 100 | F30: 100
A32: Net Changes | B32: =CONCATENATE(B20,"-",C20) -> 1994-2004 | C32: =CONCATENATE(C20,"-",D20) -> 2004-2014 | D32: =CONCATENATE(D20,"-",E20) -> 2014-2019 | E32: =CONCATENATE(E20,"-",F20) -> 2019-2024 | F32: =CONCATENATE(D20,"-",F20) -> 2014-2024
A34: =A21 -> 1. Managers, directors and senior officials | B34: =C7-B7 -> -5.370906 | C34: =D7-C7 -> 2.055631 | D34: =E7-D7 -> 0.134717 | E34: =F7-E7 -> -0.949009 | F34: =F7-D7 -> -0.814292
A35: =A22 -> 2. Professional occupations | B35: =C8-B8 -> -2.735395 | C35: 9.841654 | D35: 0.930982 | E35: -0.050693 | F35: =F8-D8 -> 0.880289
A36: 3. Associate professional and technical | B36: 3.625285 | C36: 8.38322 | D36: 1.016918 | E36: 0.284581 | F36: 1.301499
A37: 4. Administrative and secretarial | B37: -2.32666 | C37: 1.825844 | D37: -0.693375 | E37: -0.298629 | F37: -0.992004
A38: 5. Skilled trades occupations | B38: -14.638265 | C38: 20.487907 | D38: -1.809767 | E38: -2.282463 | F38: -4.09223
A39: 6. Caring, leisure and other service | B39: -1.504151 | C39: 6.076148 | D39: -0.349626 | E39: -0.525199 | F39: -0.874825
A40: 7. Sales and customer service | B40: -3.371378 | C40: 0.341395 | D40: -0.478246 | E40: -0.347149 | F40: -0.825395
A41: 8. Process, plant and machine operatives | B41: -3.489877 | C41: 5.748878 | D41: -0.632658 | E41: -0.448376 | F41: -1.081034
A42: 9. Elementary occupations | B42: -1.523656 | C42: 1.745325 | D42: -0.704947 | E42: -0.548059 | F42: -1.253006
A43: Total | B43: -31.335 | C43: 56.506 | D43: -2.586 | E43: -5.165 | F43: -7.751
A44: N:\Projects\SSDA Projections\workbooks\Allyy.xls, sheet Table4.1

Sheet Table 4.1 MSE
A1: Table 4.1 Males SE | B1: Occupational Categories SOC2010 - Major Groups | H1: Net changes for Figure 4.1 to 4
A3: All Industry Sectors
A5: Employment Levels (000s) | J5: (Order reversed for chart)
B6: =MalesSE!F7 -> 1994 | C6: =MalesSE!P7 -> 2004 | D6: =MalesSE!Z7 -> 2014 | E6: =MalesSE!AE7 -> 2019 | F6: =MalesSE!AJ7 -> 2024 | H6: =CONCATENATE(B6,"-",C6) -> 1994-2004 | I6: =CONCATENATE(C6,"-",D6) -> 2004-2014 | J6: =CONCATENATE(D6,"-",F6) -> 2014-2024
A7: ="1. "&names!B4 -> 1. Managers, directors and senior officials | B7: =(MalesSE!F9+MalesSE!F10)/1000 -> 19.060069 | C7: =(MalesSE!P9+MalesSE!P10)/1000 -> 15.859451 | D7: =(MalesSE!Z9+MalesSE!Z10)/1000 -> 18.392018 | E7: =(MalesSE!AE9+MalesSE!AE10)/1000 -> 18.237891 | F7: =(MalesSE!AJ9+MalesSE!AJ10)/1000 -> 17.397512 | J7: =F16-D16 -> -6.401
A8: ="2. "&names!B5 -> 2. Professional occupations | B8: =(MalesSE!F11+MalesSE!F12+MalesSE!F13+MalesSE!F14)/1000 -> 17.699155 | C8: =(MalesSE!P11+MalesSE!P12+MalesSE!P13+MalesSE!P14)/1000 -> 15.428673 | D8: =(MalesSE!Z11+MalesSE!Z12+MalesSE!Z13+MalesSE!Z14)/1000 -> 17.019279 | E8: =(MalesSE!AE11+MalesSE!AE12+MalesSE!AE13+MalesSE!AE14)/1000 -> 17.222847 | F8: =(MalesSE!AJ11+MalesSE!AJ12+MalesSE!AJ13+MalesSE!AJ14)/1000 -> 17.05508 | J8: =F15-D15 -> -0.640607
A9: ="3. "&names!B6 -> 3. Associate professional and technical | B9: =(MalesSE!F15+MalesSE!F16+MalesSE!F17+MalesSE!F18+MalesSE!F19)/1000 -> 10.470859 | C9: =(MalesSE!P15+MalesSE!P16+MalesSE!P17+MalesSE!P18+MalesSE!P19)/1000 -> 14.323142 | D9: =(MalesSE!Z15+MalesSE!Z16+MalesSE!Z17+MalesSE!Z18+MalesSE!Z19)/1000 -> 17.983878 | E9: =(MalesSE!AE15+MalesSE!AE16+MalesSE!AE17+MalesSE!AE18+MalesSE!AE19)/1000 -> 18.509837 | F9: =(MalesSE!AJ15+MalesSE!AJ16+MalesSE!AJ17+MalesSE!AJ18+MalesSE!AJ19)/1000 -> 18.460835 | J9: =F14-D14 -> -0.743203
A10: ="4. "&names!B7 -> 4. Administrative and secretarial | B10: =(MalesSE!F20+MalesSE!F21)/1000 -> 0.982036 | C10: =(MalesSE!P20+MalesSE!P21)/1000 -> 1.252857 | D10: =(MalesSE!Z20+MalesSE!Z21)/1000 -> 1.500086 | E10: =(MalesSE!AE20+MalesSE!AE21)/1000 -> 1.404452 | F10: =(MalesSE!AJ20+MalesSE!AJ21)/1000 -> 1.388895 | J10: =F13-D13 -> -0.479419
A11: ="5. "&names!B8 -> 5. Skilled trades occupations | B11: =(MalesSE!F22+MalesSE!F23+MalesSE!F24+MalesSE!F25)/1000 -> 58.205851 | C11: =(MalesSE!P22+MalesSE!P23+MalesSE!P24+MalesSE!P25)/1000 -> 47.482776 | D11: =(MalesSE!Z22+MalesSE!Z23+MalesSE!Z24+MalesSE!Z25)/1000 -> 67.420106 | E11: =(MalesSE!AE22+MalesSE!AE23+MalesSE!AE24+MalesSE!AE25)/1000 -> 65.788347 | F11: =(MalesSE!AJ22+MalesSE!AJ23+MalesSE!AJ24+MalesSE!AJ25)/1000 -> 63.628807 | J11: =F12-D12 -> -0.153533
A12: ="6. "&names!B9 -> 6. Caring, leisure and other service | B12: =(MalesSE!F26+MalesSE!F27)/1000 -> 2.005508 | C12: =(MalesSE!P26+MalesSE!P27)/1000 -> 2.092427 | D12: =(MalesSE!Z26+MalesSE!Z27)/1000 -> 2.897166 | E12: =(MalesSE!AE26+MalesSE!AE27)/1000 -> 2.902269 | F12: =(MalesSE!AJ26+MalesSE!AJ27)/1000 -> 2.743633 | J12: =F11-D11 -> -3.791299
A13: ="7. "&names!B10 -> 7. Sales and customer service | B13: =(MalesSE!F28+MalesSE!F29)/1000 -> 3.89552 | C13: =(MalesSE!P28+MalesSE!P29)/1000 -> 1.627404 | D13: =(MalesSE!Z28+MalesSE!Z29)/1000 -> 1.81378 | E13: =(MalesSE!AE28+MalesSE!AE29)/1000 -> 1.606727 | F13: =(MalesSE!AJ28+MalesSE!AJ29)/1000 -> 1.334361 | J13: =F10-D10 -> -0.111191
A14: ="8. "&names!B11 -> 8. Process, plant and machine operatives | B14: =(MalesSE!F30+MalesSE!F31)/1000 -> 9.917484 | C14: =(MalesSE!P30+MalesSE!P31)/1000 -> 7.767349 | D14: =(MalesSE!Z30+MalesSE!Z31)/1000 -> 12.689152 | E14: =(MalesSE!AE30+MalesSE!AE31)/1000 -> 12.256316 | F14: =(MalesSE!AJ30+MalesSE!AJ31)/1000 -> 11.945949 | J14: =F9-D9 -> 0.476957
A15: ="9. "&names!B12 -> 9. Elementary occupations | B15: =(MalesSE!F32+MalesSE!F33)/1000 -> 5.950518 | C15: =(MalesSE!P32+MalesSE!P33)/1000 -> 4.62792 | D15: =(MalesSE!Z32+MalesSE!Z33)/1000 -> 3.147535 | E15: =(MalesSE!AE32+MalesSE!AE33)/1000 -> 2.920312 | F15: =(MalesSE!AJ32+MalesSE!AJ33)/1000 -> 2.506928 | J15: =F8-D8 -> 0.035801
A16: Total | B16: =MalesSE!F8/1000 -> 128.187 | C16: =MalesSE!P8/1000 -> 110.462 | D16: =MalesSE!Z8/1000 -> 142.863 | E16: =MalesSE!AE8/1000 -> 140.849 | F16: =MalesSE!AJ8/1000 -> 136.462 | J16: =F7-D7 -> -0.994506
A19: Percentage Shares
B20: =B6 -> 1994 | C20: =C6 -> 2004 | D20: =D6 -> 2014 | E20: =E6 -> 2019 | F20: =F6 -> 2024
A21: =A7 -> 1. Managers, directors and senior officials | B21: =B7/B$16*100 -> 14.86895629 | C21: 14.35738172 | D21: 12.87388477 | E21: 12.94854135 | F21: 12.7489792
A22: =A8 -> 2. Professional occupations | B22: 13.80729325 | C22: 13.96740327 | D22: 11.91300687 | E22: 12.22788021 | F22: 12.49804341
A23: 3. Associate professional and technical | B23: 8.168425035 | C23: 12.96657855 | D23: 12.58819848 | E23: 13.14161762 | F23: 13.52818733
A24: 4. Administrative and secretarial | B24: 0.766096406 | C24: 1.134197281 | D24: 1.050017149 | E24: 0.9971331 | F24: 1.017788835
A25: 5. Skilled trades occupations | B25: 45.40698433 | C25: 42.98562039 | D25: 47.19213932 | E25: 46.7084232 | F25: 46.62749117
A26: 6. Caring, leisure and other service | B26: 1.564517463 | C26: 1.894250511 | D26: 2.027933055 | E26: 2.060553501 | F26: 2.010547259
A27: 7. Sales and customer service | B27: 3.038935305 | C27: 1.473270446 | D27: 1.269593947 | E27: 1.140744343 | F27: 0.9778260615
A28: 8. Process, plant and machine operatives | B28: 7.736731494 | C28: 7.031693252 | D28: 8.882042236 | E28: 8.701741581 | F28: 8.754048013
A29: 9. Elementary occupations | B29: 4.642060427 | C29: 4.189603665 | D29: 2.203184169 | E29: 2.073363673 | F29: 1.837088713
A30: Total | B30: 100 | C30: 100 | D30: 100 | E30: 100 | F30: 100
A32: Net Changes | B32: =CONCATENATE(B20,"-",C20) -> 1994-2004 | C32: =CONCATENATE(C20,"-",D20) -> 2004-2014 | D32: =CONCATENATE(D20,"-",E20) -> 2014-2019 | E32: =CONCATENATE(E20,"-",F20) -> 2019-2024 | F32: =CONCATENATE(D20,"-",F20) -> 2014-2024
A34: =A21 -> 1. Managers, directors and senior officials | B34: =C7-B7 -> -3.200618 | C34: =D7-C7 -> 2.532567 | D34: =E7-D7 -> -0.154127 | E34: =F7-E7 -> -0.840379 | F34: =F7-D7 -> -0.994506
A35: =A22 -> 2. Professional occupations | B35: =C8-B8 -> -2.270482 | C35: 1.590606 | D35: 0.203568 | E35: -0.167767 | F35: =F8-D8 -> 0.035801
A36: 3. Associate professional and technical | B36: 3.852283 | C36: 3.660736 | D36: 0.525959 | E36: -0.049002 | F36: 0.476957
A37: 4. Administrative and secretarial | B37: 0.270821 | C37: 0.247229 | D37: -0.095634 | E37: -0.015557 | F37: -0.111191
A38: 5. Skilled trades occupations | B38: -10.723075 | C38: 19.93733 | D38: -1.631759 | E38: -2.15954 | F38: -3.791299
A39: 6. Caring, leisure and other service | B39: 0.086919 | C39: 0.804739 | D39: 0.005103 | E39: -0.158636 | F39: -0.153533
A40: 7. Sales and customer service | B40: -2.268116 | C40: 0.186376 | D40: -0.207053 | E40: -0.272366 | F40: -0.479419
A41: 8. Process, plant and machine operatives | B41: -2.150135 | C41: 4.921803 | D41: -0.432836 | E41: -0.310367 | F41: -0.743203
A42: 9. Elementary occupations | B42: -1.322598 | C42: -1.480385 | D42: -0.227223 | E42: -0.413384 | F42: -0.640607
A43: Total | B43: -17.725 | C43: 32.401 | D43: -2.014 | E43: -4.387 | F43: -6.401
A44: N:\Projects\SSDA Projections\workbooks\Allyy.xls, sheet Table4.1

Sheet Table 4.1 FSE
A1: Table 4.1 Females SE | B1: Occupational Categories SOC2010 - Major Groups | H1: Net changes for Figure 4.1 to 4
A3: All Industry Sectors
A5: Employment Levels (000s) | J5: (Order reversed for chart)
B6: =FemalesSE!F7 -> 1994 | C6: =FemalesSE!P7 -> 2004 | D6: =FemalesSE!Z7 -> 2014 | E6: =FemalesSE!AE7 -> 2019 | F6: =FemalesSE!AJ7 -> 2024 | H6: =CONCATENATE(B6,"-",C6) -> 1994-2004 | I6: =CONCATENATE(C6,"-",D6) -> 2004-2014 | J6: =CONCATENATE(D6,"-",F6) -> 2014-2024
A7: ="1. "&names!B4 -> 1. Managers, directors and senior officials | B7: =(FemalesSE!F9+FemalesSE!F10)/1000 -> 8.169726 | C7: =(FemalesSE!P9+FemalesSE!P10)/1000 -> 5.99944 | D7: =(FemalesSE!Z9+FemalesSE!Z10)/1000 -> 5.522502 | E7: =(FemalesSE!AE9+FemalesSE!AE10)/1000 -> 5.811347 | F7: =(FemalesSE!AJ9+FemalesSE!AJ10)/1000 -> 5.702717 | J7: =F16-D16 -> -1.35
A8: ="2. "&names!B5 -> 2. Professional occupations | B8: =(FemalesSE!F11+FemalesSE!F12+FemalesSE!F13+FemalesSE!F14)/1000 -> 9.990389 | C8: =(FemalesSE!P11+FemalesSE!P12+FemalesSE!P13+FemalesSE!P14)/1000 -> 9.525477 | D8: =(FemalesSE!Z11+FemalesSE!Z12+FemalesSE!Z13+FemalesSE!Z14)/1000 -> 17.776525 | E8: =(FemalesSE!AE11+FemalesSE!AE12+FemalesSE!AE13+FemalesSE!AE14)/1000 -> 18.503939 | F8: =(FemalesSE!AJ11+FemalesSE!AJ12+FemalesSE!AJ13+FemalesSE!AJ14)/1000 -> 18.621012 | J8: =F15-D15 -> -0.612398
A9: ="3. "&names!B6 -> 3. Associate professional and technical | B9: =(FemalesSE!F15+FemalesSE!F16+FemalesSE!F17+FemalesSE!F18+FemalesSE!F19)/1000 -> 4.820802 | C9: =(FemalesSE!P15+FemalesSE!P16+FemalesSE!P17+FemalesSE!P18+FemalesSE!P19)/1000 -> 4.593803 | D9: =(FemalesSE!Z15+FemalesSE!Z16+FemalesSE!Z17+FemalesSE!Z18+FemalesSE!Z19)/1000 -> 9.316287 | E9: =(FemalesSE!AE15+FemalesSE!AE16+FemalesSE!AE17+FemalesSE!AE18+FemalesSE!AE19)/1000 -> 9.807246 | F9: =(FemalesSE!AJ15+FemalesSE!AJ16+FemalesSE!AJ17+FemalesSE!AJ18+FemalesSE!AJ19)/1000 -> 10.140827 | J9: =F14-D14 -> -0.337832
A10: ="4. "&names!B7 -> 4. Administrative and secretarial | B10: =(FemalesSE!F20+FemalesSE!F21)/1000 -> 5.939425 | C10: =(FemalesSE!P20+FemalesSE!P21)/1000 -> 3.341946 | D10: =(FemalesSE!Z20+FemalesSE!Z21)/1000 -> 4.920562 | E10: =(FemalesSE!AE20+FemalesSE!AE21)/1000 -> 4.322819 | F10: =(FemalesSE!AJ20+FemalesSE!AJ21)/1000 -> 4.039749 | J10: =F13-D13 -> -0.345977
A11: ="5. "&names!B8 -> 5. Skilled trades occupations | B11: =(FemalesSE!F22+FemalesSE!F23+FemalesSE!F24+FemalesSE!F25)/1000 -> 8.143807 | C11: =(FemalesSE!P22+FemalesSE!P23+FemalesSE!P24+FemalesSE!P25)/1000 -> 4.228615 | D11: =(FemalesSE!Z22+FemalesSE!Z23+FemalesSE!Z24+FemalesSE!Z25)/1000 -> 4.779193 | E11: =(FemalesSE!AE22+FemalesSE!AE23+FemalesSE!AE24+FemalesSE!AE25)/1000 -> 4.601183 | F11: =(FemalesSE!AJ22+FemalesSE!AJ23+FemalesSE!AJ24+FemalesSE!AJ25)/1000 -> 4.478262 | J11: =F12-D12 -> -0.72129
A12: ="6. "&names!B9 -> 6. Caring, leisure and other service | B12: =(FemalesSE!F26+FemalesSE!F27)/1000 -> 7.01142 | C12: =(FemalesSE!P26+FemalesSE!P27)/1000 -> 5.42035 | D12: =(FemalesSE!Z26+FemalesSE!Z27)/1000 -> 10.691759 | E12: =(FemalesSE!AE26+FemalesSE!AE27)/1000 -> 10.33703 | F12: =(FemalesSE!AJ26+FemalesSE!AJ27)/1000 -> 9.970469 | J12: =F11-D11 -> -0.300931
A13: ="7. "&names!B10 -> 7. Sales and customer service | B13: =(FemalesSE!F28+FemalesSE!F29)/1000 -> 3.586911 | C13: =(FemalesSE!P28+FemalesSE!P29)/1000 -> 2.483649 | D13: =(FemalesSE!Z28+FemalesSE!Z29)/1000 -> 2.638668 | E13: =(FemalesSE!AE28+FemalesSE!AE29)/1000 -> 2.367475 | F13: =(FemalesSE!AJ28+FemalesSE!AJ29)/1000 -> 2.292691 | J13: =F10-D10 -> -0.880813
A14: ="8. "&names!B11 -> 8. Process, plant and machine operatives | B14: =(FemalesSE!F30+FemalesSE!F31)/1000 -> 2.059435 | C14: =(FemalesSE!P30+FemalesSE!P31)/1000 -> 0.719694 | D14: =(FemalesSE!Z30+FemalesSE!Z31)/1000 -> 1.54677 | E14: =(FemalesSE!AE30+FemalesSE!AE31)/1000 -> 1.346947 | F14: =(FemalesSE!AJ30+FemalesSE!AJ31)/1000 -> 1.208938 | J14: =F9-D9 -> 0.82454
A15: ="9. "&names!B12 -> 9. Elementary occupations | B15: =(FemalesSE!F32+FemalesSE!F33)/1000 -> 2.719084 | C15: =(FemalesSE!P32+FemalesSE!P33)/1000 -> 2.518025 | D15: =(FemalesSE!Z32+FemalesSE!Z33)/1000 -> 5.743734 | E15: =(FemalesSE!AE32+FemalesSE!AE33)/1000 -> 5.26601 | F15: =(FemalesSE!AJ32+FemalesSE!AJ33)/1000 -> 5.131336 | J15: =F8-D8 -> 0.844487
A16: Total | B16: =FemalesSE!F8/1000 -> 52.441 | C16: =FemalesSE!P8/1000 -> 38.831 | D16: =FemalesSE!Z8/1000 -> 62.936 | E16: =FemalesSE!AE8/1000 -> 62.364 | F16: =FemalesSE!AJ8/1000 -> 61.586 | J16: =F7-D7 -> 0.180215
A19: Percentage Shares
B20: =B6 -> 1994 | C20: =C6 -> 2004 | D20: =D6 -> 2014 | E20: =E6 -> 2019 | F20: =F6 -> 2024
A21: =A7 -> 1. Managers, directors and senior officials | B21: =B7/B$16*100 -> 15.57889056 | C21: 15.45013005 | D21: 8.774790263 | E21: 9.318432108 | F21: 9.259761959
A22: =A8 -> 2. Professional occupations | B22: 19.05072176 | C22: 24.53059926 | D22: 28.24540009 | E22: 29.6708662 | F22: 30.23578735
A23: 3. Associate professional and technical | B23: 9.192810969 | C23: 11.83024645 | D23: 14.8027949 | E23: 15.72581297 | F23: 16.46612379
A24: 4. Administrative and secretarial | B24: 11.32591865 | C24: 8.60638665 | D24: 7.818358332 | E24: 6.931593548 | F24: 6.559524892
A25: 5. Skilled trades occupations | B25: 15.52946549 | C25: 10.88979166 | D25: 7.593734905 | E25: 7.377947213 | F25: 7.271558471
A26: 6. Caring, leisure and other service | B26: 13.37011117 | C26: 13.95882156 | D26: 16.98830399 | E26: 16.57531589 | F26: 16.18950573
A27: 7. Sales and customer service | B27: 6.839898171 | C27: 6.396046973 | D27: 4.192621075 | E27: 3.796220576 | F27: 3.722747053
A28: 8. Process, plant and machine operatives | B28: 3.927146698 | C28: 1.853400634 | D28: 2.457687174 | E28: 2.159814957 | F28: 1.963007826
A29: 9. Elementary occupations | B29: 5.18503461 | C29: 6.48457418 | D29: 9.126309267 | E29: 8.443990123 | F29: 8.331984542
A30: Total | B30: 100 | C30: 100 | D30: 100 | E30: 100 | F30: 100
A32: Net Changes | B32: =CONCATENATE(B20,"-",C20) -> 1994-2004 | C32: =CONCATENATE(C20,"-",D20) -> 2004-2014 | D32: =CONCATENATE(D20,"-",E20) -> 2014-2019 | E32: =CONCATENATE(E20,"-",F20) -> 2019-2024 | F32: =CONCATENATE(D20,"-",F20) -> 2014-2024
A34: =A21 -> 1. Managers, directors and senior officials | B34: =C7-B7 -> -2.170286 | C34: =D7-C7 -> -0.476938 | D34: =E7-D7 -> 0.288845 | E34: =F7-E7 -> -0.10863 | F34: =F7-D7 -> 0.180215
A35: =A22 -> 2. Professional occupations | B35: =C8-B8 -> -0.464912 | C35: 8.251048 | D35: 0.727414 | E35: 0.117073 | F35: =F8-D8 -> 0.844487
A36: 3. Associate professional and technical | B36: -0.226999 | C36: 4.722484 | D36: 0.490959 | E36: 0.333581 | F36: 0.82454
A37: 4. Administrative and secretarial | B37: -2.597479 | C37: 1.578616 | D37: -0.597743 | E37: -0.28307 | F37: -0.880813
A38: 5. Skilled trades occupations | B38: -3.915192 | C38: 0.550578 | D38: -0.17801 | E38: -0.122921 | F38: -0.300931
A39: 6. Caring, leisure and other service | B39: -1.59107 | C39: 5.271409 | D39: -0.354729 | E39: -0.366561 | F39: -0.72129
A40: 7. Sales and customer service | B40: -1.103262 | C40: 0.155019 | D40: -0.271193 | E40: -0.074784 | F40: -0.345977
A41: 8. Process, plant and machine operatives | B41: -1.339741 | C41: 0.827076 | D41: -0.199823 | E41: -0.138009 | F41: -0.337832
A42: 9. Elementary occupations | B42: -0.201059 | C42: 3.225709 | D42: -0.477724 | E42: -0.134674 | F42: -0.612398
A43: Total | B43: -13.61 | C43: 24.105 | D43: -0.572 | E43: -0.778 | F43: -1.35
A44: N:\Projects\SSDA Projections\workbooks\Allyy.xls, sheet Table4.1

Sheet Figure 4.1a
N3: Graph title:
N4: =CONCATENATE("Figure 4.1: Occupational Profiles, ",Q6,"-",AU6) -> Figure 4.1: Occupational Profiles, 1994-2024
N6: SOC2010 Major Groups | Q6: =All!F7 -> 1994 | R6: =All!G7 -> 1995 | S6: =All!H7 -> 1996 | T6: =All!I7 -> 1997 | U6: =All!J7 -> 1998 | V6: =All!K7 -> 1999 | W6: =All!L7 -> 2000 | X6: =All!M7 -> 2001 | Y6: =All!N7 -> 2002 | Z6: =All!O7 -> 2003 | AA6: =All!P7 -> 2004 | AB6: =All!Q7 -> 2005 | AC6: =All!R7 -> 2006 | AD6: =All!S7 -> 2007 | AE6: =All!T7 -> 2008 | AF6: =All!U7 -> 2009 | AG6: =All!V7 -> 2010 | AH6: =All!W7 -> 2011 | AI6: =All!X7 -> 2012 | AJ6: =All!Y7 -> 2013 | AK6: =All!Z7 -> 2014 | AL6: =All!AA7 -> 2015 | AM6: =All!AB7 -> 2016 | AN6: =All!AC7 -> 2017 | AO6: =All!AD7 -> 2018 | AP6: =All!AE7 -> 2019 | AQ6: =All!AF7 -> 2020 | AR6: =All!AG7 -> 2021 | AS6: =All!AH7 -> 2022 | AT6: =All!AI7 -> 2023 | AU6: =All!AJ7 -> 2024
N7: All industries
N8: ="1. "&names!B4 -> 1. Managers, directors and senior officials | Q8: =(All!F9+All!F10)/1000 -> 78.303567 | R8: =(All!G9+All!G10)/1000 -> 77.747476 | S8: =(All!H9+All!H10)/1000 -> 75.620744 | T8: =(All!I9+All!I10)/1000 -> 79.053426 | U8: =(All!J9+All!J10)/1000 -> 76.192769 | V8: =(All!K9+All!K10)/1000 -> 76.8175 | W8: =(All!L9+All!L10)/1000 -> 76.723202 | X8: =(All!M9+All!M10)/1000 -> 81.48718 | Y8: =(All!N9+All!N10)/1000 -> 86.041656 | Z8: =(All!O9+All!O10)/1000 -> 88.936005 | AA8: =(All!P9+All!P10)/1000 -> 88.332231 | AB8: =(All!Q9+All!Q10)/1000 -> 91.147555 | AC8: =(All!R9+All!R10)/1000 -> 93.839907 | AD8: =(All!S9+All!S10)/1000 -> 98.259115 | AE8: =(All!T9+All!T10)/1000 -> 103.286923 | AF8: =(All!U9+All!U10)/1000 -> 101.201038 | AG8: =(All!V9+All!V10)/1000 -> 103.35082 | AH8: =(All!W9+All!W10)/1000 -> 100.310772 | AI8: =(All!X9+All!X10)/1000 -> 102.437854 | AJ8: =(All!Y9+All!Y10)/1000 -> 103.180423 | AK8: =(All!Z9+All!Z10)/1000 -> 106.363101 | AL8: =(All!AA9+All!AA10)/1000 -> 109.200452 | AM8: =(All!AB9+All!AB10)/1000 -> 111.39133 | AN8: =(All!AC9+All!AC10)/1000 -> 113.280028 | AO8: =(All!AD9+All!AD10)/1000 -> 114.894515 | AP8: =(All!AE9+All!AE10)/1000 -> 116.488289 | AQ8: =(All!AF9+All!AF10)/1000 -> 118.204662 | AR8: =(All!AG9+All!AG10)/1000 -> 119.990363 | AS8: =(All!AH9+All!AH10)/1000 -> 121.886717 | AT8: =(All!AI9+All!AI10)/1000 -> 122.218391 | AU8: =(All!AJ9+All!AJ10)/1000 -> 122.535073
N9: ="2. "&names!B5 -> 2. Professional occupations | Q9: =(All!F11+All!F12+All!F13+All!F14)/1000 -> 166.418508 | R9: =(All!G11+All!G12+All!G13+All!G14)/1000 -> 165.952873 | S9: =(All!H11+All!H12+All!H13+All!H14)/1000 -> 169.852445 | T9: =(All!I11+All!I12+All!I13+All!I14)/1000 -> 171.090983 | U9: =(All!J11+All!J12+All!J13+All!J14)/1000 -> 169.765795 | V9: =(All!K11+All!K12+All!K13+All!K14)/1000 -> 174.63436 | W9: =(All!L11+All!L12+All!L13+All!L14)/1000 -> 181.056539 | X9: =(All!M11+All!M12+All!M13+All!M14)/1000 -> 188.405287 | Y9: =(All!N11+All!N12+All!N13+All!N14)/1000 -> 197.577518 | Z9: =(All!O11+All!O12+All!O13+All!O14)/1000 -> 205.614922 | AA9: =(All!P11+All!P12+All!P13+All!P14)/1000 -> 210.913393 | AB9: =(All!Q11+All!Q12+All!Q13+All!Q14)/1000 -> 217.40929 | AC9: =(All!R11+All!R12+All!R13+All!R14)/1000 -> 222.775189 | AD9: =(All!S11+All!S12+All!S13+All!S14)/1000 -> 227.775638 | AE9: =(All!T11+All!T12+All!T13+All!T14)/1000 -> 232.273783 | AF9: =(All!U11+All!U12+All!U13+All!U14)/1000 -> 241.661021 | AG9: =(All!V11+All!V12+All!V13+All!V14)/1000 -> 239.022408 | AH9: =(All!W11+All!W12+All!W13+All!W14)/1000 -> 243.356486 | AI9: =(All!X11+All!X12+All!X13+All!X14)/1000 -> 244.231396 | AJ9: =(All!Y11+All!Y12+All!Y13+All!Y14)/1000 -> 250.012982 | AK9: =(All!Z11+All!Z12+All!Z13+All!Z14)/1000 -> 261.341371 | AL9: =(All!AA11+All!AA12+All!AA13+All!AA14)/1000 -> 266.67547 | AM9: =(All!AB11+All!AB12+All!AB13+All!AB14)/1000 -> 269.700799 | AN9: =(All!AC11+All!AC12+All!AC13+All!AC14)/1000 -> 272.466434 | AO9: =(All!AD11+All!AD12+All!AD13+All!AD14)/1000 -> 275.338497 | AP9: =(All!AE11+All!AE12+All!AE13+All!AE14)/1000 -> 278.23268 | AQ9: =(All!AF11+All!AF12+All!AF13+All!AF14)/1000 -> 281.861826 | AR9: =(All!AG11+All!AG12+All!AG13+All!AG14)/1000 -> 286.442136 | AS9: =(All!AH11+All!AH12+All!AH13+All!AH14)/1000 -> 291.334558 | AT9: =(All!AI11+All!AI12+All!AI13+All!AI14)/1000 -> 293.385285 | AU9: =(All!AJ11+All!AJ12+All!AJ13+All!AJ14)/1000 -> 295.497229
N10: ="3. "&names!B6 -> 3. Associate professional and technical | Q10: =(All!F15+All!F16+All!F17+All!F18+All!F19)/1000 -> 118.010036 | R10: =(All!G15+All!G16+All!G17+All!G18+All!G19)/1000 -> 118.13877 | S10: =(All!H15+All!H16+All!H17+All!H18+All!H19)/1000 -> 117.4329 | T10: =(All!I15+All!I16+All!I17+All!I18+All!I19)/1000 -> 121.1671 | U10: =(All!J15+All!J16+All!J17+All!J18+All!J19)/1000 -> 120.130695 | V10: =(All!K15+All!K16+All!K17+All!K18+All!K19)/1000 -> 124.818623 | W10: =(All!L15+All!L16+All!L17+All!L18+All!L19)/1000 -> 127.963424 | X10: =(All!M15+All!M16+All!M17+All!M18+All!M19)/1000 -> 131.677432 | Y10: =(All!N15+All!N16+All!N17+All!N18+All!N19)/1000 -> 134.725517 | Z10: =(All!O15+All!O16+All!O17+All!O18+All!O19)/1000 -> 138.781164 | AA10: =(All!P15+All!P16+All!P17+All!P18+All!P19)/1000 -> 140.088867 | AB10: =(All!Q15+All!Q16+All!Q17+All!Q18+All!Q19)/1000 -> 141.722841 | AC10: =(All!R15+All!R16+All!R17+All!R18+All!R19)/1000 -> 145.81178 | AD10: =(All!S15+All!S16+All!S17+All!S18+All!S19)/1000 -> 151.299493 | AE10: =(All!T15+All!T16+All!T17+All!T18+All!T19)/1000 -> 152.259567 | AF10: =(All!U15+All!U16+All!U17+All!U18+All!U19)/1000 -> 151.01895 | AG10: =(All!V15+All!V16+All!V17+All!V18+All!V19)/1000 -> 150.514457 | AH10: =(All!W15+All!W16+All!W17+All!W18+All!W19)/1000 -> 150.97269 | AI10: =(All!X15+All!X16+All!X17+All!X18+All!X19)/1000 -> 149.869676 | AJ10: =(All!Y15+All!Y16+All!Y17+All!Y18+All!Y19)/1000 -> 158.844183 | AK10: =(All!Z15+All!Z16+All!Z17+All!Z18+All!Z19)/1000 -> 158.987867 | AL10: =(All!AA15+All!AA16+All!AA17+All!AA18+All!AA19)/1000 -> 161.2769 | AM10: =(All!AB15+All!AB16+All!AB17+All!AB18+All!AB19)/1000 -> 162.776221 | AN10: =(All!AC15+All!AC16+All!AC17+All!AC18+All!AC19)/1000 -> 164.527444 | AO10: =(All!AD15+All!AD16+All!AD17+All!AD18+All!AD19)/1000 -> 166.339214 | AP10: =(All!AE15+All!AE16+All!AE17+All!AE18+All!AE19)/1000 -> 168.119312 | AQ10: =(All!AF15+All!AF16+All!AF17+All!AF18+All!AF19)/1000 -> 170.227785 | AR10: =(All!AG15+All!AG16+All!AG17+All!AG18+All!AG19)/1000 -> 172.169834 | AS10: =(All!AH15+All!AH16+All!AH17+All!AH18+All!AH19)/1000 -> 174.247248 | AT10: =(All!AI15+All!AI16+All!AI17+All!AI18+All!AI19)/1000 -> 174.914031 | AU10: =(All!AJ15+All!AJ16+All!AJ17+All!AJ18+All!AJ19)/1000 -> 175.616107
N11: ="4. "&names!B7 -> 4. Administrative and secretarial | Q11: =(All!F20+All!F21)/1000 -> 155.02419 | R11: =(All!G20+All!G21)/1000 -> 153.232838 | S11: =(All!H20+All!H21)/1000 -> 149.643427 | T11: =(All!I20+All!I21)/1000 -> 149.750629 | U11: =(All!J20+All!J21)/1000 -> 144.055149 | V11: =(All!K20+All!K21)/1000 -> 149.686433 | W11: =(All!L20+All!L21)/1000 -> 155.552664 | X11: =(All!M20+All!M21)/1000 -> 149.876821 | Y11: =(All!N20+All!N21)/1000 -> 154.263597 | Z11: =(All!O20+All!O21)/1000 -> 155.919955 | AA11: =(All!P20+All!P21)/1000 -> 158.285542 | AB11: =(All!Q20+All!Q21)/1000 -> 159.83884 | AC11: =(All!R20+All!R21)/1000 -> 162.061755 | AD11: =(All!S20+All!S21)/1000 -> 161.038167 | AE11: =(All!T20+All!T21)/1000 -> 154.267944 | AF11: =(All!U20+All!U21)/1000 -> 150.191859 | AG11: =(All!V20+All!V21)/1000 -> 151.248982 | AH11: =(All!W20+All!W21)/1000 -> 148.658497 | AI11: =(All!X20+All!X21)/1000 -> 145.955963 | AJ11: =(All!Y20+All!Y21)/1000 -> 151.393277 | AK11: =(All!Z20+All!Z21)/1000 -> 154.240034 | AL11: =(All!AA20+All!AA21)/1000 -> 152.523719 | AM11: =(All!AB20+All!AB21)/1000 -> 150.526973 | AN11: =(All!AC20+All!AC21)/1000 -> 148.528083 | AO11: =(All!AD20+All!AD21)/1000 -> 146.38375 | AP11: =(All!AE20+All!AE21)/1000 -> 144.286404 | AQ11: =(All!AF20+All!AF21)/1000 -> 142.405631 | AR11: =(All!AG20+All!AG21)/1000 -> 140.517965 | AS11: =(All!AH20+All!AH21)/1000 -> 138.6745 | AT11: =(All!AI20+All!AI21)/1000 -> 139.868553 | AU11: =(All!AJ20+All!AJ21)/1000 -> 141.13322
N12: ="5. "&names!B8 -> 5. Skilled trades occupations | Q12: =(All!F22+All!F23+All!F24+All!F25)/1000 -> 203.593857 | R12: =(All!G22+All!G23+All!G24+All!G25)/1000 -> 193.226131 | S12: =(All!H22+All!H23+All!H24+All!H25)/1000 -> 193.503546 | T12: =(All!I22+All!I23+All!I24+All!I25)/1000 -> 190.177486 | U12: =(All!J22+All!J23+All!J24+All!J25)/1000 -> 189.44062 | V12: =(All!K22+All!K23+All!K24+All!K25)/1000 -> 189.786957 | W12: =(All!L22+All!L23+All!L24+All!L25)/1000 -> 183.951218 | X12: =(All!M22+All!M23+All!M24+All!M25)/1000 -> 182.920134 | Y12: =(All!N22+All!N23+All!N24+All!N25)/1000 -> 189.24854 | Z12: =(All!O22+All!O23+All!O24+All!O25)/1000 -> 186.189017 | AA12: =(All!P22+All!P23+All!P24+All!P25)/1000 -> 176.18006 | AB12: =(All!Q22+All!Q23+All!Q24+All!Q25)/1000 -> 190.487347 | AC12: =(All!R22+All!R23+All!R24+All!R25)/1000 -> 198.979677 | AD12: =(All!S22+All!S23+All!S24+All!S25)/1000 -> 202.883522 | AE12: =(All!T22+All!T23+All!T24+All!T25)/1000 -> 194.765835 | AF12: =(All!U22+All!U23+All!U24+All!U25)/1000 -> 195.638878 | AG12: =(All!V22+All!V23+All!V24+All!V25)/1000 -> 186.229298 | AH12: =(All!W22+All!W23+All!W24+All!W25)/1000 -> 183.876979 | AI12: =(All!X22+All!X23+All!X24+All!X25)/1000 -> 180.097956 | AJ12: =(All!Y22+All!Y23+All!Y24+All!Y25)/1000 -> 175.905511 | AK12: =(All!Z22+All!Z23+All!Z24+All!Z25)/1000 -> 191.659141 | AL12: =(All!AA22+All!AA23+All!AA24+All!AA25)/1000 -> 193.160871 | AM12: =(All!AB22+All!AB23+All!AB24+All!AB25)/1000 -> 192.498454 | AN12: =(All!AC22+All!AC23+All!AC24+All!AC25)/1000 -> 191.077582 | AO12: =(All!AD22+All!AD23+All!AD24+All!AD25)/1000 -> 189.245396 | AP12: =(All!AE22+All!AE23+All!AE24+All!AE25)/1000 -> 187.715735 | AQ12: =(All!AF22+All!AF23+All!AF24+All!AF25)/1000 -> 186.048767 | AR12: =(All!AG22+All!AG23+All!AG24+All!AG25)/1000 -> 184.266151 | AS12: =(All!AH22+All!AH23+All!AH24+All!AH25)/1000 -> 182.600794 | AT12: =(All!AI22+All!AI23+All!AI24+All!AI25)/1000 -> 182.57923 | AU12: =(All!AJ22+All!AJ23+All!AJ24+All!AJ25)/1000 -> 182.592817
N13: ="6. "&names!B9 -> 6. Caring, leisure and other service | Q13: =(All!F26+All!F27)/1000 -> 84.802307 | R13: =(All!G26+All!G27)/1000 -> 88.749526 | S13: =(All!H26+All!H27)/1000 -> 91.383066 | T13: =(All!I26+All!I27)/1000 -> 93.996237 | U13: =(All!J26+All!J27)/1000 -> 96.13962 | V13: =(All!K26+All!K27)/1000 -> 98.194195 | W13: =(All!L26+All!L27)/1000 -> 106.803452 | X13: =(All!M26+All!M27)/1000 -> 109.699075 | Y13: =(All!N26+All!N27)/1000 -> 118.126736 | Z13: =(All!O26+All!O27)/1000 -> 119.213782 | AA13: =(All!P26+All!P27)/1000 -> 123.10106 | AB13: =(All!Q26+All!Q27)/1000 -> 129.699622 | AC13: =(All!R26+All!R27)/1000 -> 129.950571 | AD13: =(All!S26+All!S27)/1000 -> 127.903907 | AE13: =(All!T26+All!T27)/1000 -> 132.541882 | AF13: =(All!U26+All!U27)/1000 -> 131.577887 | AG13: =(All!V26+All!V27)/1000 -> 130.784041 | AH13: =(All!W26+All!W27)/1000 -> 140.288123 | AI13: =(All!X26+All!X27)/1000 -> 136.779378 | AJ13: =(All!Y26+All!Y27)/1000 -> 143.346033 | AK13: =(All!Z26+All!Z27)/1000 -> 152.526244 | AL13: =(All!AA26+All!AA27)/1000 -> 153.762945 | AM13: =(All!AB26+All!AB27)/1000 -> 155.192514 | AN13: =(All!AC26+All!AC27)/1000 -> 156.737877 | AO13: =(All!AD26+All!AD27)/1000 -> 158.597094 | AP13: =(All!AE26+All!AE27)/1000 -> 160.20505 | AQ13: =(All!AF26+All!AF27)/1000 -> 161.928153 | AR13: =(All!AG26+All!AG27)/1000 -> 163.782109 | AS13: =(All!AH26+All!AH27)/1000 -> 165.767974 | AT13: =(All!AI26+All!AI27)/1000 -> 166.385389 | AU13: =(All!AJ26+All!AJ27)/1000 -> 167.068612
N14: ="7. "&names!B10 -> 7. Sales and customer service | Q14: =(All!F28+All!F29)/1000 -> 94.759277 | R14: =(All!G28+All!G29)/1000 -> 96.200536 | S14: =(All!H28+All!H29)/1000 -> 104.002639 | T14: =(All!I28+All!I29)/1000 -> 105.956912 | U14: =(All!J28+All!J29)/1000 -> 103.246318 | V14: =(All!K28+All!K29)/1000 -> 102.435713 | W14: =(All!L28+All!L29)/1000 -> 105.27665 | X14: =(All!M28+All!M29)/1000 -> 104.48407 | Y14: =(All!N28+All!N29)/1000 -> 108.727932 | Z14: =(All!O28+All!O29)/1000 -> 111.742146 | AA14: =(All!P28+All!P29)/1000 -> 116.50755 | AB14: =(All!Q28+All!Q29)/1000 -> 118.169458 | AC14: =(All!R28+All!R29)/1000 -> 120.163871 | AD14: =(All!S28+All!S29)/1000 -> 120.421513 | AE14: =(All!T28+All!T29)/1000 -> 116.386112 | AF14: =(All!U28+All!U29)/1000 -> 115.22403 | AG14: =(All!V28+All!V29)/1000 -> 112.151978 | AH14: =(All!W28+All!W29)/1000 -> 113.482146 | AI14: =(All!X28+All!X29)/1000 -> 114.934955 | AJ14: =(All!Y28+All!Y29)/1000 -> 110.713743 | AK14: =(All!Z28+All!Z29)/1000 -> 114.732442 | AL14: =(All!AA28+All!AA29)/1000 -> 114.252072 | AM14: =(All!AB28+All!AB29)/1000 -> 115.162637 | AN14: =(All!AC28+All!AC29)/1000 -> 115.425785 | AO14: =(All!AD28+All!AD29)/1000 -> 115.438726 | AP14: =(All!AE28+All!AE29)/1000 -> 115.510803 | AQ14: =(All!AF28+All!AF29)/1000 -> 115.685985 | AR14: =(All!AG28+All!AG29)/1000 -> 114.984148 | AS14: =(All!AH28+All!AH29)/1000 -> 114.212533 | AT14: =(All!AI28+All!AI29)/1000 -> 114.482229 | AU14: =(All!AJ28+All!AJ29)/1000 -> 114.72982
N15: ="8. "&names!B11 -> 8. Process, plant and machine operatives | Q15: =(All!F30+All!F31)/1000 -> 136.100231 | R15: =(All!G30+All!G31)/1000 -> 134.027704 | S15: =(All!H30+All!H31)/1000 -> 130.623415 | T15: =(All!I30+All!I31)/1000 -> 132.850885 | U15: =(All!J30+All!J31)/1000 -> 129.69077 | V15: =(All!K30+All!K31)/1000 -> 129.718931 | W15: =(All!L30+All!L31)/1000 -> 129.091832 | X15: =(All!M30+All!M31)/1000 -> 129.676743 | Y15: =(All!N30+All!N31)/1000 -> 124.161304 | Z15: =(All!O30+All!O31)/1000 -> 123.813397 | AA15: =(All!P30+All!P31)/1000 -> 122.876918 | AB15: =(All!Q30+All!Q31)/1000 -> 129.596657 | AC15: =(All!R30+All!R31)/1000 -> 125.496407 | AD15: =(All!S30+All!S31)/1000 -> 124.879252 | AE15: =(All!T30+All!T31)/1000 -> 124.927789 | AF15: =(All!U30+All!U31)/1000 -> 120.896646 | AG15: =(All!V30+All!V31)/1000 -> 113.450188 | AH15: =(All!W30+All!W31)/1000 -> 114.872086 | AI15: =(All!X30+All!X31)/1000 -> 110.350608 | AJ15: =(All!Y30+All!Y31)/1000 -> 112.258975 | AK15: =(All!Z30+All!Z31)/1000 -> 120.719725 | AL15: =(All!AA30+All!AA31)/1000 -> 121.457419 | AM15: =(All!AB30+All!AB31)/1000 -> 120.534888 | AN15: =(All!AC30+All!AC31)/1000 -> 119.366062 | AO15: =(All!AD30+All!AD31)/1000 -> 117.799009 | AP15: =(All!AE30+All!AE31)/1000 -> 116.15222 | AQ15: =(All!AF30+All!AF31)/1000 -> 114.641587 | AR15: =(All!AG30+All!AG31)/1000 -> 113.37096 | AS15: =(All!AH30+All!AH31)/1000 -> 112.189054 | AT15: =(All!AI30+All!AI31)/1000 -> 112.868083 | AU15: =(All!AJ30+All!AJ31)/1000 -> 113.553661
N16: ="9. "&names!B12 -> 9. Elementary occupations | Q16: =(All!F32+All!F33)/1000 -> 169.653027 | R16: =(All!G32+All!G33)/1000 -> 166.492148 | S16: =(All!H32+All!H33)/1000 -> 170.020818 | T16: =(All!I32+All!I33)/1000 -> 166.59434 | U16: =(All!J32+All!J33)/1000 -> 166.707261 | V16: =(All!K32+All!K33)/1000 -> 170.31729 | W16: =(All!L32+All!L33)/1000 -> 175.832017 | X16: =(All!M32+All!M33)/1000 -> 167.168255 | Y16: =(All!N32+All!N33)/1000 -> 173.209202 | Z16: =(All!O32+All!O33)/1000 -> 171.417612 | AA16: =(All!P32+All!P33)/1000 -> 179.771377 | AB16: =(All!Q32+All!Q33)/1000 -> 188.136389 | AC16: =(All!R32+All!R33)/1000 -> 187.454845 | AD16: =(All!S32+All!S33)/1000 -> 186.254394 | AE16: =(All!T32+All!T33)/1000 -> 182.268167 | AF16: =(All!U32+All!U33)/1000 -> 170.012693 | AG16: =(All!V32+All!V33)/1000 -> 166.428827 | AH16: =(All!W32+All!W33)/1000 -> 157.76422 | AI16: =(All!X32+All!X33)/1000 -> 156.156213 | AJ16: =(All!Y32+All!Y33)/1000 -> 151.500872 | AK16: =(All!Z32+All!Z33)/1000 -> 151.696076 | AL16: =(All!AA32+All!AA33)/1000 -> 152.752151 | AM16: =(All!AB32+All!AB33)/1000 -> 153.634184 | AN16: =(All!AC32+All!AC33)/1000 -> 153.862705 | AO16: =(All!AD32+All!AD33)/1000 -> 153.9118 | AP16: =(All!AE32+All!AE33)/1000 -> 154.187507 | AQ16: =(All!AF32+All!AF33)/1000 -> 154.618603 | AR16: =(All!AG32+All!AG33)/1000 -> 154.112335 | AS16: =(All!AH32+All!AH33)/1000 -> 153.685621 | AT16: =(All!AI32+All!AI33)/1000 -> 153.459809 | AU16: =(All!AJ32+All!AJ33)/1000 -> 153.161461
N17: All occupations | Q17: =All!F8/1000 -> 1206.665 | R17: =All!G8/1000 -> 1193.768 | S17: =All!H8/1000 -> 1202.083 | T17: =All!I8/1000 -> 1210.638 | U17: =All!J8/1000 -> 1195.369 | V17: =All!K8/1000 -> 1216.41 | W17: =All!L8/1000 -> 1242.251 | X17: =All!M8/1000 -> 1245.395 | Y17: =All!N8/1000 -> 1286.082 | Z17: =All!O8/1000 -> 1301.628 | AA17: =All!P8/1000 -> 1316.057 | AB17: =All!Q8/1000 -> 1366.208 | AC17: =All!R8/1000 -> 1386.534 | AD17: =All!S8/1000 -> 1400.715 | AE17: =All!T8/1000 -> 1392.978 | AF17: =All!U8/1000 -> 1377.423 | AG17: =All!V8/1000 -> 1353.181 | AH17: =All!W8/1000 -> 1353.582 | AI17: =All!X8/1000 -> 1340.814 | AJ17: =All!Y8/1000 -> 1357.156 | AK17: =All!Z8/1000 -> 1412.266 | AL17: =All!AA8/1000 -> 1425.062 | AM17: =All!AB8/1000 -> 1431.418 | AN17: =All!AC8/1000 -> 1435.272 | AO17: =All!AD8/1000 -> 1437.948 | AP17: =All!AE8/1000 -> 1440.898 | AQ17: =All!AF8/1000 -> 1445.623 | AR17: =All!AG8/1000 -> 1449.636 | AS17: =All!AH8/1000 -> 1454.599 | AT17: =All!AI8/1000 -> 1460.161 | AU17: =All!AJ8/1000 -> 1465.888
B45: =CELL("filename",$A$2)&", "&Info!A1 -> R:\Research Info\Individual research project info\Working Futures_ Data to be uploaded on the 16th May 16\Wales main workbook_needs cover updating\[AllWA.xlsm]Figure 4.1a, Wales

Sheet Figure 4.2%
N3: Graph title:
N4: =CONCATENATE("Figure 4.1: Occupational Profiles, ",Q6,"-",AU6) -> Figure 4.1: Occupational Profiles, 1994-2024
N6: SOC2010 Major Groups | Q6: =All!F7 -> 1994 | R6: =All!G7 -> 1995 | S6: =All!H7 -> 1996 | T6: =All!I7 -> 1997 | U6: =All!J7 -> 1998 | V6: =All!K7 -> 1999 | W6: =All!L7 -> 2000 | X6: =All!M7 -> 2001 | Y6: =All!N7 -> 2002 | Z6: =All!O7 -> 2003 | AA6: =All!P7 -> 2004 | AB6: =All!Q7 -> 2005 | AC6: =All!R7 -> 2006 | AD6: =All!S7 -> 2007 | AE6: =All!T7 -> 2008 | AF6: =All!U7 -> 2009 | AG6: =All!V7 -> 2010 | AH6: =All!W7 -> 2011 | AI6: =All!X7 -> 2012 | AJ6: =All!Y7 -> 2013 | AK6: =All!Z7 -> 2014 | AL6: =All!AA7 -> 2015 | AM6: =All!AB7 -> 2016 | AN6: =All!AC7 -> 2017 | AO6: =All!AD7 -> 2018 | AP6: =All!AE7 -> 2019 | AQ6: =All!AF7 -> 2020 | AR6: =All!AG7 -> 2021 | AS6: =All!AH7 -> 2022 | AT6: =All!AI7 -> 2023 | AU6: =All!AJ7 -> 2024
N7: All industries
N8: ="1. "&names!B4 -> 1. Managers, directors and senior officials | Q8: ='Figure 4.1a'!Q8/'Figure 4.1a'!Q$17 -> 0.06489254847 | R8: ='Figure 4.1a'!R8/'Figure 4.1a'!R$17 -> 0.06512779368 | S8: ='Figure 4.1a'!S8/'Figure 4.1a'!S$17 -> 0.06290808871 | T8: ='Figure 4.1a'!T8/'Figure 4.1a'!T$17 -> 0.06529897955 | U8: ='Figure 4.1a'!U8/'Figure 4.1a'!U$17 -> 0.06373995729 | V8: ='Figure 4.1a'!V8/'Figure 4.1a'!V$17 -> 0.0631509935 | W8: ='Figure 4.1a'!W8/'Figure 4.1a'!W$17 -> 0.06176143308 | X8: ='Figure 4.1a'!X8/'Figure 4.1a'!X$17 -> 0.06543079103 | Y8: ='Figure 4.1a'!Y8/'Figure 4.1a'!Y$17 -> 0.06690215398 | Z8: ='Figure 4.1a'!Z8/'Figure 4.1a'!Z$17 -> 0.06832674543 | AA8: ='Figure 4.1a'!AA8/'Figure 4.1a'!AA$17 -> 0.06711884896 | AB8: ='Figure 4.1a'!AB8/'Figure 4.1a'!AB$17 -> 0.06671572337 | AC8: ='Figure 4.1a'!AC8/'Figure 4.1a'!AC$17 -> 0.06767948496 | AD8: ='Figure 4.1a'!AD8/'Figure 4.1a'!AD$17 -> 0.07014925592 | AE8: ='Figure 4.1a'!AE8/'Figure 4.1a'!AE$17 -> 0.07414828016 | AF8: ='Figure 4.1a'!AF8/'Figure 4.1a'!AF$17 -> 0.07347128515 | AG8: ='Figure 4.1a'!AG8/'Figure 4.1a'!AG$17 -> 0.07637619801 | AH8: ='Figure 4.1a'!AH8/'Figure 4.1a'!AH$17 -> 0.07410764328 | AI8: ='Figure 4.1a'!AI8/'Figure 4.1a'!AI$17 -> 0.0763997497 | AJ8: ='Figure 4.1a'!AJ8/'Figure 4.1a'!AJ$17 -> 0.07602694384 | AK8: ='Figure 4.1a'!AK8/'Figure 4.1a'!AK$17 -> 0.0753137872 | AL8: ='Figure 4.1a'!AL8/'Figure 4.1a'!AL$17 -> 0.07662856213 | AM8: ='Figure 4.1a'!AM8/'Figure 4.1a'!AM$17 -> 0.07781886912 | AN8: ='Figure 4.1a'!AN8/'Figure 4.1a'!AN$17 -> 0.07892582591 | AO8: ='Figure 4.1a'!AO8/'Figure 4.1a'!AO$17 -> 0.07990171759 | AP8: ='Figure 4.1a'!AP8/'Figure 4.1a'!AP$17 -> 0.08084422978 | AQ8: ='Figure 4.1a'!AQ8/'Figure 4.1a'!AQ$17 -> 0.08176728096 | AR8: ='Figure 4.1a'!AR8/'Figure 4.1a'!AR$17 -> 0.0827727533 | AS8: ='Figure 4.1a'!AS8/'Figure 4.1a'!AS$17 -> 0.08379403327 | AT8: ='Figure 4.1a'!AT8/'Figure 4.1a'!AT$17 -> 0.08370199656 | AU8: ='Figure 4.1a'!AU8/'Figure 4.1a'!AU$17 -> 0.08359101991
N9: ="2. "&names!B5 -> 2. Professional occupations | Q9: ='Figure 4.1a'!Q9/'Figure 4.1a'!Q$17 -> 0.1379160811 | R9: ='Figure 4.1a'!R9/'Figure 4.1a'!R$17 -> 0.1390160174 | S9: ='Figure 4.1a'!S9/'Figure 4.1a'!S$17 -> 0.1412984336 | T9: ='Figure 4.1a'!T9/'Figure 4.1a'!T$17 -> 0.1413229909 | U9: ='Figure 4.1a'!U9/'Figure 4.1a'!U$17 -> 0.142019573 | V9: ='Figure 4.1a'!V9/'Figure 4.1a'!V$17 -> 0.1435653768 | W9: ='Figure 4.1a'!W9/'Figure 4.1a'!W$17 -> 0.1457487569 | X9: ='Figure 4.1a'!X9/'Figure 4.1a'!X$17 -> 0.1512815508 | Y9: ='Figure 4.1a'!Y9/'Figure 4.1a'!Y$17 -> 0.1536274654 | Z9: ='Figure 4.1a'!Z9/'Figure 4.1a'!Z$17 -> 0.1579675007 | AA9: ='Figure 4.1a'!AA9/'Figure 4.1a'!AA$17 -> 0.1602615943 | AB9: ='Figure 4.1a'!AB9/'Figure 4.1a'!AB$17 -> 0.159133375 | AC9: ='Figure 4.1a'!AC9/'Figure 4.1a'!AC$17 -> 0.1606705562 | AD9: ='Figure 4.1a'!AD9/'Figure 4.1a'!AD$17 -> 0.1626138351 | AE9: ='Figure 4.1a'!AE9/'Figure 4.1a'!AE$17 -> 0.1667461963 | AF9: ='Figure 4.1a'!AF9/'Figure 4.1a'!AF$17 -> 0.1754443051 | AG9: ='Figure 4.1a'!AG9/'Figure 4.1a'!AG$17 -> 0.1766374254 | AH9: ='Figure 4.1a'!AH9/'Figure 4.1a'!AH$17 -> 0.1797870288 | AI9: ='Figure 4.1a'!AI9/'Figure 4.1a'!AI$17 -> 0.1821515855 | AJ9: ='Figure 4.1a'!AJ9/'Figure 4.1a'!AJ$17 -> 0.184218308 | AK9: ='Figure 4.1a'!AK9/'Figure 4.1a'!AK$17 -> 0.1850510959 | AL9: ='Figure 4.1a'!AL9/'Figure 4.1a'!AL$17 -> 0.1871325388 | AM9: ='Figure 4.1a'!AM9/'Figure 4.1a'!AM$17 -> 0.1884151233 | AN9: ='Figure 4.1a'!AN9/'Figure 4.1a'!AN$17 -> 0.1898360966 | AO9: ='Figure 4.1a'!AO9/'Figure 4.1a'!AO$17 -> 0.1914801488 | AP9: ='Figure 4.1a'!AP9/'Figure 4.1a'!AP$17 -> 0.1930967216 | AQ9: ='Figure 4.1a'!AQ9/'Figure 4.1a'!AQ$17 -> 0.1949760249 | AR9: ='Figure 4.1a'!AR9/'Figure 4.1a'!AR$17 -> 0.1975959041 | AS9: ='Figure 4.1a'!AS9/'Figure 4.1a'!AS$17 -> 0.2002851356 | AT9: ='Figure 4.1a'!AT9/'Figure 4.1a'!AT$17 -> 0.2009266684 | AU9: ='Figure 4.1a'!AU9/'Figure 4.1a'!AU$17 -> 0.2015824053
N10: ="3. "&names!B6 -> 3. Associate professional and technical | Q10: ='Figure 4.1a'!Q10/'Figure 4.1a'!Q$17 -> 0.09779850746 | R10: ='Figure 4.1a'!R10/'Figure 4.1a'!R$17 -> 0.09896292244 | S10: ='Figure 4.1a'!S10/'Figure 4.1a'!S$17 -> 0.0976911744 | T10: ='Figure 4.1a'!T10/'Figure 4.1a'!T$17 -> 0.1000853269 | U10: ='Figure 4.1a'!U10/'Figure 4.1a'!U$17 -> 0.1004967462 | V10: ='Figure 4.1a'!V10/'Figure 4.1a'!V$17 -> 0.102612296 | W10: ='Figure 4.1a'!W10/'Figure 4.1a'!W$17 -> 0.1030093145 | X10: ='Figure 4.1a'!X10/'Figure 4.1a'!X$17 -> 0.1057314603 | Y10: ='Figure 4.1a'!Y10/'Figure 4.1a'!Y$17 -> 0.1047565528 | Z10: ='Figure 4.1a'!Z10/'Figure 4.1a'!Z$17 -> 0.106621219 | AA10: ='Figure 4.1a'!AA10/'Figure 4.1a'!AA$17 -> 0.1064458963 | AB10: ='Figure 4.1a'!AB10/'Figure 4.1a'!AB$17 -> 0.1037344541 | AC10: ='Figure 4.1a'!AC10/'Figure 4.1a'!AC$17 -> 0.1051627872 | AD10: ='Figure 4.1a'!AD10/'Figure 4.1a'!AD$17 -> 0.1080159012 | AE10: ='Figure 4.1a'!AE10/'Figure 4.1a'!AE$17 -> 0.1093050766 | AF10: ='Figure 4.1a'!AF10/'Figure 4.1a'!AF$17 -> 0.1096387602 | AG10: ='Figure 4.1a'!AG10/'Figure 4.1a'!AG$17 -> 0.1112300993 | AH10: ='Figure 4.1a'!AH10/'Figure 4.1a'!AH$17 -> 0.1115356809 | AI10: ='Figure 4.1a'!AI10/'Figure 4.1a'!AI$17 -> 0.1117751426 | AJ10: ='Figure 4.1a'!AJ10/'Figure 4.1a'!AJ$17 -> 0.1170419488 | AK10: ='Figure 4.1a'!AK10/'Figure 4.1a'!AK$17 -> 0.1125764318 | AL10: ='Figure 4.1a'!AL10/'Figure 4.1a'!AL$17 -> 0.113171848 | AM10: ='Figure 4.1a'!AM10/'Figure 4.1a'!AM$17 -> 0.1137167627 | AN10: ='Figure 4.1a'!AN10/'Figure 4.1a'!AN$17 -> 0.114631543 | AO10: ='Figure 4.1a'!AO10/'Figure 4.1a'!AO$17 -> 0.1156781845 | AP10: ='Figure 4.1a'!AP10/'Figure 4.1a'!AP$17 -> 0.1166767613 | AQ10: ='Figure 4.1a'!AQ10/'Figure 4.1a'!AQ$17 -> 0.1177539269 | AR10: ='Figure 4.1a'!AR10/'Figure 4.1a'!AR$17 -> 0.1187676313 | AS10: ='Figure 4.1a'!AS10/'Figure 4.1a'!AS$17 -> 0.1197905732 | AT10: ='Figure 4.1a'!AT10/'Figure 4.1a'!AT$17 -> 0.119790921 | AU10: ='Figure 4.1a'!AU10/'Figure 4.1a'!AU$17 -> 0.1198018587
N11: ="4. "&names!B7 -> 4. Administrative and secretarial | Q11: ='Figure 4.1a'!Q11/'Figure 4.1a'!Q$17 -> 0.1284732631 | R11: ='Figure 4.1a'!R11/'Figure 4.1a'!R$17 -> 0.1283606513 | S11: ='Figure 4.1a'!S11/'Figure 4.1a'!S$17 -> 0.1244867676 | T11: ='Figure 4.1a'!T11/'Figure 4.1a'!T$17 -> 0.1236956291 | U11: ='Figure 4.1a'!U11/'Figure 4.1a'!U$17 -> 0.1205110296 | V11: ='Figure 4.1a'!V11/'Figure 4.1a'!V$17 -> 0.1230559047 | W11: ='Figure 4.1a'!W11/'Figure 4.1a'!W$17 -> 0.125218385 | X11: ='Figure 4.1a'!X11/'Figure 4.1a'!X$17 -> 0.1203448071 | Y11: ='Figure 4.1a'!Y11/'Figure 4.1a'!Y$17 -> 0.1199484924 | Z11: ='Figure 4.1a'!Z11/'Figure 4.1a'!Z$17 -> 0.119788415 | AA11: ='Figure 4.1a'!AA11/'Figure 4.1a'!AA$17 -> 0.1202725581 | AB11: ='Figure 4.1a'!AB11/'Figure 4.1a'!AB$17 -> 0.1169945133 | AC11: ='Figure 4.1a'!AC11/'Figure 4.1a'!AC$17 -> 0.1168826405 | AD11: ='Figure 4.1a'!AD11/'Figure 4.1a'!AD$17 -> 0.1149685461 | AE11: ='Figure 4.1a'!AE11/'Figure 4.1a'!AE$17 -> 0.1107468632 | AF11: ='Figure 4.1a'!AF11/'Figure 4.1a'!AF$17 -> 0.1090382976 | AG11: ='Figure 4.1a'!AG11/'Figure 4.1a'!AG$17 -> 0.1117729129 | AH11: ='Figure 4.1a'!AH11/'Figure 4.1a'!AH$17 -> 0.1098260002 | AI11: ='Figure 4.1a'!AI11/'Figure 4.1a'!AI$17 -> 0.1088562343 | AJ11: ='Figure 4.1a'!AJ11/'Figure 4.1a'!AJ$17 -> 0.1115518607 | AK11: ='Figure 4.1a'!AK11/'Figure 4.1a'!AK$17 -> 0.1092145771 | AL11: ='Figure 4.1a'!AL11/'Figure 4.1a'!AL$17 -> 0.107029532 | AM11: ='Figure 4.1a'!AM11/'Figure 4.1a'!AM$17 -> 0.1051593406 | AN11: ='Figure 4.1a'!AN11/'Figure 4.1a'!AN$17 -> 0.1034842755 | AO11: ='Figure 4.1a'!AO11/'Figure 4.1a'!AO$17 -> 0.1018004476 | AP11: ='Figure 4.1a'!AP11/'Figure 4.1a'!AP$17 -> 0.1001364455 | AQ11: ='Figure 4.1a'!AQ11/'Figure 4.1a'!AQ$17 -> 0.09850813871 | AR11: ='Figure 4.1a'!AR11/'Figure 4.1a'!AR$17 -> 0.09693327497 | AS11: ='Figure 4.1a'!AS11/'Figure 4.1a'!AS$17 -> 0.09533520922 | AT11: ='Figure 4.1a'!AT11/'Figure 4.1a'!AT$17 -> 0.09578981564 | AU11: ='Figure 4.1a'!AU11/'Figure 4.1a'!AU$17 -> 0.09627831048
N12: ="5. "&names!B8 -> 5. Skilled trades occupations | Q12: ='Figure 4.1a'!Q12/'Figure 4.1a'!Q$17 -> 0.1687244239 | R12: ='Figure 4.1a'!R12/'Figure 4.1a'!R$17 -> 0.1618623811 | S12: ='Figure 4.1a'!S12/'Figure 4.1a'!S$17 -> 0.1609735318 | T12: ='Figure 4.1a'!T12/'Figure 4.1a'!T$17 -> 0.1570886475 | U12: ='Figure 4.1a'!U12/'Figure 4.1a'!U$17 -> 0.1584787794 | V12: ='Figure 4.1a'!V12/'Figure 4.1a'!V$17 -> 0.156022194 | W12: ='Figure 4.1a'!W12/'Figure 4.1a'!W$17 -> 0.1480789454 | X12: ='Figure 4.1a'!X12/'Figure 4.1a'!X$17 -> 0.1468772028 | Y12: ='Figure 4.1a'!Y12/'Figure 4.1a'!Y$17 -> 0.1471512236 | Z12: ='Figure 4.1a'!Z12/'Figure 4.1a'!Z$17 -> 0.1430431867 | AA12: ='Figure 4.1a'!AA12/'Figure 4.1a'!AA$17 -> 0.1338696272 | AB12: ='Figure 4.1a'!AB12/'Figure 4.1a'!AB$17 -> 0.1394277789 | AC12: ='Figure 4.1a'!AC12/'Figure 4.1a'!AC$17 -> 0.1435086893 | AD12: ='Figure 4.1a'!AD12/'Figure 4.1a'!AD$17 -> 0.1448428281 | AE12: ='Figure 4.1a'!AE12/'Figure 4.1a'!AE$17 -> 0.1398197495 | AF12: ='Figure 4.1a'!AF12/'Figure 4.1a'!AF$17 -> 0.1420325332 | AG12: ='Figure 4.1a'!AG12/'Figure 4.1a'!AG$17 -> 0.1376233468 | AH12: ='Figure 4.1a'!AH12/'Figure 4.1a'!AH$17 -> 0.1358447283 | AI12: ='Figure 4.1a'!AI12/'Figure 4.1a'!AI$17 -> 0.1343198654 | AJ12: ='Figure 4.1a'!AJ12/'Figure 4.1a'!AJ$17 -> 0.1296133318 | AK12: ='Figure 4.1a'!AK12/'Figure 4.1a'!AK$17 -> 0.1357103697 | AL12: ='Figure 4.1a'!AL12/'Figure 4.1a'!AL$17 -> 0.135545591 | AM12: ='Figure 4.1a'!AM12/'Figure 4.1a'!AM$17 -> 0.1344809511 | AN12: ='Figure 4.1a'!AN12/'Figure 4.1a'!AN$17 -> 0.133129875 | AO12: ='Figure 4.1a'!AO12/'Figure 4.1a'!AO$17 -> 0.1316079552 | AP12: ='Figure 4.1a'!AP12/'Figure 4.1a'!AP$17 -> 0.1302769072 | AQ12: ='Figure 4.1a'!AQ12/'Figure 4.1a'!AQ$17 -> 0.1286979849 | AR12: ='Figure 4.1a'!AR12/'Figure 4.1a'!AR$17 -> 0.1271120136 | AS12: ='Figure 4.1a'!AS12/'Figure 4.1a'!AS$17 -> 0.1255334247 | AT12: ='Figure 4.1a'!AT12/'Figure 4.1a'!AT$17 -> 0.1250404784 | AU12: ='Figure 4.1a'!AU12/'Figure 4.1a'!AU$17 -> 0.1245612332
N13: ="6. "&names!B9 -> 6. Caring, leisure and other service | Q13: ='Figure 4.1a'!Q13/'Figure 4.1a'!Q$17 -> 0.07027825204 | R13: ='Figure 4.1a'!R13/'Figure 4.1a'!R$17 -> 0.07434403167 | S13: ='Figure 4.1a'!S13/'Figure 4.1a'!S$17 -> 0.07602059592 | T13: ='Figure 4.1a'!T13/'Figure 4.1a'!T$17 -> 0.07764190204 | U13: ='Figure 4.1a'!U13/'Figure 4.1a'!U$17 -> 0.08042673016 | V13: ='Figure 4.1a'!V13/'Figure 4.1a'!V$17 -> 0.0807245871 | W13: ='Figure 4.1a'!W13/'Figure 4.1a'!W$17 -> 0.08597574242 | X13: ='Figure 4.1a'!X13/'Figure 4.1a'!X$17 -> 0.08808376057 | Y13: ='Figure 4.1a'!Y13/'Figure 4.1a'!Y$17 -> 0.0918500811 | Z13: ='Figure 4.1a'!Z13/'Figure 4.1a'!Z$17 -> 0.09158821261 | AA13: ='Figure 4.1a'!AA13/'Figure 4.1a'!AA$17 -> 0.0935377875 | AB13: ='Figure 4.1a'!AB13/'Figure 4.1a'!AB$17 -> 0.09493402322 | AC13: ='Figure 4.1a'!AC13/'Figure 4.1a'!AC$17 -> 0.09372332089 | AD13: ='Figure 4.1a'!AD13/'Figure 4.1a'!AD$17 -> 0.09131329857 | AE13: ='Figure 4.1a'!AE13/'Figure 4.1a'!AE$17 -> 0.09515001816 | AF13: ='Figure 4.1a'!AF13/'Figure 4.1a'!AF$17 -> 0.09552467688 | AG13: ='Figure 4.1a'!AG13/'Figure 4.1a'!AG$17 -> 0.09664933294 | AH13: ='Figure 4.1a'!AH13/'Figure 4.1a'!AH$17 -> 0.103642131 | AI13: ='Figure 4.1a'!AI13/'Figure 4.1a'!AI$17 -> 0.1020121941 | AJ13: ='Figure 4.1a'!AJ13/'Figure 4.1a'!AJ$17 -> 0.1056223699 | AK13: ='Figure 4.1a'!AK13/'Figure 4.1a'!AK$17 -> 0.1080010735 | AL13: ='Figure 4.1a'!AL13/'Figure 4.1a'!AL$17 -> 0.1078991265 | AM13: ='Figure 4.1a'!AM13/'Figure 4.1a'!AM$17 -> 0.1084187246 | AN13: ='Figure 4.1a'!AN13/'Figure 4.1a'!AN$17 -> 0.109204302 | AO13: ='Figure 4.1a'!AO13/'Figure 4.1a'!AO$17 -> 0.1102940398 | AP13: ='Figure 4.1a'!AP13/'Figure 4.1a'!AP$17 -> 0.1111841713 | AQ13: ='Figure 4.1a'!AQ13/'Figure 4.1a'!AQ$17 -> 0.1120127122 | AR13: ='Figure 4.1a'!AR13/'Figure 4.1a'!AR$17 -> 0.1129815409 | AS13: ='Figure 4.1a'!AS13/'Figure 4.1a'!AS$17 -> 0.1139612869 | AT13: ='Figure 4.1a'!AT13/'Figure 4.1a'!AT$17 -> 0.1139500295 | AU13: ='Figure 4.1a'!AU13/'Figure 4.1a'!AU$17 -> 0.1139709255
N14: ="7. "&names!B10 -> 7. Sales and customer service | Q14: ='Figure 4.1a'!Q14/'Figure 4.1a'!Q$17 -> 0.07852989604 | R14: ='Figure 4.1a'!R14/'Figure 4.1a'!R$17 -> 0.08058562133 | S14: ='Figure 4.1a'!S14/'Figure 4.1a'!S$17 -> 0.08651868382 | T14: ='Figure 4.1a'!T14/'Figure 4.1a'!T$17 -> 0.08752154814 | U14: ='Figure 4.1a'!U14/'Figure 4.1a'!U$17 -> 0.08637192198 | V14: ='Figure 4.1a'!V14/'Figure 4.1a'!V$17 -> 0.08421150188 | W14: ='Figure 4.1a'!W14/'Figure 4.1a'!W$17 -> 0.08474668163 | X14: ='Figure 4.1a'!X14/'Figure 4.1a'!X$17 -> 0.08389633008 | Y14: ='Figure 4.1a'!Y14/'Figure 4.1a'!Y$17 -> 0.08454199032 | Z14: ='Figure 4.1a'!Z14/'Figure 4.1a'!Z$17 -> 0.08584798883 | AA14: ='Figure 4.1a'!AA14/'Figure 4.1a'!AA$17 -> 0.08852773854 | AB14: ='Figure 4.1a'!AB14/'Figure 4.1a'!AB$17 -> 0.08649448547 | AC14: ='Figure 4.1a'!AC14/'Figure 4.1a'!AC$17 -> 0.08666492924 | AD14: ='Figure 4.1a'!AD14/'Figure 4.1a'!AD$17 -> 0.08597145958 | AE14: ='Figure 4.1a'!AE14/'Figure 4.1a'!AE$17 -> 0.08355201015 | AF14: ='Figure 4.1a'!AF14/'Figure 4.1a'!AF$17 -> 0.08365188472 | AG14: ='Figure 4.1a'!AG14/'Figure 4.1a'!AG$17 -> 0.08288024884 | AH14: ='Figure 4.1a'!AH14/'Figure 4.1a'!AH$17 -> 0.08383839767 | AI14: ='Figure 4.1a'!AI14/'Figure 4.1a'!AI$17 -> 0.0857202826 | AJ14: ='Figure 4.1a'!AJ14/'Figure 4.1a'!AJ$17 -> 0.08157775746 | AK14: ='Figure 4.1a'!AK14/'Figure 4.1a'!AK$17 -> 0.08123996613 | AL14: ='Figure 4.1a'!AL14/'Figure 4.1a'!AL$17 -> 0.08017340439 | AM14: ='Figure 4.1a'!AM14/'Figure 4.1a'!AM$17 -> 0.08045353419 | AN14: ='Figure 4.1a'!AN14/'Figure 4.1a'!AN$17 -> 0.08042084358 | AO14: ='Figure 4.1a'!AO14/'Figure 4.1a'!AO$17 -> 0.0802801812 | AP14: ='Figure 4.1a'!AP14/'Figure 4.1a'!AP$17 -> 0.08016584311 | AQ14: ='Figure 4.1a'!AQ14/'Figure 4.1a'!AQ$17 -> 0.08002500306 | AR14: ='Figure 4.1a'!AR14/'Figure 4.1a'!AR$17 -> 0.0793193243 | AS14: ='Figure 4.1a'!AS14/'Figure 4.1a'!AS$17 -> 0.07851822599 | AT14: ='Figure 4.1a'!AT14/'Figure 4.1a'!AT$17 -> 0.07840383971 | AU14: ='Figure 4.1a'!AU14/'Figure 4.1a'!AU$17 -> 0.07826642963
N15: ="8. "&names!B11 -> 8. Process, plant and machine operatives | Q15: ='Figure 4.1a'!Q15/'Figure 4.1a'!Q$17 -> 0.1127904025 | R15: ='Figure 4.1a'!R15/'Figure 4.1a'!R$17 -> 0.1122728235 | S15: ='Figure 4.1a'!S15/'Figure 4.1a'!S$17 -> 0.1086642229 | T15: ='Figure 4.1a'!T15/'Figure 4.1a'!T$17 -> 0.1097362589 | U15: ='Figure 4.1a'!U15/'Figure 4.1a'!U$17 -> 0.1084943394 | V15: ='Figure 4.1a'!V15/'Figure 4.1a'!V$17 -> 0.1066407963 | W15: ='Figure 4.1a'!W15/'Figure 4.1a'!W$17 -> 0.103917672 | X15: ='Figure 4.1a'!X15/'Figure 4.1a'!X$17 -> 0.1041249909 | Y15: ='Figure 4.1a'!Y15/'Figure 4.1a'!Y$17 -> 0.09654229202 | Z15: ='Figure 4.1a'!Z15/'Figure 4.1a'!Z$17 -> 0.09512195266 | AA15: ='Figure 4.1a'!AA15/'Figure 4.1a'!AA$17 -> 0.09336747421 | AB15: ='Figure 4.1a'!AB15/'Figure 4.1a'!AB$17 -> 0.09485865769 | AC15: ='Figure 4.1a'!AC15/'Figure 4.1a'!AC$17 -> 0.09051087604 | AD15: ='Figure 4.1a'!AD15/'Figure 4.1a'!AD$17 -> 0.08915393353 | AE15: ='Figure 4.1a'!AE15/'Figure 4.1a'!AE$17 -> 0.08968396414 | AF15: ='Figure 4.1a'!AF15/'Figure 4.1a'!AF$17 -> 0.08777016646 | AG15: ='Figure 4.1a'!AG15/'Figure 4.1a'!AG$17 -> 0.0838396253 | AH15: ='Figure 4.1a'!AH15/'Figure 4.1a'!AH$17 -> 0.08486525826 | AI15: ='Figure 4.1a'!AI15/'Figure 4.1a'!AI$17 -> 0.08230120509 | AJ15: ='Figure 4.1a'!AJ15/'Figure 4.1a'!AJ$17 -> 0.08271633843 | AK15: ='Figure 4.1a'!AK15/'Figure 4.1a'!AK$17 -> 0.08547945288 | AL15: ='Figure 4.1a'!AL15/'Figure 4.1a'!AL$17 -> 0.08522956826 | AM15: ='Figure 4.1a'!AM15/'Figure 4.1a'!AM$17 -> 0.08420663147 | AN15: ='Figure 4.1a'!AN15/'Figure 4.1a'!AN$17 -> 0.08316616084 | AO15: ='Figure 4.1a'!AO15/'Figure 4.1a'!AO$17 -> 0.08192160565 | AP15: ='Figure 4.1a'!AP15/'Figure 4.1a'!AP$17 -> 0.08061099398 | AQ15: ='Figure 4.1a'!AQ15/'Figure 4.1a'!AQ$17 -> 0.07930254776 | AR15: ='Figure 4.1a'!AR15/'Figure 4.1a'!AR$17 -> 0.07820650149 | AS15: ='Figure 4.1a'!AS15/'Figure 4.1a'!AS$17 -> 0.07712713538 | AT15: ='Figure 4.1a'!AT15/'Figure 4.1a'!AT$17 -> 0.07729838216 | AU15: ='Figure 4.1a'!AU15/'Figure 4.1a'!AU$17 -> 0.07746407706
N16: ="9. "&names!B12 -> 9. Elementary occupations | Q16: ='Figure 4.1a'!Q16/'Figure 4.1a'!Q$17 -> 0.1405966254 | R16: ='Figure 4.1a'!R16/'Figure 4.1a'!R$17 -> 0.1394677592 | S16: ='Figure 4.1a'!S16/'Figure 4.1a'!S$17 -> 0.1414385013 | T16: ='Figure 4.1a'!T16/'Figure 4.1a'!T$17 -> 0.1376087154 | U16: ='Figure 4.1a'!U16/'Figure 4.1a'!U$17 -> 0.1394609204 | V16: ='Figure 4.1a'!V16/'Figure 4.1a'!V$17 -> 0.1400163514 | W16: ='Figure 4.1a'!W16/'Figure 4.1a'!W$17 -> 0.1415430674 | X16: ='Figure 4.1a'!X16/'Figure 4.1a'!X$17 -> 0.134229104 | Y16: ='Figure 4.1a'!Y16/'Figure 4.1a'!Y$17 -> 0.1346797498 | Z16: ='Figure 4.1a'!Z16/'Figure 4.1a'!Z$17 -> 0.1316947792 | AA16: ='Figure 4.1a'!AA16/'Figure 4.1a'!AA$17 -> 0.1365984733 | AB16: ='Figure 4.1a'!AB16/'Figure 4.1a'!AB$17 -> 0.1377069882 | AC16: ='Figure 4.1a'!AC16/'Figure 4.1a'!AC$17 -> 0.1351967171 | AD16: ='Figure 4.1a'!AD16/'Figure 4.1a'!AD$17 -> 0.1329709427 | AE16: ='Figure 4.1a'!AE16/'Figure 4.1a'!AE$17 -> 0.1308478433 | AF16: ='Figure 4.1a'!AF16/'Figure 4.1a'!AF$17 -> 0.1234280922 | AG16: ='Figure 4.1a'!AG16/'Figure 4.1a'!AG$17 -> 0.1229908098 | AH16: ='Figure 4.1a'!AH16/'Figure 4.1a'!AH$17 -> 0.1165531309 | AI16: ='Figure 4.1a'!AI16/'Figure 4.1a'!AI$17 -> 0.1164637399 | AJ16: ='Figure 4.1a'!AJ16/'Figure 4.1a'!AJ$17 -> 0.1116311404 | AK16: ='Figure 4.1a'!AK16/'Figure 4.1a'!AK$17 -> 0.1074132465 | AL16: ='Figure 4.1a'!AL16/'Figure 4.1a'!AL$17 -> 0.1071898282 | AM16: ='Figure 4.1a'!AM16/'Figure 4.1a'!AM$17 -> 0.1073300629 | AN16: ='Figure 4.1a'!AN16/'Figure 4.1a'!AN$17 -> 0.1072010776 | AO16: ='Figure 4.1a'!AO16/'Figure 4.1a'!AO$17 -> 0.1070357203 | AP16: ='Figure 4.1a'!AP16/'Figure 4.1a'!AP$17 -> 0.1070079263 | AQ16: ='Figure 4.1a'!AQ16/'Figure 4.1a'!AQ$17 -> 0.1069563801 | AR16: ='Figure 4.1a'!AR16/'Figure 4.1a'!AR$17 -> 0.1063110567 | AS16: ='Figure 4.1a'!AS16/'Figure 4.1a'!AS$17 -> 0.105654975 | AT16: ='Figure 4.1a'!AT16/'Figure 4.1a'!AT$17 -> 0.1050978687 | AU16: ='Figure 4.1a'!AU16/'Figure 4.1a'!AU$17 -> 0.1044837402
N17: All occupations | Q17: ='Figure 4.1a'!Q17/'Figure 4.1a'!Q$17 -> 1 | R17: ='Figure 4.1a'!R17/'Figure 4.1a'!R$17 -> 1 | S17: ='Figure 4.1a'!S17/'Figure 4.1a'!S$17 -> 1 | T17: ='Figure 4.1a'!T17/'Figure 4.1a'!T$17 -> 1 | U17: ='Figure 4.1a'!U17/'Figure 4.1a'!U$17 -> 1 | V17: ='Figure 4.1a'!V17/'Figure 4.1a'!V$17 -> 1 | W17: ='Figure 4.1a'!W17/'Figure 4.1a'!W$17 -> 1 | X17: ='Figure 4.1a'!X17/'Figure 4.1a'!X$17 -> 1 | Y17: ='Figure 4.1a'!Y17/'Figure 4.1a'!Y$17 -> 1 | Z17: ='Figure 4.1a'!Z17/'Figure 4.1a'!Z$17 -> 1 | AA17: ='Figure 4.1a'!AA17/'Figure 4.1a'!AA$17 -> 1 | AB17: ='Figure 4.1a'!AB17/'Figure 4.1a'!AB$17 -> 1 | AC17: ='Figure 4.1a'!AC17/'Figure 4.1a'!AC$17 -> 1 | AD17: ='Figure 4.1a'!AD17/'Figure 4.1a'!AD$17 -> 1 | AE17: ='Figure 4.1a'!AE17/'Figure 4.1a'!AE$17 -> 1 | AF17: ='Figure 4.1a'!AF17/'Figure 4.1a'!AF$17 -> 1 | AG17: ='Figure 4.1a'!AG17/'Figure 4.1a'!AG$17 -> 1 | AH17: ='Figure 4.1a'!AH17/'Figure 4.1a'!AH$17 -> 1 | AI17: ='Figure 4.1a'!AI17/'Figure 4.1a'!AI$17 -> 1 | AJ17: ='Figure 4.1a'!AJ17/'Figure 4.1a'!AJ$17 -> 1 | AK17: ='Figure 4.1a'!AK17/'Figure 4.1a'!AK$17 -> 1 | AL17: ='Figure 4.1a'!AL17/'Figure 4.1a'!AL$17 -> 1 | AM17: ='Figure 4.1a'!AM17/'Figure 4.1a'!AM$17 -> 1 | AN17: ='Figure 4.1a'!AN17/'Figure 4.1a'!AN$17 -> 1 | AO17: ='Figure 4.1a'!AO17/'Figure 4.1a'!AO$17 -> 1 | AP17: ='Figure 4.1a'!AP17/'Figure 4.1a'!AP$17 -> 1 | AQ17: ='Figure 4.1a'!AQ17/'Figure 4.1a'!AQ$17 -> 1 | AR17: ='Figure 4.1a'!AR17/'Figure 4.1a'!AR$17 -> 1 | AS17: ='Figure 4.1a'!AS17/'Figure 4.1a'!AS$17 -> 1 | AT17: ='Figure 4.1a'!AT17/'Figure 4.1a'!AT$17 -> 1 | AU17: ='Figure 4.1a'!AU17/'Figure 4.1a'!AU$17 -> 1
B45: =CELL("filename",$A$2)&", "&Info!A1 -> R:\Research Info\Individual research project info\Working Futures_ Data to be uploaded on the 16th May 16\Wales main workbook_needs cover updating\[AllWA.xlsm]Figure 4.2%, Wales

Sheet Figure 4.1.2
C1: ="Figure 4.1.2: Occupational Change, "&All!P7&"-"&All!AJ7&", Total Employment" -> Figure 4.1.2: Occupational Change, 2004-2024, Total Employment | Q1: Chart data
R2: =All!P7&"-"&All!Z7 -> 2004-2014 | S2: =All!Z7&"-"&All!AJ7 -> 2014-2024
Q3: =names!C28 -> 92 Elementary administration and service occupations | R3: =(All!Z33-All!P33)/1000 -> -29.139799 | S3: =(All!AJ33-All!Z33)/1000 -> 0.063685
Q4: =names!C27 -> 91 Elementary trades and related occupations | R4: =(All!Z32-All!P32)/1000 -> 1.064498 | S4: =(All!AJ32-All!Z32)/1000 -> 1.4017
Q5: =names!C26 -> 82 Transport and mobile machine drivers and operatives | R5: =(All!Z31-All!P31)/1000 -> 0.094514 | S5: =(All!AJ31-All!Z31)/1000 -> 2.049268
Q6: =names!C25 -> 81 Process, plant and machine operatives | R6: =(All!Z30-All!P30)/1000 -> -2.251707 | S6: =(All!AJ30-All!Z30)/1000 -> -9.215332
Q7: =names!C24 -> 72 Customer service occupations | R7: =(All!Z29-All!P29)/1000 -> 7.156455 | S7: =(All!AJ29-All!Z29)/1000 -> 5.001613
Q8: =names!C23 -> 71 Sales occupations | R8: =(All!Z28-All!P28)/1000 -> -8.931563 | S8: =(All!AJ28-All!Z28)/1000 -> -5.004235
Q9: =names!C22 -> 62 Leisure, travel and related personal service occupations | R9: =(All!Z27-All!P27)/1000 -> 3.931261 | S9: =(All!AJ27-All!Z27)/1000 -> -0.354557
Q10: =names!C21 -> 61 Caring personal service occupations | R10: =(All!Z26-All!P26)/1000 -> 25.493923 | S10: =(All!AJ26-All!Z26)/1000 -> 14.896925
Q11: =names!C20 -> 54 Textiles, printing and other skilled trades | R11: =(All!Z25-All!P25)/1000 -> -1.562363 | S11: =(All!AJ25-All!Z25)/1000 -> -2.971603
Q12: =names!C19 -> 53 Skilled construction and building trades | R12: =(All!Z24-All!P24)/1000 -> 16.528926 | S12: =(All!AJ24-All!Z24)/1000 -> 2.85362
Q13: =names!C18 -> 52 Skilled metal, electrical and electronic trades | R13: =(All!Z23-All!P23)/1000 -> 2.13903 | S13: =(All!AJ23-All!Z23)/1000 -> -5.607392
Q14: =names!C17 -> 51 Skilled agricultural and related trades | R14: =(All!Z22-All!P22)/1000 -> -1.626512 | S14: =(All!AJ22-All!Z22)/1000 -> -3.340949
Q15: =names!C16 -> 42 Secretarial and related occupations | R15: =(All!Z21-All!P21)/1000 -> -3.89557 | S15: =(All!AJ21-All!Z21)/1000 -> -10.752343
Q16: =names!C15 -> 41 Administrative occupations | R16: =(All!Z20-All!P20)/1000 -> -0.149938 | S16: =(All!AJ20-All!Z20)/1000 -> -2.354471
Q17: =names!C14 -> 35 Business and public service associate professionals | R17: =(All!Z19-All!P19)/1000 -> 10.218595 | S17: =(All!AJ19-All!Z19)/1000 -> 10.357283
Q18: =names!C13 -> 34 Culture, media and sports occupations | R18: =(All!Z18-All!P18)/1000 -> 5.364748 | S18: =(All!AJ18-All!Z18)/1000 -> 2.665543
Q19: =names!C12 -> 33 Protective service occupations | R19: =(All!Z17-All!P17)/1000 -> -2.088027 | S19: =(All!AJ17-All!Z17)/1000 -> -0.909533
Q20: =names!C11 -> 32 Health and social care associate professionals | R20: =(All!Z16-All!P16)/1000 -> 4.911832 | S20: =(All!AJ16-All!Z16)/1000 -> 4.066066
Q21: =names!C10 -> 31 Science, engineering and technology associate professionals | R21: =(All!Z15-All!P15)/1000 -> 0.491852 | S21: =(All!AJ15-All!Z15)/1000 -> 0.448881
Q22: =names!C9 -> 24 Business, media and public service professionals | R22: =(All!Z14-All!P14)/1000 -> 5.538765 | S22: =(All!AJ14-All!Z14)/1000 -> 6.540866
Q23: =names!C8 -> 23 Teaching and educational professionals | R23: =(All!Z13-All!P13)/1000 -> 18.452814 | S23: =(All!AJ13-All!Z13)/1000 -> 10.080404
Q24: =names!C7 -> 22 Health professionals | R24: =(All!Z12-All!P12)/1000 -> 17.622798 | S24: =(All!AJ12-All!Z12)/1000 -> 12.751196
Q25: =names!C6 -> 21 Science, research, engineering and technology professionals | R25: =(All!Z11-All!P11)/1000 -> 8.813601 | S25: =(All!AJ11-All!Z11)/1000 -> 4.783392
Q26: =names!C5 -> 12 Other managers and proprietors | R26: =(All!Z10-All!P10)/1000 -> 3.638621 | S26: =(All!AJ10-All!Z10)/1000 -> 4.695505
Q27: =names!C4 -> 11 Corporate managers and directors | R27: =(All!Z9-All!P9)/1000 -> 14.392249 | S27: =(All!AJ9-All!Z9)/1000 -> 11.476467
C40: =CELL("filename",$A$2)&", "&Info!A1 -> R:\Research Info\Individual research project info\Working Futures_ Data to be uploaded on the 16th May 16\Wales main workbook_needs cover updating\[AllWA.xlsm]Figure 4.1.2, Wales

Sheet fig 4.1 to 4.4
B3: ="Figure 4.2 Occupational Change by Gender, "&'Table 4.1 T'!J6&", Total Employment" -> Figure 4.2 Occupational Change by Gender, 2014-2024, Total Employment
B34: =CELL("filename",$A$1)&", "&Info!A1 -> R:\Research Info\Individual research project info\Working Futures_ Data to be uploaded on the 16th May 16\Wales main workbook_needs cover updating\[AllWA.xlsm]fig 4.1 to 4.4, Wales
B40: ="Figure 4.3 Occupational Change by Status, "&'Table 4.1 T'!J6&", Total Employment" -> Figure 4.3 Occupational Change by Status, 2014-2024, Total Employment
B72: =CELL("filename",$A$1)&", "&Info!A1 -> R:\Research Info\Individual research project info\Working Futures_ Data to be uploaded on the 16th May 16\Wales main workbook_needs cover updating\[AllWA.xlsm]fig 4.1 to 4.4, Wales
B76: ="Figure 4.4 Occupational Change by Status, Males, "&'Table 4.1 MFT'!J6 -> Figure 4.4 Occupational Change by Status, Males, 2014-2024
B78: Male Employment
B110: =CELL("filename",$A$1)&", "&Info!A1 -> R:\Research Info\Individual research project info\Working Futures_ Data to be uploaded on the 16th May 16\Wales main workbook_needs cover updating\[AllWA.xlsm]fig 4.1 to 4.4, Wales
B114: ="Figure 4.5 Occupational Change by Status, Females, "&'Table 4.1 FFT'!J6 -> Figure 4.5 Occupational Change by Status, Females, 2014-2024
B116: Female Employment
B147: =CELL("filename",$A$1)&", "&Info!A1 -> R:\Research Info\Individual research project info\Working Futures_ Data to be uploaded on the 16th May 16\Wales main workbook_needs cover updating\[AllWA.xlsm]fig 4.1 to 4.4, Wales

Sheet Table 5.1
B2: UK, All industries | H2: Net | K2: =B2 -> UK, All industries | Q2: Net
B3: (Results in 000s) | C3: ="Base employment level "&Assumptions!C24 -> Base employment level 2014 | D3: Expansion demand | E3: % of base | F3: Replacement demands (retirements & mortality) | G3: % of base | H3: requirement (excluding occupational mobility) | I3: % of base | L3: =C3 -> Base employment level 2014 | M3: Expansion demand | N3: % of base | O3: Replacement demands (retirements & mortality) | P3: % of base | Q3: requirement (excluding occupational mobility) | R3: % of base
B4: =names!C4 -> 11 Corporate managers and directors | C4: =Replacement!C5 -> 65.38928 | D4: =Replacement!D5 -> 11.476469 | E4: =100*D4/C4 -> 17.5509946 | F4: =Replacement!H5 -> 25.02599981 | G4: =100*F4/C4 -> 38.27232814 | H4: =Replacement!I5 -> 36.50246881 | I4: =100*H4/C4 -> 55.82332274 | K4: =names!B4 -> Managers, directors and senior officials | L4: =C4+C5 -> 106.363099 | M4: =D4+D5 -> 16.171975 | N4: =100*M4/L4 -> 15.20449776 | O4: =F4+F5 -> 45.12740608 | P4: =100*O4/L4 -> 42.42769015 | Q4: =H4+H5 -> 61.29938108 | R4: =100*Q4/L4 -> 57.63218791
B5: =names!C5 -> 12 Other managers and proprietors | C5: =Replacement!C6 -> 40.973819 | D5: =Replacement!D6 -> 4.695506 | E5: =100*D5/C5 -> 11.45977142 | F5: =Replacement!H6 -> 20.10140627 | G5: =100*F5/C5 -> 49.05914743 | H5: =Replacement!I6 -> 24.79691227 | I5: =100*H5/C5 -> 60.51891886 | K5: =names!B5 -> Professional occupations | L5: =SUM(C6:C9) -> 261.341372 | M5: =SUM(D6:D9) -> 34.155856 | N5: 13.06944084 | O5: =SUM(F6:F9) -> 106.2491262 | P5: 40.65530281 | Q5: =SUM(H6:H9) -> 140.4049822 | R5: 53.72474365
B6: =names!C6 -> 21 Science, research, engineering and technology professionals | C6: =Replacement!C7 -> 45.528612 | D6: =Replacement!D7 -> 4.783392 | E6: 10.50634269 | F6: =Replacement!H7 -> 14.04863444 | G6: 30.85671586 | H6: =Replacement!I7 -> 18.83202644 | I6: 41.36305856 | K6: =names!B6 -> Associate professional and technical | L6: =SUM(C10:C14) -> 158.987867 | M6: =SUM(D10:D14) -> 16.62824 | N6: 10.45881067 | O6: =SUM(F10:F14) -> 58.17167839 | P6: 36.58875327 | Q6: =SUM(H10:H14) -> 74.79991839 | R6: 47.04756394
B7: =names!C7 -> 22 Health professionals | C7: =Replacement!C8 -> 79.259118 | D7: =Replacement!D8 -> 12.751196 | E7: 16.08798624 | F7: =Replacement!H8 -> 32.30191553 | G7: 40.75482587 | H7: =Replacement!I8 -> 45.05311153 | I7: 56.84281211 | K7: =names!B7 -> Administrative and secretarial | L7: =C15+C16 -> 154.240036 | M7: =D15+D16 -> -13.106815 | N7: -8.497673717 | O7: =F15+F16 -> 65.15302602 | P7: 42.24131925 | Q7: =H15+H16 -> 52.04621102 | R7: 33.74364553
B8: =names!C8 -> 23 Teaching and educational professionals | C8: =Replacement!C9 -> 91.858009 | D8: =Replacement!D9 -> 10.080404 | E8: 10.97389777 | F8: =Replacement!H9 -> 40.6947989 | G8: 44.30185167 | H8: =Replacement!I9 -> 50.7752029 | I8: 55.27574944 | K8: =names!B8 -> Skilled trades occupations | L8: =+C17+C18+C19+C20 -> 191.659138 | M8: =+D17+D18+D19+D20 -> -9.066322 | N8: -4.730440768 | O8: =+F17+F18+F19+F20 -> 67.84343994 | P8: 35.39796779 | Q8: =+H17+H18+H19+H20 -> 58.77711794 | R8: 30.66752702
B9: =names!C9 -> 24 Business, media and public service professionals | C9: =Replacement!C10 -> 44.695633 | D9: =Replacement!D10 -> 6.540864 | E9: 14.63423507 | F9: =Replacement!H10 -> 19.2037773 | G9: 42.96566802 | H9: =Replacement!I10 -> 25.7446413 | I9: 57.5999031 | K9: =names!B9 -> Caring, leisure and other service | L9: =+C21+C22 -> 152.526245 | M9: =+D21+D22 -> 14.542367 | N9: 9.534337517 | O9: =+F21+F22 -> 66.63341118 | P9: 43.68652174 | Q9: =+H21+H22 -> 81.17577818 | R9: 53.22085926
B10: =names!C10 -> 31 Science, engineering and technology associate professionals | C10: =Replacement!C11 -> 20.752132 | D10: =Replacement!D11 -> 0.448881 | E10: 2.16305968 | F10: =Replacement!H11 -> 6.236647715 | G10: 30.0530457 | H10: =Replacement!I11 -> 6.685528715 | I10: 32.21610538 | K10: =names!B10 -> Sales and customer service | L10: =C23+C24 -> 114.732442 | M10: =D23+D24 -> -0.002622 | N10: -0.002285316999 | O10: =F23+F24 -> 43.16223464 | P10: 37.61990409 | Q10: =H23+H24 -> 43.15961264 | R10: 37.61761877
B11: =names!C11 -> 32 Health and social care associate professionals | C11: =Replacement!C12 -> 26.343391 | D11: =Replacement!D12 -> 4.066067 | E11: 15.43486562 | F11: =Replacement!H12 -> 10.09754909 | G11: 38.33048332 | H11: =Replacement!I12 -> 14.16361609 | I11: 53.76534893 | K11: =names!B11 -> Process, plant and machine operatives | L11: =C25+C26 -> 120.719726 | M11: =D25+D26 -> -7.166065 | N11: -5.936117681 | O11: =F25+F26 -> 41.87336256 | P11: 34.68642942 | Q11: =H25+H26 -> 34.70729756 | R11: 28.75031174
B12: =names!C12 -> 33 Protective service occupations | C12: =Replacement!C13 -> 15.886461 | D12: =Replacement!D13 -> -0.909534 | E12: -5.725214697 | F12: =Replacement!H13 -> 3.808429934 | G12: 23.97280259 | H12: =Replacement!I13 -> 2.898895934 | I12: 18.24758789 | K12: =names!B12 -> Elementary occupations | L12: =+C27+C28 -> 151.696075 | M12: =+D27+D28 -> 1.465387 | N12: 0.9660019219 | O12: =+F27+F28 -> 59.14100413 | P12: 38.98650913 | Q12: =+H27+H28 -> 60.60639113 | R12: 39.95251105
B13: =names!C13 -> 34 Culture, media and sports occupations | C13: =Replacement!C14 -> 22.028615 | D13: =Replacement!D14 -> 2.665545 | E13: 12.1003749 | F13: =Replacement!H14 -> 9.586872144 | G13: 43.52008578 | H13: =Replacement!I14 -> 12.25241714 | I13: 55.62046068 | K13: All occupations | L13: =SUM(L4:L12) -> 1412.266 | M13: =SUM(M4:M12) -> 53.622001 | N13: 3.796876863 | O13: =SUM(O4:O12) -> 553.3546891 | P13: 39.18204425 | Q13: =SUM(Q4:Q12) -> 606.9766901 | R13: 42.97892112
B14: =names!C14 -> 35 Business and public service associate professionals | C14: =Replacement!C15 -> 73.977268 | D14: =Replacement!D15 -> 10.357281 | E14: 14.00062652 | F14: =Replacement!H15 -> 28.44217951 | G14: 38.44718827 | H14: =Replacement!I15 -> 38.79946051 | I14: 52.44781479
B15: =names!C15 -> 41 Administrative occupations | C15: =Replacement!C16 -> 119.492442 | D15: =Replacement!D16 -> -2.354472 | E15: -1.970394077 | F15: =Replacement!H16 -> 49.90450654 | G15: 41.76373476 | H15: =Replacement!I16 -> 47.55003454 | I15: 39.79334068
B16: =names!C16 -> 42 Secretarial and related occupations | C16: =Replacement!C17 -> 34.747594 | D16: =Replacement!D17 -> -10.752343 | E16: -30.94413674 | F16: =Replacement!H17 -> 15.24851948 | G16: 43.88366999 | H16: =Replacement!I17 -> 4.496176482 | I16: 12.93953326
B17: =names!C17 -> 51 Skilled agricultural and related trades | C17: =Replacement!C18 -> 26.22665 | D17: =Replacement!D18 -> -3.34095 | E17: -12.73876 | F17: =Replacement!H18 -> 13.30412968 | G17: 50.72752212 | H17: =Replacement!I18 -> 9.963179681 | I17: 37.98876212
B18: =names!C18 -> 52 Skilled metal, electrical and electronic trades | C18: =Replacement!C19 -> 62.996149 | D18: =Replacement!D19 -> -5.607391 | E18: -8.901164736 | F18: =Replacement!H19 -> 18.89606855 | G18: 29.99559314 | H18: =Replacement!I19 -> 13.28867755 | I18: 21.09442841
B19: =names!C19 -> 53 Skilled construction and building trades | C19: =Replacement!C20 -> 67.019611 | D19: =Replacement!D20 -> 2.853621 | E19: 4.25788953 | F19: =Replacement!H20 -> 22.55962055 | G19: 33.66122276 | H19: =Replacement!I20 -> 25.41324155 | I19: 37.91911229
B20: =names!C20 -> 54 Textiles, printing and other skilled trades | C20: =Replacement!C21 -> 35.416728 | D20: =Replacement!D21 -> -2.971602 | E20: -8.390391117 | F20: =Replacement!H21 -> 13.08362116 | G20: 36.94192518 | H20: =Replacement!I21 -> 10.11201916 | I20: 28.55153406
B21: =names!C21 -> 61 Caring personal service occupations | C21: =Replacement!C22 -> 123.279074 | D21: =Replacement!D22 -> 14.896924 | E21: 12.08390323 | F21: =Replacement!H22 -> 53.37440205 | G21: 43.29558969 | H21: =Replacement!I22 -> 68.27132605 | I21: 55.37949291
B22: =names!C22 -> 62 Leisure, travel and related personal service occupations | C22: =Replacement!C23 -> 29.247171 | D22: =Replacement!D23 -> -0.354557 | E22: -1.212277933 | F22: =Replacement!H23 -> 13.25900914 | G22: 45.3343304 | H22: =Replacement!I23 -> 12.90445214 | I22: 44.12205247
B23: =names!C23 -> 71 Sales occupations | C23: =Replacement!C24 -> 90.334752 | D23: =Replacement!D24 -> -5.004235 | E23: -5.539656543 | F23: =Replacement!H24 -> 34.56810338 | G23: 38.26667214 | H23: =Replacement!I24 -> 29.56386838 | I23: 32.7270156
B24: =names!C24 -> 72 Customer service occupations | C24: =Replacement!C25 -> 24.39769 | D24: =Replacement!D25 -> 5.001613 | E24: 20.50035475 | F24: =Replacement!H25 -> 8.594131265 | G24: 35.22518429 | H24: =Replacement!I25 -> 13.59574426 | I24: 55.72553904
B25: =names!C25 -> 81 Process, plant and machine operatives | C25: =Replacement!C26 -> 81.247116 | D25: =Replacement!D26 -> -9.215332 | E25: -11.34234968 | F25: =Replacement!H26 -> 24.30175555 | G25: 29.91091468 | H25: =Replacement!I26 -> 15.08642355 | I25: 18.568565
B26: =names!C26 -> 82 Transport and mobile machine drivers and operatives | C26: =Replacement!C27 -> 39.47261 | D26: =Replacement!D27 -> 2.049267 | E26: 5.191617681 | F26: =Replacement!H27 -> 17.57160701 | G26: 44.5159492 | H26: =Replacement!I27 -> 19.62087401 | I26: 49.70756688
B27: =names!C27 -> 91 Elementary trades and related occupations | C27: =Replacement!C28 -> 32.835001 | D27: =Replacement!D28 -> 1.401702 | E27: 4.26892632 | F27: =Replacement!H28 -> 11.33424952 | G27: 34.51880363 | H27: =Replacement!I28 -> 12.73595152 | I27: 38.78772995
B28: =names!C28 -> 92 Elementary administration and service occupations | C28: =Replacement!C29 -> 118.861074 | D28: =Replacement!D29 -> 0.063685 | E28: 0.0535793577 | F28: =Replacement!H29 -> 47.80675461 | G28: 40.22069884 | H28: =Replacement!I29 -> 47.87043961 | I28: 40.2742782
B29: All Occupations | C29: =Replacement!C30 -> 1412.266 | D29: =Replacement!D30 -> 53.622001 | E29: 3.796876863 | F29: =Replacement!H30 -> 553.3546891 | G29: =100*F29/C29 -> 39.18204425 | H29: =Replacement!I30 -> 606.9766901 | I29: 42.97892112
B31: =CELL("filename",$A$2)&", "&Info!A1 -> R:\Research Info\Individual research project info\Working Futures_ Data to be uploaded on the 16th May 16\Wales main workbook_needs cover updating\[AllWA.xlsm]Table 5.1, Wales

Sheet Table 6.x.3
A1: Table 6.0.4 | B1: Changing Composition of Employment by Occupation
B2: Total | H2: =D4&" - "&F4 -> 2014 - 2024
A3: ="SOC2010 Major Groups, "&Info!A1 -> SOC2010 Major Groups, Wales | H3: Net Change | I3: Replacement | J3: Total
A4: Employment Levels (000s) | B4: =All!F7 -> 1994 | C4: =All!P7 -> 2004 | D4: =All!Z7 -> 2014 | E4: =All!AE7 -> 2019 | F4: =All!AJ7 -> 2024 | I4: Demands | J4: Requirement
A5: =names!B4 -> Managers, directors and senior officials | B5: =(All!F9+All!F10)/1000 -> 78.303567 | C5: =(All!P9+All!P10)/1000 -> 88.332231 | D5: =(All!Z9+All!Z10)/1000 -> 106.363101 | E5: =(All!AE9+All!AE10)/1000 -> 116.488289 | F5: =(All!AJ9+All!AJ10)/1000 -> 122.535073 | H5: =F5-D5 -> 16.171972 | I5: =D5*I17/100 -> 45.12740693 | J5: =I5+H5 -> 61.29937893
A6: =names!B5 -> Professional occupations | B6: =(All!F11+All!F12+All!F13+All!F14)/1000 -> 166.418508 | C6: =(All!P11+All!P12+All!P13+All!P14)/1000 -> 210.913393 | D6: =(All!Z11+All!Z12+All!Z13+All!Z14)/1000 -> 261.341371 | E6: =(All!AE11+All!AE12+All!AE13+All!AE14)/1000 -> 278.23268 | F6: =(All!AJ11+All!AJ12+All!AJ13+All!AJ14)/1000 -> 295.497229 | H6: 34.155858 | I6: 106.2491258 | J6: 140.4049838
A7: =names!B6 -> Associate professional and technical | B7: =(All!F15+All!F16+All!F17+All!F18+All!F19)/1000 -> 118.010036 | C7: =(All!P15+All!P16+All!P17+All!P18+All!P19)/1000 -> 140.088867 | D7: =(All!Z15+All!Z16+All!Z17+All!Z18+All!Z19)/1000 -> 158.987867 | E7: =(All!AE15+All!AE16+All!AE17+All!AE18+All!AE19)/1000 -> 168.119312 | F7: =(All!AJ15+All!AJ16+All!AJ17+All!AJ18+All!AJ19)/1000 -> 175.616107 | H7: 16.62824 | I7: 58.17167839 | J7: 74.79991839
A8: =names!B7 -> Administrative and secretarial | B8: =(All!F20+All!F21)/1000 -> 155.02419 | C8: =(All!P20+All!P21)/1000 -> 158.285542 | D8: =(All!Z20+All!Z21)/1000 -> 154.240034 | E8: =(All!AE20+All!AE21)/1000 -> 144.286404 | F8: =(All!AJ20+All!AJ21)/1000 -> 141.13322 | H8: -13.106814 | I8: 65.15302517 | J8: 52.04621117
A9: =names!B8 -> Skilled trades occupations | B9: =(All!F22+All!F23+All!F24+All!F25)/1000 -> 203.593857 | C9: =(All!P22+All!P23+All!P24+All!P25)/1000 -> 176.18006 | D9: =(All!Z22+All!Z23+All!Z24+All!Z25)/1000 -> 191.659141 | E9: =(All!AE22+All!AE23+All!AE24+All!AE25)/1000 -> 187.715735 | F9: =(All!AJ22+All!AJ23+All!AJ24+All!AJ25)/1000 -> 182.592817 | H9: -9.066324 | I9: 67.843441 | J9: 58.777117
A10: =names!B9 -> Caring, leisure and other service | B10: =(All!F26+All!F27)/1000 -> 84.802307 | C10: =(All!P26+All!P27)/1000 -> 123.10106 | D10: =(All!Z26+All!Z27)/1000 -> 152.526244 | E10: =(All!AE26+All!AE27)/1000 -> 160.20505 | F10: =(All!AJ26+All!AJ27)/1000 -> 167.068612 | H10: 14.542368 | I10: 66.63341075 | J10: 81.17577875
A11: =names!B10 -> Sales and customer service | B11: =(All!F28+All!F29)/1000 -> 94.759277 | C11: =(All!P28+All!P29)/1000 -> 116.50755 | D11: =(All!Z28+All!Z29)/1000 -> 114.732442 | E11: =(All!AE28+All!AE29)/1000 -> 115.510803 | F11: =(All!AJ28+All!AJ29)/1000 -> 114.72982 | H11: -0.002622 | I11: 43.16223464 | J11: 43.15961264
A12: =names!B11 -> Process, plant and machine operatives | B12: =(All!F30+All!F31)/1000 -> 136.100231 | C12: =(All!P30+All!P31)/1000 -> 122.876918 | D12: =(All!Z30+All!Z31)/1000 -> 120.719725 | E12: =(All!AE30+All!AE31)/1000 -> 116.15222 | F12: =(All!AJ30+All!AJ31)/1000 -> 113.553661 | H12: -7.166064 | I12: 41.87336221 | J12: 34.70729821
A13: =names!B12 -> Elementary occupations | B13: =(All!F32+All!F33)/1000 -> 169.653027 | C13: =(All!P32+All!P33)/1000 -> 179.771377 | D13: =(All!Z32+All!Z33)/1000 -> 151.696076 | E13: =(All!AE32+All!AE33)/1000 -> 154.187507 | F13: =(All!AJ32+All!AJ33)/1000 -> 153.161461 | H13: 1.465385 | I13: 59.14100452 | J13: 60.60638952
A14: Total | B14: =All!F8/1000 -> 1206.665 | C14: =All!P8/1000 -> 1316.057 | D14: =All!Z8/1000 -> 1412.266 | E14: =All!AE8/1000 -> 1440.898 | F14: =All!AJ8/1000 -> 1465.888 | H14: 53.622 | I14: =SUM(I5:I13) -> 553.3546894 | J14: 606.9766894
H15: Percentage Changes
A16: Percentage Shares | B16: =B$4 -> 1994 | C16: =C$4 -> 2004 | D16: =D$4 -> 2014 | E16: =E$4 -> 2019 | F16: =F$4 -> 2024
A17: =A5 -> Managers, directors and senior officials | B17: =B5/B$14*100 -> 6.489254847 | C17: 6.711884896 | D17: 7.53137872 | E17: 8.084422978 | F17: 8.359101991 | H17: =H5/D5*100 -> 15.20449465 | I17: 42.42769015 | J17: =J5/D5*100 -> 57.6321848
A18: =A6 -> Professional occupations | B18: 13.79160811 | C18: 16.02615943 | D18: 18.50510959 | E18: 19.30967216 | F18: 20.15824053 | H18: 13.06944165 | I18: 40.65530281 | J18: 53.72474447
A19: Associate professional and technical | B19: 9.779850746 | C19: 10.64458963 | D19: 11.25764318 | E19: 11.66767613 | F19: 11.98018587 | H19: 10.45881067 | I19: 36.58875327 | J19: 47.04756394
A20: Administrative and secretarial | B20: 12.84732631 | C20: 12.02725581 | D20: 10.92145771 | E20: 10.01364455 | F20: 9.627831048 | H20: -8.497673179 | I20: 42.24131925 | J20: 33.74364607
A21: Skilled trades occupations | B21: 16.87244239 | C21: 13.38696272 | D21: 13.57103697 | E21: 13.02769072 | F21: 12.45612332 | H21: -4.730441738 | I21: 35.39796779 | J21: 30.66752605
A22: Caring, leisure and other service | B22: 7.027825204 | C22: 9.35377875 | D22: 10.80010735 | E22: 11.11841713 | F22: 11.39709255 | H22: 9.534338235 | I22: 43.68652174 | J22: 53.22085998
A23: Sales and customer service | B23: 7.852989604 | C23: 8.852773854 | D23: 8.123996613 | E23: 8.016584311 | F23: 7.826642963 | H23: -0.002285316999 | I23: 37.61990409 | J23: 37.61761877
A24: Process, plant and machine operatives | B24: 11.27904025 | C24: 9.336747421 | D24: 8.547945288 | E24: 8.061099398 | F24: 7.746407706 | H24: -5.936116902 | I24: 34.68642942 | J24: 28.75031252
A25: Elementary occupations | B25: 14.05966254 | C25: 13.65984733 | D25: 10.74132465 | E25: 10.70079263 | F25: 10.44837402 | H25: 0.9660005971 | I25: 38.98650913 | J25: 39.95250973
A26: Total | B26: 100 | C26: 100 | D26: 100 | E26: 100 | F26: 100 | H26: 3.796876792 | I26: 39.18204425 | J26: 42.97892107
A27: =CELL("filename",$A$2)&", "&Info!A1 -> R:\Research Info\Individual research project info\Working Futures_ Data to be uploaded on the 16th May 16\Wales main workbook_needs cover updating\[AllWA.xlsm]Table 6.x.3, Wales

Sheet RD Charts(Occupations)
Z2: Values for the charts are written here by program RD_VBtab6x3PGeneratorWF5.xlsm
C4: ="Components of Replacement Demand, "&Z9&", "&AA9 -> Components of Replacement Demand, All occupations, 2014- 2024
Z9: All occupations | AA9: 2014- 2024
Z10: periods | AA10: 2014- 2015 | AB10: 2015- 2016 | AC10: 2016- 2017 | AD10: 2017- 2018 | AE10: 2018- 2019 | AF10: 2019- 2020 | AG10: 2020- 2021 | AH10: 2021- 2022 | AI10: 2022- 2023 | AJ10: 2023- 2024
Z11: labels
Z12: Expansion demand | AA12: 12.796 | AB12: 6.355999 | AC12: 3.854003 | AD12: 2.675997 | AE12: 2.949998 | AF12: 4.725003 | AG12: 4.012996 | AH12: 4.963 | AI12: 5.562004 | AJ12: 5.727001
Z13: Replacement demand | AA13: 54.46133959 | AB13: 54.8809002 | AC13: 55.09040352 | AD13: 55.20435238 | AE13: 55.2776783 | AF13: 55.36967379 | AG13: 55.53236729 | AH13: 55.66071293 | AI13: 55.82542187 | AJ13: 56.05183923
Z14: Net requirement | AA14: 67.25733959 | AB14: 61.2368992 | AC14: 58.94440652 | AD14: 57.88034938 | AE14: 58.2276763 | AF14: 60.09467679 | AG14: 59.54536329 | AH14: 60.62371293 | AI14: 61.38742587 | AJ14: 61.77884023
C29: ="Components of Replacement Demand, "&Z34&", "&AA34 -> Components of Replacement Demand, Corporate managers and directors, 2014- 2024
Z34: Corporate managers and directors | AA34: 2014- 2024
Z35: periods | AA35: 2014- 2015 | AB35: 2015- 2016 | AC35: 2016- 2017 | AD35: 2017- 2018 | AE35: 2018- 2019 | AF35: 2019- 2020 | AG35: 2020- 2021 | AH35: 2021- 2022 | AI35: 2022- 2023 | AJ35: 2023- 2024
Z36: labels
Z37: Expansion demand | AA37: 1.808898 | AB37: 1.598178 | AC37: 1.448364 | AD37: 1.281657 | AE37: 1.253969 | AF37: 1.328464 | AG37: 1.231783 | AH37: 1.281867 | AI37: 0.125007 | AJ37: 0.118282
Z38: Replacement demand | AA38: 2.266500073 | AB38: 2.331588511 | AC38: 2.389101983 | AD38: 2.441565451 | AE38: 2.488584814 | AF38: 2.534799829 | AG38: 2.583809908 | AH38: 2.629778072 | AI38: 2.67750516 | AJ38: 2.682766009
Z39: Net requirement | AA39: 4.075398073 | AB39: 3.929766511 | AC39: 3.837465983 | AD39: 3.723222451 | AE39: 3.742553814 | AF39: 3.863263829 | AG39: 3.815592908 | AH39: 3.911645072 | AI39: 2.80251216 | AJ39: 2.801048009
C54: ="Components of Replacement Demand, "&Z59&", "&AA59 -> Components of Replacement Demand, Other managers and proprietors, 2014- 2024
Z59: Other managers and proprietors | AA59: 2014- 2024
Z60: periods | AA60: 2014- 2015 | AB60: 2015- 2016 | AC60: 2016- 2017 | AD60: 2017- 2018 | AE60: 2018- 2019 | AF60: 2019- 2020 | AG60: 2020- 2021 | AH60: 2021- 2022 | AI60: 2022- 2023 | AJ60: 2023- 2024
Z61: labels
Z62: Expansion demand | AA62: 1.028455 | AB62: 0.592699 | AC62: 0.440336 | AD62: 0.33283 | AE62: 0.339804 | AF62: 0.387909 | AG62: 0.553919 | AH62: 0.614486 | AI62: 0.206667 | AJ62: 0.198401
Z63: Replacement demand | AA63: 1.884987717 | AB63: 1.934109358 | AC63: 1.96309833 | AD63: 1.985039633 | AE63: 2.002041917 | AF63: 2.019691121 | AG63: 2.039506003 | AH63: 2.067071432 | AI63: 2.097604908 | AJ63: 2.108255853
Z64: Net requirement | AA64: 2.913442717 | AB64: 2.526808358 | AC64: 2.40343433 | AD64: 2.317869633 | AE64: 2.341845917 | AF64: 2.407600121 | AG64: 2.593425003 | AH64: 2.681557432 | AI64: 2.304271908 | AJ64: 2.306656853
C79: ="Components of Replacement Demand, "&Z84&", "&AA84 -> Components of Replacement Demand, Science, research, engineering and technology professionals, 2014- 2024
Z84: Science, research, engineering and technology professionals | AA84: 2014- 2024
Z85: periods | AA85: 2014- 2015 | AB85: 2015- 2016 | AC85: 2016- 2017 | AD85: 2017- 2018 | AE85: 2018- 2019 | AF85: 2019- 2020 | AG85: 2020- 2021 | AH85: 2021- 2022 | AI85: 2022- 2023 | AJ85: 2023- 2024
Z86: labels
Z87: Expansion demand | AA87: 0.834517 | AB87: 0.76821 | AC87: 0.664187 | AD87: 0.54062 | AE87: 0.534985 | AF87: 0.601639 | AG87: 0.420914 | AH87: 0.456099 | AI87: -0.024645 | AJ87: -0.013134
Z88: Replacement demand | AA88: 1.317382392 | AB88: 1.342474561 | AC88: 1.365294286 | AD88: 1.385254936 | AE88: 1.401852281 | AF88: 1.418418785 | AG88: 1.437010239 | AH88: 1.450610893 | AI88: 1.465241654 | AJ88: 1.465094416
Z89: Net requirement | AA89: 2.151899392 | AB89: 2.110684561 | AC89: 2.029481286 | AD89: 1.925874936 | AE89: 1.936837281 | AF89: 2.020057785 | AG89: 1.857924239 | AH89: 1.906709893 | AI89: 1.440596654 | AJ89: 1.451960416
C104: ="Components of Replacement Demand, "&Z109&", "&AA109 -> Components of Replacement Demand, Health professionals, 2014- 2024
Z109: Health professionals | AA109: 2014- 2024
Z110: periods | AA110: 2014- 2015 | AB110: 2015- 2016 | AC110: 2016- 2017 | AD110: 2017- 2018 | AE110: 2018- 2019 | AF110: 2019- 2020 | AG110: 2020- 2021 | AH110: 2021- 2022 | AI110: 2022- 2023 | AJ110: 2023- 2024
Z111: labels
Z112: Expansion demand | AA112: 2.084554 | AB112: 0.707135 | AC112: 0.797106 | AD112: 1.303174 | AE112: 1.015433 | AF112: 1.107814 | AG112: 1.765505 | AH112: 1.856149 | AI112: 1.039196 | AJ112: 1.07513
Z113: Replacement demand | AA113: 3.009478545 | AB113: 3.088575812 | AC113: 3.116216506 | AD113: 3.147276134 | AE113: 3.197723187 | AF113: 3.237303781 | AG113: 3.280362178 | AH113: 3.347969812 | AI113: 3.418948817 | AJ113: 3.458060755
Z114: Net requirement | AA114: 5.094032545 | AB114: 3.795710812 | AC114: 3.913322506 | AD114: 4.450450134 | AE114: 4.213156187 | AF114: 4.345117781 | AG114: 5.045867178 | AH114: 5.204118812 | AI114: 4.458144817 | AJ114: 4.533190755
C129: ="Components of Replacement Demand, "&Z134&", "&AA134 -> Components of Replacement Demand, Teaching and educational professionals, 2014- 2024
Z134: Teaching and educational professionals | AA134: 2014- 2024
Z135: periods | AA135: 2014- 2015 | AB135: 2015- 2016 | AC135: 2016- 2017 | AD135: 2017- 2018 | AE135: 2018- 2019 | AF135: 2019- 2020 | AG135: 2020- 2021 | AH135: 2021- 2022 | AI135: 2022- 2023 | AJ135: 2023- 2024
Z136: labels
Z137: Expansion demand | AA137: 1.900012 | AB137: 0.701351 | AC137: 0.475968 | AD137: 0.223391 | AE137: 0.516438 | AF137: 0.978563 | AG137: 1.624177 | AH137: 1.763533 | AI137: 0.946555 | AJ137: 0.950416
Z138: Replacement demand | AA138: 3.88128222 | AB138: 3.962443324 | AC138: 3.993197976 | AD138: 4.014434838 | AE138: 4.025181806 | AF138: 4.048524424 | AG138: 4.091347034 | AH138: 4.161655463 | AI138: 4.237777658 | AJ138: 4.278954156
Z139: Net requirement | AA139: 5.78129422 | AB139: 4.663794324 | AC139: 4.469165976 | AD139: 4.237825838 | AE139: 4.541619806 | AF139: 5.027087424 | AG139: 5.715524034 | AH139: 5.925188463 | AI139: 5.184332658 | AJ139: 5.229370156
C154: ="Components of Replacement Demand, "&Z159&", "&AA159 -> Components of Replacement Demand, Business, media and public service professionals, 2014- 2024
Z159: Business, media and public service professionals | AA159: 2014- 2024
Z160: periods | AA160: 2014- 2015 | AB160: 2015- 2016 | AC160: 2016- 2017 | AD160: 2017- 2018 | AE160: 2018- 2019 | AF160: 2019- 2020 | AG160: 2020- 2021 | AH160: 2021- 2022 | AI160: 2022- 2023 | AJ160: 2023- 2024
Z161: labels
Z162: Expansion demand | AA162: 0.515016 | AB162: 0.848632 | AC162: 0.828376 | AD162: 0.804879 | AE162: 0.827323 | AF162: 0.94113 | AG162: 0.769712 | AH162: 0.816644 | AI162: 0.089621 | AJ162: 0.099531
Z163: Replacement demand | AA163: 1.784193609 | AB163: 1.804903784 | AC163: 1.838868824 | AD163: 1.872018419 | AE163: 1.90425361 | AF163: 1.937394466 | AG163: 1.975081843 | AH163: 2.005966392 | AI163: 2.038724053 | AJ163: 2.042372297
Z164: Net requirement | AA164: 2.299209609 | AB164: 2.653535784 | AC164: 2.667244824 | AD164: 2.676897419 | AE164: 2.73157661 | AF164: 2.878524466 | AG164: 2.744793843 | AH164: 2.822610392 | AI164: 2.128345053 | AJ164: 2.141903297
C179: ="Components of Replacement Demand, "&Z184&", "&AA184 -> Components of Replacement Demand, Science, engineering and technology associate professionals, 2014- 2024
Z184: Science, engineering and technology associate professionals | AA184: 2014- 2024
Z185: periods | AA185: 2014- 2015 | AB185: 2015- 2016 | AC185: 2016- 2017 | AD185: 2017- 2018 | AE185: 2018- 2019 | AF185: 2019- 2020 | AG185: 2020- 2021 | AH185: 2021- 2022 | AI185: 2022- 2023 | AJ185: 2023- 2024
Z186: labels
Z187: Expansion demand | AA187: 0.1904 | AB187: 0.045414 | AC187: 0.041567 | AD187: -0.001467 | AE187: 0.001776 | AF187: 0.045647 | AG187: 0.031112 | AH187: 0.049671 | AI187: 0.019092 | AJ187: 0.025669
Z188: Replacement demand | AA188: 0.6163415392 | AB188: 0.6215731011 | AC188: 0.6227059865 | AD188: 0.6237477823 | AE188: 0.6235613053 | AF188: 0.62352365 | AG188: 0.6247887063 | AH188: 0.6256530587 | AI188: 0.6270466656 | AJ188: 0.6277059195
Z189: Net requirement | AA189: 0.8067415392 | AB189: 0.6669871011 | AC189: 0.6642729865 | AD189: 0.6222807823 | AE189: 0.6253373053 | AF189: 0.66917065 | AG189: 0.6559007063 | AH189: 0.6753240587 | AI189: 0.6461386656 | AJ189: 0.6533749195
C204: ="Components of Replacement Demand, "&Z209&", "&AA209 -> Components of Replacement Demand, Health and social care associate professionals, 2014- 2024
Z209: Health and social care associate professionals | AA209: 2014- 2024
Z210: periods | AA210: 2014- 2015 | AB210: 2015- 2016 | AC210: 2016- 2017 | AD210: 2017- 2018 | AE210: 2018- 2019 | AF210: 2019- 2020 | AG210: 2020- 2021 | AH210: 2021- 2022 | AI210: 2022- 2023 | AJ210: 2023- 2024
Z211: labels
Z212: Expansion demand | AA212: 0.577894 | AB212: 0.262586 | AC212: 0.315705 | AD212: 0.481637 | AE212: 0.37886 | AF212: 0.406834 | AG212: 0.555829 | AH212: 0.581696 | AI212: 0.246972 | AJ212: 0.258054
Z213: Replacement demand | AA213: 0.9386762968 | AB213: 0.9591775236 | AC213: 0.9693169538 | AD213: 0.981372522 | AE213: 0.9997630646 | AF213: 1.014391762 | AG213: 1.029989654 | AH213: 1.050801668 | AI213: 1.072530698 | AJ213: 1.081528949
Z214: Net requirement | AA214: 1.516570297 | AB214: 1.221763524 | AC214: 1.285021954 | AD214: 1.463009522 | AE214: 1.378623065 | AF214: 1.421225762 | AG214: 1.585818654 | AH214: 1.632497668 | AI214: 1.319502698 | AJ214: 1.339582949
C229: ="Components of Replacement Demand, "&Z234&", "&AA234 -> Components of Replacement Demand, Protective service occupations, 2014- 2024
Z234: Protective service occupations | AA234: 2014- 2024
Z235: periods | AA235: 2014- 2015 | AB235: 2015- 2016 | AC235: 2016- 2017 | AD235: 2017- 2018 | AE235: 2018- 2019 | AF235: 2019- 2020 | AG235: 2020- 2021 | AH235: 2021- 2022 | AI235: 2022- 2023 | AJ235: 2023- 2024
Z236: labels
Z237: Expansion demand | AA237: -0.204759 | AB237: -0.392723 | AC237: -0.144302 | AD237: -0.078159 | AE237: -0.044642 | AF237: -0.028763 | AG237: -0.070586 | AH237: -0.065531 | AI237: 0.05543 | AJ237: 0.064501
Z238: Replacement demand | AA238: 0.3948407622 | AB238: 0.3903597609 | AC238: 0.3813077909 | AD238: 0.3785418633 | AE238: 0.3775043985 | AF238: 0.3774005549 | AG238: 0.3777317438 | AH238: 0.3769159446 | AI238: 0.3761975747 | AJ238: 0.3776295399
Z239: Net requirement | AA239: 0.1900817622 | AB239: -0.002363239118 | AC239: 0.2370057909 | AD239: 0.3003828633 | AE239: 0.3328623985 | AF239: 0.3486375549 | AG239: 0.3071457438 | AH239: 0.3113849446 | AI239: 0.4316275747 | AJ239: 0.4421305399
C254: ="Components of Replacement Demand, "&Z259&", "&AA259 -> Components of Replacement Demand, Culture, media and sports occupations, 2014- 2024
Z259: Culture, media and sports occupations | AA259: 2014- 2024
Z260: periods | AA260: 2014- 2015 | AB260: 2015- 2016 | AC260: 2016- 2017 | AD260: 2017- 2018 | AE260: 2018- 2019 | AF260: 2019- 2020 | AG260: 2020- 2021 | AH260: 2021- 2022 | AI260: 2022- 2023 | AJ260: 2023- 2024
Z261: labels
Z262: Expansion demand | AA262: 0.549664 | AB262: 0.298867 | AC262: 0.285087 | AD262: 0.241402 | AE262: 0.223921 | AF262: 0.281744 | AG262: 0.264947 | AH262: 0.289937 | AI262: 0.110775 | AJ262: 0.119201
Z263: Replacement demand | AA263: 0.8993775696 | AB263: 0.9198502524 | AC263: 0.9323625516 | AD263: 0.9442513234 | AE263: 0.9544446637 | AF263: 0.9646297465 | AG263: 0.9770712869 | AH263: 0.9883435319 | AI263: 1.000633091 | AJ263: 1.005908127
Z264: Net requirement | AA264: 1.44904157 | AB264: 1.218717252 | AC264: 1.217449552 | AD264: 1.185653323 | AE264: 1.178365664 | AF264: 1.246373747 | AG264: 1.242018287 | AH264: 1.278280532 | AI264: 1.111408091 | AJ264: 1.125109127
C279: ="Components of Replacement Demand, "&Z284&", "&AA284 -> Components of Replacement Demand, Business and public service associate professionals, 2014- 2024
Z284: Business and public service associate professionals | AA284: 2014- 2024
Z285: periods | AA285: 2014- 2015 | AB285: 2015- 2016 | AC285: 2016- 2017 | AD285: 2017- 2018 | AE285: 2018- 2019 | AF285: 2019- 2020 | AG285: 2020- 2021 | AH285: 2021- 2022 | AI285: 2022- 2023 | AJ285: 2023- 2024
Z286: labels
Z287: Expansion demand | AA287: 1.175834 | AB287: 1.285181 | AC287: 1.253163 | AD287: 1.168352 | AE287: 1.220188 | AF287: 1.40301 | AG287: 1.160744 | AH287: 1.221643 | AI287: 0.234515 | AJ287: 0.234651
Z288: Replacement demand | AA288: 2.643358422 | AB288: 2.686148167 | AC288: 2.733351965 | AD288: 2.779390605 | AE288: 2.822651438 | AF288: 2.867964426 | AG288: 2.919901477 | AH288: 2.963166841 | AI288: 3.00860133 | AJ288: 3.017644835
Z289: Net requirement | AA289: 3.819192422 | AB289: 3.971329167 | AC289: 3.986514965 | AD289: 3.947742605 | AE289: 4.042839438 | AF289: 4.270974426 | AG289: 4.080645477 | AH289: 4.184809841 | AI289: 3.24311633 | AJ289: 3.252295835
C304: ="Components of Replacement Demand, "&Z309&", "&AA309 -> Components of Replacement Demand, Administrative occupations, 2014- 2024
Z309: Administrative occupations | AA309: 2014- 2024
Z310: periods | AA310: 2014- 2015 | AB310: 2015- 2016 | AC310: 2016- 2017 | AD310: 2017- 2018 | AE310: 2018- 2019 | AF310: 2019- 2020 | AG310: 2020- 2021 | AH310: 2021- 2022 | AI310: 2022- 2023 | AJ310: 2023- 2024
Z311: labels
Z312: Expansion demand | AA312: -0.371047 | AB312: -0.598719 | AC312: -0.571075 | AD312: -0.662384 | AE312: -0.637553 | AF312: -0.443228 | AG312: -0.438192 | AH312: -0.390097 | AI312: 0.861748 | AJ312: 0.896075
Z313: Replacement demand | AA313: 5.102421203 | AB313: 5.079916316 | AC313: 5.051380829 | AD313: 5.023438123 | AE313: 4.99204839 | AF313: 4.963056211 | AG313: 4.941810936 | AH313: 4.918965961 | AI313: 4.897967161 | AJ313: 4.933501406
Z314: Net requirement | AA314: 4.731374203 | AB314: 4.481197316 | AC314: 4.480305829 | AD314: 4.361054123 | AE314: 4.35449539 | AF314: 4.519828211 | AG314: 4.503618936 | AH314: 4.528868961 | AI314: 5.759715161 | AJ314: 5.829576406
C329: ="Components of Replacement Demand, "&Z334&", "&AA334 -> Components of Replacement Demand, Secretarial and related occupations, 2014- 2024
Z334: Secretarial and related occupations | AA334: 2014- 2024
Z335: periods | AA335: 2014- 2015 | AB335: 2015- 2016 | AC335: 2016- 2017 | AD335: 2017- 2018 | AE335: 2018- 2019 | AF335: 2019- 2020 | AG335: 2020- 2021 | AH335: 2021- 2022 | AI335: 2022- 2023 | AJ335: 2023- 2024
Z336: labels
Z337: Expansion demand | AA337: -1.345272 | AB337: -1.398027 | AC337: -1.427813 | AD337: -1.481947 | AE337: -1.459796 | AF337: -1.437544 | AG337: -1.449475 | AH337: -1.453368 | AI337: 0.332306 | AJ337: 0.368593
Z338: Replacement demand | AA338: 1.86641951 | AB338: 1.792040344 | AC338: 1.715380707 | AD338: 1.636959319 | AE338: 1.555670308 | AF338: 1.475656007 | AG338: 1.39680551 | AH338: 1.31716667 | AI338: 1.237263984 | AJ338: 1.255157122
Z339: Net requirement | AA339: 0.5211475102 | AB339: 0.3940133438 | AC339: 0.2875677073 | AD339: 0.1550123194 | AE339: 0.09587430771 | AF339: 0.03811200735 | AG339: -0.05266948971 | AH339: -0.1362013301 | AI339: 1.569569984 | AJ339: 1.623750122
C354: ="Components of Replacement Demand, "&Z359&", "&AA359 -> Components of Replacement Demand, Skilled agricultural and related trades, 2014- 2024
Z359: Skilled agricultural and related trades | AA359: 2014- 2024
Z360: periods | AA360: 2014- 2015 | AB360: 2015- 2016 | AC360: 2016- 2017 | AD360: 2017- 2018 | AE360: 2018- 2019 | AF360: 2019- 2020 | AG360: 2020- 2021 | AH360: 2021- 2022 | AI360: 2022- 2023 | AJ360: 2023- 2024
Z361: labels
Z362: Expansion demand | AA362: -0.552412 | AB362: -0.359387 | AC362: -0.405367 | AD362: -0.418198 | AE362: -0.332739 | AF362: -0.356862 | AG362: -0.298554 | AH362: -0.265208 | AI362: -0.193879 | AJ362: -0.158344
Z363: Replacement demand | AA363: 1.426050235 | AB363: 1.396561622 | AC363: 1.377332066 | AD363: 1.355667228 | AE363: 1.333292719 | AF363: 1.315648705 | AG363: 1.296712426 | AH363: 1.280542636 | AI363: 1.266218104 | AJ363: 1.256103941
Z364: Net requirement | AA364: 0.8736382353 | AB364: 1.037174622 | AC364: 0.9719650655 | AD364: 0.937469228 | AE364: 1.000553719 | AF364: 0.9587867049 | AG364: 0.9981584264 | AH364: 1.015334636 | AI364: 1.072339104 | AJ364: 1.097759941
C379: ="Components of Replacement Demand, "&Z384&", "&AA384 -> Components of Replacement Demand, Skilled metal, electrical and electronic trades, 2014- 2024
Z384: Skilled metal, electrical and electronic trades | AA384: 2014- 2024
Z385: periods | AA385: 2014- 2015 | AB385: 2015- 2016 | AC385: 2016- 2017 | AD385: 2017- 2018 | AE385: 2018- 2019 | AF385: 2019- 2020 | AG385: 2020- 2021 | AH385: 2021- 2022 | AI385: 2022- 2023 | AJ385: 2023- 2024
Z386: labels
Z387: Expansion demand | AA387: 0.315869 | AB387: -0.411518 | AC387: -0.686046 | AD387: -0.907244 | AE387: -0.872134 | AF387: -0.8934 | AG387: -1.0416 | AH387: -0.989061 | AI387: -0.056513 | AJ387: -0.065744
Z388: Replacement demand | AA388: 1.964127858 | AB388: 1.973843277 | AC388: 1.960859301 | AD388: 1.939426037 | AE388: 1.911103129 | AF388: 1.883878981 | AG388: 1.855997484 | AH388: 1.823447529 | AI388: 1.792552362 | AJ388: 1.790832591
Z389: Net requirement | AA389: 2.279996858 | AB389: 1.562325277 | AC389: 1.274813301 | AD389: 1.032182037 | AE389: 1.038969129 | AF389: 0.9904789807 | AG389: 0.8143974844 | AH389: 0.8343865286 | AI389: 1.736039362 | AJ389: 1.725088591
C404: ="Components of Replacement Demand, "&Z409&", "&AA409 -> Components of Replacement Demand, Skilled construction and building trades, 2014- 2024
Z409: Skilled construction and building trades | AA409: 2014- 2024
Z410: periods | AA410: 2014- 2015 | AB410: 2015- 2016 | AC410: 2016- 2017 | AD410: 2017- 2018 | AE410: 2018- 2019 | AF410: 2019- 2020 | AG410: 2020- 2021 | AH410: 2021- 2022 | AI410: 2022- 2023 | AJ410: 2023- 2024
Z411: labels
Z412: Expansion demand | AA412: 1.703705 | AB412: 0.496804 | AC412: 0.203969 | AD412: 0.09147 | AE412: 0.169331 | AF412: 0.118228 | AG412: -0.01979 | AH412: -0.00237 | AI412: 0.041663 | AJ412: 0.050611
Z413: Replacement demand | AA413: 2.180699576 | AB413: 2.23635608 | AC413: 2.252908855 | AD413: 2.259941087 | AE413: 2.26335159 | AF413: 2.269362038 | AG413: 2.27373002 | AH413: 2.273632213 | AI413: 2.274100526 | AJ413: 2.275538563
Z414: Net requirement | AA414: 3.884404576 | AB414: 2.73316008 | AC414: 2.456877855 | AD414: 2.351411087 | AE414: 2.43268259 | AF414: 2.387590038 | AG414: 2.25394002 | AH414: 2.271262213 | AI414: 2.315763526 | AJ414: 2.326149563
C429: ="Components of Replacement Demand, "&Z434&", "&AA434 -> Components of Replacement Demand, Textiles, printing and other skilled trades, 2014- 2024
Z434: Textiles, printing and other skilled trades | AA434: 2014- 2024
Z435: periods | AA435: 2014- 2015 | AB435: 2015- 2016 | AC435: 2016- 2017 | AD435: 2017- 2018 | AE435: 2018- 2019 | AF435: 2019- 2020 | AG435: 2020- 2021 | AH435: 2021- 2022 | AI435: 2022- 2023 | AJ435: 2023- 2024
Z436: labels
Z437: Expansion demand | AA437: 0.034573 | AB437: -0.388318 | AC437: -0.53343 | AD437: -0.598214 | AE437: -0.494118 | AF437: -0.534931 | AG437: -0.422673 | AH437: -0.408717 | AI437: 0.187163 | AJ437: 0.187063
Z438: Replacement demand | AA438: 1.357591725 | AB438: 1.361622225 | AC438: 1.350661971 | AD438: 1.333929394 | AE438: 1.314567012 | AF438: 1.298586668 | AG438: 1.281578518 | AH438: 1.268248854 | AI438: 1.255369107 | AJ438: 1.261465685
Z439: Net requirement | AA439: 1.392164725 | AB439: 0.9733042253 | AC439: 0.8172319708 | AD439: 0.7357153943 | AE439: 0.8204490123 | AF439: 0.7636556681 | AG439: 0.8589055176 | AH439: 0.8595318536 | AI439: 1.442532107 | AJ439: 1.448528685
C454: ="Components of Replacement Demand, "&Z459&", "&AA459 -> Components of Replacement Demand, Caring personal service occupations, 2014- 2024
Z459: Caring personal service occupations | AA459: 2014- 2024
Z460: periods | AA460: 2014- 2015 | AB460: 2015- 2016 | AC460: 2016- 2017 | AD460: 2017- 2018 | AE460: 2018- 2019 | AF460: 2019- 2020 | AG460: 2020- 2021 | AH460: 2021- 2022 | AI460: 2022- 2023 | AJ460: 2023- 2024
Z461: labels
Z462: Expansion demand | AA462: 0.976743 | AB462: 1.427141 | AC462: 1.629783 | AD462: 2.004837 | AE462: 1.747683 | AF462: 1.847042 | AG462: 1.973036 | AH462: 2.10409 | AI462: 0.561718 | AJ462: 0.624851
Z463: Replacement demand | AA463: 5.059323213 | AB463: 5.097109298 | AC463: 5.152730077 | AD463: 5.216561052 | AE463: 5.296036578 | AF463: 5.365545029 | AG463: 5.439315544 | AH463: 5.518246342 | AI463: 5.602454275 | AJ463: 5.62708064
Z464: Net requirement | AA464: 6.036066213 | AB464: 6.524250298 | AC464: 6.782513077 | AD464: 7.221398052 | AE464: 7.043719578 | AF464: 7.212587029 | AG464: 7.412351544 | AH464: 7.622336342 | AI464: 6.164172275 | AJ464: 6.25193164
C479: ="Components of Replacement Demand, "&Z484&", "&AA484 -> Components of Replacement Demand, Leisure, travel and related personal service occupations, 2014- 2024
Z484: Leisure, travel and related personal service occupations | AA484: 2014- 2024
Z485: periods | AA485: 2014- 2015 | AB485: 2015- 2016 | AC485: 2016- 2017 | AD485: 2017- 2018 | AE485: 2018- 2019 | AF485: 2019- 2020 | AG485: 2020- 2021 | AH485: 2021- 2022 | AI485: 2022- 2023 | AJ485: 2023- 2024
Z486: labels
Z487: Expansion demand | AA487: 0.259957 | AB487: 0.002428 | AC487: -0.084419 | AD487: -0.145622 | AE487: -0.139726 | AF487: -0.123939 | AG487: -0.11908 | AH487: -0.118225 | AI487: 0.055698 | AJ487: 0.058371
Z488: Replacement demand | AA488: 1.327976728 | AB488: 1.339734402 | AC488: 1.340381127 | AD488: 1.337173871 | AE488: 1.33108117 | AF488: 1.325158275 | AG488: 1.319971887 | AH488: 1.31495149 | AI488: 1.31000104 | AJ488: 1.312579146
Z489: Net requirement | AA489: 1.587933728 | AB489: 1.342162402 | AC489: 1.255962127 | AD489: 1.191551871 | AE489: 1.19135517 | AF489: 1.201219275 | AG489: 1.200891887 | AH489: 1.19672649 | AI489: 1.36569904 | AJ489: 1.370950146
C504: ="Components of Replacement Demand, "&Z509&", "&AA509 -> Components of Replacement Demand, Sales occupations, 2014- 2024
Z509: Sales occupations | AA509: 2014- 2024
Z510: periods | AA510: 2014- 2015 | AB510: 2015- 2016 | AC510: 2016- 2017 | AD510: 2017- 2018 | AE510: 2018- 2019 | AF510: 2019- 2020 | AG510: 2020- 2021 | AH510: 2021- 2022 | AI510: 2022- 2023 | AJ510: 2023- 2024
Z511: labels
Z512: Expansion demand | AA512: -1.270253 | AB512: 0.277299 | AC512: -0.281596 | AD512: -0.484881 | AE512: -0.42361 | AF512: -0.355541 | AG512: -1.279631 | AH512: -1.362943 | AI512: 0.100963 | AJ512: 0.075958
Z513: Replacement demand | AA513: 3.562252282 | AB513: 3.507975519 | AC513: 3.517182125 | AD513: 3.503726129 | AE513: 3.481891386 | AF513: 3.462984124 | AG513: 3.447145223 | AH513: 3.395528387 | AI513: 3.340957437 | AJ513: 3.348460766
Z514: Net requirement | AA514: 2.291999282 | AB514: 3.785274519 | AC514: 3.235586125 | AD514: 3.018845129 | AE514: 3.058281386 | AF514: 3.107443124 | AG514: 2.167514223 | AH514: 2.032585387 | AI514: 3.441920437 | AJ514: 3.424418766
C529: ="Components of Replacement Demand, "&Z534&", "&AA534 -> Components of Replacement Demand, Customer service occupations, 2014- 2024
Z534: Customer service occupations | AA534: 2014- 2024
Z535: periods | AA535: 2014- 2015 | AB535: 2015- 2016 | AC535: 2016- 2017 | AD535: 2017- 2018 | AE535: 2018- 2019 | AF535: 2019- 2020 | AG535: 2020- 2021 | AH535: 2021- 2022 | AI535: 2022- 2023 | AJ535: 2023- 2024
Z536: labels
Z537: Expansion demand | AA537: 0.789883 | AB537: 0.633265 | AC537: 0.544744 | AD537: 0.497823 | AE537: 0.495687 | AF537: 0.530722 | AG537: 0.577794 | AH537: 0.591327 | AI537: 0.168733 | AJ537: 0.171635
Z538: Replacement demand | AA538: 0.7797431481 | AB538: 0.8030786396 | AC538: 0.8224508583 | AD538: 0.8387282765 | AE538: 0.8533940407 | AF538: 0.8683364203 | AG538: 0.8842743594 | AH538: 0.901333805 | AI538: 0.9187666293 | AJ538: 0.9240250875
Z539: Net requirement | AA539: 1.569626148 | AB539: 1.43634364 | AC539: 1.367194858 | AD539: 1.336551276 | AE539: 1.349081041 | AF539: 1.39905842 | AG539: 1.462068359 | AH539: 1.492660805 | AI539: 1.087499629 | AJ539: 1.095660088
C554: ="Components of Replacement Demand, "&Z559&", "&AA559 -> Components of Replacement Demand, Process, plant and machine operatives, 2014- 2024
Z559: Process, plant and machine operatives | AA559: 2014- 2024
Z560: periods | AA560: 2014- 2015 | AB560: 2015- 2016 | AC560: 2016- 2017 | AD560: 2017- 2018 | AE560: 2018- 2019 | AF560: 2019- 2020 | AG560: 2020- 2021 | AH560: 2021- 2022 | AI560: 2022- 2023 | AJ560: 2023- 2024
Z561: labels
Z562: Expansion demand | AA562: 0.498453 | AB562: -1.271256 | AC562: -1.511175 | AD562: -1.827025 | AE562: -1.893316 | AF562: -1.830646 | AG562: -1.310393 | AH562: -1.208602 | AI562: 0.558956 | AJ562: 0.579672
Z563: Replacement demand | AA563: 2.609748265 | AB563: 2.620782893 | AC563: 2.573409298 | AD563: 2.520885008 | AE563: 2.458773753 | AF563: 2.394264397 | AG563: 2.331480271 | AH563: 2.28606032 | AI563: 2.243963062 | AJ563: 2.262388281
Z564: Net requirement | AA564: 3.108201265 | AB564: 1.349526893 | AC564: 1.062234298 | AD564: 0.6938600084 | AE564: 0.5654577533 | AF564: 0.5636183968 | AG564: 1.021087271 | AH564: 1.07745832 | AI564: 2.802919062 | AJ564: 2.842060281
C579: ="Components of Replacement Demand, "&Z584&", "&AA584 -> Components of Replacement Demand, Transport and mobile machine drivers and operatives, 2014- 2024
Z584: Transport and mobile machine drivers and operatives | AA584: 2014- 2024
Z585: periods | AA585: 2014- 2015 | AB585: 2015- 2016 | AC585: 2016- 2017 | AD585: 2017- 2018 | AE585: 2018- 2019 | AF585: 2019- 2020 | AG585: 2020- 2021 | AH585: 2021- 2022 | AI585: 2022- 2023 | AJ585: 2023- 2024
Z586: labels
Z587: Expansion demand | AA587: 0.239239 | AB587: 0.348724 | AC587: 0.342351 | AD587: 0.259972 | AE587: 0.246527 | AF587: 0.320013 | AG587: 0.039766 | AH587: 0.026695 | AI587: 0.120074 | AJ587: 0.105906
Z588: Replacement demand | AA588: 1.705863971 | AB588: 1.716445873 | AC588: 1.731654832 | AD588: 1.746557965 | AE588: 1.757887202 | AF588: 1.768702881 | AG588: 1.782698174 | AH588: 1.784619531 | AI588: 1.785977782 | AJ588: 1.791198804
Z589: Net requirement | AA589: 1.945102971 | AB589: 2.065169873 | AC589: 2.074005832 | AD589: 2.006529965 | AE589: 2.004414202 | AF589: 2.088715881 | AG589: 1.822464174 | AH589: 1.811314531 | AI589: 1.906051782 | AJ589: 1.897104804
C604: ="Components of Replacement Demand, "&Z609&", "&AA609 -> Components of Replacement Demand, Elementary trades and related occupations, 2014- 2024
Z609: Elementary trades and related occupations | AA609: 2014- 2024
Z610: periods | AA610: 2014- 2015 | AB610: 2015- 2016 | AC610: 2016- 2017 | AD610: 2017- 2018 | AE610: 2018- 2019 | AF610: 2019- 2020 | AG610: 2020- 2021 | AH610: 2021- 2022 | AI610: 2022- 2023 | AJ610: 2023- 2024
Z611: labels
Z612: Expansion demand | AA612: 0.444782 | AB612: 0.209692 | AC612: 0.086713 | AD612: -0.000522 | AE612: 9.5e-05 | AF612: 0.039849 | AG612: 0.059859 | AH612: 0.086843 | AI612: 0.233292 | AJ612: 0.241099
Z613: Replacement demand | AA613: 1.099213166 | AB613: 1.117126379 | AC613: 1.12645626 | AD613: 1.131727473 | AE613: 1.13393609 | AF613: 1.136268562 | AG613: 1.140030529 | AH613: 1.143931531 | AI613: 1.148814872 | AJ613: 1.156744655
Z614: Net requirement | AA614: 1.543995166 | AB614: 1.326818379 | AC614: 1.21316926 | AD614: 1.131205473 | AE614: 1.13403109 | AF614: 1.176117562 | AG614: 1.199889529 | AH614: 1.230774531 | AI614: 1.382106872 | AJ614: 1.397843655
C629: ="Components of Replacement Demand, "&Z634&", "&AA634 -> Components of Replacement Demand, Elementary administration and service occupations, 2014- 2024
Z634: Elementary administration and service occupations | AA634: 2014- 2024
Z635: periods | AA635: 2014- 2015 | AB635: 2015- 2016 | AC635: 2016- 2017 | AD635: 2017- 2018 | AE635: 2018- 2019 | AF635: 2019- 2020 | AG635: 2020- 2021 | AH635: 2021- 2022 | AI635: 2022- 2023 | AJ635: 2023- 2024
Z636: labels
Z637: Expansion demand | AA637: 0.611295 | AB637: 0.672341 | AC637: 0.141807 | AD637: 0.049616 | AE637: 0.275612 | AF637: 0.391249 | AG637: -0.566127 | AH637: -0.513558 | AI637: -0.459103 | AJ637: -0.539447
Z638: Replacement demand | AA638: 4.783489567 | AB638: 4.797103183 | AC638: 4.812792064 | AD638: 4.806737911 | AE638: 4.797082449 | AF638: 4.798182944 | AG638: 4.804216332 | AH638: 4.766104557 | AI638: 4.730203924 | AJ638: 4.71084168
Z639: Net requirement | AA639: 5.394784567 | AB639: 5.469444183 | AC639: 4.954599064 | AD639: 4.856353911 | AE639: 5.072694449 | AF639: 5.189431944 | AG639: 4.238089332 | AH639: 4.252546557 | AI639: 4.271100924 | AJ639: 4.17139468

Sheet Figure 7.1
DA1: Data is written here by the initial setup process and the appropriate occupation copied to BL116 when an occupation is selected
AZ2: When an occupation is selected, data for that occupation is written here.
F3: Click on an occupation from the list and the charts will be customised for that occupation | BB3: Chart data | DA3: Emp x qualification for occupation 1 for every industry
BB4: Shares of total employment for selected occupation for every sector | DA4: 2012 | DB4: =LEFT(names!$D$4,4) -> QCF8 | DC4: =LEFT(names!$D$5,4) -> QCF7 | DD4: =LEFT(names!$D$6,4) -> QCF6 | DE4: =LEFT(names!$D$7,4) -> QCF5 | DF4: =LEFT(names!$D$8,4) -> QCF4 | DG4: =LEFT(names!$D$9,4) -> QCF3 | DH4: =LEFT(names!$D$10,4) -> QCF2 | DI4: =LEFT(names!$D$11,4) -> QCF1 | DJ4: =LEFT(names!$D$12,7) -> No Qual
BB5: 1994 | BC5: 1995 | BD5: 1996 | BE5: 1997 | BF5: 1998 | BG5: 1999 | BH5: 2000 | BI5: 2001 | BJ5: 2002 | BK5: 2003 | BL5: 2004 | BM5: 2005 | BN5: 2006 | BO5: 2007 | BP5: 2008 | BQ5: 2009 | BR5: 2010 | BS5: 2011 | BT5: 2012 | BU5: 2013 | BV5: 2014 | BW5: 2015 | BX5: 2016 | BY5: 2017 | BZ5: 2018 | CA5: 2019 | CB5: 2020 | CC5: 2021 | CD5: 2022 | CE5: 2023 | CF5: 2024 | DA5: =names!$A$3 -> All industries | DB5: 596.5980479 | DC5: 5144.879899 | DD5: 15540.89675 | DE5: 3909.20229 | DF5: 5244.000376 | DG5: 10563.07578 | DH5: 11458.44873 | DI5: 6405.429408 | DJ5: 1956.686794
BA6: Males | BB6: 39.55324863 | BC6: 39.07955251 | BD6: 37.98758437 | BE6: 38.20382632 | BF6: 37.77667435 | BG6: 38.68200802 | BH6: 38.14110386 | BI6: 37.43661339 | BJ6: 37.49661309 | BK6: 37.78903029 | BL6: 38.20957973 | BM6: 36.6886095 | BN6: 35.54692909 | BO6: 35.69862361 | BP6: 37.8900549 | BQ6: 36.51930376 | BR6: 36.78613297 | BS6: 36.45428965 | BT6: 36.28510898 | BU6: 36.12087649 | BV6: 35.94832438 | BW6: 35.81883444 | BX6: 35.58606601 | BY6: 35.33825639 | BZ6: 35.0968185 | CA6: 34.84647232 | CB6: 34.60352415 | CC6: 34.84647232 | CD6: 34.60352415 | CE6: 34.36773555 | CF6: 34.13879464 | DB6: 596.5980479 | DC6: 5144.879899 | DD6: 15540.89675 | DE6: 3909.20229 | DF6: 5244.000376 | DG6: 10563.07578 | DH6: 11458.44873 | DI6: 6405.429408 | DJ6: 1956.686794
BA7: Females | BB7: 60.44675137 | BC7: 60.92044749 | BD7: 62.01241563 | BE7: 61.79617368 | BF7: 62.22332565 | BG7: 61.31799198 | BH7: 61.85889614 | BI7: 62.56338661 | BJ7: 62.50338691 | BK7: 62.21096971 | BL7: 61.79042027 | BM7: 63.3113905 | BN7: 64.45307091 | BO7: 64.30137639 | BP7: 62.10994518 | BQ7: 63.48069624 | BR7: 63.21386711 | BS7: 63.54571035 | BT7: 63.71489102 | BU7: 63.87912351 | BV7: 64.05167562 | BW7: 64.18116556 | BX7: 64.41393399 | BY7: 64.66174361 | BZ7: 64.9031815 | CA7: 65.15352775 | CB7: 65.39647585 | CC7: 65.15352775 | CD7: 65.39647585 | CE7: 65.63226439 | CF7: 65.86120523
G14: Charts all refer to the selected occupation - current selection is :-
B16: 23 Teaching and educational professionals
J18: All industries
CJ25: =TableQ!A3 -> QCF group | CK25: Base year level
CK26: 2010
CJ27: =TableQ!A5 -> QCF 7-8 | CK27: 1878259.585
CJ28: =TableQ!A6 -> QCF 4-6 | CK28: 7417568.277
CJ29: =TableQ!A7 -> QCF 3 | CK29: 5973784.73
CJ30: =TableQ!A8 -> QCF 2 | CK30: 6685148.396
CJ31: =TableQ!A9 -> QCF 1 | CK31: 5357778.981
CJ32: =TableQ!A10 -> No Qual | CK32: 3124402.429
DA33: Emp x qualification for occupation 2 for every industry
DA34: 2012 | DB34: =DB4 -> QCF8 | DC34: =DC4 -> QCF7 | DD34: QCF6 | DE34: QCF5 | DF34: QCF4 | DG34: QCF3 | DH34: QCF2 | DI34: QCF1 | DJ34: No Qual
DA35: =names!$A$3 -> All industries | DB35: 295.8099946 | DC35: 2226.994595 | DD35: 6640.287607 | DE35: 2262.092876 | DF35: 2590.459525 | DG35: 7310.403191 | DH35: 9188.956642 | DI35: 5609.221511 | DJ35: 3367.328115
DB36: 295.8099946 | DC36: 2226.994595 | DD36: 6640.287607 | DE36: 2262.092876 | DF36: 2590.459525 | DG36: 7310.403191 | DH36: 9188.956642 | DI36: 5609.221511 | DJ36: 3367.328115
BB59: Selected occupation as % of all occupations, separately for men and women
BB60: 1994 | BC60: 1995 | BD60: 1996 | BE60: 1997 | BF60: 1998 | BG60: 1999 | BH60: 2000 | BI60: 2001 | BJ60: 2002 | BK60: 2003 | BL60: 2004 | BM60: 2005 | BN60: 2006 | BO60: 2007 | BP60: 2008 | BQ60: 2009 | BR60: 2010 | BS60: 2011 | BT60: 2012 | BU60: 2013 | BV60: 2014 | BW60: 2015 | BX60: 2016 | BY60: 2017 | BZ60: 2018 | CA60: 2019 | CB60: 2020 | CC60: 2021 | CD60: 2022 | CE60: 2023 | CF60: 2024
AZ61: =names!A3 -> All industries | BA61: Males | BB61: 2.870243462 | BC61: 2.821702265 | BD61: 2.800523664 | BE61: 2.804230044 | BF61: 2.754978841 | BG61: 2.86184051 | BH61: 2.908707294 | BI61: 2.875589459 | BJ61: 2.916382115 | BK61: 3.043430052 | BL61: 3.133974729 | BM61: 2.986434455 | BN61: 2.888199311 | BO61: 2.898050668 | BP61: 3.021558014 | BQ61: 3.020224507 | BR61: 3.11143723 | BS61: 3.133529819 | BT61: 3.146439664 | BU61: 3.157439642 | BV61: 3.162449691 | BW61: 3.172987028 | BX61: 3.181960136 | BY61: 3.192639274 | BZ61: 3.204962689 | CA61: 3.217519756 | CB61: 3.230102831 | CC61: 3.217519756 | CD61: 3.230102831 | CE61: 3.242581653 | CF61: 3.254957511
BA62: Females | BB62: 4.829432188 | BC62: 4.847498577 | BD62: 4.939296264 | BE62: 4.983977276 | BF62: 5.068536012 | BG62: 5.192689848 | BH62: 5.303414487 | BI62: 5.437605909 | BJ62: 5.44648241 | BK62: 5.684262244 | BL62: 5.722152412 | BM62: 5.76600559 | BN62: 5.892912673 | BO62: 5.911189254 | BP62: 5.690699811 | BQ62: 5.93689206 | BR62: 6.016826068 | BS62: 6.100447958 | BT62: 6.184237779 | BU62: 6.26257653 | BV62: 6.336980994 | BW62: 6.407242551 | BX62: 6.474623289 | BY62: 6.542370553 | BZ62: 6.611819637 | CA62: 6.679614505 | CB62: 6.748123068 | CC62: 6.679614505 | CD62: 6.748123068 | CE62: 6.815470182 | CF62: 6.881685135
DA63: Emp x qualification for occupation 3 for every industry
DA64: 2012 | DB64: =DB34 -> QCF8 | DC64: =DC34 -> QCF7 | DD64: QCF6 | DE64: QCF5 | DF64: QCF4 | DG64: QCF3 | DH64: QCF2 | DI64: QCF1 | DJ64: No Qual
DA65: =names!$A$3 -> All industries | DB65: 1872.812412 | DC65: 6314.184704 | DD65: 15201.35328 | DE65: 2021.157121 | DF65: 4985.319287 | DG65: 5681.385794 | DH65: 5438.154136 | DI65: 2507.721789 | DJ65: 693.5087896
DB66: 1872.812412 | DC66: 6314.184704 | DD66: 15201.35328 | DE66: 2021.157121 | DF66: 4985.319287 | DG66: 5681.385794 | DH66: 5438.154136 | DI66: 2507.721789 | DJ66: 693.5087896
B92: 11 Corporate managers and directors | I92: 34 Culture, media and sports occupations | O92: 62 Leisure, travel and related personal service occupations
B93: 12 Other managers and proprietors | I93: 35 Business and public service associate professionals | O93: 71 Sales occupations | DA93: Emp x qualification for occupation 4 for every industry
B94: 21 Science, research, engineering and technology professionals | I94: 41 Administrative occupations | O94: 72 Customer service occupations | DA94: 2012 | DB94: =DB64 -> QCF8 | DC94: =DC64 -> QCF7 | DD94: QCF6 | DE94: QCF5 | DF94: QCF4 | DG94: QCF3 | DH94: QCF2 | DI94: QCF1 | DJ94: No Qual
B95: 22 Health professionals | I95: 42 Secretarial and related occupations | O95: 81 Process, plant and machine operatives | DA95: =names!$A$3 -> All industries | DB95: 3617.857988 | DC95: 9876.775164 | DD95: 24010.03106 | DE95: 17807.87626 | DF95: 1782.544387 | DG95: 5746.03952 | DH95: 5569.717464 | DI95: 2857.439617 | DJ95: 330.4811044
B96: 23 Teaching and educational professionals | I96: 51 Skilled agricultural and related trades | O96: 82 Transport and mobile machine drivers and operatives | DB96: 3617.857988 | DC96: 9876.775164 | DD96: 24010.03106 | DE96: 17807.87626 | DF96: 1782.544387 | DG96: 5746.03952 | DH96: 5569.717464 | DI96: 2857.439617 | DJ96: 330.4811044
B97: 24 Business, media and public service professionals | I97: 52 Skilled metal, electrical and electronic trades | O97: 91 Elementary trades and related occupations
B98: 31 Science, engineering and technology associate professionals | I98: 53 Skilled construction and building trades | O98: 92 Elementary administration and service occupations
B99: 32 Health and social care associate professionals | I99: 54 Textiles, printing and other skilled trades
B100: 33 Protective service occupations | I100: 61 Caring personal service occupations
B106: =CELL("filename",$A$2)&", "&Info!A1 -> R:\Research Info\Individual research project info\Working Futures_ Data to be uploaded on the 16th May 16\Wales main workbook_needs cover updating\[AllWA.xlsm]Figure 7.1, Wales
BA114: Emp x gender-status for selected occupation for every industry | BK114: Emp x qualification for selected occupation for every industry
BA115: 2014 | BB115: MFT | BC115: MPT | BD115: MSE | BE115: FSE | BF115: FPT | BG115: FFT | BK115: 2010 | BL115: =DB4 -> QCF8 | BM115: =DC4 -> QCF7 | BN115: QCF6 | BO115: QCF5 | BP115: QCF4 | BQ115: QCF3 | BR115: QCF2 | BS115: QCF1 | BT115: No Qual
BA116: =names!A3 -> All industries | BB116: 343033.671 | BC116: 115878.173 | BD116: 55673.273 | BE116: 106697.023 | BF116: 379339.746 | BG116: 430835.98 | BK116: =BA116 -> All industries | BL116: 102664.0717 | BM116: 562953.429 | BN116: 420033.409 | BO116: 117013.4012 | BP116: 20676.6026 | BQ116: 56228.15764 | BR116: 48565.02228 | BS116: 38891.3109 | BT116: 9752.8832
BL117: 102664.0717 | BM117: 562953.429 | BN117: 420033.409 | BO117: 117013.4012 | BP117: 20676.6026 | BQ117: 56228.15764 | BR117: 48565.02228 | BS117: 38891.3109 | BT117: 9752.8832
DA123: Emp x qualification for occupation 5 for every industry
DA124: 2012 | DB124: =DB94 -> QCF8 | DC124: =DC94 -> QCF7 | DD124: QCF6 | DE124: QCF5 | DF124: QCF4 | DG124: QCF3 | DH124: QCF2 | DI124: QCF1 | DJ124: No Qual
DA125: =names!$A$3 -> All industries | DB125: 5488.004804 | DC125: 31945.25476 | DD125: 27440.11731 | DE125: 7789.363175 | DF125: 1443.425353 | DG125: 3590.142305 | DH125: 3381.231275 | DI125: 2248.211825 | DJ125: 456.9912987
DB126: 5488.004804 | DC126: 31945.25476 | DD126: 27440.11731 | DE126: 7789.363175 | DF126: 1443.425353 | DG126: 3590.142305 | DH126: 3381.231275 | DI126: 2248.211825 | DJ126: 456.9912987
BB144: Replacement Demand etc 2010-2020 for selected occupation | BI144: Males | BJ144: -- (as % 2010) -- | BL144: Females
BB145: job openings | BC145: replacement | BD145: net change | BH145: Ex dem | BI145: RD | BK145: Ex dem | BL145: RD
AZ146: =names!#REF! ->  | BA146: Females | BB146: 557.3604481 | BC146: 410.1425171 | BD146: 147.217931 | BH146: 16.44645223 | BI146: 32.33393789 | BK146: 28.64685793 | BL146: 43.06564131
BA147: Males | BB147: 253.1491388 | BC147: 216.1686858 | BD147: 36.980453 | BH147: 9.372266515 | BI147: 38.11491921 | BK147: 4.76224199 | BL147: 47.62828221
BH148: 16.1663655 | BI148: 28.7046654 | BK148: 26.62853437 | BL148: 39.24537257
BH149: 9.710670724 | BI149: 34.52005166 | BK149: 9.367810641 | BL149: 45.64390242
BH150: 4.034236021 | BI150: 36.85389384 | BK150: 19.72584153 | BL150: 47.92804911
BH151: 11.3916492 | BI151: 34.56867237 | BK151: 25.29520329 | BL151: 46.42393718
BH152: 9.640963711 | BI152: 28.32200613 | BK152: -1.084924056 | BL152: 40.10666833
BH153: 12.14022355 | BI153: 29.3738464 | BK153: 12.9163257 | BL153: 41.62224763 | DA153: Emp x qualification for occupation 6 for every industry
BH154: -7.021478225 | BI154: 24.51626922 | BK154: 49.74495341 | BL154: 35.63498738 | DA154: 2012 | DB154: =DB124 -> QCF8 | DC154: =DC124 -> QCF7 | DD154: QCF6 | DE154: QCF5 | DF154: QCF4 | DG154: QCF3 | DH154: QCF2 | DI154: QCF1 | DJ154: No Qual
BH155: 26.84572256 | BI155: 29.94868471 | BK155: 16.08853816 | BL155: 40.37318816 | DA155: =names!$A$3 -> All industries | DB155: 561.3011624 | DC155: 7580.281085 | DD155: 16428.8057 | DE155: 2729.557223 | DF155: 2769.675908 | DG155: 5209.214141 | DH155: 4892.580246 | DI155: 2376.565191 | DJ155: 711.4038356
BH156: 10.01456366 | BI156: 31.59551349 | BK156: 26.62670104 | BL156: 42.69691049 | DB156: 561.3011624 | DC156: 7580.281085 | DD156: 16428.8057 | DE156: 2729.557223 | DF156: 2769.675908 | DG156: 5209.214141 | DH156: 4892.580246 | DI156: 2376.565191 | DJ156: 711.4038356
BH157: 2.657811079 | BI157: 29.31891312 | BK157: -8.289034631 | BL157: 42.13414284
BH158: 8.846898747 | BI158: 41.16089809 | BK158: -29.44797713 | BL158: 47.9680203
BH159: -9.728911476 | BI159: 39.27068156 | BK159: -17.90852638 | BL159: 50.7603827
BH160: -11.44655611 | BI160: 30.77581019 | BK160: -27.90960157 | BL160: 43.10099261
BH161: 7.151409519 | BI161: 30.94506425 | BK161: 23.37931467 | BL161: 43.25168803
BH162: -14.19510593 | BI162: 29.77399679 | BK162: -38.87161354 | BL162: 41.80801052
BH163: 50.79930329 | BI163: 27.24188006 | BK163: 18.48072611 | BL163: 39.4834001
BH164: 11.481574 | BI164: 36.23657762 | BK164: 1.16626638 | BL164: 49.35325316
BH165: 7.984849334 | BI165: 24.27686307 | BK165: -3.83617877 | BL165: 37.8935252
BH166: 35.15879142 | BI166: 20.77198112 | BK166: 17.88830149 | BL166: 35.30435213
BH167: -15.09977571 | BI167: 29.99081043 | BK167: -39.438946 | BL167: 41.65407433
BH168: 8.321701516 | BI168: 37.62633014 | BK168: 16.18806061 | BL168: 47.62372213
BH169: -6.777363694 | BI169: 28.99591485 | BK169: 10.01913932 | BL169: 41.74011747
BH170: 20.50411155 | BI170: 29.20383484 | BK170: -13.07615903 | BL170: 43.44601236
BG171: All occs | BH171: 7.258293363 | BI171: 31.36931632 | BK171: 5.098813149 | BL171: 42.69230701 | BM171: not currently used
BH173: These are 'all industry values & will need updating
BH174: ? Use values for every industry separately when available?
DA183: Emp x qualification for occupation 7 for every industry
DA184: 2012 | DB184: =DB154 -> QCF8 | DC184: =DC154 -> QCF7 | DD184: QCF6 | DE184: QCF5 | DF184: QCF4 | DG184: QCF3 | DH184: QCF2 | DI184: QCF1 | DJ184: No Qual
DA185: All industries | DB185: 236.4593746 | DC185: 1556.66342 | DD185: 4825.98874 | DE185: 955.489511 | DF185: 3014.090317 | DG185: 4113.30821 | DH185: 3835.895436 | DI185: 1996.133016 | DJ185: 389.5065275
DA186: =names!$A$3 -> All industries | DB186: 236.4593746 | DC186: 1556.66342 | DD186: 4825.98874 | DE186: 955.489511 | DF186: 3014.090317 | DG186: 4113.30821 | DH186: 3835.895436 | DI186: 1996.133016 | DJ186: 389.5065275
DA213: Emp x qualification for occupation 8 for every industry
DA214: 2012 | DB214: =DB184 -> QCF8 | DC214: =DC184 -> QCF7 | DD214: QCF6 | DE214: QCF5 | DF214: QCF4 | DG214: QCF3 | DH214: QCF2 | DI214: QCF1 | DJ214: No Qual
DA215: =names!$A$3 -> All industries | DB215: 63.81826581 | DC215: 2047.569128 | DD215: 7171.638536 | DE215: 7370.476534 | DF215: 1004.555358 | DG215: 2667.822566 | DH215: 2668.56952 | DI215: 1198.708955 | DJ215: 156.0145038
DB216: 63.81826581 | DC216: 2047.569128 | DD216: 7171.638536 | DE216: 7370.476534 | DF216: 1004.555358 | DG216: 2667.822566 | DH216: 2668.56952 | DI216: 1198.708955 | DJ216: 156.0145038
DA243: Emp x qualification for occupation 9 for every industry
DA244: 2012 | DB244: =DB214 -> QCF8 | DC244: =DC214 -> QCF7 | DD244: QCF6 | DE244: QCF5 | DF244: QCF4 | DG244: QCF3 | DH244: QCF2 | DI244: QCF1 | DJ244: No Qual
DA245: =names!$A$3 -> All industries | DB245: 37.58297423 | DC245: 561.1980579 | DD245: 3070.611471 | DE245: 884.0114308 | DF245: 1003.795442 | DG245: 3283.900958 | DH245: 4427.089048 | DI245: 2033.741979 | DJ245: 389.4054397
DB246: 37.58297423 | DC246: 561.1980579 | DD246: 3070.611471 | DE246: 884.0114308 | DF246: 1003.795442 | DG246: 3283.900958 | DH246: 4427.089048 | DI246: 2033.741979 | DJ246: 389.4054397
DA273: Emp x qualification for occupation 10 for every industry
DA274: 2012 | DB274: =DB244 -> QCF8 | DC274: =DC244 -> QCF7 | DD274: QCF6 | DE274: QCF5 | DF274: QCF4 | DG274: QCF3 | DH274: QCF2 | DI274: QCF1 | DJ274: No Qual
DA275: =names!$A$3 -> All industries | DB275: 158.775693 | DC275: 2633.113428 | DD275: 8184.877498 | DE275: 1253.150697 | DF275: 1588.041856 | DG275: 3304.196503 | DH275: 2689.575167 | DI275: 1704.870468 | DJ275: 542.7231582
DB276: 158.775693 | DC276: 2633.113428 | DD276: 8184.877498 | DE276: 1253.150697 | DF276: 1588.041856 | DG276: 3304.196503 | DH276: 2689.575167 | DI276: 1704.870468 | DJ276: 542.7231582
DA303: Emp x qualification for occupation 11 for every industry
DA304: 2012 | DB304: =DB274 -> QCF8 | DC304: =DC274 -> QCF7 | DD304: QCF6 | DE304: QCF5 | DF304: QCF4 | DG304: QCF3 | DH304: QCF2 | DI304: QCF1 | DJ304: No Qual
DA305: =names!$A$3 -> All industries | DB305: 571.6930751 | DC305: 6350.482948 | DD305: 16974.50869 | DE305: 5199.322083 | DF305: 4670.626353 | DG305: 12850.19119 | DH305: 12686.27959 | DI305: 6723.271553 | DJ305: 1922.945701
DB306: 571.6930751 | DC306: 6350.482948 | DD306: 16974.50869 | DE306: 5199.322083 | DF306: 4670.626353 | DG306: 12850.19119 | DH306: 12686.27959 | DI306: 6723.271553 | DJ306: 1922.945701
DA333: Emp x qualification for occupation 12 for every industry
DA334: 2012 | DB334: =DB304 -> QCF8 | DC334: =DC304 -> QCF7 | DD334: QCF6 | DE334: QCF5 | DF334: QCF4 | DG334: QCF3 | DH334: QCF2 | DI334: QCF1 | DJ334: No Qual
DA335: =names!$A$3 -> All industries | DB335: 413.56994 | DC335: 4486.023767 | DD335: 18722.85149 | DE335: 6647.064599 | DF335: 6729.466698 | DG335: 23880.87263 | DH335: 32014.21915 | DI335: 16751.62873 | DJ335: 4740.541418
DB336: 413.56994 | DC336: 4486.023767 | DD336: 18722.85149 | DE336: 6647.064599 | DF336: 6729.466698 | DG336: 23880.87263 | DH336: 32014.21915 | DI336: 16751.62873 | DJ336: 4740.541418
DA363: Emp x qualification for occupation 13 for every industry
DA364: 2012 | DB364: =DB334 -> QCF8 | DC364: =DC334 -> QCF7 | DD364: QCF6 | DE364: QCF5 | DF364: QCF4 | DG364: QCF3 | DH364: QCF2 | DI364: QCF1 | DJ364: No Qual
DA365: =names!$A$3 -> All industries | DB365: 37.50463283 | DC365: 903.4403162 | DD365: 3722.762461 | DE365: 1811.397502 | DF365: 1537.300261 | DG365: 6761.764586 | DH365: 9750.001612 | DI365: 7712.010675 | DJ365: 2036.076682
DB366: 37.50463283 | DC366: 903.4403162 | DD366: 3722.762461 | DE366: 1811.397502 | DF366: 1537.300261 | DG366: 6761.764586 | DH366: 9750.001612 | DI366: 7712.010675 | DJ366: 2036.076682
DA393: Emp x qualification for occupation 14 for every industry
DA394: 2012 | DB394: =DB364 -> QCF8 | DC394: =DC364 -> QCF7 | DD394: QCF6 | DE394: QCF5 | DF394: QCF4 | DG394: QCF3 | DH394: QCF2 | DI394: QCF1 | DJ394: No Qual
DA395: =names!$A$3 -> All industries | DB395: 55.10234918 | DC395: 357.1513387 | DD395: 3055.140551 | DE395: 1278.653357 | DF395: 2299.647506 | DG395: 4232.597259 | DH395: 8204.410131 | DI395: 5444.375974 | DJ395: 5005.961803
DB396: 55.10234918 | DC396: 357.1513387 | DD396: 3055.140551 | DE396: 1278.653357 | DF396: 2299.647506 | DG396: 4232.597259 | DH396: 8204.410131 | DI396: 5444.375974 | DJ396: 5005.961803
DA423: Emp x qualification for occupation 15 for every industry
DA424: 2012 | DB424: =DB394 -> QCF8 | DC424: =DC394 -> QCF7 | DD424: QCF6 | DE424: QCF5 | DF424: QCF4 | DG424: QCF3 | DH424: QCF2 | DI424: QCF1 | DJ424: No Qual
DA425: =names!$A$3 -> All industries | DB425: 40.87579427 | DC425: 710.9618489 | DD425: 2859.747177 | DE425: 1117.369307 | DF425: 4880.859933 | DG425: 22689.67245 | DH425: 18232.66268 | DI425: 7720.895495 | DJ425: 3319.007011
DB426: 40.87579427 | DC426: 710.9618489 | DD426: 2859.747177 | DE426: 1117.369307 | DF426: 4880.859933 | DG426: 22689.67245 | DH426: 18232.66268 | DI426: 7720.895495 | DJ426: 3319.007011
DA453: Emp x qualification for occupation 16 for every industry
DA454: 2012 | DB454: =DB424 -> QCF8 | DC454: =DC424 -> QCF7 | DD454: QCF6 | DE454: QCF5 | DF454: QCF4 | DG454: QCF3 | DH454: QCF2 | DI454: QCF1 | DJ454: No Qual
DA455: =names!$A$3 -> All industries | DB455: 17.25351854 | DC455: 376.5208902 | DD455: 1726.185335 | DE455: 1075.890161 | DF455: 1844.234358 | DG455: 18041.06502 | DH455: 19445.9256 | DI455: 9406.334981 | DJ455: 5986.917819
DB456: 17.25351854 | DC456: 376.5208902 | DD456: 1726.185335 | DE456: 1075.890161 | DF456: 1844.234358 | DG456: 18041.06502 | DH456: 19445.9256 | DI456: 9406.334981 | DJ456: 5986.917819
DA483: Emp x qualification for occupation 17 for every industry
DA484: 2012 | DB484: =DB454 -> QCF8 | DC484: =DC454 -> QCF7 | DD484: QCF6 | DE484: QCF5 | DF484: QCF4 | DG484: QCF3 | DH484: QCF2 | DI484: QCF1 | DJ484: No Qual
DA485: =names!$A$3 -> All industries | DB485: 73.85236155 | DC485: 538.1414615 | DD485: 2181.650836 | DE485: 927.1169755 | DF485: 1109.93683 | DG485: 7743.737924 | DH485: 10650.28747 | DI485: 7107.172901 | DJ485: 4119.662651
DB486: 73.85236155 | DC486: 538.1414615 | DD486: 2181.650836 | DE486: 927.1169755 | DF486: 1109.93683 | DG486: 7743.737924 | DH486: 10650.28747 | DI486: 7107.172901 | DJ486: 4119.662651
DA513: Emp x qualification for occupation 18 for every industry
DA514: 2012 | DB514: =DB484 -> QCF8 | DC514: =DC484 -> QCF7 | DD514: QCF6 | DE514: QCF5 | DF514: QCF4 | DG514: QCF3 | DH514: QCF2 | DI514: QCF1 | DJ514: No Qual
DA515: =names!$A$3 -> All industries | DB515: 51.021474 | DC515: 2452.377225 | DD515: 8974.372885 | DE515: 9951.791214 | DF515: 5381.73474 | DG515: 34251.41285 | DH515: 34525.20621 | DI515: 12930.35371 | DJ515: 4642.703746
DB516: 51.021474 | DC516: 2452.377225 | DD516: 8974.372885 | DE516: 9951.791214 | DF516: 5381.73474 | DG516: 34251.41285 | DH516: 34525.20621 | DI516: 12930.35371 | DJ516: 4642.703746
DA543: Emp x qualification for occupation 19 for every industry
DA544: 2012 | DB544: =DB514 -> QCF8 | DC544: =DC514 -> QCF7 | DD544: QCF6 | DE544: QCF5 | DF544: QCF4 | DG544: QCF3 | DH544: QCF2 | DI544: QCF1 | DJ544: No Qual
DA545: =names!$A$3 -> All industries | DB545: 17.08140487 | DC545: 363.8457775 | DD545: 1804.42928 | DE545: 1182.629807 | DF545: 1659.938963 | DG545: 6459.262629 | DH545: 8081.861659 | DI545: 4776.93385 | DJ545: 2781.165604
DB546: 17.08140487 | DC546: 363.8457775 | DD546: 1804.42928 | DE546: 1182.629807 | DF546: 1659.938963 | DG546: 6459.262629 | DH546: 8081.861659 | DI546: 4776.93385 | DJ546: 2781.165604
DA573: Emp x qualification for occupation 20 for every industry
DA574: 2012 | DB574: =DB544 -> QCF8 | DC574: =DC544 -> QCF7 | DD574: QCF6 | DE574: QCF5 | DF574: QCF4 | DG574: QCF3 | DH574: QCF2 | DI574: QCF1 | DJ574: No Qual
DA575: =names!$A$3 -> All industries | DB575: 92.6995641 | DC575: 1408.272139 | DD575: 7539.709915 | DE575: 2970.594017 | DF575: 2513.149044 | DG575: 21395.07958 | DH575: 28614.60933 | DI575: 16812.91799 | DJ575: 10113.32894
DB576: 92.6995641 | DC576: 1408.272139 | DD576: 7539.709915 | DE576: 2970.594017 | DF576: 2513.149044 | DG576: 21395.07958 | DH576: 28614.60933 | DI576: 16812.91799 | DJ576: 10113.32894
DA603: Emp x qualification for occupation 21 for every industry
DA604: 2012 | DB604: =DB574 -> QCF8 | DC604: =DC574 -> QCF7 | DD604: QCF6 | DE604: QCF5 | DF604: QCF4 | DG604: QCF3 | DH604: QCF2 | DI604: QCF1 | DJ604: No Qual
DA605: =names!$A$3 -> All industries | DB605: 51.7614689 | DC605: 610.2102644 | DD605: 3015.74838 | DE605: 894.7406685 | DF605: 1404.448024 | DG605: 5303.171997 | DH605: 6432.863984 | DI605: 3255.934071 | DJ605: 1052.905971
DB606: 51.7614689 | DC606: 610.2102644 | DD606: 3015.74838 | DE606: 894.7406685 | DF606: 1404.448024 | DG606: 5303.171997 | DH606: 6432.863984 | DI606: 3255.934071 | DJ606: 1052.905971
DA633: Emp x qualification for occupation 22 for every industry
DA634: 2012 | DB634: =DB604 -> QCF8 | DC634: =DC604 -> QCF7 | DD634: QCF6 | DE634: QCF5 | DF634: QCF4 | DG634: QCF3 | DH634: QCF2 | DI634: QCF1 | DJ634: No Qual
DA635: =names!$A$3 -> All industries | DB635: 57.70605879 | DC635: 551.8174161 | DD635: 1987.376212 | DE635: 1010.5161 | DF635: 2362.86249 | DG635: 14312.38858 | DH635: 24551.07607 | DI635: 19155.90964 | DJ635: 12485.63489
DB636: 57.70605879 | DC636: 551.8174161 | DD636: 1987.376212 | DE636: 1010.5161 | DF636: 2362.86249 | DG636: 14312.38858 | DH636: 24551.07607 | DI636: 19155.90964 | DJ636: 12485.63489
DA663: Emp x qualification for occupation 23 for every industry
DA664: 2012 | DB664: =DB634 -> QCF8 | DC664: =DC634 -> QCF7 | DD664: QCF6 | DE664: QCF5 | DF664: QCF4 | DG664: QCF3 | DH664: QCF2 | DI664: QCF1 | DJ664: No Qual
DA665: =names!$A$3 -> All industries | DB665: 53.82913343 | DC665: 323.2422348 | DD665: 1341.856369 | DE665: 741.5890826 | DF665: 1262.422294 | DG665: 6343.488624 | DH665: 12620.85782 | DI665: 10585.15215 | DJ665: 5124.361018
DB666: 53.82913343 | DC666: 323.2422348 | DD666: 1341.856369 | DE666: 741.5890826 | DF666: 1262.422294 | DG666: 6343.488624 | DH666: 12620.85782 | DI666: 10585.15215 | DJ666: 5124.361018
DA693: Emp x qualification for occupation 24 for every industry
DA694: 2012 | DB694: =DB664 -> QCF8 | DC694: =DC664 -> QCF7 | DD694: QCF6 | DE694: QCF5 | DF694: QCF4 | DG694: QCF3 | DH694: QCF2 | DI694: QCF1 | DJ694: No Qual
DA695: =names!$A$3 -> All industries | DB695: 0.9654422649 | DC695: 163.0322132 | DD695: 1033.689861 | DE695: 588.1617545 | DF695: 947.7056797 | DG695: 4113.085203 | DH695: 9169.783201 | DI695: 9331.532223 | DJ695: 5969.206176
DB696: 0.9654422649 | DC696: 163.0322132 | DD696: 1033.689861 | DE696: 588.1617545 | DF696: 947.7056797 | DG696: 4113.085203 | DH696: 9169.783201 | DI696: 9331.532223 | DJ696: 5969.206176
DJ708: =names!$A$3 -> All industries | DK708: =names!$A$3 -> All industries | DL708: =names!$A$3 -> All industries
DJ709: =names!$A$3 -> All industries | DK709: =names!$A$3 -> All industries | DL709: =names!$A$3 -> All industries
DA723: Emp x qualification for occupation 25 for every industry
DA724: 2012 | DB724: =DB694 -> QCF8 | DC724: =DC694 -> QCF7 | DD724: QCF6 | DE724: QCF5 | DF724: QCF4 | DG724: QCF3 | DH724: QCF2 | DI724: QCF1 | DJ724: No Qual
DA725: =names!$A$3 -> All industries | DB725: 53.32968992 | DC725: 1233.010337 | DD725: 5905.113519 | DE725: 2799.334721 | DF725: 3025.787295 | DG725: 21694.59496 | DH725: 38847.89947 | DI725: 30636.63741 | DJ725: 22251.35107
DB726: 53.32968992 | DC726: 1233.010337 | DD726: 5905.113519 | DE726: 2799.334721 | DF726: 3025.787295 | DG726: 21694.59496 | DH726: 38847.89947 | DI726: 30636.63741 | DJ726: 22251.35107

Sheet Table 7.x.1
A1: Table 7.0.1 | B1: ="Industry Employment, "&B4&" to "&F4&", by Qualification Level" -> Industry Employment, 1994 to 2024, by Qualification Level
B2: All industries
A3: Qualification categories | H3: Change
A4: Employment Levels (000s) | B4: =All!F7 -> 1994 | C4: =All!P7 -> 2004 | D4: =All!Z7 -> 2014 | E4: =All!AE7 -> 2019 | F4: =All!AJ7 -> 2024 | H4: =D4&" - "&F4 -> 2014 - 2024
A5: =names!D4 -> QCF8 Doctorate | B5: 13591.00647 | C5: 11453.77783 | D5: 20480.23633 | E5: 20578.83183 | F5: 23017.44648 | H5: =F5-D5 -> 2537.210158
A6: =names!D5 -> QCF7 Other higher degree | B6: 58900.8726 | C6: 67546.96436 | D6: 128680.8406 | E6: 129958.9812 | F6: 143729.7589 | H6: =F6-D6 -> 15048.91833
A7: =names!D6 -> QCF6 First degree | B7: 99607.59803 | C7: 149724.7377 | D7: 237835.2908 | E7: 309711.6584 | F7: 370285.7403 | H7: 132450.4495
A8: =names!D7 -> QCF5 Foundation degree;Nursing;Teaching | B8: 95760.6079 | C8: 84326.80438 | D8: 89300.71515 | E8: 97862.25264 | F8: 102119.5072 | H8: 12818.79206
A9: =names!D8 -> QCF4 HE below degree level | B9: 72125.50035 | C9: 58062.76886 | D9: 74636.35495 | E9: 93252.00652 | F9: 107511.4929 | H9: 32875.13795
A10: =names!D9 -> QCF3 A level & equivalent | B10: 235647.5599 | C10: 255621.3715 | D10: 299583.7522 | E10: 292031.7173 | F10: 284112.3093 | H10: -15471.44281
A11: =names!D10 -> QCF2 GCSE(A-C) & equivalent | B11: 262993.3545 | C11: 287291.233 | D11: 289685.7032 | E11: 298558.9791 | F11: 281846.5037 | H11: -7839.19947
A12: =names!D11 -> QCF1 GCSE(below grade C) & equivalent | B12: 216947.498 | C12: 237263.3797 | D12: 179716.2571 | E12: 151844.1626 | F12: 124775.4787 | H12: -54940.77846
A13: =names!D12 -> No Qualification | B13: 151091.0023 | C13: 164765.9627 | D13: 92346.84972 | E13: 47099.41045 | F13: 28489.76246 | H13: -63857.08727
A14: Total | B14: =SUM(B5:B13) -> 1206665 | C14: =SUM(C5:C13) -> 1316057 | D14: =SUM(D5:D13) -> 1412266 | E14: =SUM(E5:E13) -> 1440898 | F14: =SUM(F5:F13) -> 1465888 | H14: =SUM(H5:H13) -> 53622
A16: Percentage Shares | B16: =B$4 -> 1994 | C16: =C$4 -> 2004 | D16: =D$4 -> 2014 | E16: =E$4 -> 2019 | F16: =F$4 -> 2024 | H16: % change
A17: =A5 -> QCF8 Doctorate | B17: =B5/B$14*100 -> 1.126328059 | C17: 0.8703101636 | D17: 1.450168476 | E17: 1.428194905 | F17: 1.570204987 | H17: =IF(D5>0,H5/D5*100,0) -> 12.38857852
A18: =A6 -> QCF7 Other higher degree | B18: 4.881294526 | C18: 5.132525746 | D18: 9.111657476 | E18: 9.01930471 | F18: 9.804961832 | H18: =IF(D6>0,H6/D6*100,0) -> 11.69476222
A19: QCF6 First degree | B19: 8.254784719 | C19: 11.37676694 | D19: 16.84068658 | E19: 21.49434994 | F19: 25.26016587 | H19: 55.68998994
A20: QCF5 Foundation degree;Nursing;Teaching | B20: 7.935972942 | C20: 6.407534353 | D20: 6.323222053 | E20: 6.791754353 | F20: 6.966392195 | H20: 14.35463539
A21: QCF4 HE below degree level | B21: 5.977259666 | C21: 4.411873411 | D21: 5.284865241 | E21: 6.471797901 | F21: 7.334222867 | H21: 44.04708399
A22: QCF3 A level & equivalent | B22: 19.52883028 | C22: 19.4232751 | D22: 21.2129834 | E22: 20.26734143 | F22: 19.38158368 | H22: -5.16431305
A23: QCF2 GCSE(A-C) & equivalent | B23: 21.79505949 | C23: 21.8296953 | D23: 20.51212047 | E23: 20.720341 | F23: 19.22701487 | H23: -2.706105059
A24: QCF1 GCSE(below grade C) & equivalent | B24: 17.97909925 | C24: 18.02835133 | D24: 12.72538298 | E24: 10.5381618 | F24: 8.511938066 | H24: -30.57084503
A25: No Qualification | B25: 12.52137108 | C25: 12.51966767 | D25: 6.53891333 | E25: 3.268753961 | F25: 1.943515634 | H25: -69.14917776
A26: Total | B26: 100 | C26: 100 | D26: 100 | E26: 100 | F26: 100 | H26: 3.796876792
A27: =CELL("filename",$A$1) -> R:\Research Info\Individual research project info\Working Futures_ Data to be uploaded on the 16th May 16\Wales main workbook_needs cover updating\[AllWA.xlsm]Table 7.x.1

Sheet Table 7.x.2
A1: Table 7.2.0 | B1: Occupational Employment, 1990 to 2020, by Qualification Level
B2: All Occupations
A3: Qualification categories | H3: Change
A4: Employment Levels (000s) | B4: =All!F7 -> 1994 | C4: =All!P7 -> 2004 | D4: =All!Z7 -> 2014 | E4: =All!AE7 -> 2019 | F4: =All!AJ7 -> 2024 | H4: =D4&" - "&F4 -> 2014 - 2024
A5: =names!D4 -> QCF8 Doctorate | B5: 13591.00647 | C5: 11453.77783 | D5: 20480.23633 | E5: 20578.83183 | F5: 23017.44648 | H5: =F5-D5 -> 2537.210158
A6: =names!D5 -> QCF7 Other higher degree | B6: 58900.8726 | C6: 67546.96436 | D6: 128680.8406 | E6: 129958.9812 | F6: 143729.7589 | H6: =F6-D6 -> 15048.91833
A7: =names!D6 -> QCF6 First degree | B7: 99607.59803 | C7: 149724.7377 | D7: 237835.2908 | E7: 309711.6584 | F7: 370285.7403 | H7: 132450.4495
A8: =names!D7 -> QCF5 Foundation degree;Nursing;Teaching | B8: 95760.6079 | C8: 84326.80438 | D8: 89300.71515 | E8: 97862.25264 | F8: 102119.5072 | H8: 12818.79206
A9: =names!D8 -> QCF4 HE below degree level | B9: 72125.50035 | C9: 58062.76886 | D9: 74636.35495 | E9: 93252.00652 | F9: 107511.4929 | H9: 32875.13795
A10: =names!D9 -> QCF3 A level & equivalent | B10: 235647.5599 | C10: 255621.3715 | D10: 299583.7522 | E10: 292031.7173 | F10: 284112.3093 | H10: -15471.44281
A11: =names!D10 -> QCF2 GCSE(A-C) & equivalent | B11: 262993.3545 | C11: 287291.233 | D11: 289685.7032 | E11: 298558.9791 | F11: 281846.5037 | H11: -7839.19947
A12: =names!D11 -> QCF1 GCSE(below grade C) & equivalent | B12: 216947.498 | C12: 237263.3797 | D12: 179716.2571 | E12: 151844.1626 | F12: 124775.4787 | H12: -54940.77846
A13: =names!D12 -> No Qualification | B13: 151091.0023 | C13: 164765.9627 | D13: 92346.84972 | E13: 47099.41045 | F13: 28489.76246 | H13: -63857.08727
A14: Total | B14: =SUM(B5:B13) -> 1206665 | C14: =SUM(C5:C13) -> 1316057 | D14: =SUM(D5:D13) -> 1412266 | E14: =SUM(E5:E13) -> 1440898 | F14: =SUM(F5:F13) -> 1465888 | H14: =SUM(H5:H13) -> 53622
A16: Percentage Shares | B16: =B$4 -> 1994 | C16: =C$4 -> 2004 | D16: =D$4 -> 2014 | E16: =E$4 -> 2019 | F16: =F$4 -> 2024 | H16: % change
A17: =$A$5 -> QCF8 Doctorate | B17: =B5/B$14*100 -> 1.126328059 | C17: 0.8703101636 | D17: 1.450168476 | E17: 1.428194905 | F17: 1.570204987 | H17: =IF(D5>0,H5/D5*100,0) -> 12.38857852
A18: =$A$6 -> QCF7 Other higher degree | B18: 4.881294526 | C18: 5.132525746 | D18: 9.111657476 | E18: 9.01930471 | F18: 9.804961832 | H18: =IF(D6>0,H6/D6*100,0) -> 11.69476222
A19: =$A$7 -> QCF6 First degree | B19: 8.254784719 | C19: 11.37676694 | D19: 16.84068658 | E19: 21.49434994 | F19: 25.26016587 | H19: 55.68998994
A20: =$A$8 -> QCF5 Foundation degree;Nursing;Teaching | B20: 7.935972942 | C20: 6.407534353 | D20: 6.323222053 | E20: 6.791754353 | F20: 6.966392195 | H20: 14.35463539
A21: =$A$9 -> QCF4 HE below degree level | B21: 5.977259666 | C21: 4.411873411 | D21: 5.284865241 | E21: 6.471797901 | F21: 7.334222867 | H21: 44.04708399
A22: =$A$10 -> QCF3 A level & equivalent | B22: 19.52883028 | C22: 19.4232751 | D22: 21.2129834 | E22: 20.26734143 | F22: 19.38158368 | H22: -5.16431305
A23: =$A$11 -> QCF2 GCSE(A-C) & equivalent | B23: 21.79505949 | C23: 21.8296953 | D23: 20.51212047 | E23: 20.720341 | F23: 19.22701487 | H23: -2.706105059
A24: =$A$12 -> QCF1 GCSE(below grade C) & equivalent | B24: 17.97909925 | C24: 18.02835133 | D24: 12.72538298 | E24: 10.5381618 | F24: 8.511938066 | H24: -30.57084503
A25: =$A$13 -> No Qualification | B25: 12.52137108 | C25: 12.51966767 | D25: 6.53891333 | E25: 3.268753961 | F25: 1.943515634 | H25: -69.14917776
A26: Total | B26: 100 | C26: 100 | D26: 100 | E26: 100 | F26: 100 | H26: 3.796876792
A27: =CELL("filename",$A$2)&", "&Info!A1 -> R:\Research Info\Individual research project info\Working Futures_ Data to be uploaded on the 16th May 16\Wales main workbook_needs cover updating\[AllWA.xlsm]Table 7.x.2, Wales
A29: Table 7.2.1 | B29: =$B$1 -> Occupational Employment, 1990 to 2020, by Qualification Level
B30: =names!C4 -> 11 Corporate managers and directors
A31: =$A$3 -> Qualification categories | H31: Change
A32: Employment Levels (000s) | B32: =B$4 -> 1994 | C32: =C$4 -> 2004 | D32: =D$4 -> 2014 | E32: =E$4 -> 2019 | F32: =F$4 -> 2024 | H32: =D32&" - "&F32 -> 2014 - 2024
A33: =$A$5 -> QCF8 Doctorate | B33: 983.496104 | C33: 564.9998239 | D33: 891.7990486 | E33: 832.6694181 | F33: 878.5279762 | H33: =F33-D33 -> -13.27107241
A34: =$A$6 -> QCF7 Other higher degree | B34: 3790.351687 | C34: 3822.36967 | D34: 7862.1738 | E34: 7644.939232 | F34: 8181.848914 | H34: =F34-D34 -> 319.6751137
A35: =$A$7 -> QCF6 First degree | B35: 7181.562981 | C35: 10256.08535 | D35: 17826.99557 | E35: 24206.74951 | F35: 29079.5071 | H35: 11252.51153
A36: =$A$8 -> QCF5 Foundation degree;Nursing;Teaching | B36: 3602.896719 | C36: 3606.643039 | D36: 4246.052718 | E36: 5020.731658 | F36: 5493.580963 | H36: 1247.528244
A37: =$A$9 -> QCF4 HE below degree level | B37: 4241.052299 | C37: 4321.996739 | D37: 5613.383483 | E37: 7004.522852 | F37: 7783.108569 | H37: 2169.725086
A38: =$A$10 -> QCF3 A level & equivalent | B38: 7351.542577 | C38: 10769.74086 | D38: 11905.4947 | E38: 11494.91736 | F38: 10635.91763 | H38: -1269.577068
A39: =$A$11 -> QCF2 GCSE(A-C) & equivalent | B39: 6430.094368 | C39: 8670.22768 | D39: 9507.205111 | E39: 10020.39027 | F39: 9287.542326 | H39: -219.662785
A40: =$A$12 -> QCF1 GCSE(below grade C) & equivalent | B40: 3897.42872 | C40: 6184.784426 | D40: 5909.743739 | E40: 5693.612791 | F40: 4928.097074 | H40: -981.6466646
A41: =$A$13 -> No Qualification | B41: 1946.329934 | C41: 2800.183964 | D41: 1626.432601 | E41: 861.8131999 | F41: 597.6174627 | H41: -1028.815139
A42: Total | B42: =SUM(B33:B41) -> 39424.75539 | C42: =SUM(C33:C41) -> 50997.03155 | D42: =SUM(D33:D41) -> 65389.28077 | E42: =SUM(E33:E41) -> 72780.34629 | F42: =SUM(F33:F41) -> 76865.74802 | H42: =SUM(H33:H41) -> 11476.46725
A44: Percentage Shares | B44: =B$4 -> 1994 | C44: =C$4 -> 2004 | D44: =D$4 -> 2014 | E44: =E$4 -> 2019 | F44: =F$4 -> 2024 | H44: % change
A45: =$A$5 -> QCF8 Doctorate | B45: =B33/B$42*100 -> 2.494615615 | C45: 1.107907278 | D45: 1.363830643 | E45: 1.14408554 | F45: 1.142938173 | H45: =IF(D33>0,H33/D33*100,0) -> -1.488123635
A46: =$A$6 -> QCF7 Other higher degree | B46: 9.614141292 | C46: 7.495278752 | D46: 12.02364318 | E46: 10.50412594 | F46: 10.64433655 | H46: =IF(D34>0,H34/D34*100,0) -> 4.065988896
A47: =$A$7 -> QCF6 First degree | B47: 18.21587201 | C47: 20.11114184 | D47: 27.26287147 | E47: 33.2600087 | F47: 37.83155417 | H47: 63.12062787
A48: =$A$8 -> QCF5 Foundation degree;Nursing;Teaching | B48: 9.138666006 | C48: 7.072260736 | D48: 6.493499651 | E48: 6.89847179 | F48: 7.146981724 | H48: 29.3808939
A49: =$A$9 -> QCF4 HE below degree level | B49: 10.7573332 | C49: 8.474996697 | D49: 8.584562205 | E49: 9.624195554 | F49: 10.12558749 | H49: 38.6527144
A50: =$A$10 -> QCF3 A level & equivalent | B50: 18.64702141 | C50: 21.11836813 | D50: 18.20710453 | E50: 15.79398553 | F50: 13.83700531 | H50: -10.66379096
A51: =$A$11 -> QCF2 GCSE(A-C) & equivalent | B51: 16.30978887 | C51: 17.001436 | D51: 14.53939392 | E51: 13.76798928 | F51: 12.08281005 | H51: -2.310487493
A52: =$A$12 -> QCF1 GCSE(below grade C) & equivalent | B52: 9.885739763 | C52: 12.12773418 | D52: 9.037786728 | E52: 7.823008657 | F52: 6.411304386 | H52: -16.61064689
A53: =$A$13 -> No Qualification | B53: 4.93682184 | C53: 5.490876388 | D53: 2.487307678 | E53: 1.184129018 | F53: 0.77748214 | H53: -63.25593436
A54: Total | B54: 100 | C54: 100 | D54: 100 | E54: 100 | F54: 100 | H54: 17.55099171
A55: =$A$27 -> R:\Research Info\Individual research project info\Working Futures_ Data to be uploaded on the 16th May 16\Wales main workbook_needs cover updating\[AllWA.xlsm]Table 7.x.2, Wales
A57: Table 7.2.2 | B57: =$B$1 -> Occupational Employment, 1990 to 2020, by Qualification Level
B58: =names!C5 -> 12 Other managers and proprietors
A59: =$A$3 -> Qualification categories | H59: Change
A60: Employment Levels (000s) | B60: =B$4 -> 1994 | C60: =C$4 -> 2004 | D60: =D$4 -> 2014 | E60: =E$4 -> 2019 | F60: =F$4 -> 2024 | H60: =D60&" - "&F60 -> 2014 - 2024
A61: =$A$5 -> QCF8 Doctorate | B61: 426.570096 | C61: 236.280654 | D61: 468.349933 | E61: 485.2136979 | F61: 543.3936554 | H61: =F61-D61 -> 75.04372241
A62: =$A$6 -> QCF7 Other higher degree | B62: 1871.494776 | C62: 1491.539019 | D62: 3615.704424 | E62: 3693.914875 | F62: 4095.575831 | H62: =F62-D62 -> 479.8714073
A63: =$A$7 -> QCF6 First degree | B63: 2998.95866 | C63: 4183.106336 | D63: 7776.668896 | E63: 10824.20158 | F63: 13408.6328 | H63: 5631.963908
A64: =$A$8 -> QCF5 Foundation degree;Nursing;Teaching | B64: 2602.299984 | C64: 1982.837489 | D64: 2627.579917 | E64: 3338.315542 | F64: 3913.37958 | H64: 1285.799663
A65: =$A$9 -> QCF4 HE below degree level | B65: 2847.636344 | C65: 1930.734331 | D65: 2884.781341 | E65: 3749.164644 | F65: 4362.257145 | H65: 1477.475804
A66: =$A$10 -> QCF3 A level & equivalent | B66: 8924.778919 | C66: 8126.904739 | D66: 8058.367406 | E66: 7394.298961 | F66: 6686.47206 | H66: -1371.895346
A67: =$A$11 -> QCF2 GCSE(A-C) & equivalent | B67: 8097.242284 | C67: 7939.494991 | D67: 7760.972749 | E67: 8375.175789 | F67: 8159.14826 | H67: 398.1755108
A68: =$A$12 -> QCF1 GCSE(below grade C) & equivalent | B68: 6066.090247 | C68: 6682.493175 | D68: 4828.780838 | E68: 4187.413799 | F68: 3341.986574 | H68: -1486.794264
A69: =$A$13 -> No Qualification | B69: 5043.740727 | C69: 4761.808118 | D69: 2952.614428 | E69: 1660.244462 | F69: 1158.479529 | H69: -1794.1349
A70: Total | B70: =SUM(B61:B69) -> 38878.81204 | C70: =SUM(C61:C69) -> 37335.19885 | D70: =SUM(D61:D69) -> 40973.81993 | E70: =SUM(E61:E69) -> 43707.94335 | F70: =SUM(F61:F69) -> 45669.32544 | H70: =SUM(H61:H69) -> 4695.505506
A72: Percentage Shares | B72: =B$4 -> 1994 | C72: =C$4 -> 2004 | D72: =D$4 -> 2014 | E72: =E$4 -> 2019 | F72: =F$4 -> 2024 | H72: % change
A73: =$A$5 -> QCF8 Doctorate | B73: =B61/B$70*100 -> 1.097178833 | C73: 0.6328629853 | D73: 1.143046789 | E73: 1.11012704 | F73: 1.18984384 | H73: =IF(D61>0,H61/D61*100,0) -> 16.0230027
A74: =$A$6 -> QCF7 Other higher degree | B74: 4.813662449 | C74: 3.994994173 | D74: 8.824426011 | E74: 8.451358249 | F74: 8.967892106 | H74: =IF(D62>0,H62/D62*100,0) -> 13.27186493
A75: =$A$7 -> QCF6 First degree | B75: 7.713606726 | C75: 11.20418925 | D75: 18.97960432 | E75: 24.76483849 | F75: 29.36026025 | H75: 72.42128967
A76: =$A$8 -> QCF5 Foundation degree;Nursing;Teaching | B76: 6.693362909 | C76: 5.310906463 | D76: 6.41282634 | E76: 7.63777768 | F76: 8.568945441 | H76: 48.93474998
A77: =$A$9 -> QCF4 HE below degree level | B77: 7.324391346 | C77: 5.171351406 | D77: 7.04054771 | E77: 8.577764949 | F77: 9.551831788 | H77: 51.21621464
A78: =$A$10 -> QCF3 A level & equivalent | B78: 22.95537968 | C78: 21.76740714 | D78: 19.66711285 | E78: 16.91751749 | F78: 14.6410572 | H78: -17.02448246
A79: =$A$11 -> QCF2 GCSE(A-C) & equivalent | B79: 20.8268768 | C79: 21.26544182 | D79: 18.94129657 | E79: 19.16167897 | F79: 17.86570785 | H79: 5.130484588
A80: =$A$12 -> QCF1 GCSE(below grade C) & equivalent | B80: 15.6025607 | C80: 17.89864091 | D80: 11.78503944 | E80: 9.580441169 | F80: 7.317792724 | H80: -30.79026184
A81: =$A$13 -> No Qualification | B81: 12.97298056 | C81: 12.75420586 | D81: 7.206099976 | E81: 3.79849596 | F81: 2.536668798 | H81: -60.76428004
A82: Total | B82: 100 | C82: 100 | D82: 100 | E82: 100 | F82: 100 | H82: 11.45976995
A83: =$A$27 -> R:\Research Info\Individual research project info\Working Futures_ Data to be uploaded on the 16th May 16\Wales main workbook_needs cover updating\[AllWA.xlsm]Table 7.x.2, Wales
A85: Table 7.2.3 | B85: =$B$1 -> Occupational Employment, 1990 to 2020, by Qualification Level
B86: =names!C6 -> 21 Science, research, engineering and technology professionals
A87: =$A$3 -> Qualification categories | H87: Change
A88: Employment Levels (000s) | B88: =B$4 -> 1994 | C88: =C$4 -> 2004 | D88: =D$4 -> 2014 | E88: =E$4 -> 2019 | F88: =F$4 -> 2024 | H88: =D88&" - "&F88 -> 2014 - 2024
A89: =$A$5 -> QCF8 Doctorate | B89: 2116.309175 | C89: 1589.420947 | D89: 2567.586896 | E89: 2425.694886 | F89: 2551.043002 | H89: =F89-D89 -> -16.54389422
A90: =$A$6 -> QCF7 Other higher degree | B90: 3903.942103 | C90: 4569.315921 | D90: 8976.002073 | E90: 8679.676741 | F90: 9269.946455 | H90: =F90-D90 -> 293.9443815
A91: =$A$7 -> QCF6 First degree | B91: 9462.049301 | C91: 10853.56205 | D91: 14836.88301 | E91: 18467.53122 | F91: 20520.54823 | H91: 5683.665222
A92: =$A$8 -> QCF5 Foundation degree;Nursing;Teaching | B92: 2247.914169 | C92: 2041.361375 | D92: 1851.031267 | E92: 2017.742365 | F92: 2090.03685 | H92: 239.0055826
A93: =$A$9 -> QCF4 HE below degree level | B93: 4896.593361 | C93: 4712.887928 | D93: 4670.32074 | E93: 5370.874872 | F93: 5393.672811 | H93: 723.352071
A94: =$A$10 -> QCF3 A level & equivalent | B94: 4483.780901 | C94: 6155.844427 | D94: 5744.589578 | E94: 5222.686477 | F94: 4495.780569 | H94: -1248.809009
A95: =$A$11 -> QCF2 GCSE(A-C) & equivalent | B95: 2932.322074 | C95: 3706.974766 | D95: 4127.77812 | E95: 4301.222438 | F95: 4018.949462 | H95: -108.8286585
A96: =$A$12 -> QCF1 GCSE(below grade C) & equivalent | B96: 1514.590241 | C96: 2282.026826 | D96: 2113.253833 | E96: 1979.983844 | F96: 1667.307345 | H96: -445.9464875
A97: =$A$13 -> No Qualification | B97: 480.9231807 | C97: 803.6165004 | D97: 641.1665228 | E97: 405.7180923 | F97: 304.7190035 | H97: -336.4475193
A98: Total | B98: =SUM(B89:B97) -> 32038.4245 | C98: =SUM(C89:C97) -> 36715.01074 | D98: =SUM(D89:D97) -> 45528.61204 | E98: =SUM(E89:E97) -> 48871.13094 | F98: =SUM(F89:F97) -> 50312.00373 | H98: =SUM(H89:H97) -> 4783.391689
A100: Percentage Shares | B100: =B$4 -> 1994 | C100: =C$4 -> 2004 | D100: =D$4 -> 2014 | E100: =E$4 -> 2019 | F100: =F$4 -> 2024 | H100: % change
A101: =$A$5 -> QCF8 Doctorate | B101: =B89/B$98*100 -> 6.605534471 | C101: 4.329076623 | D101: 5.639501802 | E101: 4.96345151 | F101: 5.070446043 | H101: =IF(D89>0,H89/D89*100,0) -> -0.6443362928
A102: =$A$6 -> QCF7 Other higher degree | B102: 12.18518752 | C102: 12.4453618 | D102: 19.71507953 | E102: 17.76033534 | F102: 18.42492003 | H102: =IF(D90>0,H90/D90*100,0) -> 3.274780678
A103: =$A$7 -> QCF6 First degree | B103: 29.53344132 | C103: 29.56164749 | D103: 32.58804156 | E103: 37.78822153 | F103: 40.78658513 | H103: 38.30767701
A104: =$A$8 -> QCF5 Foundation degree;Nursing;Teaching | B104: 7.016306836 | C104: 5.560018461 | D104: 4.065643963 | E104: 4.128699963 | F104: 4.154151484 | H104: 12.91202298
A105: =$A$9 -> QCF4 HE below degree level | B105: 15.28350235 | C105: 12.83640623 | D105: 10.25799059 | E105: 10.98987228 | F105: 10.72044922 | H105: 15.48827396
A106: =$A$10 -> QCF3 A level & equivalent | B106: 13.99501058 | C106: 16.76656033 | D106: 12.61753724 | E106: 10.68664951 | F106: 8.935801073 | H106: -21.73887258
A107: =$A$11 -> QCF2 GCSE(A-C) & equivalent | B107: 9.152516453 | C107: 10.09661904 | D107: 9.066338584 | E107: 8.801151837 | F107: 7.988052878 | H107: -2.636494872
A108: =$A$12 -> QCF1 GCSE(below grade C) & equivalent | B108: 4.72741798 | C108: 6.215514525 | D108: 4.641595115 | E108: 4.051438561 | F108: 3.313935486 | H108: -21.10236265
A109: =$A$13 -> No Qualification | B109: 1.501082491 | C109: 2.188795493 | D109: 1.408271621 | E109: 0.8301794627 | F109: 0.6056586519 | H109: -52.47428044
A110: Total | B110: 100 | C110: 100 | D110: 100 | E110: 100 | F110: 100 | H110: 10.506342
A111: =$A$27 -> R:\Research Info\Individual research project info\Working Futures_ Data to be uploaded on the 16th May 16\Wales main workbook_needs cover updating\[AllWA.xlsm]Table 7.x.2, Wales
A113: Table 7.2.4 | B113: =$B$1 -> Occupational Employment, 1990 to 2020, by Qualification Level
B114: =names!C7 -> 22 Health professionals
A115: =$A$3 -> Qualification categories | H115: Change
A116: Employment Levels (000s) | B116: =B$4 -> 1994 | C116: =C$4 -> 2004 | D116: =D$4 -> 2014 | E116: =E$4 -> 2019 | F116: =F$4 -> 2024 | H116: =D116&" - "&F116 -> 2014 - 2024
A117: =$A$5 -> QCF8 Doctorate | B117: 994.3398261 | C117: 2554.75475 | D117: 5372.908436 | E117: 5409.337834 | F117: 6143.901961 | H117: =F117-D117 -> 770.9935247
A118: =$A$6 -> QCF7 Other higher degree | B118: 5536.92988 | C118: 7194.76282 | D118: 13634.42075 | E118: 13488.83622 | F118: 14864.78498 | H118: =F118-D118 -> 1230.364224
A119: =$A$7 -> QCF6 First degree | B119: 8103.236628 | C119: 16406.35818 | D119: 27424.73271 | E119: 35685.13725 | F119: 44221.79097 | H119: 16797.05826
A120: =$A$8 -> QCF5 Foundation degree;Nursing;Teaching | B120: 23476.95887 | C120: 20932.94303 | D120: 16674.5433 | E120: 13656.97132 | F120: 9167.127004 | H120: -7507.416296
A121: =$A$9 -> QCF4 HE below degree level | B121: 1529.221978 | C121: 1819.651897 | D121: 1831.674846 | E121: 2176.850354 | F121: 2548.606055 | H121: 716.9312098
A122: =$A$10 -> QCF3 A level & equivalent | B122: 1632.885455 | C122: 3960.181721 | D122: 6560.108035 | E122: 7296.059014 | F122: 8231.161305 | H122: 1671.05327
A123: =$A$11 -> QCF2 GCSE(A-C) & equivalent | B123: 2189.770536 | C123: 5000.290768 | D123: 4865.269673 | E123: 5213.699667 | F123: 5177.671599 | H123: 312.4019257
A124: =$A$12 -> QCF1 GCSE(below grade C) & equivalent | B124: 1408.693517 | C124: 3186.410409 | D124: 2592.269989 | E124: 2039.87167 | F124: 1491.81483 | H124: -1100.455159
A125: =$A$13 -> No Qualification | B125: 259.9912313 | C125: 580.9660421 | D125: 303.190192 | E125: 199.7566567 | F125: 163.4555401 | H125: -139.7346519
A126: Total | B126: =SUM(B117:B125) -> 45132.02792 | C126: =SUM(C117:C125) -> 61636.31962 | D126: =SUM(D117:D125) -> 79259.11794 | E126: =SUM(E117:E125) -> 85166.51999 | F126: =SUM(F117:F125) -> 92010.31425 | H126: =SUM(H117:H125) -> 12751.19631
A128: Percentage Shares | B128: =B$4 -> 1994 | C128: =C$4 -> 2004 | D128: =D$4 -> 2014 | E128: =E$4 -> 2019 | F128: =F$4 -> 2024 | H128: % change
A129: =$A$5 -> QCF8 Doctorate | B129: =B117/B$126*100 -> 2.20318003 | C129: 4.144885298 | D129: 6.778915254 | E129: 6.351483933 | F129: 6.677405692 | H129: =IF(D117>0,H117/D117*100,0) -> 14.34964943
A130: =$A$6 -> QCF7 Other higher degree | B130: 12.26829401 | C130: 11.67292737 | D130: 17.20233723 | E130: 15.83819114 | F130: 16.15556375 | H130: =IF(D118>0,H118/D118*100,0) -> 9.02395669
A131: =$A$7 -> QCF6 First degree | B131: 17.95451479 | C131: 26.61800427 | D131: 34.60135998 | E131: 41.90042902 | F131: 48.06177583 | H131: 61.24784675
A132: =$A$8 -> QCF5 Foundation degree;Nursing;Teaching | B132: 52.01840012 | C132: 33.96202621 | D132: 21.0380127 | E132: 16.03561038 | F132: 9.9631515 | H132: -45.02321989
A133: =$A$9 -> QCF4 HE below degree level | B133: 3.38832986 | C133: 2.9522397 | D133: 2.310995748 | E133: 2.555993076 | F133: 2.769913434 | H133: 39.1407466
A134: =$A$10 -> QCF3 A level & equivalent | B134: 3.618019244 | C134: 6.425078177 | D134: 8.276786577 | E134: 8.566815944 | F134: 8.945911523 | H134: 25.47295351
A135: =$A$11 -> QCF2 GCSE(A-C) & equivalent | B135: 4.851921433 | C135: 8.112571937 | D135: 6.1384353 | E135: 6.121771405 | F135: 5.627273031 | H135: 6.421060838
A136: =$A$12 -> QCF1 GCSE(below grade C) & equivalent | B136: 3.12127237 | C136: 5.169696096 | D136: 3.270626846 | E136: 2.39515677 | F136: 1.621356086 | H136: -42.45140991
A137: =$A$13 -> No Qualification | B137: 0.5760681345 | C137: 0.942570948 | D137: 0.3825303635 | E137: 0.2345483375 | F137: 0.1776491488 | H137: -46.08811748
A138: Total | B138: 100 | C138: 100 | D138: 100 | E138: 100 | F138: 100 | H138: 16.08798665
A139: =$A$27 -> R:\Research Info\Individual research project info\Working Futures_ Data to be uploaded on the 16th May 16\Wales main workbook_needs cover updating\[AllWA.xlsm]Table 7.x.2, Wales
A141: Table 7.2.5 | B141: =$B$1 -> Occupational Employment, 1990 to 2020, by Qualification Level
B142: =names!C8 -> 23 Teaching and educational professionals
A143: =$A$3 -> Qualification categories | H143: Change
A144: Employment Levels (000s) | B144: =B$4 -> 1994 | C144: =C$4 -> 2004 | D144: =D$4 -> 2014 | E144: =E$4 -> 2019 | F144: =F$4 -> 2024 | H144: =D144&" - "&F144 -> 2014 - 2024
A145: =$A$5 -> QCF8 Doctorate | B145: 3549.887976 | C145: 4330.549437 | D145: 6898.649174 | E145: 7150.46597 | F145: 8179.68233 | H145: =F145-D145 -> 1281.033156
A146: =$A$6 -> QCF7 Other higher degree | B146: 17549.50628 | C146: 24744.44643 | D146: 41540.04083 | E146: 43230.5174 | F146: 48900.54709 | H146: =F146-D146 -> 7360.506262
A147: =$A$7 -> QCF6 First degree | B147: 15792.95435 | C147: 24012.47909 | D147: 27502.53221 | E147: 31220.71232 | F147: 32295.02606 | H147: 4792.493856
A148: =$A$8 -> QCF5 Foundation degree;Nursing;Teaching | B148: 12080.51593 | C148: 10656.49268 | D148: 5476.643789 | E148: 3482.354146 | F148: 2148.541668 | H148: -3328.102121
A149: =$A$9 -> QCF4 HE below degree level | B149: 1673.183812 | C149: 1548.888419 | D149: 1225.363729 | E149: 1439.907696 | F149: 1509.628896 | H149: 284.2651663
A150: =$A$10 -> QCF3 A level & equivalent | B150: 1985.042516 | C150: 2802.893927 | D150: 3716.130438 | E150: 3665.312186 | F150: 3658.365344 | H150: -57.76509377
A151: =$A$11 -> QCF2 GCSE(A-C) & equivalent | B151: 1950.558022 | C151: 2831.35662 | D151: 3008.031025 | E151: 3276.945293 | F151: 3399.202178 | H151: 391.1711528
A152: =$A$12 -> QCF1 GCSE(below grade C) & equivalent | B152: 1146.442071 | C152: 2113.406449 | D152: 2009.441074 | E152: 1839.771816 | F152: 1531.044956 | H152: -478.3961181
A153: =$A$13 -> No Qualification | B153: 250.4716201 | C153: 364.683272 | D153: 481.1773277 | E153: 369.1826298 | F153: 316.375761 | H153: -164.8015666
A154: Total | B154: =SUM(B145:B153) -> 55978.56257 | C154: =SUM(C145:C153) -> 73405.19632 | D154: =SUM(D145:D153) -> 91858.00959 | E154: =SUM(E145:E153) -> 95675.16945 | F154: =SUM(F145:F153) -> 101938.4143 | H154: =SUM(H145:H153) -> 10080.40469
A156: Percentage Shares | B156: =B$4 -> 1994 | C156: =C$4 -> 2004 | D156: =D$4 -> 2014 | E156: =E$4 -> 2019 | F156: =F$4 -> 2024 | H156: % change
A157: =$A$5 -> QCF8 Doctorate | B157: =B145/B$154*100 -> 6.341513274 | C157: 5.89951346 | D157: 7.510122638 | E157: 7.473690416 | F157: 8.02414123 | H157: =IF(D145>0,H145/D145*100,0) -> 18.56933327
A158: =$A$6 -> QCF7 Other higher degree | B158: 31.35040535 | C158: 33.70939343 | D158: 45.22201277 | E158: 45.18467816 | F158: 47.97067664 | H158: =IF(D146>0,H146/D146*100,0) -> 17.71906362
A159: =$A$7 -> QCF6 First degree | B159: 28.21250425 | C159: 32.71223332 | D159: 29.94026577 | E159: 32.63199061 | F159: 31.68091861 | H159: 17.42564583
A160: =$A$8 -> QCF5 Foundation degree;Nursing;Teaching | B160: 21.58061118 | C160: 14.51735464 | D160: 5.962075396 | E160: 3.639767941 | F160: 2.107685982 | H160: -60.76900835
A161: =$A$9 -> QCF4 HE below degree level | B161: 2.988972448 | C161: 2.110052826 | D161: 1.333975921 | E161: 1.504996233 | F161: 1.480922483 | H161: 23.19843157
A162: =$A$10 -> QCF3 A level & equivalent | B162: 3.546076256 | C162: 3.818386255 | D162: 4.045515959 | E162: 3.830996284 | F162: 3.588799541 | H162: -1.554442039
A163: =$A$11 -> QCF2 GCSE(A-C) & equivalent | B163: 3.484473221 | C163: 3.857161021 | D163: 3.274652954 | E163: 3.425073936 | F163: 3.334564503 | H163: 13.00422601
A164: =$A$12 -> QCF1 GCSE(below grade C) & equivalent | B164: 2.048001982 | C164: 2.879096515 | D164: 2.18755129 | E164: 1.922935519 | F164: 1.501931305 | H164: -23.80742209
A165: =$A$13 -> No Qualification | B165: 0.447442036 | C165: 0.4968085236 | D165: 0.5238272958 | E165: 0.385870892 | F165: 0.3103597042 | H165: -34.24965333
A166: Total | B166: 100 | C166: 100 | D166: 100 | E166: 100 | F166: 100 | H166: 10.97389845
A167: =$A$27 -> R:\Research Info\Individual research project info\Working Futures_ Data to be uploaded on the 16th May 16\Wales main workbook_needs cover updating\[AllWA.xlsm]Table 7.x.2, Wales
A169: Table 7.2.6 | B169: =$B$1 -> Occupational Employment, 1990 to 2020, by Qualification Level
B170: =names!C9 -> 24 Business, media and public service professionals
A171: =$A$3 -> Qualification categories | H171: Change
A172: Employment Levels (000s) | B172: =B$4 -> 1994 | C172: =C$4 -> 2004 | D172: =D$4 -> 2014 | E172: =E$4 -> 2019 | F172: =F$4 -> 2024 | H172: =D172&" - "&F172 -> 2014 - 2024
A173: =$A$5 -> QCF8 Doctorate | B173: 553.8888445 | C173: 528.6879234 | D173: 830.5920092 | E173: 845.1238637 | F173: 924.9073083 | H173: =F173-D173 -> 94.31529908
A174: =$A$6 -> QCF7 Other higher degree | B174: 4465.401147 | C174: 5706.487658 | D174: 10410.66041 | E174: 10293.57362 | F174: 10876.70118 | H174: =F174-D174 -> 466.040765
A175: =$A$7 -> QCF6 First degree | B175: 10045.14117 | C175: 13266.25391 | D175: 17152.02382 | E175: 21698.88908 | F175: 24767.01044 | H175: 7614.986618
A176: =$A$8 -> QCF5 Foundation degree;Nursing;Teaching | B176: 7888.579051 | C176: 4972.807863 | D176: 1981.831689 | E176: 1629.500582 | F176: 1365.129703 | H176: -616.701986
A177: =$A$9 -> QCF4 HE below degree level | B177: 2236.185393 | C177: 2164.250715 | D177: 2676.634325 | E177: 3170.938756 | F177: 3447.182897 | H177: 770.5485716
A178: =$A$10 -> QCF3 A level & equivalent | B178: 3052.996441 | C178: 4753.826959 | D178: 5208.691387 | E178: 5071.866061 | F178: 4886.921362 | H178: -321.7700246
A179: =$A$11 -> QCF2 GCSE(A-C) & equivalent | B179: 2922.446548 | C179: 4283.434982 | D179: 3693.610655 | E179: 3579.265428 | F179: 3184.149158 | H179: -509.4614964
A180: =$A$12 -> QCF1 GCSE(below grade C) & equivalent | B180: 1560.079689 | C180: 2687.997727 | D180: 2053.833652 | E180: 1793.758074 | F180: 1453.436622 | H180: -600.39703
A181: =$A$13 -> No Qualification | B181: 544.7734937 | C181: 793.118301 | D181: 687.7533568 | E181: 436.9442462 | F181: 331.058553 | H181: -356.6948038
A182: Total | B182: =SUM(B173:B181) -> 33269.49178 | C182: =SUM(C173:C181) -> 39156.86604 | D182: =SUM(D173:D181) -> 44695.63131 | E182: =SUM(E173:E181) -> 48519.85971 | F182: =SUM(F173:F181) -> 51236.49722 | H182: =SUM(H173:H181) -> 6540.865913
A184: Percentage Shares | B184: =B$4 -> 1994 | C184: =C$4 -> 2004 | D184: =D$4 -> 2014 | E184: =E$4 -> 2019 | F184: =F$4 -> 2024 | H184: % change
A185: =$A$5 -> QCF8 Doctorate | B185: =B173/B$182*100 -> 1.664855142 | C185: 1.35017936 | D185: 1.858329293 | E185: 1.741810197 | F185: 1.805172794 | H185: =IF(D173>0,H173/D173*100,0) -> 11.3551898
A186: =$A$6 -> QCF7 Other higher degree | B186: 13.42190971 | C186: 14.57340241 | D186: 23.29234448 | E186: 21.21517597 | F186: 21.2284246 | H186: =IF(D174>0,H174/D174*100,0) -> 4.476572537
A187: =$A$7 -> QCF6 First degree | B187: 30.19325104 | C187: 33.87976427 | D187: 38.37516849 | E187: 44.72166493 | F187: 48.33860975 | H187: 44.39701517
A188: =$A$8 -> QCF5 Foundation degree;Nursing;Teaching | B188: 23.71114985 | C188: 12.69970855 | D188: 4.434061295 | E188: 3.358419814 | F188: 2.664369691 | H188: -31.11777804
A189: =$A$9 -> QCF4 HE below degree level | B189: 6.721429375 | C189: 5.527129553 | D189: 5.988581539 | E189: 6.535341972 | F189: 6.727983144 | H189: 28.78796571
A190: =$A$10 -> QCF3 A level & equivalent | B190: 9.176564708 | C190: 12.14046843 | D190: 11.6536924 | E190: 10.45317544 | F190: 9.537969274 | H190: -6.177559789
A191: =$A$11 -> QCF2 GCSE(A-C) & equivalent | B191: 8.784163483 | C191: 10.93916703 | D191: 8.263918747 | E191: 7.376908033 | F191: 6.214611324 | H191: -13.79304816
A192: =$A$12 -> QCF1 GCSE(below grade C) & equivalent | B192: 4.689220081 | C192: 6.864690664 | D192: 4.595155257 | E192: 3.69695643 | F192: 2.836721284 | H192: -29.23299214
A193: =$A$13 -> No Qualification | B193: 1.637456614 | C193: 2.025489732 | D193: 1.538748501 | E193: 0.9005472168 | F193: 0.6461381455 | H193: -51.86376777
A194: Total | B194: 100 | C194: 100 | D194: 100 | E194: 100 | F194: 100 | H194: 14.63423991
A195: =$A$27 -> R:\Research Info\Individual research project info\Working Futures_ Data to be uploaded on the 16th May 16\Wales main workbook_needs cover updating\[AllWA.xlsm]Table 7.x.2, Wales
A197: Table 7.2.7 | B197: =$B$1 -> Occupational Employment, 1990 to 2020, by Qualification Level
B198: =names!C10 -> 31 Science, engineering and technology associate professionals
A199: =$A$3 -> Qualification categories | H199: Change
A200: Employment Levels (000s) | B200: =B$4 -> 1994 | C200: =C$4 -> 2004 | D200: =D$4 -> 2014 | E200: =E$4 -> 2019 | F200: =F$4 -> 2024 | H200: =D200&" - "&F200 -> 2014 - 2024
A201: =$A$5 -> QCF8 Doctorate | B201: 508.4671998 | C201: 101.1424773 | D201: 388.4231369 | E201: 374.6661152 | F201: 387.870949 | H201: =F201-D201 -> -0.5521879583
A202: =$A$6 -> QCF7 Other higher degree | B202: 1321.117723 | C202: 1114.766568 | D202: 2328.887963 | E202: 2140.41691 | F202: 2256.349384 | H202: =F202-D202 -> -72.53857903
A203: =$A$7 -> QCF6 First degree | B203: 2983.684361 | C203: 3816.708906 | D203: 5114.849152 | E203: 6216.835245 | F203: 6988.7818 | H203: 1873.932648
A204: =$A$8 -> QCF5 Foundation degree;Nursing;Teaching | B204: 1000.455918 | C204: 683.3590382 | D204: 1022.906641 | E204: 1266.490956 | F204: 1522.728806 | H204: 499.8221648
A205: =$A$9 -> QCF4 HE below degree level | B205: 5090.392462 | C205: 3203.863725 | D205: 2632.693556 | E205: 2707.165273 | F205: 2635.810255 | H205: 3.116698779
A206: =$A$10 -> QCF3 A level & equivalent | B206: 4506.970985 | C206: 5101.334316 | D206: 4101.85876 | E206: 3428.707501 | F206: 2895.629684 | H206: -1206.229076
A207: =$A$11 -> QCF2 GCSE(A-C) & equivalent | B207: 3045.515665 | C207: 3364.525101 | D207: 2945.813995 | E207: 2874.080709 | F207: 2724.954181 | H207: -220.8598149
A208: =$A$12 -> QCF1 GCSE(below grade C) & equivalent | B208: 1338.010019 | C208: 1975.104983 | D208: 1808.788698 | E208: 1741.95847 | F208: 1563.183622 | H208: -245.605076
A209: =$A$13 -> No Qualification | B209: 724.0840742 | C209: 899.4750722 | D209: 407.9100697 | E209: 279.5010266 | F209: 225.7039494 | H209: -182.2061202
A210: Total | B210: =SUM(B201:B209) -> 20518.69841 | C210: =SUM(C201:C209) -> 20260.28019 | D210: =SUM(D201:D209) -> 20752.13197 | E210: =SUM(E201:E209) -> 21029.8222 | F210: =SUM(F201:F209) -> 21201.01263 | H210: =SUM(H201:H209) -> 448.8806572
A212: Percentage Shares | B212: =B$4 -> 1994 | C212: =C$4 -> 2004 | D212: =D$4 -> 2014 | E212: =E$4 -> 2019 | F212: =F$4 -> 2024 | H212: % change
A213: =$A$5 -> QCF8 Doctorate | B213: =B201/B$210*100 -> 2.478067515 | C213: 0.4992155903 | D213: 1.87172642 | E213: 1.781594307 | F213: 1.829492561 | H213: =IF(D201>0,H201/D201*100,0) -> -0.1421614486
A214: =$A$6 -> QCF7 Other higher degree | B214: 6.438603935 | C214: 5.502226809 | D214: 11.22240339 | E214: 10.17800764 | F214: 10.64264912 | H214: =IF(D202>0,H202/D202*100,0) -> -3.1147303
A215: =$A$7 -> QCF6 First degree | B215: 14.54129449 | C215: 18.83838165 | D215: 24.64734302 | E215: 29.56199622 | F215: 32.96437732 | H215: 36.63710487
... 475 more rows

Sheet Figure 7.2
AA4: ="Qualification structure, "&AE5&" - "&BI5&", "&CHAR(13)&"All industries" -> Qualification structure, 1994 - 2024, All industries
AA5: 1990 | AB5: 1991 | AC5: 1992 | AD5: 1993 | AE5: 1994 | AF5: 1995 | AG5: 1996 | AH5: 1997 | AI5: 1998 | AJ5: 1999 | AK5: 2000 | AL5: 2001 | AM5: 2002 | AN5: 2003 | AO5: 2004 | AP5: 2005 | AQ5: 2006 | AR5: 2007 | AS5: 2008 | AT5: 2009 | AU5: 2010 | AV5: 2011 | AW5: 2012 | AX5: 2013 | AY5: 2014 | AZ5: 2015 | BA5: 2016 | BB5: 2017 | BC5: 2018 | BD5: 2019 | BE5: 2020 | BF5: 2021 | BG5: 2022 | BH5: 2023 | BI5: 2024
Z6: =LEFT(names!$D4,4) -> QCF8 | AA6: 16438.61552 | AB6: 15169.30971 | AC6: 13924.99998 | AD6: 13606.73173 | AE6: 13591.00647 | AF6: 12860.11274 | AG6: 12460.19558 | AH6: 11867.64279 | AI6: 11462.28545 | AJ6: 11348.47717 | AK6: 11097.08845 | AL6: 11217.49499 | AM6: 11090.7108 | AN6: 10790.09973 | AO6: 11453.77783 | AP6: 12433.72028 | AQ6: 12163.08374 | AR6: 13436.78539 | AS6: 14812.66291 | AT6: 16817.74455 | AU6: 14488.14928 | AV6: 14517.26662 | AW6: 14276.28004 | AX6: 16830.42854 | AY6: 20480.23633 | AZ6: 18608.47368 | BA6: 19128.36295 | BB6: 19606.89997 | BC6: 20096.29175 | BD6: 20578.83183 | BE6: 21107.48327 | BF6: 21607.6965 | BG6: 22109.50866 | BH6: 22579.97121 | BI6: 23017.44648
Z7: =LEFT(names!$D5,4) -> QCF7 | AA7: 58071.42122 | AB7: 56734.96455 | AC7: 56638.69479 | AD7: 57923.44605 | AE7: 58900.8726 | AF7: 58813.93622 | AG7: 59672.7085 | AH7: 60799.86978 | AI7: 60308.65004 | AJ7: 61747.2646 | AK7: 63434.62406 | AL7: 63622.88187 | AM7: 66131.01927 | AN7: 67352.92239 | AO7: 67546.96436 | AP7: 83870.15251 | AQ7: 68521.0128 | AR7: 91470.81553 | AS7: 93624.25985 | AT7: 99488.10854 | AU7: 91582.77181 | AV7: 90715.44442 | AW7: 87538.33788 | AX7: 107066.3639 | AY7: 128680.8406 | AZ7: 116350.7936 | BA7: 120022.5847 | BB7: 123414.3017 | BC7: 126729.9783 | BD7: 129958.9812 | BE7: 133383.4187 | BF7: 136214.5841 | BG7: 139032.0209 | BH7: 141522.8578 | BI7: 143729.7589
Z8: =LEFT(names!$D6,4) -> QCF6 | AA8: 93308.61179 | AB8: 91439.41186 | AC8: 91445.31805 | AD8: 95037.21513 | AE8: 99607.59803 | AF8: 101514.1201 | AG8: 105706.2508 | AH8: 109505.1512 | AI8: 110768.7362 | AJ8: 118016.514 | AK8: 124130.6102 | AL8: 132576.6417 | AM8: 136338.4713 | AN8: 139340.1391 | AO8: 149724.7377 | AP8: 144026.118 | AQ8: 157988.4391 | AR8: 166341.0978 | AS8: 179356.0866 | AT8: 211280.1668 | AU8: 207386.3737 | AV8: 209359.7509 | AW8: 215672.5039 | AX8: 214413.8352 | AY8: 237835.2908 | AZ8: 259989.0543 | BA8: 272800.2749 | BB8: 285156.7164 | BC8: 297407.1106 | BD8: 309711.6584 | BE8: 321768.9354 | BF8: 334797.2149 | BG8: 346949.437 | BH8: 358699.1893 | BI8: 370285.7403
Z9: =LEFT(names!$D7,4) -> QCF5 | AA9: 99563.41697 | AB9: 97464.63652 | AC9: 96017.34016 | AD9: 96454.61293 | AE9: 95760.6079 | AF9: 93899.9677 | AG9: 92811.07118 | AH9: 91450.68552 | AI9: 88747.5231 | AJ9: 86629.2345 | AK9: 88542.95337 | AL9: 84158.97651 | AM9: 89089.8414 | AN9: 87176.05169 | AO9: 84326.80438 | AP9: 78758.99468 | AQ9: 86815.547 | AR9: 79724.80911 | AS9: 85132.59667 | AT9: 91660.77595 | AU9: 89043.18856 | AV9: 85178.54847 | AW9: 84244.65521 | AX9: 81619.79356 | AY9: 89300.71515 | AZ9: 92668.73019 | BA9: 94093.66575 | BB9: 95400.11765 | BC9: 96662.75423 | BD9: 97862.25264 | BE9: 98774.75672 | BF9: 99741.92733 | BG9: 100626.1065 | BH9: 101432.9088 | BI9: 102119.5072
Z10: =LEFT(names!$D8,4) -> QCF4 | AA10: 81282.92632 | AB10: 76321.91161 | AC10: 73271.26702 | AD10: 72866.70762 | AE10: 72125.50035 | AF10: 69473.71353 | AG10: 68453.04037 | AH10: 67789.48944 | AI10: 65722.30793 | AJ10: 64899.87705 | AK10: 63285.56365 | AL10: 59215.84402 | AM10: 59913.05789 | AN10: 62345.85013 | AO10: 58062.76886 | AP10: 56588.86834 | AQ10: 57340.40673 | AR10: 60649.21443 | AS10: 59456.80879 | AT10: 72722.82785 | AU10: 67193.36179 | AV10: 67056.02828 | AW10: 66007.92428 | AX10: 64774.2408 | AY10: 74636.35495 | AZ10: 79587.51593 | BA10: 83243.29387 | BB10: 86712.25526 | BC10: 89981.69265 | BD10: 93252.00652 | BE10: 96286.87484 | BF10: 99379.59574 | BG10: 102233.7658 | BH10: 104942.5419 | BI10: 107511.4929
Z11: =LEFT(names!$D9,4) -> QCF3 | AA11: 243751.1593 | AB11: 233932.8661 | AC11: 228682.0428 | AD11: 231709.2467 | AE11: 235647.5599 | AF11: 232180.0999 | AG11: 232906.8805 | AH11: 235033.0837 | AI11: 232508.2919 | AJ11: 237956.8372 | AK11: 240435.1422 | AL11: 243690.6063 | AM11: 250247.7345 | AN11: 253004.6651 | AO11: 255621.3715 | AP11: 267212.8459 | AQ11: 290113.3568 | AR11: 281706.6661 | AS11: 289642.9321 | AT11: 253120.4341 | AU11: 281619.7769 | AV11: 261541.8745 | AW11: 281159.0163 | AX11: 296381.4468 | AY11: 299583.7522 | AZ11: 295229.6683 | BA11: 295420.5504 | BB11: 294732.1058 | BC11: 293627.2768 | BD11: 292031.7173 | BE11: 290841.7831 | BF11: 288661.1553 | BG11: 287029.8697 | BH11: 285523.0272 | BI11: 284112.3093
Z12: =LEFT(names!$D10,4) -> QCF2 | AA12: 269423.3191 | AB12: 260748.665 | AC12: 256401.1921 | AD12: 259973.6681 | AE12: 262993.3545 | AF12: 260493.7841 | AG12: 262600.3895 | AH12: 264315.4898 | AI12: 260837.6254 | AJ12: 264983.9991 | AK12: 271458.7439 | AL12: 271277.2328 | AM12: 280600.619 | AN12: 284080.4342 | AO12: 287291.233 | AP12: 322321.6505 | AQ12: 334648.8776 | AR12: 337117.0666 | AS12: 333477.1234 | AT12: 307692.2349 | AU12: 309910.971 | AV12: 327378.1616 | AW12: 311788.8243 | AX12: 309544.395 | AY12: 289685.7032 | AZ12: 312592.0765 | BA12: 309742.5445 | BB12: 306264.7962 | BC12: 302397.5466 | BD12: 298558.9791 | BE12: 295514.3717 | BF12: 291763.7637 | BG12: 288498.3351 | BH12: 285114.5024 | BI12: 281846.5037
Z13: =LEFT(names!$D11,4) -> QCF1 | AA13: 221897.0555 | AB13: 215050.9108 | AC13: 211669.8243 | AD13: 214643.1337 | AE13: 216947.498 | AF13: 215071.4564 | AG13: 216984.9784 | AH13: 218310.5484 | AI13: 215352.0529 | AJ13: 218510.0315 | AK13: 224354.3055 | AL13: 223687.054 | AM13: 231650.1159 | AN13: 234575.3381 | AO13: 237263.3797 | AP13: 254961.7994 | AQ13: 223915.7222 | AR13: 227710.185 | AS13: 206059.2751 | AT13: 211576.3289 | AU13: 186937.0214 | AV13: 197289.1051 | AW13: 192300.5968 | AX13: 188958.3031 | AY13: 179716.2571 | AZ13: 176650.3577 | BA13: 170676.8813 | BB13: 164506.823 | BC13: 158188.992 | BD13: 151844.1626 | BE13: 145807.6731 | BF13: 139659.0558 | BG13: 133880.6464 | BH13: 129189.3582 | BI13: 124775.4787
Z14: =LEFT(names!$D12,7) -> No Qual | AA14: 155155.4743 | AB14: 149848.3238 | AC14: 147136.3208 | AD14: 149161.238 | AE14: 151091.0023 | AF14: 149460.8093 | AG14: 150487.4851 | AH14: 151566.0393 | AI14: 149661.5271 | AJ14: 152317.7649 | AK14: 155511.9687 | AL14: 155948.2678 | AM14: 161020.4299 | AN14: 162962.4995 | AO14: 164765.9627 | AP14: 146033.8504 | AQ14: 155027.554 | AR14: 142558.36 | AS14: 131416.2546 | AT14: 113064.3784 | AU14: 105019.3856 | AV14: 100545.8201 | AW14: 87825.86124 | AX14: 77567.19303 | AY14: 92346.84972 | AZ14: 73385.32975 | BA14: 66289.84164 | BB14: 59477.98405 | BC14: 52856.35706 | BD14: 47099.41045 | BE14: 42137.7032 | BF14: 37811.00668 | BG14: 34239.31002 | BH14: 31156.64319 | BI14: 28489.76246

Sheet ShiftShare
A1: =CONCATENATE("Table 4.6 Shift-share by occupation, ",I3) -> Table 4.6 Shift-share by occupation, 2004-2014
K2: Components of change
B3: Base year | C3: =All!P7 -> 2004 | E3: Target year | F3: =All!Z7 -> 2014 | H3: Change | I3: =CONCATENATE(C3,"-",F3) -> 2004-2014 | K3: Scale effect | N3: Occupation effect | Q3: Industry mix effect
A4: SOC2010 Sub-Major Groups | B4: 000s | C4: % share | E4: =B4 -> 000s | F4: =C4 -> % share | H4: =E4 -> 000s | I4: % | K4: =H4 -> 000s | L4: =I4 -> % | N4: =K4 -> 000s | O4: =L4 -> % | Q4: =N4 -> 000s | R4: =O4 -> %
A6: =names!C4 -> 11 Corporate managers and directors | B6: 50.997032 | C6: =B6/B$31*100 -> 3.874986576 | E6: 65.389281 | F6: =E6/E$31*100 -> 4.630096664 | H6: =E6-B6 -> 14.392249 | I6: =((E6/B6)-1)*100 -> 28.22173847 | K6: =(($E$31/$B$31)-1)*B6 -> 3.728085951 | L6: =K6/B6*100 -> 7.310397889 | N6: =H6-(K6+Q6) -> 10.66416305 | O6: =N6/B6*100 -> 20.91134058 | Q6: 0 | R6: =Q6/B6*100 -> 0
A7: =names!C5 -> 12 Other managers and proprietors | B7: 37.335199 | C7: =B7/B$31*100 -> 2.83689833 | E7: 40.97382 | F7: =E7/E$31*100 -> 2.901282051 | H7: =E7-B7 -> 3.638621 | I7: =((E7/B7)-1)*100 -> 9.74581922 | K7: =(($E$31/$B$31)-1)*B7 -> 2.7293516 | L7: =K7/B7*100 -> 7.310397889 | N7: =H7-(K7+Q7) -> 0.9092694004 | O7: =N7/B7*100 -> 2.435421331 | Q7: 0 | R7: =Q7/B7*100 -> 0
A8: =names!C6 -> 21 Science, research, engineering and technology professionals | B8: 36.715011 | C8: 2.789773623 | E8: 45.528612 | F8: 3.223798631 | H8: 8.813601 | I8: 24.0054429 | K8: 2.684013389 | L8: 7.310397889 | N8: 6.129587611 | O8: 16.69504501 | Q8: 0 | R8: 0
A9: =names!C7 -> 22 Health professionals | B9: 61.63632 | C9: 4.683408097 | E9: 79.259118 | F9: 5.612194724 | H9: 17.622798 | I9: 28.59158042 | K9: 4.505860236 | L9: 7.310397889 | N9: 13.11693776 | O9: 21.28118253 | Q9: 0 | R9: 0
A10: =names!C8 -> 23 Teaching and educational professionals | B10: 73.405196 | C10: 5.577660854 | E10: 91.85801 | F10: 6.504299469 | H10: 18.452814 | I10: 25.13829402 | K10: 5.366211899 | L10: 7.310397889 | N10: 13.0866021 | O10: 17.82789614 | Q10: 0 | R10: 0
A11: =names!C9 -> 24 Business, media and public service professionals | B11: 39.156866 | C11: 2.975316879 | E11: 44.695631 | F11: 3.164816753 | H11: 5.538765 | I11: 14.14506718 | K11: 2.862522705 | L11: 7.310397889 | N11: 2.676242295 | O11: 6.834669288 | Q11: 0 | R11: 0
A12: =names!C10 -> 31 Science, engineering and technology associate professionals | B12: 20.26028 | C12: 1.539468278 | E12: 20.752132 | F12: 1.469420915 | H12: 0.491852 | I12: 2.42766635 | K12: 1.481107081 | L12: 7.310397889 | N12: -0.9892550814 | O12: -4.882731539 | Q12: 0 | R12: 0
A13: =names!C11 -> 32 Health and social care associate professionals | B13: 21.431559 | C13: 1.628467386 | E13: 26.343391 | F13: 1.865327848 | H13: 4.911832 | I13: 22.91868734 | K13: 1.566732237 | L13: 7.310397889 | N13: 3.345099763 | O13: 15.60828945 | Q13: 0 | R13: 0
A14: =names!C12 -> 33 Protective service occupations | B14: 17.974488 | C14: 1.365783399 | E14: 15.886461 | F14: 1.124891556 | H14: -2.088027 | I14: -11.61661462 | K14: 1.314006591 | L14: 7.310397889 | N14: -3.402033591 | O14: -18.9270125 | Q14: 0 | R14: 0
A15: =names!C13 -> 34 Culture, media and sports occupations | B15: 16.663868 | C15: 1.266196527 | E15: 22.028616 | F15: 1.559806438 | H15: 5.364748 | I15: 32.193894 | K15: 1.218195054 | L15: 7.310397889 | N15: 4.146552946 | O15: 24.88349611 | Q15: 0 | R15: 0
A16: =names!C14 -> 35 Business and public service associate professionals | B16: 63.758672 | C16: 4.84467406 | E16: 73.977267 | F16: 5.238196413 | H16: 10.218595 | I16: 16.02698845 | K16: 4.661012612 | L16: 7.310397889 | N16: 5.557582388 | O16: 8.716590565 | Q16: 0 | R16: 0
A17: =names!C15 -> 41 Administrative occupations | B17: 119.642378 | C17: 9.090972365 | E17: 119.49244 | F17: 8.461043452 | H17: -0.149938 | I17: -0.1253218153 | K17: 8.746333876 | L17: 7.310397889 | N17: -8.896271876 | O17: -7.435719704 | Q17: 0 | R17: 0
A18: =names!C16 -> 42 Secretarial and related occupations | B18: 38.643164 | C18: 2.936283463 | E18: 34.747594 | F18: 2.460414254 | H18: -3.89557 | I18: -10.08087744 | K18: 2.824969045 | L18: 7.310397889 | N18: -6.720539045 | O18: -17.39127532 | Q18: 0 | R18: 0
A19: =names!C17 -> 51 Skilled agricultural and related trades | B19: 27.853163 | C19: 2.116410083 | E19: 26.226651 | F19: 1.8570617 | H19: -1.626512 | I19: -5.839595309 | K19: 2.03617704 | L19: 7.310397889 | N19: -3.66268904 | O19: -13.1499932 | Q19: 0 | R19: 0
A20: =names!C18 -> 52 Skilled metal, electrical and electronic trades | B20: 60.857119 | C20: 4.624200859 | E20: 62.996149 | F20: 4.460643318 | H20: 2.13903 | I20: 3.514839406 | K20: 4.448897543 | L20: 7.310397889 | N20: -2.309867543 | O20: -3.795558483 | Q20: 0 | R20: 0
A21: =names!C19 -> 53 Skilled construction and building trades | B21: 50.490686 | C21: 3.836512102 | E21: 67.019612 | F21: 4.745537452 | H21: 16.528926 | I21: 32.73658433 | K21: 3.691070043 | L21: 7.310397889 | N21: 12.83785596 | O21: 25.42618644 | Q21: 0 | R21: 0
A22: =names!C20 -> 54 Textiles, printing and other skilled trades | B22: 36.979092 | C22: 2.8098397 | E22: 35.416729 | F22: 2.507794493 | H22: -1.562363 | I22: -4.224990165 | K22: 2.703318761 | L22: 7.310397889 | N22: -4.265681761 | O22: -11.53538805 | Q22: 0 | R22: 0
A23: =names!C21 -> 61 Caring personal service occupations | B23: 97.78515 | C23: 7.430160711 | E23: 123.279073 | F23: 8.729168083 | H23: 25.493923 | I23: 26.07136462 | K23: 7.148483541 | L23: 7.310397889 | N23: 18.34543946 | O23: 18.76096673 | Q23: 0 | R23: 0
A24: =names!C22 -> 62 Leisure, travel and related personal service occupations | B24: 25.31591 | C24: 1.923618053 | E24: 29.247171 | F24: 2.070939255 | H24: 3.931261 | I24: 15.52881567 | K24: 1.85069375 | L24: 7.310397889 | N24: 2.08056725 | O24: 8.218417785 | Q24: 0 | R24: 0
A25: =names!C23 -> 71 Sales occupations | B25: 99.266315 | C25: 7.542706368 | E25: 90.334752 | F25: 6.396440326 | H25: -8.931563 | I25: -8.997576872 | K25: 7.256762596 | L25: 7.310397889 | N25: -16.1883256 | O25: -16.30797476 | Q25: 0 | R25: 0
A26: =names!C24 -> 72 Customer service occupations | B26: 17.241235 | C26: 1.310067499 | E26: 24.39769 | F26: 1.727556281 | H26: 7.156455 | I26: 41.50778642 | K26: 1.260402879 | L26: 7.310397889 | N26: 5.896052121 | O26: 34.19738853 | Q26: 0 | R26: 0
A27: =names!C25 -> 81 Process, plant and machine operatives | B27: 83.498823 | C27: 6.344620569 | E27: 81.247116 | F27: 5.752961265 | H27: -2.251707 | I27: -2.696693102 | K27: 6.104096194 | L27: 7.310397889 | N27: -8.355803194 | O27: -10.00709099 | Q27: 0 | R27: 0
A28: =names!C26 -> 82 Transport and mobile machine drivers and operatives | B28: 39.378095 | C28: 2.992126865 | E28: 39.472609 | F28: 2.794984017 | H28: 0.094514 | I28: 0.2400166895 | K28: 2.878695426 | L28: 7.310397889 | N28: -2.784181426 | O28: -7.0703812 | Q28: 0 | R28: 0
A29: =names!C27 -> 91 Elementary trades and related occupations | B29: 31.770504 | C29: 2.414067479 | E29: 32.835002 | F29: 2.324987076 | H29: 1.064498 | I29: 3.350585814 | K29: 2.322550254 | L29: 7.310397889 | N29: -1.258052254 | O29: -3.959812075 | Q29: 0 | R29: 0
A30: =names!C28 -> 92 Elementary administration and service occupations | B30: 148.000873 | C30: 11.24577987 | E30: 118.861074 | F30: 8.416337568 | H30: -29.139799 | I30: -19.68893724 | K30: 10.8194527 | L30: 7.310397889 | N30: -39.9592517 | O30: =N30/B30*100 -> -26.99933513 | Q30: 0 | R30: 0
A31: =names!C3 -> All occupations | B31: 1316.056998 | C31: =B31/B$31*100 -> 100 | E31: 1412.266001 | F31: =E31/E$31*100 -> 100 | H31: 96.209003 | I31: 7.310397889
A35: =CONCATENATE("Table 4.7 Shift-share by occupation, ",I37) -> Table 4.7 Shift-share by occupation, 2014-2024
K36: =K2 -> Components of change
B37: =B3 -> Base year | C37: =All!Z7 -> 2014 | E37: =E3 -> Target year | F37: =All!AJ7 -> 2024 | H37: =H3 -> Change | I37: =CONCATENATE(C37,"-",F37) -> 2014-2024 | K37: =K3 -> Scale effect | N37: =N3 -> Occupation effect | Q37: =Q3 -> Industry mix effect
A38: =A4 -> SOC2010 Sub-Major Groups | B38: =B4 -> 000s | C38: =C4 -> % share | E38: =E4 -> 000s | F38: =F4 -> % share | H38: =H4 -> 000s | I38: =I4 -> % | K38: =H38 -> 000s | L38: =I38 -> % | N38: =K38 -> 000s | O38: =L38 -> % | Q38: =N38 -> 000s | R38: =O38 -> %
A40: =A6 -> 11 Corporate managers and directors | B40: 65.389281 | C40: =B40/B$65*100 -> 4.630096664 | E40: 76.865748 | F40: =E40/E$65*100 -> 5.243630346 | H40: =E40-B40 -> 11.476467 | I40: =((E40/B40)-1)*100 -> 17.55099127 | K40: =(($E$65/$B$65)-1)*B40 -> 2.482750387 | L40: =K40/B40*100 -> 3.796876719 | N40: =H40-(K40+Q40) -> 8.993716613 | O40: =N40/B40*100 -> 13.75411455 | Q40: 0 | R40: =Q40/B40*100 -> 0
A41: =A7 -> 12 Other managers and proprietors | B41: 40.97382 | C41: 2.901282051 | E41: 45.669325 | F41: 3.115471646 | H41: 4.695505 | I41: 11.4597687 | K41: 1.555725432 | L41: =K41/B41*100 -> 3.796876719 | N41: =H41-(K41+Q41) -> 3.139779568 | O41: =N41/B41*100 -> 7.662891982 | Q41: 0 | R41: =Q41/B41*100 -> 0
A42: 21 Science, research, engineering and technology professionals | B42: 45.528612 | C42: 3.223798631 | E42: 50.312004 | F42: 3.432186088 | H42: 4.783392 | I42: 10.50634269 | K42: 1.728665269 | L42: 3.796876719 | N42: 3.054726731 | O42: 6.709465974 | Q42: 0 | R42: 0
A43: 22 Health professionals | B43: 79.259118 | C43: 5.612194724 | E43: 92.010314 | F43: 6.27676289 | H43: 12.751196 | I43: 16.08798624 | K43: 3.009370999 | L43: 3.796876719 | N43: 9.741825001 | O43: 12.29110952 | Q43: 0 | R43: 0
A44: 23 Teaching and educational professionals | B44: 91.85801 | C44: 6.504299469 | E44: 101.938414 | F44: 6.954038371 | H44: 10.080404 | I44: 10.97389765 | K44: 3.487735396 | L44: 3.796876719 | N44: 6.592668604 | O44: 7.17702093 | Q44: 0 | R44: 0
A45: 24 Business, media and public service professionals | B45: 44.695631 | C45: 3.164816753 | E45: 51.236497 | F45: 3.495253184 | H45: 6.540866 | I45: 14.6342402 | K45: 1.697038008 | L45: 3.796876719 | N45: 4.843827992 | O45: 10.83736348 | Q45: 0 | R45: 0
A46: 31 Science, engineering and technology associate professionals | B46: 20.752132 | C46: 1.469420915 | E46: 21.201013 | F46: 1.446291463 | H46: 0.448881 | I46: 2.16305968 | K46: 0.7879328686 | L46: 3.796876719 | N46: -0.3390518686 | O46: -1.633817039 | Q46: 0 | R46: 0
A47: 32 Health and social care associate professionals | B47: 26.343391 | C47: 1.865327848 | E47: 30.409457 | F47: 2.074473425 | H47: 4.066066 | I47: 15.43486182 | K47: 1.00022608 | L47: 3.796876719 | N47: 3.06583992 | O47: 11.6379851 | Q47: 0 | R47: 0
A48: 33 Protective service occupations | B48: 15.886461 | C48: 1.124891556 | E48: 14.976928 | F48: 1.02169661 | H48: -0.909533 | I48: -5.725208402 | K48: 0.6031893392 | L48: 3.796876719 | N48: -1.512722339 | O48: -9.522085121 | Q48: 0 | R48: 0
A49: 34 Culture, media and sports occupations | B49: 22.028616 | C49: 1.559806438 | E49: 24.694159 | F49: 1.684587022 | H49: 2.665543 | I49: 12.10036527 | K49: 0.8363993924 | L49: 3.796876719 | N49: 1.829143608 | O49: 8.303488552 | Q49: 0 | R49: 0
A50: 35 Business and public service associate professionals | B50: 73.977267 | C50: 5.238196413 | E50: 84.33455 | F50: 5.753137347 | H50: 10.357283 | I50: 14.00062941 | K50: 2.808825628 | L50: 3.796876719 | N50: 7.548457372 | O50: 10.20375269 | Q50: 0 | R50: 0
A51: 41 Administrative occupations | B51: 119.49244 | C51: 8.461043452 | E51: 117.137969 | F51: 7.990922158 | H51: -2.354471 | I51: -1.970393273 | K51: 4.536980635 | L51: 3.796876719 | N51: -6.891451635 | O51: -5.767269992 | Q51: 0 | R51: 0
A52: 42 Secretarial and related occupations | B52: 34.747594 | C52: 2.460414254 | E52: 23.995251 | F52: 1.636908891 | H52: -10.752343 | I52: -30.94413674 | K52: 1.319323307 | L52: 3.796876719 | N52: -12.07166631 | O52: -34.74101346 | Q52: 0 | R52: 0
A53: 51 Skilled agricultural and related trades | B53: 26.226651 | C53: 1.8570617 | E53: 22.885702 | F53: 1.561217637 | H53: -3.340949 | I53: -12.7387557 | K53: 0.9957936059 | L53: 3.796876719 | N53: -4.336742606 | O53: -16.53563242 | Q53: 0 | R53: 0
A54: 52 Skilled metal, electrical and electronic trades | B54: 62.996149 | C54: 4.460643318 | E54: 57.388757 | F54: 3.914948277 | H54: -5.607392 | I54: -8.901166324 | K54: 2.391886115 | L54: 3.796876719 | N54: -7.999278115 | O54: -12.69804304 | Q54: 0 | R54: 0
A55: 53 Skilled construction and building trades | B55: 67.019612 | C55: 4.745537452 | E55: 69.873232 | F55: 4.766614639 | H55: 2.85362 | I55: 4.257887975 | K55: 2.544652045 | L55: 3.796876719 | N55: 0.3089679549 | O55: 0.4610112558 | Q55: 0 | R55: 0
A56: 54 Textiles, printing and other skilled trades | B56: 35.416729 | C56: 2.507794493 | E56: 32.445126 | F56: 2.213342766 | H56: -2.971603 | I56: -8.390393703 | K56: 1.344729538 | L56: 3.796876719 | N56: -4.316332538 | O56: -12.18727042 | Q56: 0 | R56: 0
A57: 61 Caring personal service occupations | B57: 123.279073 | C57: 8.729168083 | E57: 138.175998 | F57: 9.426095172 | H57: 14.896925 | I57: 12.08390414 | K57: 4.680754422 | L57: 3.796876719 | N57: 10.21617058 | O57: 8.287027416 | Q57: 0 | R57: 0
A58: 62 Leisure, travel and related personal service occupations | B58: 29.247171 | C58: 2.070939255 | E58: 28.892614 | F58: 1.970997375 | H58: -0.354557 | I58: -1.212277933 | K58: 1.110479027 | L58: 3.796876719 | N58: -1.465036027 | O58: -5.009154652 | Q58: 0 | R58: 0
A59: 71 Sales occupations | B59: 90.334752 | C59: 6.396440326 | E59: 85.330517 | F59: 5.82108026 | H59: -5.004235 | I59: -5.539656543 | K59: 3.429899168 | L59: 3.796876719 | N59: -8.434134168 | O59: -9.336533262 | Q59: 0 | R59: 0
A60: 72 Customer service occupations | B60: 24.39769 | C60: 1.727556281 | E60: 29.399303 | F60: 2.005562703 | H60: 5.001613 | I60: 20.50035475 | K60: 0.9263502115 | L60: 3.796876719 | N60: 4.075262788 | O60: 16.70347803 | Q60: 0 | R60: 0
A61: 81 Process, plant and machine operatives | B61: 81.247116 | C61: 5.752961265 | E61: 72.031784 | F61: 4.913866817 | H61: -9.215332 | I61: -11.34234968 | K61: 3.084852832 | L61: 3.796876719 | N61: -12.30018483 | O61: -15.1392264 | Q61: 0 | R61: 0
A62: 82 Transport and mobile machine drivers and operatives | B62: 39.472609 | C62: 2.794984017 | E62: 41.521877 | F62: 2.83254089 | H62: 2.049268 | I62: 5.191620346 | K62: 1.498726301 | L62: 3.796876719 | N62: 0.5505416986 | O62: 1.394743627 | Q62: 0 | R62: 0
A63: 91 Elementary trades and related occupations | B63: 32.835002 | C63: 2.324987076 | E63: 34.236702 | F63: 2.335560561 | H63: 1.4017 | I63: 4.268920099 | K63: 1.246704547 | L63: 3.796876719 | N63: 0.1549954534 | O63: 0.4720433805 | Q63: 0 | R63: 0
A64: 92 Elementary administration and service occupations | B64: 118.861074 | C64: 8.416337568 | E64: 118.924759 | F64: 8.112813462 | H64: 0.063685 | I64: 0.0535793577 | K64: 4.513008446 | L64: 3.796876719 | N64: -4.449323446 | O64: =N64/B64*100 -> -3.743297361 | Q64: 0 | R64: 0
A65: All occupations | B65: 1412.266001 | C65: 100 | E65: 1465.888 | F65: 100 | H65: 53.621999 | I65: 3.796876719
A67: The Industry mix effect is dependent on the number of industries involved.
A68: In the All industries case the Industry mix effect is zero by definition (as there is only one industry)

Sheet TableQ
A1: ="Table 6.17: "&Info!A1 -> Table 6.17: Wales | F1: 000s | I1: The results in this sheet provide illustrative
A2: Total | I2: projections of the implications of changing
A3: QCF group | B3: Base year level | C3: Change | D3: Projected level | E3: Replacement | F3: Total requirement | I3: occupational employment structure for the
B4: ='Table 7.x.1'!D4 -> 2014 | C4: ='Table 7.x.1'!H4 -> 2014 - 2024 | D4: ='Table 7.x.1'!F4 -> 2024 | E4: Demand | F4: =C4 -> 2014 - 2024 | I4: numbers employed by qualification.
A5: QCF 7-8 | B5: =('Table 7.x.1'!D5+'Table 7.x.1'!D6)*0.001 -> 149.1610769 | C5: =D5-B5 -> 17.58612848 | D5: =('Table 7.x.1'!F5+'Table 7.x.1'!F6)*0.001 -> 166.7472054 | E5: =F5-C5 -> 58.44435916 | F5: =C5+('Table 6.x.3'!I26/100*TableQ!B5) -> 76.03048764
A6: QCF 4-6 | B6: =SUM('Table 7.x.1'!D7:D9)*0.001 -> 401.7723609 | C6: 178.1443795 | D6: =SUM('Table 7.x.1'!F7:F9)*0.001 -> 579.9167404 | E6: 157.4226242 | F6: =C6+('Table 6.x.3'!I26/100*TableQ!B6) -> 335.5670038
A7: QCF 3 | B7: ='Table 7.x.1'!D10*0.001 -> 299.5837522 | C7: -15.47144281 | D7: ='Table 7.x.1'!F10*0.001 -> 284.1123093 | E7: 117.3830383 | F7: =C7+('Table 6.x.3'!I26/100*TableQ!B7) -> 101.9115955
A8: QCF 2 | B8: ='Table 7.x.1'!D11*0.001 -> 289.6857032 | C8: -7.83919947 | D8: ='Table 7.x.1'!F11*0.001 -> 281.8465037 | E8: 113.5047804 | F8: =C8+('Table 6.x.3'!I26/100*TableQ!B8) -> 105.665581
A9: QCF 1 | B9: ='Table 7.x.1'!D12*0.001 -> 179.7162571 | C9: -54.94077846 | D9: ='Table 7.x.1'!F12*0.001 -> 124.7754787 | E9: 70.4165034 | F9: =C9+('Table 6.x.3'!I26/100*TableQ!B9) -> 15.47572494
A10: No Qual | B10: ='Table 7.x.1'!D13*0.001 -> 92.34684972 | C10: -63.85708727 | D10: ='Table 7.x.1'!F13*0.001 -> 28.48976246 | E10: 36.18338353 | F10: =C10+('Table 6.x.3'!I26/100*TableQ!B10) -> -27.67370374
A12: Total | B12: =SUM(B5:B11) -> 1412.266 | C12: =SUM(C5:C11) -> 53.622 | D12: =SUM(D5:D11) -> 1465.888 | E12: =F12-C12 -> 553.3546891 | F12: =SUM(F5:F11) -> 606.9766891
B14: % share | C14: % change | D14: % share | E14: % share | F14: % of base year level
A15: =A5 -> QCF 7-8 | B15: =(B5/B12)*100 -> 10.56182595 | C15: =IF(B5>0,C5/B5*100,0) -> 11.79002515 | D15: =IF(D12>0,D5/D12*100,0) -> 11.37516682 | E15: =IF(E12>0,E5/E12*100,0) -> 10.56182595 | F15: =IF(B5>1,F5/B5*100,0) -> 50.97206941
A16: QCF 4-6 | B16: =(B6/B12)*100 -> 28.44877388 | C16: =IF(B6>0,C6/B6*100,0) -> 44.33963032 | D16: =IF(D12>0,D6/D12*100,0) -> 39.56078093 | E16: =IF(E12>0,E6/E12*100,0) -> 28.44877388 | F16: =IF(B6>1,F6/B6*100,0) -> 83.52167457
A17: QCF 3 | B17: =(B7/B12)*100 -> 21.2129834 | C17: -5.16431305 | D17: =IF(D12>0,D7/D12*100,0) -> 19.38158368 | E17: =IF(E12>0,E7/E12*100,0) -> 21.2129834 | F17: 34.0177312
A18: QCF 2 | B18: =(B8/B12)*100 -> 20.51212047 | C18: -2.706105059 | D18: =IF(D12>0,D8/D12*100,0) -> 19.22701487 | E18: =IF(E12>0,E8/E12*100,0) -> 20.51212047 | F18: 36.47593919
A19: QCF 1 | B19: =(B9/B12)*100 -> 12.72538298 | C19: -30.57084503 | D19: =IF(D12>0,D9/D12*100,0) -> 8.511938066 | E19: =IF(E12>0,E9/E12*100,0) -> 12.72538298 | F19: 8.611199225
A20: No Qual | B20: =(B10/B12)*100 -> 6.53891333 | C20: -69.14917776 | D20: =IF(D12>0,D10/D12*100,0) -> 1.943515634 | E20: =IF(E12>0,E10/E12*100,0) -> 6.53891333 | F20: -29.9671335
A22: =A12 -> Total | B22: =(B12/B12)*100 -> 100 | C22: 3.796876792 | D22: =IF(D12>0,D12/D12*100,0) -> 100 | E22: =IF(E12>0,E12/E12*100,0) -> 100 | F22: 42.97892105
A23: =CELL("filename",$A$2)&", "&Info!A1 -> R:\Research Info\Individual research project info\Working Futures_ Data to be uploaded on the 16th May 16\Wales main workbook_needs cover updating\[AllWA.xlsm]TableQ, Wales

Sheet Replacement
B2: Replacement Demand: Total | E2: Period: 2014 - 2024
B3: All industries | K3: COPYRIGHT WIER
B4: (Results in 000s) | C4: Base year employment level | D4: Expansion demand | E4: Retirements | F4: Occupational mobility | G4: Migration | H4: Replacement demand | I4: Net requirement | AL4: Expansion Demand | AM4: Net Requirement
B5: 11 Corporate managers and directors | C5: 65.38928 | D5: 11.476469 | E5: 25.02599981 | F5: 0 | G5: 0 | H5: 25.02599981 | I5: 36.50246881 | AK5: =B29 -> 92 Elementary administration and service occupations | AL5: =D29 -> 0.063685 | AM5: =I29 -> 47.87043961
B6: 12 Other managers and proprietors | C6: 40.973819 | D6: 4.695506 | E6: 20.10140627 | F6: 0 | G6: 0 | H6: 20.10140627 | I6: 24.79691227 | K6: Because of the way the workbooks are | AK6: =B28 -> 91 Elementary trades and related occupations | AL6: =D28 -> 1.401702 | AM6: =I28 -> 12.73595152
B7: 21 Science, research, engineering and technology professionals | C7: 45.528612 | D7: 4.783392 | E7: 14.04863444 | F7: 0 | G7: 0 | H7: 14.04863444 | I7: 18.83202644 | K7: created, initial results relate to All sectors. | AK7: =B27 -> 82 Transport and mobile machine drivers and operatives | AL7: =D27 -> 2.049267 | AM7: =I27 -> 19.62087401
B8: 22 Health professionals | C8: 79.259118 | D8: 12.751196 | E8: 32.30191553 | F8: 0 | G8: 0 | H8: 32.30191553 | I8: 45.05311153 | AK8: =B26 -> 81 Process, plant and machine operatives | AL8: =D26 -> -9.215332 | AM8: =I26 -> 15.08642355
B9: 23 Teaching and educational professionals | C9: 91.858009 | D9: 10.080404 | E9: 40.6947989 | F9: 0 | G9: 0 | H9: 40.6947989 | I9: 50.7752029 | K9: Sector specific results are produced by | AK9: =B25 -> 72 Customer service occupations | AL9: =D25 -> 5.001613 | AM9: =I25 -> 13.59574426
B10: 24 Business, media and public service professionals | C10: 44.695633 | D10: 6.540864 | E10: 19.2037773 | F10: 0 | G10: 0 | H10: 19.2037773 | I10: 25.7446413 | K10: running the module via the Start button. | AK10: =B24 -> 71 Sales occupations | AL10: =D24 -> -5.004235 | AM10: =I24 -> 29.56386838
B11: 31 Science, engineering and technology associate professionals | C11: 20.752132 | D11: 0.448881 | E11: 6.236647715 | F11: 0 | G11: 0 | H11: 6.236647715 | I11: 6.685528715 | K11: This message can then be deleted. | AK11: =B23 -> 62 Leisure, travel and related personal service occupations | AL11: =D23 -> -0.354557 | AM11: =I23 -> 12.90445214
B12: 32 Health and social care associate professionals | C12: 26.343391 | D12: 4.066067 | E12: 10.09754909 | F12: 0 | G12: 0 | H12: 10.09754909 | I12: 14.16361609 | AK12: =B22 -> 61 Caring personal service occupations | AL12: =D22 -> 14.896924 | AM12: =I22 -> 68.27132605
B13: 33 Protective service occupations | C13: 15.886461 | D13: -0.909534 | E13: 3.808429934 | F13: 0 | G13: 0 | H13: 3.808429934 | I13: 2.898895934 | AK13: =B21 -> 54 Textiles, printing and other skilled trades | AL13: =D21 -> -2.971602 | AM13: =I21 -> 10.11201916
B14: 34 Culture, media and sports occupations | C14: 22.028615 | D14: 2.665545 | E14: 9.586872144 | F14: 0 | G14: 0 | H14: 9.586872144 | I14: 12.25241714 | AK14: =B20 -> 53 Skilled construction and building trades | AL14: =D20 -> 2.853621 | AM14: =I20 -> 25.41324155
B15: 35 Business and public service associate professionals | C15: 73.977268 | D15: 10.357281 | E15: 28.44217951 | F15: 0 | G15: 0 | H15: 28.44217951 | I15: 38.79946051 | AK15: =B19 -> 52 Skilled metal, electrical and electronic trades | AL15: =D19 -> -5.607391 | AM15: =I19 -> 13.28867755
B16: 41 Administrative occupations | C16: 119.492442 | D16: -2.354472 | E16: 49.90450654 | F16: 0 | G16: 0 | H16: 49.90450654 | I16: 47.55003454 | AK16: =B18 -> 51 Skilled agricultural and related trades | AL16: =D18 -> -3.34095 | AM16: =I18 -> 9.963179681
B17: 42 Secretarial and related occupations | C17: 34.747594 | D17: -10.752343 | E17: 15.24851948 | F17: 0 | G17: 0 | H17: 15.24851948 | I17: 4.496176482 | AK17: =B17 -> 42 Secretarial and related occupations | AL17: =D17 -> -10.752343 | AM17: =I17 -> 4.496176482
B18: 51 Skilled agricultural and related trades | C18: 26.22665 | D18: -3.34095 | E18: 13.30412968 | F18: 0 | G18: 0 | H18: 13.30412968 | I18: 9.963179681 | AK18: =B16 -> 41 Administrative occupations | AL18: =D16 -> -2.354472 | AM18: =I16 -> 47.55003454
B19: 52 Skilled metal, electrical and electronic trades | C19: 62.996149 | D19: -5.607391 | E19: 18.89606855 | F19: 0 | G19: 0 | H19: 18.89606855 | I19: 13.28867755 | AK19: =B15 -> 35 Business and public service associate professionals | AL19: =D15 -> 10.357281 | AM19: =I15 -> 38.79946051
B20: 53 Skilled construction and building trades | C20: 67.019611 | D20: 2.853621 | E20: 22.55962055 | F20: 0 | G20: 0 | H20: 22.55962055 | I20: 25.41324155 | AK20: =B14 -> 34 Culture, media and sports occupations | AL20: =D14 -> 2.665545 | AM20: =I14 -> 12.25241714
B21: 54 Textiles, printing and other skilled trades | C21: 35.416728 | D21: -2.971602 | E21: 13.08362116 | F21: 0 | G21: 0 | H21: 13.08362116 | I21: 10.11201916 | AK21: =B13 -> 33 Protective service occupations | AL21: =D13 -> -0.909534 | AM21: =I13 -> 2.898895934
B22: 61 Caring personal service occupations | C22: 123.279074 | D22: 14.896924 | E22: 53.37440205 | F22: 0 | G22: 0 | H22: 53.37440205 | I22: 68.27132605 | AK22: =B12 -> 32 Health and social care associate professionals | AL22: =D12 -> 4.066067 | AM22: =I12 -> 14.16361609
B23: 62 Leisure, travel and related personal service occupations | C23: 29.247171 | D23: -0.354557 | E23: 13.25900914 | F23: 0 | G23: 0 | H23: 13.25900914 | I23: 12.90445214 | AK23: =B11 -> 31 Science, engineering and technology associate professionals | AL23: =D11 -> 0.448881 | AM23: =I11 -> 6.685528715
B24: 71 Sales occupations | C24: 90.334752 | D24: -5.004235 | E24: 34.56810338 | F24: 0 | G24: 0 | H24: 34.56810338 | I24: 29.56386838 | AK24: =B10 -> 24 Business, media and public service professionals | AL24: =D10 -> 6.540864 | AM24: =I10 -> 25.7446413
B25: 72 Customer service occupations | C25: 24.39769 | D25: 5.001613 | E25: 8.594131265 | F25: 0 | G25: 0 | H25: 8.594131265 | I25: 13.59574426 | AK25: =B9 -> 23 Teaching and educational professionals | AL25: =D9 -> 10.080404 | AM25: =I9 -> 50.7752029
B26: 81 Process, plant and machine operatives | C26: 81.247116 | D26: -9.215332 | E26: 24.30175555 | F26: 0 | G26: 0 | H26: 24.30175555 | I26: 15.08642355 | AK26: =B8 -> 22 Health professionals | AL26: =D8 -> 12.751196 | AM26: =I8 -> 45.05311153
B27: 82 Transport and mobile machine drivers and operatives | C27: 39.47261 | D27: 2.049267 | E27: 17.57160701 | F27: 0 | G27: 0 | H27: 17.57160701 | I27: 19.62087401 | AK27: =B7 -> 21 Science, research, engineering and technology professionals | AL27: =D7 -> 4.783392 | AM27: =I7 -> 18.83202644
B28: 91 Elementary trades and related occupations | C28: 32.835001 | D28: 1.401702 | E28: 11.33424952 | F28: 0 | G28: 0 | H28: 11.33424952 | I28: 12.73595152 | AK28: =B6 -> 12 Other managers and proprietors | AL28: =D6 -> 4.695506 | AM28: =I6 -> 24.79691227
B29: 92 Elementary administration and service occupations | C29: 118.861074 | D29: 0.063685 | E29: 47.80675461 | F29: 0 | G29: 0 | H29: 47.80675461 | I29: 47.87043961 | AK29: =B5 -> 11 Corporate managers and directors | AL29: =D5 -> 11.476469 | AM29: =I5 -> 36.50246881
B30: All occupations | C30: 1412.266 | D30: 53.622001 | E30: 553.3546891 | F30: 0 | G30: 0 | H30: 553.3546891 | I30: 606.9766901 | AK30: =B30 -> All occupations | AL30: =D30 -> 53.622001 | AM30: =I30 -> 606.9766901
C32: Replacement Demand = Retirements + Occupational Mobility + Migration
C33: Net requirement = Expansion Demand + Replacement Demand
B35: Replacement Demand: Men | E35: Period: 2014 - 2024
B36: All industries | CQ36: Replacement Demand as % base year
B37: (Results in 000s) | C37: Base year employment level | D37: Expansion demand | E37: Retirements | F37: Occupational mobility | G37: Migration | H37: Replacement demand | I37: Net requirement | AL37: Expansion Demand | AM37: Net Requirement | CQ37: written by RD_VBtab6x3PGeneratorWF5.xlsm during workbook customisation
B38: 11 Corporate managers and directors | C38: 47.007839 | D38: 5.099252 | E38: 16.33389032 | F38: 0 | G38: 0 | H38: 16.33389032 | I38: 21.43314232 | AK38: =names!B12 -> Elementary occupations | AL38: =AL5+AL6 -> 1.465387 | AM38: =AM5+AM6 -> 60.60639113 | CP38: males | CQ38: 0.3474716274
B39: 12 Other managers and proprietors | C39: 25.75628 | D39: 1.350094 | E39: 11.15843564 | F39: 0 | G39: 0 | H39: 11.15843564 | I39: 12.50852964 | AK39: =names!B11 -> Process, plant and machine operatives | AL39: =AL7+AL8 -> -7.166065 | AM39: =AM7+AM8 -> 34.70729756 | CQ39: 0.4332316482
B40: 21 Science, research, engineering and technology professionals | C40: 35.98645 | D40: 2.473827 | E40: 10.32969881 | F40: 0 | G40: 0 | H40: 10.32969881 | I40: 12.80352581 | AK40: =names!B10 -> Sales and customer service | AL40: =AL9+AL10 -> -0.002622 | AM40: =AM9+AM10 -> 43.15961264 | CQ40: 0.2870441183
B41: 22 Health professionals | C41: 22.246546 | D41: 2.507401 | E41: 8.052293623 | F41: 0 | G41: 0 | H41: 8.052293623 | I41: 10.55969462 | AK41: =names!B9 -> Caring, leisure and other service | AL41: =AL11+AL12 -> 14.542367 | AM41: =AM11+AM12 -> 81.17577818 | CQ41: 0.3619570257
B42: 23 Teaching and educational professionals | C42: 26.423329 | D42: 0.921856 | E42: 10.07074186 | F42: 0 | G42: 0 | H42: 10.07074186 | I42: 10.99259786 | AK42: =names!B8 -> Skilled trades occupations | AL42: =AL13+AL14+AL15+AL16 -> -9.066322 | AM42: =AM13+AM14+AM15+AM16 -> 58.77711794 | CQ42: 0.3811306992
B43: 24 Business, media and public service professionals | C43: 22.322086 | D43: 0.922697 | E43: 9.099911097 | F43: 0 | G43: 0 | H43: 9.099911097 | I43: 10.0226081 | AK43: =names!B7 -> Administrative and secretarial | AL43: =AL17+AL18 -> -13.106815 | AM43: =AM17+AM18 -> 52.04621102 | CQ43: 0.4076640103
B44: 31 Science, engineering and technology associate professionals | C44: 15.834168 | D44: 0.488626 | E44: 4.509612673 | F44: 0 | G44: 0 | H44: 4.509612673 | I44: 4.998238673 | AK44: =names!B6 -> Associate professional and technical | AL44: =AL19+AL20+AL21+AL22+AL23 -> 16.62824 | AM44: =AM19+AM20+AM21+AM22+AM23 -> 74.79991839 | CQ44: 0.2848026289
B45: 32 Health and social care associate professionals | C45: 8.373845 | D45: 0.807329 | E45: 2.207420602 | F45: 0 | G45: 0 | H45: 2.207420602 | I45: 3.014749602 | AK45: =names!B5 -> Professional occupations | AL45: =AL24+AL25+AL26+AL27 -> 34.155856 | AM45: =AM24+AM25+AM26+AM27 -> 140.4049822 | CQ45: 0.2636089636
B46: 33 Protective service occupations | C46: 12.122273 | D46: -1.526132 | E46: 2.547304333 | F46: 0 | G46: 0 | H46: 2.547304333 | I46: 1.021172333 | AK46: =names!B4 -> Managers, directors and senior officials | AL46: =AL28+AL29 -> 16.171975 | AM46: =AM28+AM29 -> 61.29938108 | CQ46: 0.210134216
B47: 34 Culture, media and sports occupations | C47: 12.276028 | D47: 1.295347 | E47: 4.327203824 | F47: 0 | G47: 0 | H47: 4.327203824 | I47: 5.622550824 | CQ47: 0.3524921762
B48: 35 Business and public service associate professionals | C48: 39.692186 | D48: 2.42229 | E48: 13.90949393 | F48: 0 | G48: 0 | H48: 13.90949393 | I48: 16.33178393 | CQ48: 0.3504340611
B49: 41 Administrative occupations | C49: 36.091248 | D49: 1.861385 | E49: 12.57492975 | F49: 0 | G49: 0 | H49: 12.57492975 | I49: 14.43631475 | CQ49: 0.3484204744
B50: 42 Secretarial and related occupations | C50: 2.401972 | D50: 0.200792 | E50: 1.00190529 | F50: 0 | G50: 0 | H50: 1.00190529 | I50: 1.20269729 | CQ50: 0.4171178056
B51: 51 Skilled agricultural and related trades | C51: 23.442936 | D51: -3.210126 | E51: 11.45092838 | F51: 0 | G51: 0 | H51: 11.45092838 | I51: 8.240802375 | CQ51: 0.4884596526
B52: 52 Skilled metal, electrical and electronic trades | C52: 62.316456 | D52: -5.487146 | E52: 18.6601753 | F52: 0 | G52: 0 | H52: 18.6601753 | I52: 13.1730293 | CQ52: 0.2994421778
B53: 53 Skilled construction and building trades | C53: 65.86924 | D53: 2.473007 | E53: 21.97211374 | F53: 0 | G53: 0 | H53: 21.97211374 | I53: 24.44512074 | CQ53: 0.3335716906
B54: 54 Textiles, printing and other skilled trades | C54: 23.228346 | D54: -2.770062 | E54: 6.141050779 | F54: 0 | G54: 0 | H54: 6.141050779 | I54: 3.370988779 | CQ54: 0.2643774455
B55: 61 Caring personal service occupations | C55: 13.200586 | D55: 2.831738 | E55: 4.330576903 | F55: 0 | G55: 0 | H55: 4.330576903 | I55: 7.162314903 | CQ55: 0.328059444
B56: 62 Leisure, travel and related personal service occupations | C56: 9.93162 | D56: 0.425449 | E56: 5.040588969 | F56: 0 | G56: 0 | H56: 5.040588969 | I56: 5.466037969 | CQ56: 0.5075293828
B57: 71 Sales occupations | C57: 24.366278 | D57: -0.764456 | E57: 6.641671534 | F57: 0 | G57: 0 | H57: 6.641671534 | I57: 5.877215534 | CQ57: 0.272576367
B58: 72 Customer service occupations | C58: 9.639395 | D58: 2.531373 | E58: 2.288539626 | F58: 0 | G58: 0 | H58: 2.288539626 | I58: 4.819912626 | CQ58: 0.2374152762
B59: 81 Process, plant and machine operatives | C59: 65.523406 | D59: -5.451775 | E59: 18.17802984 | F59: 0 | G59: 0 | H59: 18.17802984 | I59: 12.72625484 | CQ59: 0.277428036
B60: 82 Transport and mobile machine drivers and operatives | C60: 37.903211 | D60: 1.646519 | E60: 16.72798723 | F60: 0 | G60: 0 | H60: 16.72798723 | I60: 18.37450623 | CQ60: 0.4413343036
B61: 91 Elementary trades and related occupations | C61: 26.092633 | D61: -0.104947 | E61: 7.869762698 | F61: 0 | G61: 0 | H61: 7.869762698 | I61: 7.764815698 | CQ61: 0.3016086072
B62: 92 Elementary administration and service occupations | C62: 61.561643 | D62: 5.580664 | E62: 20.63420208 | F62: 0 | G62: 0 | H62: 20.63420208 | I62: 26.21486608 | CQ62: 0.3351795221
B63: All occupations | C63: 729.61 | D63: 16.525002 | E63: 246.0584688 | F63: 0 | G63: 0 | H63: 246.0584688 | I63: 262.5834708 | CQ63: 0.3372465685
C65: Replacement Demand = Retirements + Occupational Mobility + Migration
C66: Net requirement = Expansion Demand + Replacement Demand
B68: Replacement Demand: Women | E68: Period: 2014 - 2024
B69: All industries
B70: (Results in 000s) | C70: Base year employment level | D70: Expansion demand | E70: Retirements | F70: Occupational mobility | G70: Migration | H70: Replacement demand | I70: Net requirement
B71: 11 Corporate managers and directors | C71: 18.381441 | D71: 6.377217 | E71: 8.692109491 | F71: 0 | G71: 0 | H71: 8.692109491 | I71: 15.06932649 | CP71: females | CQ71: 0.4728742154
B72: 12 Other managers and proprietors | C72: 15.217539 | D72: 3.345412 | E72: 8.942970636 | F72: 0 | G72: 0 | H72: 8.942970636 | I72: 12.28838264 | CQ72: 0.5876752237
B73: 21 Science, research, engineering and technology professionals | C73: 9.542162 | D73: 2.309565 | E73: 3.718935629 | F73: 0 | G73: 0 | H73: 3.718935629 | I73: 6.028500629 | CQ73: 0.3897372135
B74: 22 Health professionals | C74: 57.012572 | D74: 10.243795 | E74: 24.2496219 | F74: 0 | G74: 0 | H74: 24.2496219 | I74: 34.4934169 | CQ74: 0.42533815
B75: 23 Teaching and educational professionals | C75: 65.43468 | D75: 9.158548 | E75: 30.62405704 | F75: 0 | G75: 0 | H75: 30.62405704 | I75: 39.78260504 | CQ75: 0.468009579
B76: 24 Business, media and public service professionals | C76: 22.373547 | D76: 5.618167 | E76: 10.1038662 | F76: 0 | G76: 0 | H76: 10.1038662 | I76: 15.7220332 | CQ76: 0.4515987652
B77: 31 Science, engineering and technology associate professionals | C77: 4.917964 | D77: -0.039745 | E77: 1.727035041 | F77: 0 | G77: 0 | H77: 1.727035041 | I77: 1.687290041 | CQ77: 0.3511687034
B78: 32 Health and social care associate professionals | C78: 17.969546 | D78: 3.258738 | E78: 7.89012849 | F78: 0 | G78: 0 | H78: 7.89012849 | I78: 11.14886649 | CQ78: 0.4390833519
B79: 33 Protective service occupations | C79: 3.764188 | D79: 0.616598 | E79: 1.261125601 | F79: 0 | G79: 0 | H79: 1.261125601 | I79: 1.877723601 | CQ79: 0.3350325757
B80: 34 Culture, media and sports occupations | C80: 9.752587 | D80: 1.370198 | E80: 5.25966832 | F80: 0 | G80: 0 | H80: 5.25966832 | I80: 6.62986632 | CQ80: 0.539310064
B81: 35 Business and public service associate professionals | C81: 34.285082 | D81: 7.934991 | E81: 14.53268557 | F81: 0 | G81: 0 | H81: 14.53268557 | I81: 22.46767657 | CQ81: 0.4238778128
B82: 41 Administrative occupations | C82: 83.401194 | D82: -4.215857 | E82: 37.32957679 | F82: 0 | G82: 0 | H82: 37.32957679 | I82: 33.11371979 | CQ82: 0.447590436
B83: 42 Secretarial and related occupations | C83: 32.345622 | D83: -10.953135 | E83: 14.24661419 | F83: 0 | G83: 0 | H83: 14.24661419 | I83: 3.293479192 | CQ83: 0.4404495357
B84: 51 Skilled agricultural and related trades | C84: 2.783714 | D84: -0.130824 | E84: 1.853201306 | F84: 0 | G84: 0 | H84: 1.853201306 | I84: 1.722377306 | CQ84: 0.6657297791
B85: 52 Skilled metal, electrical and electronic trades | C85: 0.679693 | D85: -0.120245 | E85: 0.2358932531 | F85: 0 | G85: 0 | H85: 0.2358932531 | I85: 0.1156482531 | CQ85: 0.3470585295
B86: 53 Skilled construction and building trades | C86: 1.150371 | D86: 0.380614 | E86: 0.5875068037 | F86: 0 | G86: 0 | H86: 0.5875068037 | I86: 0.9681208037 | CQ86: 0.5107107218
B87: 54 Textiles, printing and other skilled trades | C87: 12.188382 | D87: -0.20154 | E87: 6.94257038 | F87: 0 | G87: 0 | H87: 6.94257038 | I87: 6.74103038 | CQ87: 0.5696055785
B88: 61 Caring personal service occupations | C88: 110.078488 | D88: 12.065186 | E88: 49.04382514 | F88: 0 | G88: 0 | H88: 49.04382514 | I88: 61.10901114 | CQ88: 0.4455350544
B89: 62 Leisure, travel and related personal service occupations | C89: 19.315551 | D89: -0.780006 | E89: 8.218420166 | F89: 0 | G89: 0 | H89: 8.218420166 | I89: 7.438414166 | CQ89: 0.4254820464
B90: 71 Sales occupations | C90: 65.968474 | D90: -4.239779 | E90: 27.92643184 | F90: 0 | G90: 0 | H90: 27.92643184 | I90: 23.68665284 | CQ90: 0.4233299658
B91: 72 Customer service occupations | C91: 14.758295 | D91: 2.47024 | E91: 6.305591638 | F91: 0 | G91: 0 | H91: 6.305591638 | I91: 8.775831638 | CQ91: 0.4272574602
B92: 81 Process, plant and machine operatives | C92: 15.72371 | D92: -3.763557 | E92: 6.123725707 | F92: 0 | G92: 0 | H92: 6.123725707 | I92: 2.360168707 | CQ92: 0.3894580673
B93: 82 Transport and mobile machine drivers and operatives | C93: 1.569399 | D93: 0.402748 | E93: 0.8436197834 | F93: 0 | G93: 0 | H93: 0.8436197834 | I93: 1.246367783 | CQ93: 0.5375432146
B94: 91 Elementary trades and related occupations | C94: 6.742368 | D94: 1.506649 | E94: 3.464486819 | F94: 0 | G94: 0 | H94: 3.464486819 | I94: 4.971135819 | CQ94: 0.5138382863
B95: 92 Elementary administration and service occupations | C95: 57.299431 | D95: -5.516979 | E95: 27.17255253 | F95: 0 | G95: 0 | H95: 27.17255253 | I95: 21.65557353 | CQ95: 0.4742202855
B96: All occupations | C96: 682.656 | D96: 37.096999 | E96: 307.2962203 | F96: 0 | G96: 0 | H96: 307.2962203 | I96: 344.3932193 | CQ96: 0.4501479812
C98: Replacement Demand = Retirements + Occupational Mobility + Migration
C99: Net requirement = Expansion Demand + Replacement Demand

Sheet QualDemand
B2: Base Year Qualification Levels: Men and Women | F2: This is a temporary work area written by the Replacement Demand module. | U2: =B2 -> Base Year Qualification Levels: Men and Women | AD2: Expansion Demand by Qualification as per cent Base Year levels: Men and Women
B3: All industries | U3: =B3 -> All industries | AD3: =U3 -> All industries | AM3: =U2 -> Base Year Qualification Levels: Men and Women | AX3: =U2&", "&U3&", "&RIGHT(U4,4) -> Base Year Qualification Levels: Men and Women, All industries, 2014
B4: Base year: 2014 | U4: =B4 -> Base year: 2014 | AD4: =U4 -> Base year: 2014 | AM4: =U3 -> All industries
B5: (thousands) | C5: =LEFT(names!D4,4) -> QCF8 | D5: =LEFT(names!D5,4) -> QCF7 | E5: =LEFT(names!D6,4) -> QCF6 | F5: =LEFT(names!D7,4) -> QCF5 | G5: =LEFT(names!D8,4) -> QCF4 | H5: =LEFT(names!D9,4) -> QCF3 | I5: =LEFT(names!D10,4) -> QCF2 | J5: =LEFT(names!D11,4) -> QCF1 | K5: =LEFT(names!D12,4) -> No Q | L5: Total | N5: Because of the way the workbooks are | U5: =B5 -> (thousands) | V5: QCF 7-8 | W5: QCF 4-6 | X5: QCF 3 | Y5: QCF 2 | Z5: QCF 1 | AA5: No Qual | AB5: Total | AD5: (per cent) | AE5: =V5 -> QCF 7-8 | AF5: =W5 -> QCF 4-6 | AG5: QCF 3 | AH5: QCF 2 | AI5: QCF 1 | AJ5: No Qual | AK5: Total | AM5: =U4 -> Base year: 2014
N6: created, initial results relate to All sectors. | AM6: =U5 -> (thousands) | AN6: =V40 -> QCF 7-8 | AO6: QCF 4-6 | AP6: QCF 3 | AQ6: QCF 2 | AR6: QCF 1 | AS6: No Qual | AT6: Total
B8: 11 Corporate managers and directors | C8: 0.8917990486 | D8: 7.8621738 | E8: 17.82699557 | F8: 4.246052718 | G8: 5.613383483 | H8: 11.9054947 | I8: 9.507205111 | J8: 5.909743739 | K8: 1.626432601 | L8: 65.38928077 | N8: Sector specific results are produced by | U8: =B8 -> 11 Corporate managers and directors | V8: =C8+D8 -> 8.753972849 | W8: =E8+F8+G8 -> 27.68643177 | X8: =H8 -> 11.9054947 | Y8: =I8 -> 9.507205111 | Z8: =J8 -> 5.909743739 | AA8: =K8 -> 1.626432601 | AB8: =L8 -> 65.38928077 | AD8: =U8 -> 11 Corporate managers and directors | AE8: =V42/V$8*100 -> 3.500171255 | AF8: 52.98539366 | AG8: -10.66379096 | AH8: -2.310487493 | AI8: -16.61064689 | AJ8: -63.25593436 | AK8: 17.55099171 | AM8: =names!B4 -> Managers, directors and senior officials | AN8: =V8+V9 -> 12.83802721 | AO8: 40.97546192 | AP8: 19.96386211 | AQ8: 17.26817786 | AR8: 10.73852458 | AS8: 4.57904703 | AT8: 106.3631007
B9: 12 Other managers and proprietors | C9: 0.468349933 | D9: 3.615704424 | E9: 7.776668896 | F9: 2.627579917 | G9: 2.884781341 | H9: 8.058367406 | I9: 7.760972749 | J9: 4.828780838 | K9: 2.952614428 | L9: 40.97381993 | N9: running the module via the Start button. | U9: 12 Other managers and proprietors | V9: =C9+D9 -> 4.084054357 | W9: =E9+F9+G9 -> 13.28903015 | X9: =H9 -> 8.058367406 | Y9: 7.760972749 | Z9: 4.828780838 | AA9: 2.952614428 | AB9: 40.97381993 | AD9: 12 Other managers and proprietors | AE9: =V43/V$9*100 -> 13.58735906 | AF9: 63.17420668 | AG9: -17.02448246 | AH9: 5.130484588 | AI9: -30.79026184 | AJ9: -60.76428004 | AK9: 11.45976995 | AM9: =names!B5 -> Professional occupations | AN9: =V10+V11+V12+V13 -> 90.23086059 | AO9: 123.3042154 | AP9: 21.22951944 | AQ9: 15.69468947 | AR9: 8.768798548 | AS9: 2.113287399 | AT9: 261.3413709
B10: 21 Science, research, engineering and technology professionals | C10: 2.567586896 | D10: 8.976002073 | E10: 14.83688301 | F10: 1.851031267 | G10: 4.67032074 | H10: 5.744589578 | I10: 4.12777812 | J10: 2.113253833 | K10: 0.6411665228 | L10: 45.52861204 | N10: on Sheet "Replacement". | U10: 21 Science, research, engineering and technology professionals | V10: 11.54358897 | W10: 21.35823502 | X10: 5.744589578 | Y10: 4.12777812 | Z10: 2.113253833 | AA10: 0.6411665228 | AB10: 45.52861204 | AD10: 21 Science, research, engineering and technology professionals | AE10: =V44/V$10*100 -> 2.403069687 | AF10: 31.1169105 | AG10: -21.73887258 | AH10: -2.636494872 | AI10: -21.10236265 | AJ10: -52.47428044 | AK10: 10.506342 | AM10: =names!B6 -> Associate professional and technical | AN10: =V14+V15+V16+V17+V18 -> 21.17765745 | AO10: 72.98196925 | AP10: 28.01051951 | AQ10: 21.39789399 | AR10: 11.97433205 | AS10: 3.44549373 | AT10: 158.987866
B11: 22 Health professionals | C11: 5.372908436 | D11: 13.63442075 | E11: 27.42473271 | F11: 16.6745433 | G11: 1.831674846 | H11: 6.560108035 | I11: 4.865269673 | J11: 2.592269989 | K11: 0.303190192 | L11: 79.25911794 | N11: This message can then be deleted. | U11: 22 Health professionals | V11: 19.00732919 | W11: 45.93095086 | X11: 6.560108035 | Y11: 4.865269673 | Z11: 2.592269989 | AA11: 0.303190192 | AB11: 79.25911794 | AD11: 22 Health professionals | AE11: =V45/V$11*100 -> 10.52940015 | AF11: 21.78612241 | AG11: 25.47295351 | AH11: 6.421060838 | AI11: -42.45140991 | AJ11: -46.08811748 | AK11: 16.08798665 | AM11: =names!B7 -> Administrative and secretarial | AN11: =V19+V20 -> 9.020281198 | AO11: 47.31499112 | AP11: 32.60280503 | AQ11: 37.0453183 | AR11: 21.69104696 | AS11: 6.565591253 | AT11: 154.2400339
B12: 23 Teaching and educational professionals | C12: 6.898649174 | D12: 41.54004083 | E12: 27.50253221 | F12: 5.476643789 | G12: 1.225363729 | H12: 3.716130438 | I12: 3.008031025 | J12: 2.009441074 | K12: 0.4811773277 | L12: 91.85800959 | U12: 23 Teaching and educational professionals | V12: 48.43869 | W12: 34.20453973 | X12: 3.716130438 | Y12: 3.008031025 | Z12: 2.009441074 | AA12: 0.4811773277 | AB12: 91.85800959 | AD12: 23 Teaching and educational professionals | AE12: =V46/V$12*100 -> 17.84015921 | AF12: 5.112353259 | AG12: -1.554442039 | AH12: 13.00422601 | AI12: -23.80742209 | AJ12: -34.24965333 | AK12: 10.97389845 | AM12: =names!B8 -> Skilled trades occupations | AN12: =V21+V22+V23+V24 -> 3.387396965 | AO12: 28.78995768 | AP12: 63.31691698 | AQ12: 49.86778675 | AR12: 28.23354043 | AS12: 18.0635419 | AT12: 191.6591407
B13: 24 Business, media and public service professionals | C13: 0.8305920092 | D13: 10.41066041 | E13: 17.15202382 | F13: 1.981831689 | G13: 2.676634325 | H13: 5.208691387 | I13: 3.693610655 | J13: 2.053833652 | K13: 0.6877533568 | L13: 44.69563131 | U13: 24 Business, media and public service professionals | V13: 11.24125242 | W13: 21.81048984 | X13: 5.208691387 | Y13: 3.693610655 | Z13: 2.053833652 | AA13: 0.6877533568 | AB13: 44.69563131 | AD13: 24 Business, media and public service professionals | AE13: =V47/V$13*100 -> 4.9848188 | AF13: 35.61970988 | AG13: -6.177559789 | AH13: -13.79304816 | AI13: -29.23299214 | AJ13: -51.86376777 | AK13: 14.63423991 | AM13: =names!B9 -> Caring, leisure and other service | AN13: =V25+V26 -> 4.514267447 | AO13: 36.48623469 | AP13: 50.55890095 | AQ13: 41.53599707 | AR13: 14.51798215 | AS13: 4.912862615 | AT13: 152.5262449
B14: 31 Science, engineering and technology associate professionals | C14: 0.3884231369 | D14: 2.328887963 | E14: 5.114849152 | F14: 1.022906641 | G14: 2.632693556 | H14: 4.10185876 | I14: 2.945813995 | J14: 1.808788698 | K14: 0.4079100697 | L14: 20.75213197 | U14: 31 Science, engineering and technology associate professionals | V14: 2.7173111 | W14: 8.77044935 | X14: 4.10185876 | Y14: 2.945813995 | Z14: 1.808788698 | AA14: 0.4079100697 | AB14: 20.75213197 | AD14: 31 Science, engineering and technology associate professionals | AE14: =V48/V$14*100 -> -2.689819616 | AF14: 27.10090916 | AG14: -29.40688957 | AH14: -7.4974121 | AI14: -13.57842828 | AJ14: -44.66820846 | AK14: 2.163058031 | AM14: =names!B10 -> Sales and customer service | AN14: =V27+V28 -> 3.494854417 | AO14: 22.30202426 | AP14: 29.37822882 | AQ14: 30.90369973 | AR14: 18.29246413 | AS14: 10.36117034 | AT14: 114.7324417
B15: 32 Health and social care associate professionals | C15: 0.1041244074 | D15: 2.952486137 | E15: 8.646424574 | F15: 7.070327251 | G15: 1.035469221 | H15: 2.992224774 | I15: 2.32432895 | J15: 1.069300179 | K15: 0.1487054103 | L15: 26.3433909 | U15: 32 Health and social care associate professionals | V15: 3.056610544 | W15: 16.75222105 | X15: 2.992224774 | Y15: 2.32432895 | Z15: 1.069300179 | AA15: 0.1487054103 | AB15: 26.3433909 | AD15: 32 Health and social care associate professionals | AE15: =V49/V$15*100 -> 14.0822843 | AF15: 22.18083683 | AG15: 13.21405673 | AH15: 4.014975772 | AI15: -46.25364626 | AJ15: -49.95309983 | AK15: 15.43486052 | AM15: =names!B11 -> Process, plant and machine operatives | AN15: =V29+V30 -> 1.815289419 | AO15: 11.46737818 | AP15: 27.2811546 | AQ15: 34.14363112 | AR15: 28.64270111 | AS15: 17.36957031 | AT15: 120.7197247
B16: 33 Protective service occupations | C16: 0.05560980598 | D16: 0.8989923846 | E16: 3.768798561 | F16: 0.9890604594 | G16: 1.00015201 | H16: 3.44188221 | I16: 3.640664911 | J16: 1.751748293 | K16: 0.3395522529 | L16: 15.88646089 | U16: 33 Protective service occupations | V16: 0.9546021906 | W16: 5.75801103 | X16: 3.44188221 | Y16: 3.640664911 | Z16: 1.751748293 | AA16: 0.3395522529 | AB16: 15.88646089 | AD16: 33 Protective service occupations | AE16: =V50/V$16*100 -> -11.63343319 | AF16: 37.9814218 | AG16: -38.24812206 | AH16: -19.38748953 | AI16: -40.79177485 | AJ16: -73.21305171 | AK16: -5.725209541 | AM16: =names!B12 -> Elementary occupations | AN16: =V31+V32 -> 2.6824422 | AO16: 18.15012833 | AP16: 27.24184472 | AQ16: 41.82850892 | AR16: 36.85686718 | AS16: 24.93628514 | AT16: 151.6960765
B17: 34 Culture, media and sports occupations | C17: 0.2828432468 | D17: 3.454500061 | E17: 8.416910704 | F17: 1.180832245 | G17: 1.503954463 | H17: 3.380489889 | I17: 1.847170324 | J17: 1.404513114 | K17: 0.5574015827 | L17: 22.02861563 | U17: 34 Culture, media and sports occupations | V17: 3.737343308 | W17: 11.10169741 | X17: 3.380489889 | Y17: 1.847170324 | Z17: 1.404513114 | AA17: 0.5574015827 | AB17: 22.02861563 | AD17: 34 Culture, media and sports occupations | AE17: =V51/V$17*100 -> 5.595879672 | AF17: 38.10468975 | AG17: -13.27855293 | AH17: -29.88170587 | AI17: -35.34916244 | AJ17: -49.61077533 | AK17: 12.1003681 | AM17: Total | AN17: =V33 -> 149.1610769 | AO17: 401.7723609 | AP17: 299.5837522 | AQ17: 289.6857032 | AR17: 179.7162571 | AS17: 92.34684972 | AT17: 1412.266
B18: 35 Business and public service associate professionals | C18: 0.9280598088 | D18: 9.783730504 | E18: 19.70905892 | F18: 5.944124744 | G18: 4.946406757 | H18: 14.09406388 | I18: 10.63991581 | J18: 5.939981762 | K18: 1.991924415 | L18: 73.97726659 | U18: 35 Business and public service associate professionals | V18: 10.71179031 | W18: 30.59959042 | X18: 14.09406388 | Y18: 10.63991581 | Z18: 5.939981762 | AA18: 1.991924415 | AB18: 73.97726659 | AD18: 35 Business and public service associate professionals | AE18: =V52/V$18*100 -> 11.03648681 | AF18: 46.16793916 | AG18: -5.978855138 | AH18: -7.635065917 | AI18: -36.28965327 | AJ18: -57.30615492 | AK18: 14.00062988
B19: 41 Administrative occupations | C19: 0.6825726339 | D19: 6.969686428 | E19: 22.64901745 | F19: 8.247355726 | G19: 7.937630914 | H19: 25.57047299 | I19: 28.47559414 | J19: 14.45683431 | K19: 4.503275472 | L19: 119.4924401 | U19: 41 Administrative occupations | V19: 7.652259062 | W19: 38.83400409 | X19: 25.57047299 | Y19: 28.47559414 | Z19: 14.45683431 | AA19: 4.503275472 | AB19: 119.4924401 | AD19: 41 Administrative occupations | AE19: =V53/V$19*100 -> 7.230360832 | AF19: 46.41968396 | AG19: -14.89126899 | AH19: -19.63098536 | AI19: -58.17200896 | AJ19: -69.43258117 | AK19: -1.970393334
